Workbook

Sheet Реестр
A1: Контрагент | B1: Статья расходов | C1: Подкатегория | D1: ДОПЫ | E1: 20 21 | F1: Оплачен | G1: Счет (№, дата) | H1: Предмет закупки | I1: Пункт 44 ФЗ | J1: Сумма | K1: БО | L1: входящий (дата) | M1: Срок оплаты (дней) | N1: С даты подписания (акта/договора) и предоставления документов на оплату | O1: Плановая дата оплаты | P1: Факт. дата оплаты | Q1: Оплата | R1: Способ оплаты | S1: Документы переданы в бухгалтерию | T1: Основание | AB1: =TODAY() -> 2022-02-03
A2: АО " СахалинСельхозИнвест" | B2: Питание (областной бюджет) (молоко, 5-11,многодетные, ОВЗ) | C2: молоко | D2: =IFERROR(VLOOKUP(Реестр_tb[[#This Row],[Подкатегория]],IF({1,0},Данные_tb[ЕД],Данные_tb[доп. код.]),2,0)," ") -> Д62190 | E2: =IFERROR(VLOOKUP(Реестр_tb[[#This Row],[ДОПЫ]],IF({1,0},Данные_tb[доп. код.],Данные_tb[Источник]),2,0)," ") -> 20 | F2: Нет | G2: 818 от 27.12.21 | H2: Молоко | I2: аукцион и т.п. | J2: 161959.68 | L2: 2022-01-14 | M2: 15 | N2: Акта | O2: =IF(Реестр_tb[[#This Row],[Срок оплаты (дней)]]="","",WORKDAY(Реестр_tb[[#This Row],[входящий (дата)]],Реестр_tb[[#This Row],[Срок оплаты (дней)]]+1,Выходные_tb[Выходные])) -> 2022-02-07 | Q2: =IF(AND(Реестр_tb[[#This Row],[Оплачен]]="Да",Реестр_tb[[#This Row],[Факт. дата оплаты]]<=Реестр_tb[[#This Row],[Плановая дата оплаты]]),"Оплачено вовремя",IF(AND(Реестр_tb[[#This Row],[Оплачен]]="Да",Реестр_tb[[#This Row],[Факт. дата оплаты]]>Реестр_tb[[#This Row],[Плановая дата оплаты]]),"Просрочено",IF(AND(Реестр_tb[[#This Row],[Оплачен]]="Нет",Реестр_tb[[#This Row],[Факт. дата оплаты]]="",Реестр_tb[[#This Row],[Плановая дата оплаты]]<$AB$1),"Просрочено",IF(Реестр_tb[[#This Row],[Плановая дата оплаты]]=$AB$1,"Сегодня",IF(Реестр_tb[[#This Row],[Плановая дата оплаты]]<=$AB$1+7,"В течении недели","Через неделю и более"))))) -> В течении недели | R2: Полный расчет | S2: Копии | T2: Контракт № 2/2022 от 06.12.2021 г. на сумму 1 757 341,92 руб.
A3: АО " СахалинСельхозИнвест" | B3: Питание (областной бюджет) (молоко, 5-11,многодетные, ОВЗ) | C3: молоко | D3: =IFERROR(VLOOKUP(Реестр_tb[[#This Row],[Подкатегория]],IF({1,0},Данные_tb[ЕД],Данные_tb[доп. код.]),2,0)," ") -> Д62190 | E3: =IFERROR(VLOOKUP(Реестр_tb[[#This Row],[ДОПЫ]],IF({1,0},Данные_tb[доп. код.],Данные_tb[Источник]),2,0)," ") -> 20 | F3: Нет | G3: 1-10/02 - 1938 л | H3: Молоко | I3: аукцион и т.п. | J3: 192327.12 | O3: =IF(Реестр_tb[[#This Row],[Срок оплаты (дней)]]="","",WORKDAY(Реестр_tb[[#This Row],[входящий (дата)]],Реестр_tb[[#This Row],[Срок оплаты (дней)]]+1,Выходные_tb[Выходные])) ->  | Q3: =IF(AND(Реестр_tb[[#This Row],[Оплачен]]="Да",Реестр_tb[[#This Row],[Факт. дата оплаты]]<=Реестр_tb[[#This Row],[Плановая дата оплаты]]),"Оплачено вовремя",IF(AND(Реестр_tb[[#This Row],[Оплачен]]="Да",Реестр_tb[[#This Row],[Факт. дата оплаты]]>Реестр_tb[[#This Row],[Плановая дата оплаты]]),"Просрочено",IF(AND(Реестр_tb[[#This Row],[Оплачен]]="Нет",Реестр_tb[[#This Row],[Факт. дата оплаты]]="",Реестр_tb[[#This Row],[Плановая дата оплаты]]<$AB$1),"Просрочено",IF(Реестр_tb[[#This Row],[Плановая дата оплаты]]=$AB$1,"Сегодня",IF(Реестр_tb[[#This Row],[Плановая дата оплаты]]<=$AB$1+7,"В течении недели","Через неделю и более"))))) -> Через неделю и более | T3: Контракт № 2/2022 от 06.12.2021 г. на сумму 1 757 341,92 руб.
A4: АО " СахалинСельхозИнвест" | B4: Питание (областной бюджет) (молоко, 5-11,многодетные, ОВЗ) | C4: молоко | D4: =IFERROR(VLOOKUP(Реестр_tb[[#This Row],[Подкатегория]],IF({1,0},Данные_tb[ЕД],Данные_tb[доп. код.]),2,0)," ") -> Д62190 | E4: =IFERROR(VLOOKUP(Реестр_tb[[#This Row],[ДОПЫ]],IF({1,0},Данные_tb[доп. код.],Данные_tb[Источник]),2,0)," ") -> 20 | F4: Нет | G4: 1-10/03 - 1734 л | H4: Молоко | I4: аукцион и т.п. | J4: 172082.16 | O4: =IF(Реестр_tb[[#This Row],[Срок оплаты (дней)]]="","",WORKDAY(Реестр_tb[[#This Row],[входящий (дата)]],Реестр_tb[[#This Row],[Срок оплаты (дней)]]+1,Выходные_tb[Выходные])) ->  | Q4: =IF(AND(Реестр_tb[[#This Row],[Оплачен]]="Да",Реестр_tb[[#This Row],[Факт. дата оплаты]]<=Реестр_tb[[#This Row],[Плановая дата оплаты]]),"Оплачено вовремя",IF(AND(Реестр_tb[[#This Row],[Оплачен]]="Да",Реестр_tb[[#This Row],[Факт. дата оплаты]]>Реестр_tb[[#This Row],[Плановая дата оплаты]]),"Просрочено",IF(AND(Реестр_tb[[#This Row],[Оплачен]]="Нет",Реестр_tb[[#This Row],[Факт. дата оплаты]]="",Реестр_tb[[#This Row],[Плановая дата оплаты]]<$AB$1),"Просрочено",IF(Реестр_tb[[#This Row],[Плановая дата оплаты]]=$AB$1,"Сегодня",IF(Реестр_tb[[#This Row],[Плановая дата оплаты]]<=$AB$1+7,"В течении недели","Через неделю и более"))))) -> Через неделю и более | T4: Контракт № 2/2022 от 06.12.2021 г. на сумму 1 757 341,92 руб.
A5: АО " СахалинСельхозИнвест" | B5: Питание (областной бюджет) (молоко, 5-11,многодетные, ОВЗ) | C5: молоко | D5: =IFERROR(VLOOKUP(Реестр_tb[[#This Row],[Подкатегория]],IF({1,0},Данные_tb[ЕД],Данные_tb[доп. код.]),2,0)," ") -> Д62190 | E5: =IFERROR(VLOOKUP(Реестр_tb[[#This Row],[ДОПЫ]],IF({1,0},Данные_tb[доп. код.],Данные_tb[Источник]),2,0)," ") -> 20 | F5: Нет | G5: 1-10/04 - 2142 | H5: Молоко | I5: аукцион и т.п. | J5: 212572.08 | O5: =IF(Реестр_tb[[#This Row],[Срок оплаты (дней)]]="","",WORKDAY(Реестр_tb[[#This Row],[входящий (дата)]],Реестр_tb[[#This Row],[Срок оплаты (дней)]]+1,Выходные_tb[Выходные])) ->  | Q5: =IF(AND(Реестр_tb[[#This Row],[Оплачен]]="Да",Реестр_tb[[#This Row],[Факт. дата оплаты]]<=Реестр_tb[[#This Row],[Плановая дата оплаты]]),"Оплачено вовремя",IF(AND(Реестр_tb[[#This Row],[Оплачен]]="Да",Реестр_tb[[#This Row],[Факт. дата оплаты]]>Реестр_tb[[#This Row],[Плановая дата оплаты]]),"Просрочено",IF(AND(Реестр_tb[[#This Row],[Оплачен]]="Нет",Реестр_tb[[#This Row],[Факт. дата оплаты]]="",Реестр_tb[[#This Row],[Плановая дата оплаты]]<$AB$1),"Просрочено",IF(Реестр_tb[[#This Row],[Плановая дата оплаты]]=$AB$1,"Сегодня",IF(Реестр_tb[[#This Row],[Плановая дата оплаты]]<=$AB$1+7,"В течении недели","Через неделю и более"))))) -> Через неделю и более | T5: Контракт № 2/2022 от 06.12.2021 г. на сумму 1 757 341,92 руб.
A6: АО " СахалинСельхозИнвест" | B6: Питание (областной бюджет) (молоко, 5-11,многодетные, ОВЗ) | C6: молоко | D6: =IFERROR(VLOOKUP(Реестр_tb[[#This Row],[Подкатегория]],IF({1,0},Данные_tb[ЕД],Данные_tb[доп. код.]),2,0)," ") -> Д62190 | E6: =IFERROR(VLOOKUP(Реестр_tb[[#This Row],[ДОПЫ]],IF({1,0},Данные_tb[доп. код.],Данные_tb[Источник]),2,0)," ") -> 20 | F6: Нет | G6: 1-10/05 - 1734 л | H6: Молоко | I6: аукцион и т.п. | J6: 172082.16 | O6: =IF(Реестр_tb[[#This Row],[Срок оплаты (дней)]]="","",WORKDAY(Реестр_tb[[#This Row],[входящий (дата)]],Реестр_tb[[#This Row],[Срок оплаты (дней)]]+1,Выходные_tb[Выходные])) ->  | Q6: =IF(AND(Реестр_tb[[#This Row],[Оплачен]]="Да",Реестр_tb[[#This Row],[Факт. дата оплаты]]<=Реестр_tb[[#This Row],[Плановая дата оплаты]]),"Оплачено вовремя",IF(AND(Реестр_tb[[#This Row],[Оплачен]]="Да",Реестр_tb[[#This Row],[Факт. дата оплаты]]>Реестр_tb[[#This Row],[Плановая дата оплаты]]),"Просрочено",IF(AND(Реестр_tb[[#This Row],[Оплачен]]="Нет",Реестр_tb[[#This Row],[Факт. дата оплаты]]="",Реестр_tb[[#This Row],[Плановая дата оплаты]]<$AB$1),"Просрочено",IF(Реестр_tb[[#This Row],[Плановая дата оплаты]]=$AB$1,"Сегодня",IF(Реестр_tb[[#This Row],[Плановая дата оплаты]]<=$AB$1+7,"В течении недели","Через неделю и более"))))) -> Через неделю и более | T6: Контракт № 2/2022 от 06.12.2021 г. на сумму 1 757 341,92 руб.
A7: АО " СахалинСельхозИнвест" | B7: Питание (областной бюджет) (молоко, 5-11,многодетные, ОВЗ) | C7: молоко | D7: =IFERROR(VLOOKUP(Реестр_tb[[#This Row],[Подкатегория]],IF({1,0},Данные_tb[ЕД],Данные_tb[доп. код.]),2,0)," ") -> Д62190 | E7: =IFERROR(VLOOKUP(Реестр_tb[[#This Row],[ДОПЫ]],IF({1,0},Данные_tb[доп. код.],Данные_tb[Источник]),2,0)," ") -> 20 | F7: Нет | G7: 20-30/08 - 2288 л | H7: Молоко | I7: аукцион и т.п. | J7: 227061.12 | O7: =IF(Реестр_tb[[#This Row],[Срок оплаты (дней)]]="","",WORKDAY(Реестр_tb[[#This Row],[входящий (дата)]],Реестр_tb[[#This Row],[Срок оплаты (дней)]]+1,Выходные_tb[Выходные])) ->  | Q7: =IF(AND(Реестр_tb[[#This Row],[Оплачен]]="Да",Реестр_tb[[#This Row],[Факт. дата оплаты]]<=Реестр_tb[[#This Row],[Плановая дата оплаты]]),"Оплачено вовремя",IF(AND(Реестр_tb[[#This Row],[Оплачен]]="Да",Реестр_tb[[#This Row],[Факт. дата оплаты]]>Реестр_tb[[#This Row],[Плановая дата оплаты]]),"Просрочено",IF(AND(Реестр_tb[[#This Row],[Оплачен]]="Нет",Реестр_tb[[#This Row],[Факт. дата оплаты]]="",Реестр_tb[[#This Row],[Плановая дата оплаты]]<$AB$1),"Просрочено",IF(Реестр_tb[[#This Row],[Плановая дата оплаты]]=$AB$1,"Сегодня",IF(Реестр_tb[[#This Row],[Плановая дата оплаты]]<=$AB$1+7,"В течении недели","Через неделю и более"))))) -> Через неделю и более | T7: Контракт № 2/2022 от 06.12.2021 г. на сумму 1 757 341,92 руб.
A8: АО " СахалинСельхозИнвест" | B8: Питание (областной бюджет) (молоко, 5-11,многодетные, ОВЗ) | C8: молоко | D8: =IFERROR(VLOOKUP(Реестр_tb[[#This Row],[Подкатегория]],IF({1,0},Данные_tb[ЕД],Данные_tb[доп. код.]),2,0)," ") -> Д62190 | E8: =IFERROR(VLOOKUP(Реестр_tb[[#This Row],[ДОПЫ]],IF({1,0},Данные_tb[доп. код.],Данные_tb[Источник]),2,0)," ") -> 20 | F8: Нет | G8: 1-10/10 - 2080 л | H8: Молоко | I8: аукцион и т.п. | J8: 206419.2 | O8: =IF(Реестр_tb[[#This Row],[Срок оплаты (дней)]]="","",WORKDAY(Реестр_tb[[#This Row],[входящий (дата)]],Реестр_tb[[#This Row],[Срок оплаты (дней)]]+1,Выходные_tb[Выходные])) ->  | Q8: =IF(AND(Реестр_tb[[#This Row],[Оплачен]]="Да",Реестр_tb[[#This Row],[Факт. дата оплаты]]<=Реестр_tb[[#This Row],[Плановая дата оплаты]]),"Оплачено вовремя",IF(AND(Реестр_tb[[#This Row],[Оплачен]]="Да",Реестр_tb[[#This Row],[Факт. дата оплаты]]>Реестр_tb[[#This Row],[Плановая дата оплаты]]),"Просрочено",IF(AND(Реестр_tb[[#This Row],[Оплачен]]="Нет",Реестр_tb[[#This Row],[Факт. дата оплаты]]="",Реестр_tb[[#This Row],[Плановая дата оплаты]]<$AB$1),"Просрочено",IF(Реестр_tb[[#This Row],[Плановая дата оплаты]]=$AB$1,"Сегодня",IF(Реестр_tb[[#This Row],[Плановая дата оплаты]]<=$AB$1+7,"В течении недели","Через неделю и более"))))) -> Через неделю и более | T8: Контракт № 2/2022 от 06.12.2021 г. на сумму 1 757 341,92 руб.
A9: АО " СахалинСельхозИнвест" | B9: Питание (областной бюджет) (молоко, 5-11,многодетные, ОВЗ) | C9: молоко | D9: =IFERROR(VLOOKUP(Реестр_tb[[#This Row],[Подкатегория]],IF({1,0},Данные_tb[ЕД],Данные_tb[доп. код.]),2,0)," ") -> Д62190 | E9: =IFERROR(VLOOKUP(Реестр_tb[[#This Row],[ДОПЫ]],IF({1,0},Данные_tb[доп. код.],Данные_tb[Источник]),2,0)," ") -> 20 | F9: Нет | G9: 1-10/11 - 1872 л | H9: Молоко | I9: аукцион и т.п. | J9: 185777.28 | O9: =IF(Реестр_tb[[#This Row],[Срок оплаты (дней)]]="","",WORKDAY(Реестр_tb[[#This Row],[входящий (дата)]],Реестр_tb[[#This Row],[Срок оплаты (дней)]]+1,Выходные_tb[Выходные])) ->  | Q9: =IF(AND(Реестр_tb[[#This Row],[Оплачен]]="Да",Реестр_tb[[#This Row],[Факт. дата оплаты]]<=Реестр_tb[[#This Row],[Плановая дата оплаты]]),"Оплачено вовремя",IF(AND(Реестр_tb[[#This Row],[Оплачен]]="Да",Реестр_tb[[#This Row],[Факт. дата оплаты]]>Реестр_tb[[#This Row],[Плановая дата оплаты]]),"Просрочено",IF(AND(Реестр_tb[[#This Row],[Оплачен]]="Нет",Реестр_tb[[#This Row],[Факт. дата оплаты]]="",Реестр_tb[[#This Row],[Плановая дата оплаты]]<$AB$1),"Просрочено",IF(Реестр_tb[[#This Row],[Плановая дата оплаты]]=$AB$1,"Сегодня",IF(Реестр_tb[[#This Row],[Плановая дата оплаты]]<=$AB$1+7,"В течении недели","Через неделю и более"))))) -> Через неделю и более | T9: Контракт № 2/2022 от 06.12.2021 г. на сумму 1 757 341,92 руб.
A10: АО " СахалинСельхозИнвест" | B10: Питание (областной бюджет) (молоко, 5-11,многодетные, ОВЗ) | C10: молоко | D10: =IFERROR(VLOOKUP(Реестр_tb[[#This Row],[Подкатегория]],IF({1,0},Данные_tb[ЕД],Данные_tb[доп. код.]),2,0)," ") -> Д62190 | E10: =IFERROR(VLOOKUP(Реестр_tb[[#This Row],[ДОПЫ]],IF({1,0},Данные_tb[доп. код.],Данные_tb[Источник]),2,0)," ") -> 20 | F10: Нет | G10: 1-10/12 - 2288 л | H10: Молоко | I10: аукцион и т.п. | J10: 227061.12 | O10: =IF(Реестр_tb[[#This Row],[Срок оплаты (дней)]]="","",WORKDAY(Реестр_tb[[#This Row],[входящий (дата)]],Реестр_tb[[#This Row],[Срок оплаты (дней)]]+1,Выходные_tb[Выходные])) ->  | Q10: =IF(AND(Реестр_tb[[#This Row],[Оплачен]]="Да",Реестр_tb[[#This Row],[Факт. дата оплаты]]<=Реестр_tb[[#This Row],[Плановая дата оплаты]]),"Оплачено вовремя",IF(AND(Реестр_tb[[#This Row],[Оплачен]]="Да",Реестр_tb[[#This Row],[Факт. дата оплаты]]>Реестр_tb[[#This Row],[Плановая дата оплаты]]),"Просрочено",IF(AND(Реестр_tb[[#This Row],[Оплачен]]="Нет",Реестр_tb[[#This Row],[Факт. дата оплаты]]="",Реестр_tb[[#This Row],[Плановая дата оплаты]]<$AB$1),"Просрочено",IF(Реестр_tb[[#This Row],[Плановая дата оплаты]]=$AB$1,"Сегодня",IF(Реестр_tb[[#This Row],[Плановая дата оплаты]]<=$AB$1+7,"В течении недели","Через неделю и более"))))) -> Через неделю и более | T10: Контракт № 2/2022 от 06.12.2021 г. на сумму 1 757 341,92 руб.
A11: ООО "ОА "Форт" | B11: охрана аукцион, ППБ, предписания | C11: физическая охрана | D11: =IFERROR(VLOOKUP(Реестр_tb[[#This Row],[Подкатегория]],IF({1,0},Данные_tb[ЕД],Данные_tb[доп. код.]),2,0)," ") -> М0026 | E11: =IFERROR(VLOOKUP(Реестр_tb[[#This Row],[ДОПЫ]],IF({1,0},Данные_tb[доп. код.],Данные_tb[Источник]),2,0)," ") -> 21 | F11: Нет | G11: 744 ч / 199,47 | H11: Физическая охрана | I11: аукцион и т.п. | J11: 148405.68 | L11: 31.01.22 | M11: 15 | N11: Акта | O11: =IF(Реестр_tb[[#This Row],[Срок оплаты (дней)]]="","",WORKDAY(Реестр_tb[[#This Row],[входящий (дата)]],Реестр_tb[[#This Row],[Срок оплаты (дней)]]+1,Выходные_tb[Выходные])) -> 2022-02-22 | Q11: =IF(AND(Реестр_tb[[#This Row],[Оплачен]]="Да",Реестр_tb[[#This Row],[Факт. дата оплаты]]<=Реестр_tb[[#This Row],[Плановая дата оплаты]]),"Оплачено вовремя",IF(AND(Реестр_tb[[#This Row],[Оплачен]]="Да",Реестр_tb[[#This Row],[Факт. дата оплаты]]>Реестр_tb[[#This Row],[Плановая дата оплаты]]),"Просрочено",IF(AND(Реестр_tb[[#This Row],[Оплачен]]="Нет",Реестр_tb[[#This Row],[Факт. дата оплаты]]="",Реестр_tb[[#This Row],[Плановая дата оплаты]]<$AB$1),"Просрочено",IF(Реестр_tb[[#This Row],[Плановая дата оплаты]]=$AB$1,"Сегодня",IF(Реестр_tb[[#This Row],[Плановая дата оплаты]]<=$AB$1+7,"В течении недели","Через неделю и более"))))) -> Через неделю и более | R11: Полный расчет | S11: Оригиналы | T11: Контракт № 1/2022 от 22.11.2021 г. на сумму 1 747 334,91 руб.
A12: ООО "ОА "Форт" | B12: охрана аукцион, ППБ, предписания | C12: физическая охрана | D12: =IFERROR(VLOOKUP(Реестр_tb[[#This Row],[Подкатегория]],IF({1,0},Данные_tb[ЕД],Данные_tb[доп. код.]),2,0)," ") -> М0026 | E12: =IFERROR(VLOOKUP(Реестр_tb[[#This Row],[ДОПЫ]],IF({1,0},Данные_tb[доп. код.],Данные_tb[Источник]),2,0)," ") -> 21 | F12: Нет | G12: 672 ч / 199,47 | H12: Физическая охрана | I12: аукцион и т.п. | J12: 134043.84 | O12: =IF(Реестр_tb[[#This Row],[Срок оплаты (дней)]]="","",WORKDAY(Реестр_tb[[#This Row],[входящий (дата)]],Реестр_tb[[#This Row],[Срок оплаты (дней)]]+1,Выходные_tb[Выходные])) ->  | Q12: =IF(AND(Реестр_tb[[#This Row],[Оплачен]]="Да",Реестр_tb[[#This Row],[Факт. дата оплаты]]<=Реестр_tb[[#This Row],[Плановая дата оплаты]]),"Оплачено вовремя",IF(AND(Реестр_tb[[#This Row],[Оплачен]]="Да",Реестр_tb[[#This Row],[Факт. дата оплаты]]>Реестр_tb[[#This Row],[Плановая дата оплаты]]),"Просрочено",IF(AND(Реестр_tb[[#This Row],[Оплачен]]="Нет",Реестр_tb[[#This Row],[Факт. дата оплаты]]="",Реестр_tb[[#This Row],[Плановая дата оплаты]]<$AB$1),"Просрочено",IF(Реестр_tb[[#This Row],[Плановая дата оплаты]]=$AB$1,"Сегодня",IF(Реестр_tb[[#This Row],[Плановая дата оплаты]]<=$AB$1+7,"В течении недели","Через неделю и более"))))) -> Через неделю и более | T12: Контракт № 1/2022 от 22.11.2021 г. на сумму 1 747 334,91 руб.
A13: ООО "ОА "Форт" | B13: охрана аукцион, ППБ, предписания | C13: физическая охрана | D13: =IFERROR(VLOOKUP(Реестр_tb[[#This Row],[Подкатегория]],IF({1,0},Данные_tb[ЕД],Данные_tb[доп. код.]),2,0)," ") -> М0026 | E13: =IFERROR(VLOOKUP(Реестр_tb[[#This Row],[ДОПЫ]],IF({1,0},Данные_tb[доп. код.],Данные_tb[Источник]),2,0)," ") -> 21 | F13: Нет | G13: 744 ч / 199,47 | H13: Физическая охрана | I13: аукцион и т.п. | J13: 148405.68 | O13: =IF(Реестр_tb[[#This Row],[Срок оплаты (дней)]]="","",WORKDAY(Реестр_tb[[#This Row],[входящий (дата)]],Реестр_tb[[#This Row],[Срок оплаты (дней)]]+1,Выходные_tb[Выходные])) ->  | Q13: =IF(AND(Реестр_tb[[#This Row],[Оплачен]]="Да",Реестр_tb[[#This Row],[Факт. дата оплаты]]<=Реестр_tb[[#This Row],[Плановая дата оплаты]]),"Оплачено вовремя",IF(AND(Реестр_tb[[#This Row],[Оплачен]]="Да",Реестр_tb[[#This Row],[Факт. дата оплаты]]>Реестр_tb[[#This Row],[Плановая дата оплаты]]),"Просрочено",IF(AND(Реестр_tb[[#This Row],[Оплачен]]="Нет",Реестр_tb[[#This Row],[Факт. дата оплаты]]="",Реестр_tb[[#This Row],[Плановая дата оплаты]]<$AB$1),"Просрочено",IF(Реестр_tb[[#This Row],[Плановая дата оплаты]]=$AB$1,"Сегодня",IF(Реестр_tb[[#This Row],[Плановая дата оплаты]]<=$AB$1+7,"В течении недели","Через неделю и более"))))) -> Через неделю и более | T13: Контракт № 1/2022 от 22.11.2021 г. на сумму 1 747 334,91 руб.
A14: ООО "ОА "Форт" | B14: охрана аукцион, ППБ, предписания | C14: физическая охрана | D14: =IFERROR(VLOOKUP(Реестр_tb[[#This Row],[Подкатегория]],IF({1,0},Данные_tb[ЕД],Данные_tb[доп. код.]),2,0)," ") -> М0026 | E14: =IFERROR(VLOOKUP(Реестр_tb[[#This Row],[ДОПЫ]],IF({1,0},Данные_tb[доп. код.],Данные_tb[Источник]),2,0)," ") -> 21 | F14: Нет | G14: 720 ч / 199,47 | H14: Физическая охрана | I14: аукцион и т.п. | J14: 143618.4 | O14: =IF(Реестр_tb[[#This Row],[Срок оплаты (дней)]]="","",WORKDAY(Реестр_tb[[#This Row],[входящий (дата)]],Реестр_tb[[#This Row],[Срок оплаты (дней)]]+1,Выходные_tb[Выходные])) ->  | Q14: =IF(AND(Реестр_tb[[#This Row],[Оплачен]]="Да",Реестр_tb[[#This Row],[Факт. дата оплаты]]<=Реестр_tb[[#This Row],[Плановая дата оплаты]]),"Оплачено вовремя",IF(AND(Реестр_tb[[#This Row],[Оплачен]]="Да",Реестр_tb[[#This Row],[Факт. дата оплаты]]>Реестр_tb[[#This Row],[Плановая дата оплаты]]),"Просрочено",IF(AND(Реестр_tb[[#This Row],[Оплачен]]="Нет",Реестр_tb[[#This Row],[Факт. дата оплаты]]="",Реестр_tb[[#This Row],[Плановая дата оплаты]]<$AB$1),"Просрочено",IF(Реестр_tb[[#This Row],[Плановая дата оплаты]]=$AB$1,"Сегодня",IF(Реестр_tb[[#This Row],[Плановая дата оплаты]]<=$AB$1+7,"В течении недели","Через неделю и более"))))) -> Через неделю и более | T14: Контракт № 1/2022 от 22.11.2021 г. на сумму 1 747 334,91 руб.
A15: ООО "ОА "Форт" | B15: охрана аукцион, ППБ, предписания | C15: физическая охрана | D15: =IFERROR(VLOOKUP(Реестр_tb[[#This Row],[Подкатегория]],IF({1,0},Данные_tb[ЕД],Данные_tb[доп. код.]),2,0)," ") -> М0026 | E15: =IFERROR(VLOOKUP(Реестр_tb[[#This Row],[ДОПЫ]],IF({1,0},Данные_tb[доп. код.],Данные_tb[Источник]),2,0)," ") -> 21 | F15: Нет | G15: 744 ч / 199,47 | H15: Физическая охрана | I15: аукцион и т.п. | J15: 148405.68 | O15: =IF(Реестр_tb[[#This Row],[Срок оплаты (дней)]]="","",WORKDAY(Реестр_tb[[#This Row],[входящий (дата)]],Реестр_tb[[#This Row],[Срок оплаты (дней)]]+1,Выходные_tb[Выходные])) ->  | Q15: =IF(AND(Реестр_tb[[#This Row],[Оплачен]]="Да",Реестр_tb[[#This Row],[Факт. дата оплаты]]<=Реестр_tb[[#This Row],[Плановая дата оплаты]]),"Оплачено вовремя",IF(AND(Реестр_tb[[#This Row],[Оплачен]]="Да",Реестр_tb[[#This Row],[Факт. дата оплаты]]>Реестр_tb[[#This Row],[Плановая дата оплаты]]),"Просрочено",IF(AND(Реестр_tb[[#This Row],[Оплачен]]="Нет",Реестр_tb[[#This Row],[Факт. дата оплаты]]="",Реестр_tb[[#This Row],[Плановая дата оплаты]]<$AB$1),"Просрочено",IF(Реестр_tb[[#This Row],[Плановая дата оплаты]]=$AB$1,"Сегодня",IF(Реестр_tb[[#This Row],[Плановая дата оплаты]]<=$AB$1+7,"В течении недели","Через неделю и более"))))) -> Через неделю и более | T15: Контракт № 1/2022 от 22.11.2021 г. на сумму 1 747 334,91 руб.
A16: ООО "ОА "Форт" | B16: охрана аукцион, ППБ, предписания | C16: физическая охрана | D16: =IFERROR(VLOOKUP(Реестр_tb[[#This Row],[Подкатегория]],IF({1,0},Данные_tb[ЕД],Данные_tb[доп. код.]),2,0)," ") -> М0026 | E16: =IFERROR(VLOOKUP(Реестр_tb[[#This Row],[ДОПЫ]],IF({1,0},Данные_tb[доп. код.],Данные_tb[Источник]),2,0)," ") -> 21 | F16: Нет | G16: 720 ч / 199,47 | H16: Физическая охрана | I16: аукцион и т.п. | J16: 143618.4 | O16: =IF(Реестр_tb[[#This Row],[Срок оплаты (дней)]]="","",WORKDAY(Реестр_tb[[#This Row],[входящий (дата)]],Реестр_tb[[#This Row],[Срок оплаты (дней)]]+1,Выходные_tb[Выходные])) ->  | Q16: =IF(AND(Реестр_tb[[#This Row],[Оплачен]]="Да",Реестр_tb[[#This Row],[Факт. дата оплаты]]<=Реестр_tb[[#This Row],[Плановая дата оплаты]]),"Оплачено вовремя",IF(AND(Реестр_tb[[#This Row],[Оплачен]]="Да",Реестр_tb[[#This Row],[Факт. дата оплаты]]>Реестр_tb[[#This Row],[Плановая дата оплаты]]),"Просрочено",IF(AND(Реестр_tb[[#This Row],[Оплачен]]="Нет",Реестр_tb[[#This Row],[Факт. дата оплаты]]="",Реестр_tb[[#This Row],[Плановая дата оплаты]]<$AB$1),"Просрочено",IF(Реестр_tb[[#This Row],[Плановая дата оплаты]]=$AB$1,"Сегодня",IF(Реестр_tb[[#This Row],[Плановая дата оплаты]]<=$AB$1+7,"В течении недели","Через неделю и более"))))) -> Через неделю и более | T16: Контракт № 1/2022 от 22.11.2021 г. на сумму 1 747 334,91 руб.
A17: ООО "ОА "Форт" | B17: охрана аукцион, ППБ, предписания | C17: физическая охрана | D17: =IFERROR(VLOOKUP(Реестр_tb[[#This Row],[Подкатегория]],IF({1,0},Данные_tb[ЕД],Данные_tb[доп. код.]),2,0)," ") -> М0026 | E17: =IFERROR(VLOOKUP(Реестр_tb[[#This Row],[ДОПЫ]],IF({1,0},Данные_tb[доп. код.],Данные_tb[Источник]),2,0)," ") -> 21 | F17: Нет | G17: 744 ч / 199,47 | H17: Физическая охрана | I17: аукцион и т.п. | J17: 148405.68 | O17: =IF(Реестр_tb[[#This Row],[Срок оплаты (дней)]]="","",WORKDAY(Реестр_tb[[#This Row],[входящий (дата)]],Реестр_tb[[#This Row],[Срок оплаты (дней)]]+1,Выходные_tb[Выходные])) ->  | Q17: =IF(AND(Реестр_tb[[#This Row],[Оплачен]]="Да",Реестр_tb[[#This Row],[Факт. дата оплаты]]<=Реестр_tb[[#This Row],[Плановая дата оплаты]]),"Оплачено вовремя",IF(AND(Реестр_tb[[#This Row],[Оплачен]]="Да",Реестр_tb[[#This Row],[Факт. дата оплаты]]>Реестр_tb[[#This Row],[Плановая дата оплаты]]),"Просрочено",IF(AND(Реестр_tb[[#This Row],[Оплачен]]="Нет",Реестр_tb[[#This Row],[Факт. дата оплаты]]="",Реестр_tb[[#This Row],[Плановая дата оплаты]]<$AB$1),"Просрочено",IF(Реестр_tb[[#This Row],[Плановая дата оплаты]]=$AB$1,"Сегодня",IF(Реестр_tb[[#This Row],[Плановая дата оплаты]]<=$AB$1+7,"В течении недели","Через неделю и более"))))) -> Через неделю и более | T17: Контракт № 1/2022 от 22.11.2021 г. на сумму 1 747 334,91 руб.
A18: ООО "ОА "Форт" | B18: охрана аукцион, ППБ, предписания | C18: физическая охрана | D18: =IFERROR(VLOOKUP(Реестр_tb[[#This Row],[Подкатегория]],IF({1,0},Данные_tb[ЕД],Данные_tb[доп. код.]),2,0)," ") -> М0026 | E18: =IFERROR(VLOOKUP(Реестр_tb[[#This Row],[ДОПЫ]],IF({1,0},Данные_tb[доп. код.],Данные_tb[Источник]),2,0)," ") -> 21 | F18: Нет | G18: 744 ч / 199,47 | H18: Физическая охрана | I18: аукцион и т.п. | J18: 148405.68 | O18: =IF(Реестр_tb[[#This Row],[Срок оплаты (дней)]]="","",WORKDAY(Реестр_tb[[#This Row],[входящий (дата)]],Реестр_tb[[#This Row],[Срок оплаты (дней)]]+1,Выходные_tb[Выходные])) ->  | Q18: =IF(AND(Реестр_tb[[#This Row],[Оплачен]]="Да",Реестр_tb[[#This Row],[Факт. дата оплаты]]<=Реестр_tb[[#This Row],[Плановая дата оплаты]]),"Оплачено вовремя",IF(AND(Реестр_tb[[#This Row],[Оплачен]]="Да",Реестр_tb[[#This Row],[Факт. дата оплаты]]>Реестр_tb[[#This Row],[Плановая дата оплаты]]),"Просрочено",IF(AND(Реестр_tb[[#This Row],[Оплачен]]="Нет",Реестр_tb[[#This Row],[Факт. дата оплаты]]="",Реестр_tb[[#This Row],[Плановая дата оплаты]]<$AB$1),"Просрочено",IF(Реестр_tb[[#This Row],[Плановая дата оплаты]]=$AB$1,"Сегодня",IF(Реестр_tb[[#This Row],[Плановая дата оплаты]]<=$AB$1+7,"В течении недели","Через неделю и более"))))) -> Через неделю и более | T18: Контракт № 1/2022 от 22.11.2021 г. на сумму 1 747 334,91 руб.
A19: ООО "ОА "Форт" | B19: охрана аукцион, ППБ, предписания | C19: физическая охрана | D19: =IFERROR(VLOOKUP(Реестр_tb[[#This Row],[Подкатегория]],IF({1,0},Данные_tb[ЕД],Данные_tb[доп. код.]),2,0)," ") -> М0026 | E19: =IFERROR(VLOOKUP(Реестр_tb[[#This Row],[ДОПЫ]],IF({1,0},Данные_tb[доп. код.],Данные_tb[Источник]),2,0)," ") -> 21 | F19: Нет | G19: 720 ч / 199,47 | H19: Физическая охрана | I19: аукцион и т.п. | J19: 143618.4 | O19: =IF(Реестр_tb[[#This Row],[Срок оплаты (дней)]]="","",WORKDAY(Реестр_tb[[#This Row],[входящий (дата)]],Реестр_tb[[#This Row],[Срок оплаты (дней)]]+1,Выходные_tb[Выходные])) ->  | Q19: =IF(AND(Реестр_tb[[#This Row],[Оплачен]]="Да",Реестр_tb[[#This Row],[Факт. дата оплаты]]<=Реестр_tb[[#This Row],[Плановая дата оплаты]]),"Оплачено вовремя",IF(AND(Реестр_tb[[#This Row],[Оплачен]]="Да",Реестр_tb[[#This Row],[Факт. дата оплаты]]>Реестр_tb[[#This Row],[Плановая дата оплаты]]),"Просрочено",IF(AND(Реестр_tb[[#This Row],[Оплачен]]="Нет",Реестр_tb[[#This Row],[Факт. дата оплаты]]="",Реестр_tb[[#This Row],[Плановая дата оплаты]]<$AB$1),"Просрочено",IF(Реестр_tb[[#This Row],[Плановая дата оплаты]]=$AB$1,"Сегодня",IF(Реестр_tb[[#This Row],[Плановая дата оплаты]]<=$AB$1+7,"В течении недели","Через неделю и более"))))) -> Через неделю и более | T19: Контракт № 1/2022 от 22.11.2021 г. на сумму 1 747 334,91 руб.
A20: ООО "ОА "Форт" | B20: охрана аукцион, ППБ, предписания | C20: физическая охрана | D20: =IFERROR(VLOOKUP(Реестр_tb[[#This Row],[Подкатегория]],IF({1,0},Данные_tb[ЕД],Данные_tb[доп. код.]),2,0)," ") -> М0026 | E20: =IFERROR(VLOOKUP(Реестр_tb[[#This Row],[ДОПЫ]],IF({1,0},Данные_tb[доп. код.],Данные_tb[Источник]),2,0)," ") -> 21 | F20: Нет | G20: 744 ч / 199,47 | H20: Физическая охрана | I20: аукцион и т.п. | J20: 148405.68 | O20: =IF(Реестр_tb[[#This Row],[Срок оплаты (дней)]]="","",WORKDAY(Реестр_tb[[#This Row],[входящий (дата)]],Реестр_tb[[#This Row],[Срок оплаты (дней)]]+1,Выходные_tb[Выходные])) ->  | Q20: =IF(AND(Реестр_tb[[#This Row],[Оплачен]]="Да",Реестр_tb[[#This Row],[Факт. дата оплаты]]<=Реестр_tb[[#This Row],[Плановая дата оплаты]]),"Оплачено вовремя",IF(AND(Реестр_tb[[#This Row],[Оплачен]]="Да",Реестр_tb[[#This Row],[Факт. дата оплаты]]>Реестр_tb[[#This Row],[Плановая дата оплаты]]),"Просрочено",IF(AND(Реестр_tb[[#This Row],[Оплачен]]="Нет",Реестр_tb[[#This Row],[Факт. дата оплаты]]="",Реестр_tb[[#This Row],[Плановая дата оплаты]]<$AB$1),"Просрочено",IF(Реестр_tb[[#This Row],[Плановая дата оплаты]]=$AB$1,"Сегодня",IF(Реестр_tb[[#This Row],[Плановая дата оплаты]]<=$AB$1+7,"В течении недели","Через неделю и более"))))) -> Через неделю и более | T20: Контракт № 1/2022 от 22.11.2021 г. на сумму 1 747 334,91 руб.
A21: ООО "ОА "Форт" | B21: охрана аукцион, ППБ, предписания | C21: физическая охрана | D21: =IFERROR(VLOOKUP(Реестр_tb[[#This Row],[Подкатегория]],IF({1,0},Данные_tb[ЕД],Данные_tb[доп. код.]),2,0)," ") -> М0026 | E21: =IFERROR(VLOOKUP(Реестр_tb[[#This Row],[ДОПЫ]],IF({1,0},Данные_tb[доп. код.],Данные_tb[Источник]),2,0)," ") -> 21 | F21: Нет | G21: 720 ч / 199,47 | H21: Физическая охрана | I21: аукцион и т.п. | J21: 143596.11 | O21: =IF(Реестр_tb[[#This Row],[Срок оплаты (дней)]]="","",WORKDAY(Реестр_tb[[#This Row],[входящий (дата)]],Реестр_tb[[#This Row],[Срок оплаты (дней)]]+1,Выходные_tb[Выходные])) ->  | Q21: =IF(AND(Реестр_tb[[#This Row],[Оплачен]]="Да",Реестр_tb[[#This Row],[Факт. дата оплаты]]<=Реестр_tb[[#This Row],[Плановая дата оплаты]]),"Оплачено вовремя",IF(AND(Реестр_tb[[#This Row],[Оплачен]]="Да",Реестр_tb[[#This Row],[Факт. дата оплаты]]>Реестр_tb[[#This Row],[Плановая дата оплаты]]),"Просрочено",IF(AND(Реестр_tb[[#This Row],[Оплачен]]="Нет",Реестр_tb[[#This Row],[Факт. дата оплаты]]="",Реестр_tb[[#This Row],[Плановая дата оплаты]]<$AB$1),"Просрочено",IF(Реестр_tb[[#This Row],[Плановая дата оплаты]]=$AB$1,"Сегодня",IF(Реестр_tb[[#This Row],[Плановая дата оплаты]]<=$AB$1+7,"В течении недели","Через неделю и более"))))) -> Через неделю и более | T21: Контракт № 1/2022 от 22.11.2021 г. на сумму 1 747 334,91 руб.
A22: ООО "ОА "Форт" | B22: охрана аукцион, ППБ, предписания | C22: физическая охрана | D22: =IFERROR(VLOOKUP(Реестр_tb[[#This Row],[Подкатегория]],IF({1,0},Данные_tb[ЕД],Данные_tb[доп. код.]),2,0)," ") -> М0026 | E22: =IFERROR(VLOOKUP(Реестр_tb[[#This Row],[ДОПЫ]],IF({1,0},Данные_tb[доп. код.],Данные_tb[Источник]),2,0)," ") -> 21 | F22: Нет | G22: 744 ч / 199,47 | H22: Физическая охрана | I22: аукцион и т.п. | J22: 148405.68 | O22: =IF(Реестр_tb[[#This Row],[Срок оплаты (дней)]]="","",WORKDAY(Реестр_tb[[#This Row],[входящий (дата)]],Реестр_tb[[#This Row],[Срок оплаты (дней)]]+1,Выходные_tb[Выходные])) ->  | Q22: =IF(AND(Реестр_tb[[#This Row],[Оплачен]]="Да",Реестр_tb[[#This Row],[Факт. дата оплаты]]<=Реестр_tb[[#This Row],[Плановая дата оплаты]]),"Оплачено вовремя",IF(AND(Реестр_tb[[#This Row],[Оплачен]]="Да",Реестр_tb[[#This Row],[Факт. дата оплаты]]>Реестр_tb[[#This Row],[Плановая дата оплаты]]),"Просрочено",IF(AND(Реестр_tb[[#This Row],[Оплачен]]="Нет",Реестр_tb[[#This Row],[Факт. дата оплаты]]="",Реестр_tb[[#This Row],[Плановая дата оплаты]]<$AB$1),"Просрочено",IF(Реестр_tb[[#This Row],[Плановая дата оплаты]]=$AB$1,"Сегодня",IF(Реестр_tb[[#This Row],[Плановая дата оплаты]]<=$AB$1+7,"В течении недели","Через неделю и более"))))) -> Через неделю и более | T22: Контракт № 1/2022 от 22.11.2021 г. на сумму 1 747 334,91 руб.
A23: ООО "Координата" | B23: Муниципальное задание | C23: мониторинг системы пожарной безопасности (Координата) | D23: =IFERROR(VLOOKUP(Реестр_tb[[#This Row],[Подкатегория]],IF({1,0},Данные_tb[ЕД],Данные_tb[доп. код.]),2,0)," ") -> 4 | E23: =IFERROR(VLOOKUP(Реестр_tb[[#This Row],[ДОПЫ]],IF({1,0},Данные_tb[доп. код.],Данные_tb[Источник]),2,0)," ") -> 20 | F23: Нет | G23: 139 от 31.01.22 | H23: Координата (мониторинг) | I23: 5 | J23: 2500 | O23: =IF(Реестр_tb[[#This Row],[Срок оплаты (дней)]]="","",WORKDAY(Реестр_tb[[#This Row],[входящий (дата)]],Реестр_tb[[#This Row],[Срок оплаты (дней)]]+1,Выходные_tb[Выходные])) ->  | Q23: =IF(AND(Реестр_tb[[#This Row],[Оплачен]]="Да",Реестр_tb[[#This Row],[Факт. дата оплаты]]<=Реестр_tb[[#This Row],[Плановая дата оплаты]]),"Оплачено вовремя",IF(AND(Реестр_tb[[#This Row],[Оплачен]]="Да",Реестр_tb[[#This Row],[Факт. дата оплаты]]>Реестр_tb[[#This Row],[Плановая дата оплаты]]),"Просрочено",IF(AND(Реестр_tb[[#This Row],[Оплачен]]="Нет",Реестр_tb[[#This Row],[Факт. дата оплаты]]="",Реестр_tb[[#This Row],[Плановая дата оплаты]]<$AB$1),"Просрочено",IF(Реестр_tb[[#This Row],[Плановая дата оплаты]]=$AB$1,"Сегодня",IF(Реестр_tb[[#This Row],[Плановая дата оплаты]]<=$AB$1+7,"В течении недели","Через неделю и более"))))) -> Через неделю и более | R23: Полный расчет | S23: Оригиналы | T23: Контракт № 85/22 от ххх на сумму 30 000,00 рублей (БО на сумму 30 000,00 руб.)
A24: ООО "Координата" | B24: Муниципальное задание | C24: мониторинг системы пожарной безопасности (Координата) | D24: =IFERROR(VLOOKUP(Реестр_tb[[#This Row],[Подкатегория]],IF({1,0},Данные_tb[ЕД],Данные_tb[доп. код.]),2,0)," ") -> 4 | E24: =IFERROR(VLOOKUP(Реестр_tb[[#This Row],[ДОПЫ]],IF({1,0},Данные_tb[доп. код.],Данные_tb[Источник]),2,0)," ") -> 20 | F24: Нет | G24: февраль | H24: Координата (мониторинг) | I24: 5 | J24: 2500 | O24: =IF(Реестр_tb[[#This Row],[Срок оплаты (дней)]]="","",WORKDAY(Реестр_tb[[#This Row],[входящий (дата)]],Реестр_tb[[#This Row],[Срок оплаты (дней)]]+1,Выходные_tb[Выходные])) ->  | Q24: =IF(AND(Реестр_tb[[#This Row],[Оплачен]]="Да",Реестр_tb[[#This Row],[Факт. дата оплаты]]<=Реестр_tb[[#This Row],[Плановая дата оплаты]]),"Оплачено вовремя",IF(AND(Реестр_tb[[#This Row],[Оплачен]]="Да",Реестр_tb[[#This Row],[Факт. дата оплаты]]>Реестр_tb[[#This Row],[Плановая дата оплаты]]),"Просрочено",IF(AND(Реестр_tb[[#This Row],[Оплачен]]="Нет",Реестр_tb[[#This Row],[Факт. дата оплаты]]="",Реестр_tb[[#This Row],[Плановая дата оплаты]]<$AB$1),"Просрочено",IF(Реестр_tb[[#This Row],[Плановая дата оплаты]]=$AB$1,"Сегодня",IF(Реестр_tb[[#This Row],[Плановая дата оплаты]]<=$AB$1+7,"В течении недели","Через неделю и более"))))) -> Через неделю и более | T24: Контракт № 85/22 от ххх на сумму 30 000,00 рублей (БО на сумму 30 000,00 руб.)
A25: ООО "Координата" | B25: Муниципальное задание | C25: мониторинг системы пожарной безопасности (Координата) | D25: =IFERROR(VLOOKUP(Реестр_tb[[#This Row],[Подкатегория]],IF({1,0},Данные_tb[ЕД],Данные_tb[доп. код.]),2,0)," ") -> 4 | E25: =IFERROR(VLOOKUP(Реестр_tb[[#This Row],[ДОПЫ]],IF({1,0},Данные_tb[доп. код.],Данные_tb[Источник]),2,0)," ") -> 20 | F25: Нет | G25: март | H25: Координата (мониторинг) | I25: 5 | J25: 2500 | O25: =IF(Реестр_tb[[#This Row],[Срок оплаты (дней)]]="","",WORKDAY(Реестр_tb[[#This Row],[входящий (дата)]],Реестр_tb[[#This Row],[Срок оплаты (дней)]]+1,Выходные_tb[Выходные])) ->  | Q25: =IF(AND(Реестр_tb[[#This Row],[Оплачен]]="Да",Реестр_tb[[#This Row],[Факт. дата оплаты]]<=Реестр_tb[[#This Row],[Плановая дата оплаты]]),"Оплачено вовремя",IF(AND(Реестр_tb[[#This Row],[Оплачен]]="Да",Реестр_tb[[#This Row],[Факт. дата оплаты]]>Реестр_tb[[#This Row],[Плановая дата оплаты]]),"Просрочено",IF(AND(Реестр_tb[[#This Row],[Оплачен]]="Нет",Реестр_tb[[#This Row],[Факт. дата оплаты]]="",Реестр_tb[[#This Row],[Плановая дата оплаты]]<$AB$1),"Просрочено",IF(Реестр_tb[[#This Row],[Плановая дата оплаты]]=$AB$1,"Сегодня",IF(Реестр_tb[[#This Row],[Плановая дата оплаты]]<=$AB$1+7,"В течении недели","Через неделю и более"))))) -> Через неделю и более | T25: Контракт № 85/22 от ххх на сумму 30 000,00 рублей (БО на сумму 30 000,00 руб.)
A26: ООО "Координата" | B26: Муниципальное задание | C26: мониторинг системы пожарной безопасности (Координата) | D26: =IFERROR(VLOOKUP(Реестр_tb[[#This Row],[Подкатегория]],IF({1,0},Данные_tb[ЕД],Данные_tb[доп. код.]),2,0)," ") -> 4 | E26: =IFERROR(VLOOKUP(Реестр_tb[[#This Row],[ДОПЫ]],IF({1,0},Данные_tb[доп. код.],Данные_tb[Источник]),2,0)," ") -> 20 | F26: Нет | G26: апрель | H26: Координата (мониторинг) | I26: 5 | J26: 2500 | O26: =IF(Реестр_tb[[#This Row],[Срок оплаты (дней)]]="","",WORKDAY(Реестр_tb[[#This Row],[входящий (дата)]],Реестр_tb[[#This Row],[Срок оплаты (дней)]]+1,Выходные_tb[Выходные])) ->  | Q26: =IF(AND(Реестр_tb[[#This Row],[Оплачен]]="Да",Реестр_tb[[#This Row],[Факт. дата оплаты]]<=Реестр_tb[[#This Row],[Плановая дата оплаты]]),"Оплачено вовремя",IF(AND(Реестр_tb[[#This Row],[Оплачен]]="Да",Реестр_tb[[#This Row],[Факт. дата оплаты]]>Реестр_tb[[#This Row],[Плановая дата оплаты]]),"Просрочено",IF(AND(Реестр_tb[[#This Row],[Оплачен]]="Нет",Реестр_tb[[#This Row],[Факт. дата оплаты]]="",Реестр_tb[[#This Row],[Плановая дата оплаты]]<$AB$1),"Просрочено",IF(Реестр_tb[[#This Row],[Плановая дата оплаты]]=$AB$1,"Сегодня",IF(Реестр_tb[[#This Row],[Плановая дата оплаты]]<=$AB$1+7,"В течении недели","Через неделю и более"))))) -> Через неделю и более | T26: Контракт № 85/22 от ххх на сумму 30 000,00 рублей (БО на сумму 30 000,00 руб.)
A27: ООО "Координата" | B27: Муниципальное задание | C27: мониторинг системы пожарной безопасности (Координата) | D27: =IFERROR(VLOOKUP(Реестр_tb[[#This Row],[Подкатегория]],IF({1,0},Данные_tb[ЕД],Данные_tb[доп. код.]),2,0)," ") -> 4 | E27: =IFERROR(VLOOKUP(Реестр_tb[[#This Row],[ДОПЫ]],IF({1,0},Данные_tb[доп. код.],Данные_tb[Источник]),2,0)," ") -> 20 | F27: Нет | G27: май | H27: Координата (мониторинг) | I27: 5 | J27: 2500 | O27: =IF(Реестр_tb[[#This Row],[Срок оплаты (дней)]]="","",WORKDAY(Реестр_tb[[#This Row],[входящий (дата)]],Реестр_tb[[#This Row],[Срок оплаты (дней)]]+1,Выходные_tb[Выходные])) ->  | Q27: =IF(AND(Реестр_tb[[#This Row],[Оплачен]]="Да",Реестр_tb[[#This Row],[Факт. дата оплаты]]<=Реестр_tb[[#This Row],[Плановая дата оплаты]]),"Оплачено вовремя",IF(AND(Реестр_tb[[#This Row],[Оплачен]]="Да",Реестр_tb[[#This Row],[Факт. дата оплаты]]>Реестр_tb[[#This Row],[Плановая дата оплаты]]),"Просрочено",IF(AND(Реестр_tb[[#This Row],[Оплачен]]="Нет",Реестр_tb[[#This Row],[Факт. дата оплаты]]="",Реестр_tb[[#This Row],[Плановая дата оплаты]]<$AB$1),"Просрочено",IF(Реестр_tb[[#This Row],[Плановая дата оплаты]]=$AB$1,"Сегодня",IF(Реестр_tb[[#This Row],[Плановая дата оплаты]]<=$AB$1+7,"В течении недели","Через неделю и более"))))) -> Через неделю и более | T27: Контракт № 85/22 от ххх на сумму 30 000,00 рублей (БО на сумму 30 000,00 руб.)
A28: ООО "Координата" | B28: Муниципальное задание | C28: мониторинг системы пожарной безопасности (Координата) | D28: =IFERROR(VLOOKUP(Реестр_tb[[#This Row],[Подкатегория]],IF({1,0},Данные_tb[ЕД],Данные_tb[доп. код.]),2,0)," ") -> 4 | E28: =IFERROR(VLOOKUP(Реестр_tb[[#This Row],[ДОПЫ]],IF({1,0},Данные_tb[доп. код.],Данные_tb[Источник]),2,0)," ") -> 20 | F28: Нет | G28: июнь | H28: Координата (мониторинг) | I28: 5 | J28: 2500 | O28: =IF(Реестр_tb[[#This Row],[Срок оплаты (дней)]]="","",WORKDAY(Реестр_tb[[#This Row],[входящий (дата)]],Реестр_tb[[#This Row],[Срок оплаты (дней)]]+1,Выходные_tb[Выходные])) ->  | Q28: =IF(AND(Реестр_tb[[#This Row],[Оплачен]]="Да",Реестр_tb[[#This Row],[Факт. дата оплаты]]<=Реестр_tb[[#This Row],[Плановая дата оплаты]]),"Оплачено вовремя",IF(AND(Реестр_tb[[#This Row],[Оплачен]]="Да",Реестр_tb[[#This Row],[Факт. дата оплаты]]>Реестр_tb[[#This Row],[Плановая дата оплаты]]),"Просрочено",IF(AND(Реестр_tb[[#This Row],[Оплачен]]="Нет",Реестр_tb[[#This Row],[Факт. дата оплаты]]="",Реестр_tb[[#This Row],[Плановая дата оплаты]]<$AB$1),"Просрочено",IF(Реестр_tb[[#This Row],[Плановая дата оплаты]]=$AB$1,"Сегодня",IF(Реестр_tb[[#This Row],[Плановая дата оплаты]]<=$AB$1+7,"В течении недели","Через неделю и более"))))) -> Через неделю и более | T28: Контракт № 85/22 от ххх на сумму 30 000,00 рублей (БО на сумму 30 000,00 руб.)
A29: ООО "Координата" | B29: Муниципальное задание | C29: мониторинг системы пожарной безопасности (Координата) | D29: =IFERROR(VLOOKUP(Реестр_tb[[#This Row],[Подкатегория]],IF({1,0},Данные_tb[ЕД],Данные_tb[доп. код.]),2,0)," ") -> 4 | E29: =IFERROR(VLOOKUP(Реестр_tb[[#This Row],[ДОПЫ]],IF({1,0},Данные_tb[доп. код.],Данные_tb[Источник]),2,0)," ") -> 20 | F29: Нет | G29: июль | H29: Координата (мониторинг) | I29: 5 | J29: 2500 | O29: =IF(Реестр_tb[[#This Row],[Срок оплаты (дней)]]="","",WORKDAY(Реестр_tb[[#This Row],[входящий (дата)]],Реестр_tb[[#This Row],[Срок оплаты (дней)]]+1,Выходные_tb[Выходные])) ->  | Q29: =IF(AND(Реестр_tb[[#This Row],[Оплачен]]="Да",Реестр_tb[[#This Row],[Факт. дата оплаты]]<=Реестр_tb[[#This Row],[Плановая дата оплаты]]),"Оплачено вовремя",IF(AND(Реестр_tb[[#This Row],[Оплачен]]="Да",Реестр_tb[[#This Row],[Факт. дата оплаты]]>Реестр_tb[[#This Row],[Плановая дата оплаты]]),"Просрочено",IF(AND(Реестр_tb[[#This Row],[Оплачен]]="Нет",Реестр_tb[[#This Row],[Факт. дата оплаты]]="",Реестр_tb[[#This Row],[Плановая дата оплаты]]<$AB$1),"Просрочено",IF(Реестр_tb[[#This Row],[Плановая дата оплаты]]=$AB$1,"Сегодня",IF(Реестр_tb[[#This Row],[Плановая дата оплаты]]<=$AB$1+7,"В течении недели","Через неделю и более"))))) -> Через неделю и более | T29: Контракт № 85/22 от ххх на сумму 30 000,00 рублей (БО на сумму 30 000,00 руб.)
A30: ООО "Координата" | B30: Муниципальное задание | C30: мониторинг системы пожарной безопасности (Координата) | D30: =IFERROR(VLOOKUP(Реестр_tb[[#This Row],[Подкатегория]],IF({1,0},Данные_tb[ЕД],Данные_tb[доп. код.]),2,0)," ") -> 4 | E30: =IFERROR(VLOOKUP(Реестр_tb[[#This Row],[ДОПЫ]],IF({1,0},Данные_tb[доп. код.],Данные_tb[Источник]),2,0)," ") -> 20 | F30: Нет | G30: август | H30: Координата (мониторинг) | I30: 5 | J30: 2500 | O30: =IF(Реестр_tb[[#This Row],[Срок оплаты (дней)]]="","",WORKDAY(Реестр_tb[[#This Row],[входящий (дата)]],Реестр_tb[[#This Row],[Срок оплаты (дней)]]+1,Выходные_tb[Выходные])) ->  | Q30: =IF(AND(Реестр_tb[[#This Row],[Оплачен]]="Да",Реестр_tb[[#This Row],[Факт. дата оплаты]]<=Реестр_tb[[#This Row],[Плановая дата оплаты]]),"Оплачено вовремя",IF(AND(Реестр_tb[[#This Row],[Оплачен]]="Да",Реестр_tb[[#This Row],[Факт. дата оплаты]]>Реестр_tb[[#This Row],[Плановая дата оплаты]]),"Просрочено",IF(AND(Реестр_tb[[#This Row],[Оплачен]]="Нет",Реестр_tb[[#This Row],[Факт. дата оплаты]]="",Реестр_tb[[#This Row],[Плановая дата оплаты]]<$AB$1),"Просрочено",IF(Реестр_tb[[#This Row],[Плановая дата оплаты]]=$AB$1,"Сегодня",IF(Реестр_tb[[#This Row],[Плановая дата оплаты]]<=$AB$1+7,"В течении недели","Через неделю и более"))))) -> Через неделю и более | T30: Контракт № 85/22 от ххх на сумму 30 000,00 рублей (БО на сумму 30 000,00 руб.)
A31: ООО "Координата" | B31: Муниципальное задание | C31: мониторинг системы пожарной безопасности (Координата) | D31: =IFERROR(VLOOKUP(Реестр_tb[[#This Row],[Подкатегория]],IF({1,0},Данные_tb[ЕД],Данные_tb[доп. код.]),2,0)," ") -> 4 | E31: =IFERROR(VLOOKUP(Реестр_tb[[#This Row],[ДОПЫ]],IF({1,0},Данные_tb[доп. код.],Данные_tb[Источник]),2,0)," ") -> 20 | F31: Нет | G31: сентябрь | H31: Координата (мониторинг) | I31: 5 | J31: 2500 | O31: =IF(Реестр_tb[[#This Row],[Срок оплаты (дней)]]="","",WORKDAY(Реестр_tb[[#This Row],[входящий (дата)]],Реестр_tb[[#This Row],[Срок оплаты (дней)]]+1,Выходные_tb[Выходные])) ->  | Q31: =IF(AND(Реестр_tb[[#This Row],[Оплачен]]="Да",Реестр_tb[[#This Row],[Факт. дата оплаты]]<=Реестр_tb[[#This Row],[Плановая дата оплаты]]),"Оплачено вовремя",IF(AND(Реестр_tb[[#This Row],[Оплачен]]="Да",Реестр_tb[[#This Row],[Факт. дата оплаты]]>Реестр_tb[[#This Row],[Плановая дата оплаты]]),"Просрочено",IF(AND(Реестр_tb[[#This Row],[Оплачен]]="Нет",Реестр_tb[[#This Row],[Факт. дата оплаты]]="",Реестр_tb[[#This Row],[Плановая дата оплаты]]<$AB$1),"Просрочено",IF(Реестр_tb[[#This Row],[Плановая дата оплаты]]=$AB$1,"Сегодня",IF(Реестр_tb[[#This Row],[Плановая дата оплаты]]<=$AB$1+7,"В течении недели","Через неделю и более"))))) -> Через неделю и более | T31: Контракт № 85/22 от ххх на сумму 30 000,00 рублей (БО на сумму 30 000,00 руб.)
A32: ООО "Координата" | B32: Муниципальное задание | C32: мониторинг системы пожарной безопасности (Координата) | D32: =IFERROR(VLOOKUP(Реестр_tb[[#This Row],[Подкатегория]],IF({1,0},Данные_tb[ЕД],Данные_tb[доп. код.]),2,0)," ") -> 4 | E32: =IFERROR(VLOOKUP(Реестр_tb[[#This Row],[ДОПЫ]],IF({1,0},Данные_tb[доп. код.],Данные_tb[Источник]),2,0)," ") -> 20 | F32: Нет | G32: октябрь | H32: Координата (мониторинг) | I32: 5 | J32: 2500 | O32: =IF(Реестр_tb[[#This Row],[Срок оплаты (дней)]]="","",WORKDAY(Реестр_tb[[#This Row],[входящий (дата)]],Реестр_tb[[#This Row],[Срок оплаты (дней)]]+1,Выходные_tb[Выходные])) ->  | Q32: =IF(AND(Реестр_tb[[#This Row],[Оплачен]]="Да",Реестр_tb[[#This Row],[Факт. дата оплаты]]<=Реестр_tb[[#This Row],[Плановая дата оплаты]]),"Оплачено вовремя",IF(AND(Реестр_tb[[#This Row],[Оплачен]]="Да",Реестр_tb[[#This Row],[Факт. дата оплаты]]>Реестр_tb[[#This Row],[Плановая дата оплаты]]),"Просрочено",IF(AND(Реестр_tb[[#This Row],[Оплачен]]="Нет",Реестр_tb[[#This Row],[Факт. дата оплаты]]="",Реестр_tb[[#This Row],[Плановая дата оплаты]]<$AB$1),"Просрочено",IF(Реестр_tb[[#This Row],[Плановая дата оплаты]]=$AB$1,"Сегодня",IF(Реестр_tb[[#This Row],[Плановая дата оплаты]]<=$AB$1+7,"В течении недели","Через неделю и более"))))) -> Через неделю и более | T32: Контракт № 85/22 от ххх на сумму 30 000,00 рублей (БО на сумму 30 000,00 руб.)
A33: ООО "Координата" | B33: Муниципальное задание | C33: мониторинг системы пожарной безопасности (Координата) | D33: =IFERROR(VLOOKUP(Реестр_tb[[#This Row],[Подкатегория]],IF({1,0},Данные_tb[ЕД],Данные_tb[доп. код.]),2,0)," ") -> 4 | E33: =IFERROR(VLOOKUP(Реестр_tb[[#This Row],[ДОПЫ]],IF({1,0},Данные_tb[доп. код.],Данные_tb[Источник]),2,0)," ") -> 20 | F33: Нет | G33: ноябрь | H33: Координата (мониторинг) | I33: 5 | J33: 2500 | O33: =IF(Реестр_tb[[#This Row],[Срок оплаты (дней)]]="","",WORKDAY(Реестр_tb[[#This Row],[входящий (дата)]],Реестр_tb[[#This Row],[Срок оплаты (дней)]]+1,Выходные_tb[Выходные])) ->  | Q33: =IF(AND(Реестр_tb[[#This Row],[Оплачен]]="Да",Реестр_tb[[#This Row],[Факт. дата оплаты]]<=Реестр_tb[[#This Row],[Плановая дата оплаты]]),"Оплачено вовремя",IF(AND(Реестр_tb[[#This Row],[Оплачен]]="Да",Реестр_tb[[#This Row],[Факт. дата оплаты]]>Реестр_tb[[#This Row],[Плановая дата оплаты]]),"Просрочено",IF(AND(Реестр_tb[[#This Row],[Оплачен]]="Нет",Реестр_tb[[#This Row],[Факт. дата оплаты]]="",Реестр_tb[[#This Row],[Плановая дата оплаты]]<$AB$1),"Просрочено",IF(Реестр_tb[[#This Row],[Плановая дата оплаты]]=$AB$1,"Сегодня",IF(Реестр_tb[[#This Row],[Плановая дата оплаты]]<=$AB$1+7,"В течении недели","Через неделю и более"))))) -> Через неделю и более | T33: Контракт № 85/22 от ххх на сумму 30 000,00 рублей (БО на сумму 30 000,00 руб.)
A34: ООО "Координата" | B34: Муниципальное задание | C34: мониторинг системы пожарной безопасности (Координата) | D34: =IFERROR(VLOOKUP(Реестр_tb[[#This Row],[Подкатегория]],IF({1,0},Данные_tb[ЕД],Данные_tb[доп. код.]),2,0)," ") -> 4 | E34: =IFERROR(VLOOKUP(Реестр_tb[[#This Row],[ДОПЫ]],IF({1,0},Данные_tb[доп. код.],Данные_tb[Источник]),2,0)," ") -> 20 | F34: Нет | G34: декабрь | H34: Координата (мониторинг) | I34: 5 | J34: 2500 | O34: =IF(Реестр_tb[[#This Row],[Срок оплаты (дней)]]="","",WORKDAY(Реестр_tb[[#This Row],[входящий (дата)]],Реестр_tb[[#This Row],[Срок оплаты (дней)]]+1,Выходные_tb[Выходные])) ->  | Q34: =IF(AND(Реестр_tb[[#This Row],[Оплачен]]="Да",Реестр_tb[[#This Row],[Факт. дата оплаты]]<=Реестр_tb[[#This Row],[Плановая дата оплаты]]),"Оплачено вовремя",IF(AND(Реестр_tb[[#This Row],[Оплачен]]="Да",Реестр_tb[[#This Row],[Факт. дата оплаты]]>Реестр_tb[[#This Row],[Плановая дата оплаты]]),"Просрочено",IF(AND(Реестр_tb[[#This Row],[Оплачен]]="Нет",Реестр_tb[[#This Row],[Факт. дата оплаты]]="",Реестр_tb[[#This Row],[Плановая дата оплаты]]<$AB$1),"Просрочено",IF(Реестр_tb[[#This Row],[Плановая дата оплаты]]=$AB$1,"Сегодня",IF(Реестр_tb[[#This Row],[Плановая дата оплаты]]<=$AB$1+7,"В течении недели","Через неделю и более"))))) -> Через неделю и более | T34: Контракт № 85/22 от ххх на сумму 30 000,00 рублей (БО на сумму 30 000,00 руб.)
A35: ООО "ОА "Форт" | B35: Муниципальное задание | C35: ТО охранная сигнализация и реагирование (мастерские) | D35: =IFERROR(VLOOKUP(Реестр_tb[[#This Row],[Подкатегория]],IF({1,0},Данные_tb[ЕД],Данные_tb[доп. код.]),2,0)," ") -> 4 | E35: =IFERROR(VLOOKUP(Реестр_tb[[#This Row],[ДОПЫ]],IF({1,0},Данные_tb[доп. код.],Данные_tb[Источник]),2,0)," ") -> 20 | F35: Нет | G35: январь | H35: ТО охранная сигнализация и реагирование (мастерские) | I35: 5 | J35: 26680 | O35: =IF(Реестр_tb[[#This Row],[Срок оплаты (дней)]]="","",WORKDAY(Реестр_tb[[#This Row],[входящий (дата)]],Реестр_tb[[#This Row],[Срок оплаты (дней)]]+1,Выходные_tb[Выходные])) ->  | Q35: =IF(AND(Реестр_tb[[#This Row],[Оплачен]]="Да",Реестр_tb[[#This Row],[Факт. дата оплаты]]<=Реестр_tb[[#This Row],[Плановая дата оплаты]]),"Оплачено вовремя",IF(AND(Реестр_tb[[#This Row],[Оплачен]]="Да",Реестр_tb[[#This Row],[Факт. дата оплаты]]>Реестр_tb[[#This Row],[Плановая дата оплаты]]),"Просрочено",IF(AND(Реестр_tb[[#This Row],[Оплачен]]="Нет",Реестр_tb[[#This Row],[Факт. дата оплаты]]="",Реестр_tb[[#This Row],[Плановая дата оплаты]]<$AB$1),"Просрочено",IF(Реестр_tb[[#This Row],[Плановая дата оплаты]]=$AB$1,"Сегодня",IF(Реестр_tb[[#This Row],[Плановая дата оплаты]]<=$AB$1+7,"В течении недели","Через неделю и более"))))) -> Через неделю и более | T35: Контракт № 4 от ххх на сумму 320 160,00 руб. (БО на сумму 320 160,00 руб.)
A36: ООО "ОА "Форт" | B36: Муниципальное задание | C36: ТО охранная сигнализация и реагирование (мастерские) | D36: =IFERROR(VLOOKUP(Реестр_tb[[#This Row],[Подкатегория]],IF({1,0},Данные_tb[ЕД],Данные_tb[доп. код.]),2,0)," ") -> 4 | E36: =IFERROR(VLOOKUP(Реестр_tb[[#This Row],[ДОПЫ]],IF({1,0},Данные_tb[доп. код.],Данные_tb[Источник]),2,0)," ") -> 20 | F36: Нет | G36: февраль | H36: ТО охранная сигнализация и реагирование (мастерские) | I36: 5 | J36: 26680 | O36: =IF(Реестр_tb[[#This Row],[Срок оплаты (дней)]]="","",WORKDAY(Реестр_tb[[#This Row],[входящий (дата)]],Реестр_tb[[#This Row],[Срок оплаты (дней)]]+1,Выходные_tb[Выходные])) ->  | Q36: =IF(AND(Реестр_tb[[#This Row],[Оплачен]]="Да",Реестр_tb[[#This Row],[Факт. дата оплаты]]<=Реестр_tb[[#This Row],[Плановая дата оплаты]]),"Оплачено вовремя",IF(AND(Реестр_tb[[#This Row],[Оплачен]]="Да",Реестр_tb[[#This Row],[Факт. дата оплаты]]>Реестр_tb[[#This Row],[Плановая дата оплаты]]),"Просрочено",IF(AND(Реестр_tb[[#This Row],[Оплачен]]="Нет",Реестр_tb[[#This Row],[Факт. дата оплаты]]="",Реестр_tb[[#This Row],[Плановая дата оплаты]]<$AB$1),"Просрочено",IF(Реестр_tb[[#This Row],[Плановая дата оплаты]]=$AB$1,"Сегодня",IF(Реестр_tb[[#This Row],[Плановая дата оплаты]]<=$AB$1+7,"В течении недели","Через неделю и более"))))) -> Через неделю и более | T36: Контракт № 4 от ххх на сумму 320 160,00 руб. (БО на сумму 320 160,00 руб.)
A37: ООО "ОА "Форт" | B37: Муниципальное задание | C37: ТО охранная сигнализация и реагирование (мастерские) | D37: =IFERROR(VLOOKUP(Реестр_tb[[#This Row],[Подкатегория]],IF({1,0},Данные_tb[ЕД],Данные_tb[доп. код.]),2,0)," ") -> 4 | E37: =IFERROR(VLOOKUP(Реестр_tb[[#This Row],[ДОПЫ]],IF({1,0},Данные_tb[доп. код.],Данные_tb[Источник]),2,0)," ") -> 20 | F37: Нет | G37: март | H37: ТО охранная сигнализация и реагирование (мастерские) | I37: 5 | J37: 26680 | O37: =IF(Реестр_tb[[#This Row],[Срок оплаты (дней)]]="","",WORKDAY(Реестр_tb[[#This Row],[входящий (дата)]],Реестр_tb[[#This Row],[Срок оплаты (дней)]]+1,Выходные_tb[Выходные])) ->  | Q37: =IF(AND(Реестр_tb[[#This Row],[Оплачен]]="Да",Реестр_tb[[#This Row],[Факт. дата оплаты]]<=Реестр_tb[[#This Row],[Плановая дата оплаты]]),"Оплачено вовремя",IF(AND(Реестр_tb[[#This Row],[Оплачен]]="Да",Реестр_tb[[#This Row],[Факт. дата оплаты]]>Реестр_tb[[#This Row],[Плановая дата оплаты]]),"Просрочено",IF(AND(Реестр_tb[[#This Row],[Оплачен]]="Нет",Реестр_tb[[#This Row],[Факт. дата оплаты]]="",Реестр_tb[[#This Row],[Плановая дата оплаты]]<$AB$1),"Просрочено",IF(Реестр_tb[[#This Row],[Плановая дата оплаты]]=$AB$1,"Сегодня",IF(Реестр_tb[[#This Row],[Плановая дата оплаты]]<=$AB$1+7,"В течении недели","Через неделю и более"))))) -> Через неделю и более | T37: Контракт № 4 от ххх на сумму 320 160,00 руб. (БО на сумму 320 160,00 руб.)
A38: ООО "ОА "Форт" | B38: Муниципальное задание | C38: ТО охранная сигнализация и реагирование (мастерские) | D38: =IFERROR(VLOOKUP(Реестр_tb[[#This Row],[Подкатегория]],IF({1,0},Данные_tb[ЕД],Данные_tb[доп. код.]),2,0)," ") -> 4 | E38: =IFERROR(VLOOKUP(Реестр_tb[[#This Row],[ДОПЫ]],IF({1,0},Данные_tb[доп. код.],Данные_tb[Источник]),2,0)," ") -> 20 | F38: Нет | G38: апрель | H38: ТО охранная сигнализация и реагирование (мастерские) | I38: 5 | J38: 26680 | O38: =IF(Реестр_tb[[#This Row],[Срок оплаты (дней)]]="","",WORKDAY(Реестр_tb[[#This Row],[входящий (дата)]],Реестр_tb[[#This Row],[Срок оплаты (дней)]]+1,Выходные_tb[Выходные])) ->  | Q38: =IF(AND(Реестр_tb[[#This Row],[Оплачен]]="Да",Реестр_tb[[#This Row],[Факт. дата оплаты]]<=Реестр_tb[[#This Row],[Плановая дата оплаты]]),"Оплачено вовремя",IF(AND(Реестр_tb[[#This Row],[Оплачен]]="Да",Реестр_tb[[#This Row],[Факт. дата оплаты]]>Реестр_tb[[#This Row],[Плановая дата оплаты]]),"Просрочено",IF(AND(Реестр_tb[[#This Row],[Оплачен]]="Нет",Реестр_tb[[#This Row],[Факт. дата оплаты]]="",Реестр_tb[[#This Row],[Плановая дата оплаты]]<$AB$1),"Просрочено",IF(Реестр_tb[[#This Row],[Плановая дата оплаты]]=$AB$1,"Сегодня",IF(Реестр_tb[[#This Row],[Плановая дата оплаты]]<=$AB$1+7,"В течении недели","Через неделю и более"))))) -> Через неделю и более | T38: Контракт № 4 от ххх на сумму 320 160,00 руб. (БО на сумму 320 160,00 руб.)
A39: ООО "ОА "Форт" | B39: Муниципальное задание | C39: ТО охранная сигнализация и реагирование (мастерские) | D39: =IFERROR(VLOOKUP(Реестр_tb[[#This Row],[Подкатегория]],IF({1,0},Данные_tb[ЕД],Данные_tb[доп. код.]),2,0)," ") -> 4 | E39: =IFERROR(VLOOKUP(Реестр_tb[[#This Row],[ДОПЫ]],IF({1,0},Данные_tb[доп. код.],Данные_tb[Источник]),2,0)," ") -> 20 | F39: Нет | G39: май | H39: ТО охранная сигнализация и реагирование (мастерские) | I39: 5 | J39: 26680 | O39: =IF(Реестр_tb[[#This Row],[Срок оплаты (дней)]]="","",WORKDAY(Реестр_tb[[#This Row],[входящий (дата)]],Реестр_tb[[#This Row],[Срок оплаты (дней)]]+1,Выходные_tb[Выходные])) ->  | Q39: =IF(AND(Реестр_tb[[#This Row],[Оплачен]]="Да",Реестр_tb[[#This Row],[Факт. дата оплаты]]<=Реестр_tb[[#This Row],[Плановая дата оплаты]]),"Оплачено вовремя",IF(AND(Реестр_tb[[#This Row],[Оплачен]]="Да",Реестр_tb[[#This Row],[Факт. дата оплаты]]>Реестр_tb[[#This Row],[Плановая дата оплаты]]),"Просрочено",IF(AND(Реестр_tb[[#This Row],[Оплачен]]="Нет",Реестр_tb[[#This Row],[Факт. дата оплаты]]="",Реестр_tb[[#This Row],[Плановая дата оплаты]]<$AB$1),"Просрочено",IF(Реестр_tb[[#This Row],[Плановая дата оплаты]]=$AB$1,"Сегодня",IF(Реестр_tb[[#This Row],[Плановая дата оплаты]]<=$AB$1+7,"В течении недели","Через неделю и более"))))) -> Через неделю и более | T39: Контракт № 4 от ххх на сумму 320 160,00 руб. (БО на сумму 320 160,00 руб.)
A40: ООО "ОА "Форт" | B40: Муниципальное задание | C40: ТО охранная сигнализация и реагирование (мастерские) | D40: =IFERROR(VLOOKUP(Реестр_tb[[#This Row],[Подкатегория]],IF({1,0},Данные_tb[ЕД],Данные_tb[доп. код.]),2,0)," ") -> 4 | E40: =IFERROR(VLOOKUP(Реестр_tb[[#This Row],[ДОПЫ]],IF({1,0},Данные_tb[доп. код.],Данные_tb[Источник]),2,0)," ") -> 20 | F40: Нет | G40: июнь | H40: ТО охранная сигнализация и реагирование (мастерские) | I40: 5 | J40: 26680 | O40: =IF(Реестр_tb[[#This Row],[Срок оплаты (дней)]]="","",WORKDAY(Реестр_tb[[#This Row],[входящий (дата)]],Реестр_tb[[#This Row],[Срок оплаты (дней)]]+1,Выходные_tb[Выходные])) ->  | Q40: =IF(AND(Реестр_tb[[#This Row],[Оплачен]]="Да",Реестр_tb[[#This Row],[Факт. дата оплаты]]<=Реестр_tb[[#This Row],[Плановая дата оплаты]]),"Оплачено вовремя",IF(AND(Реестр_tb[[#This Row],[Оплачен]]="Да",Реестр_tb[[#This Row],[Факт. дата оплаты]]>Реестр_tb[[#This Row],[Плановая дата оплаты]]),"Просрочено",IF(AND(Реестр_tb[[#This Row],[Оплачен]]="Нет",Реестр_tb[[#This Row],[Факт. дата оплаты]]="",Реестр_tb[[#This Row],[Плановая дата оплаты]]<$AB$1),"Просрочено",IF(Реестр_tb[[#This Row],[Плановая дата оплаты]]=$AB$1,"Сегодня",IF(Реестр_tb[[#This Row],[Плановая дата оплаты]]<=$AB$1+7,"В течении недели","Через неделю и более"))))) -> Через неделю и более | T40: Контракт № 4 от ххх на сумму 320 160,00 руб. (БО на сумму 320 160,00 руб.)
A41: ООО "ОА "Форт" | B41: Муниципальное задание | C41: ТО охранная сигнализация и реагирование (мастерские) | D41: =IFERROR(VLOOKUP(Реестр_tb[[#This Row],[Подкатегория]],IF({1,0},Данные_tb[ЕД],Данные_tb[доп. код.]),2,0)," ") -> 4 | E41: =IFERROR(VLOOKUP(Реестр_tb[[#This Row],[ДОПЫ]],IF({1,0},Данные_tb[доп. код.],Данные_tb[Источник]),2,0)," ") -> 20 | F41: Нет | G41: июль | H41: ТО охранная сигнализация и реагирование (мастерские) | I41: 5 | J41: 26680 | O41: =IF(Реестр_tb[[#This Row],[Срок оплаты (дней)]]="","",WORKDAY(Реестр_tb[[#This Row],[входящий (дата)]],Реестр_tb[[#This Row],[Срок оплаты (дней)]]+1,Выходные_tb[Выходные])) ->  | Q41: =IF(AND(Реестр_tb[[#This Row],[Оплачен]]="Да",Реестр_tb[[#This Row],[Факт. дата оплаты]]<=Реестр_tb[[#This Row],[Плановая дата оплаты]]),"Оплачено вовремя",IF(AND(Реестр_tb[[#This Row],[Оплачен]]="Да",Реестр_tb[[#This Row],[Факт. дата оплаты]]>Реестр_tb[[#This Row],[Плановая дата оплаты]]),"Просрочено",IF(AND(Реестр_tb[[#This Row],[Оплачен]]="Нет",Реестр_tb[[#This Row],[Факт. дата оплаты]]="",Реестр_tb[[#This Row],[Плановая дата оплаты]]<$AB$1),"Просрочено",IF(Реестр_tb[[#This Row],[Плановая дата оплаты]]=$AB$1,"Сегодня",IF(Реестр_tb[[#This Row],[Плановая дата оплаты]]<=$AB$1+7,"В течении недели","Через неделю и более"))))) -> Через неделю и более | T41: Контракт № 4 от ххх на сумму 320 160,00 руб. (БО на сумму 320 160,00 руб.)
A42: ООО "ОА "Форт" | B42: Муниципальное задание | C42: ТО охранная сигнализация и реагирование (мастерские) | D42: =IFERROR(VLOOKUP(Реестр_tb[[#This Row],[Подкатегория]],IF({1,0},Данные_tb[ЕД],Данные_tb[доп. код.]),2,0)," ") -> 4 | E42: =IFERROR(VLOOKUP(Реестр_tb[[#This Row],[ДОПЫ]],IF({1,0},Данные_tb[доп. код.],Данные_tb[Источник]),2,0)," ") -> 20 | F42: Нет | G42: август | H42: ТО охранная сигнализация и реагирование (мастерские) | I42: 5 | J42: 26680 | O42: =IF(Реестр_tb[[#This Row],[Срок оплаты (дней)]]="","",WORKDAY(Реестр_tb[[#This Row],[входящий (дата)]],Реестр_tb[[#This Row],[Срок оплаты (дней)]]+1,Выходные_tb[Выходные])) ->  | Q42: =IF(AND(Реестр_tb[[#This Row],[Оплачен]]="Да",Реестр_tb[[#This Row],[Факт. дата оплаты]]<=Реестр_tb[[#This Row],[Плановая дата оплаты]]),"Оплачено вовремя",IF(AND(Реестр_tb[[#This Row],[Оплачен]]="Да",Реестр_tb[[#This Row],[Факт. дата оплаты]]>Реестр_tb[[#This Row],[Плановая дата оплаты]]),"Просрочено",IF(AND(Реестр_tb[[#This Row],[Оплачен]]="Нет",Реестр_tb[[#This Row],[Факт. дата оплаты]]="",Реестр_tb[[#This Row],[Плановая дата оплаты]]<$AB$1),"Просрочено",IF(Реестр_tb[[#This Row],[Плановая дата оплаты]]=$AB$1,"Сегодня",IF(Реестр_tb[[#This Row],[Плановая дата оплаты]]<=$AB$1+7,"В течении недели","Через неделю и более"))))) -> Через неделю и более | T42: Контракт № 4 от ххх на сумму 320 160,00 руб. (БО на сумму 320 160,00 руб.)
A43: ООО "ОА "Форт" | B43: Муниципальное задание | C43: ТО охранная сигнализация и реагирование (мастерские) | D43: =IFERROR(VLOOKUP(Реестр_tb[[#This Row],[Подкатегория]],IF({1,0},Данные_tb[ЕД],Данные_tb[доп. код.]),2,0)," ") -> 4 | E43: =IFERROR(VLOOKUP(Реестр_tb[[#This Row],[ДОПЫ]],IF({1,0},Данные_tb[доп. код.],Данные_tb[Источник]),2,0)," ") -> 20 | F43: Нет | G43: сентябрь | H43: ТО охранная сигнализация и реагирование (мастерские) | I43: 5 | J43: 26680 | O43: =IF(Реестр_tb[[#This Row],[Срок оплаты (дней)]]="","",WORKDAY(Реестр_tb[[#This Row],[входящий (дата)]],Реестр_tb[[#This Row],[Срок оплаты (дней)]]+1,Выходные_tb[Выходные])) ->  | Q43: =IF(AND(Реестр_tb[[#This Row],[Оплачен]]="Да",Реестр_tb[[#This Row],[Факт. дата оплаты]]<=Реестр_tb[[#This Row],[Плановая дата оплаты]]),"Оплачено вовремя",IF(AND(Реестр_tb[[#This Row],[Оплачен]]="Да",Реестр_tb[[#This Row],[Факт. дата оплаты]]>Реестр_tb[[#This Row],[Плановая дата оплаты]]),"Просрочено",IF(AND(Реестр_tb[[#This Row],[Оплачен]]="Нет",Реестр_tb[[#This Row],[Факт. дата оплаты]]="",Реестр_tb[[#This Row],[Плановая дата оплаты]]<$AB$1),"Просрочено",IF(Реестр_tb[[#This Row],[Плановая дата оплаты]]=$AB$1,"Сегодня",IF(Реестр_tb[[#This Row],[Плановая дата оплаты]]<=$AB$1+7,"В течении недели","Через неделю и более"))))) -> Через неделю и более | T43: Контракт № 4 от ххх на сумму 320 160,00 руб. (БО на сумму 320 160,00 руб.)
A44: ООО "ОА "Форт" | B44: Муниципальное задание | C44: ТО охранная сигнализация и реагирование (мастерские) | D44: =IFERROR(VLOOKUP(Реестр_tb[[#This Row],[Подкатегория]],IF({1,0},Данные_tb[ЕД],Данные_tb[доп. код.]),2,0)," ") -> 4 | E44: =IFERROR(VLOOKUP(Реестр_tb[[#This Row],[ДОПЫ]],IF({1,0},Данные_tb[доп. код.],Данные_tb[Источник]),2,0)," ") -> 20 | F44: Нет | G44: октябрь | H44: ТО охранная сигнализация и реагирование (мастерские) | I44: 5 | J44: 26680 | O44: =IF(Реестр_tb[[#This Row],[Срок оплаты (дней)]]="","",WORKDAY(Реестр_tb[[#This Row],[входящий (дата)]],Реестр_tb[[#This Row],[Срок оплаты (дней)]]+1,Выходные_tb[Выходные])) ->  | Q44: =IF(AND(Реестр_tb[[#This Row],[Оплачен]]="Да",Реестр_tb[[#This Row],[Факт. дата оплаты]]<=Реестр_tb[[#This Row],[Плановая дата оплаты]]),"Оплачено вовремя",IF(AND(Реестр_tb[[#This Row],[Оплачен]]="Да",Реестр_tb[[#This Row],[Факт. дата оплаты]]>Реестр_tb[[#This Row],[Плановая дата оплаты]]),"Просрочено",IF(AND(Реестр_tb[[#This Row],[Оплачен]]="Нет",Реестр_tb[[#This Row],[Факт. дата оплаты]]="",Реестр_tb[[#This Row],[Плановая дата оплаты]]<$AB$1),"Просрочено",IF(Реестр_tb[[#This Row],[Плановая дата оплаты]]=$AB$1,"Сегодня",IF(Реестр_tb[[#This Row],[Плановая дата оплаты]]<=$AB$1+7,"В течении недели","Через неделю и более"))))) -> Через неделю и более | T44: Контракт № 4 от ххх на сумму 320 160,00 руб. (БО на сумму 320 160,00 руб.)
A45: ООО "ОА "Форт" | B45: Муниципальное задание | C45: ТО охранная сигнализация и реагирование (мастерские) | D45: =IFERROR(VLOOKUP(Реестр_tb[[#This Row],[Подкатегория]],IF({1,0},Данные_tb[ЕД],Данные_tb[доп. код.]),2,0)," ") -> 4 | E45: =IFERROR(VLOOKUP(Реестр_tb[[#This Row],[ДОПЫ]],IF({1,0},Данные_tb[доп. код.],Данные_tb[Источник]),2,0)," ") -> 20 | F45: Нет | G45: ноябрь | H45: ТО охранная сигнализация и реагирование (мастерские) | I45: 5 | J45: 26680 | O45: =IF(Реестр_tb[[#This Row],[Срок оплаты (дней)]]="","",WORKDAY(Реестр_tb[[#This Row],[входящий (дата)]],Реестр_tb[[#This Row],[Срок оплаты (дней)]]+1,Выходные_tb[Выходные])) ->  | Q45: =IF(AND(Реестр_tb[[#This Row],[Оплачен]]="Да",Реестр_tb[[#This Row],[Факт. дата оплаты]]<=Реестр_tb[[#This Row],[Плановая дата оплаты]]),"Оплачено вовремя",IF(AND(Реестр_tb[[#This Row],[Оплачен]]="Да",Реестр_tb[[#This Row],[Факт. дата оплаты]]>Реестр_tb[[#This Row],[Плановая дата оплаты]]),"Просрочено",IF(AND(Реестр_tb[[#This Row],[Оплачен]]="Нет",Реестр_tb[[#This Row],[Факт. дата оплаты]]="",Реестр_tb[[#This Row],[Плановая дата оплаты]]<$AB$1),"Просрочено",IF(Реестр_tb[[#This Row],[Плановая дата оплаты]]=$AB$1,"Сегодня",IF(Реестр_tb[[#This Row],[Плановая дата оплаты]]<=$AB$1+7,"В течении недели","Через неделю и более"))))) -> Через неделю и более | T45: Контракт № 4 от ххх на сумму 320 160,00 руб. (БО на сумму 320 160,00 руб.)
A46: ООО "ОА "Форт" | B46: Муниципальное задание | C46: ТО охранная сигнализация и реагирование (мастерские) | D46: =IFERROR(VLOOKUP(Реестр_tb[[#This Row],[Подкатегория]],IF({1,0},Данные_tb[ЕД],Данные_tb[доп. код.]),2,0)," ") -> 4 | E46: =IFERROR(VLOOKUP(Реестр_tb[[#This Row],[ДОПЫ]],IF({1,0},Данные_tb[доп. код.],Данные_tb[Источник]),2,0)," ") -> 20 | F46: Нет | G46: декабрь | H46: ТО охранная сигнализация и реагирование (мастерские) | I46: 5 | J46: 26680 | O46: =IF(Реестр_tb[[#This Row],[Срок оплаты (дней)]]="","",WORKDAY(Реестр_tb[[#This Row],[входящий (дата)]],Реестр_tb[[#This Row],[Срок оплаты (дней)]]+1,Выходные_tb[Выходные])) ->  | Q46: =IF(AND(Реестр_tb[[#This Row],[Оплачен]]="Да",Реестр_tb[[#This Row],[Факт. дата оплаты]]<=Реестр_tb[[#This Row],[Плановая дата оплаты]]),"Оплачено вовремя",IF(AND(Реестр_tb[[#This Row],[Оплачен]]="Да",Реестр_tb[[#This Row],[Факт. дата оплаты]]>Реестр_tb[[#This Row],[Плановая дата оплаты]]),"Просрочено",IF(AND(Реестр_tb[[#This Row],[Оплачен]]="Нет",Реестр_tb[[#This Row],[Факт. дата оплаты]]="",Реестр_tb[[#This Row],[Плановая дата оплаты]]<$AB$1),"Просрочено",IF(Реестр_tb[[#This Row],[Плановая дата оплаты]]=$AB$1,"Сегодня",IF(Реестр_tb[[#This Row],[Плановая дата оплаты]]<=$AB$1+7,"В течении недели","Через неделю и более"))))) -> Через неделю и более | T46: Контракт № 4 от ххх на сумму 320 160,00 руб. (БО на сумму 320 160,00 руб.)
A47: ООО "Фортуна-С" | B47: Муниципальное задание | C47: обслуживание тревожной кнопки | D47: =IFERROR(VLOOKUP(Реестр_tb[[#This Row],[Подкатегория]],IF({1,0},Данные_tb[ЕД],Данные_tb[доп. код.]),2,0)," ") -> 4 | E47: =IFERROR(VLOOKUP(Реестр_tb[[#This Row],[ДОПЫ]],IF({1,0},Данные_tb[доп. код.],Данные_tb[Источник]),2,0)," ") -> 20 | F47: Нет | G47: январь | H47: обслуживание тревожной кнопки Росгвардии | I47: 5 | J47: 3500 | O47: =IF(Реестр_tb[[#This Row],[Срок оплаты (дней)]]="","",WORKDAY(Реестр_tb[[#This Row],[входящий (дата)]],Реестр_tb[[#This Row],[Срок оплаты (дней)]]+1,Выходные_tb[Выходные])) ->  | Q47: =IF(AND(Реестр_tb[[#This Row],[Оплачен]]="Да",Реестр_tb[[#This Row],[Факт. дата оплаты]]<=Реестр_tb[[#This Row],[Плановая дата оплаты]]),"Оплачено вовремя",IF(AND(Реестр_tb[[#This Row],[Оплачен]]="Да",Реестр_tb[[#This Row],[Факт. дата оплаты]]>Реестр_tb[[#This Row],[Плановая дата оплаты]]),"Просрочено",IF(AND(Реестр_tb[[#This Row],[Оплачен]]="Нет",Реестр_tb[[#This Row],[Факт. дата оплаты]]="",Реестр_tb[[#This Row],[Плановая дата оплаты]]<$AB$1),"Просрочено",IF(Реестр_tb[[#This Row],[Плановая дата оплаты]]=$AB$1,"Сегодня",IF(Реестр_tb[[#This Row],[Плановая дата оплаты]]<=$AB$1+7,"В течении недели","Через неделю и более"))))) -> Через неделю и более | T47: Контракт № 571 от ххх на сумму 42 000,00 руб. (БО на сумму 42 000,00 руб.)
A48: ООО "Фортуна-С" | B48: Муниципальное задание | C48: обслуживание тревожной кнопки | D48: =IFERROR(VLOOKUP(Реестр_tb[[#This Row],[Подкатегория]],IF({1,0},Данные_tb[ЕД],Данные_tb[доп. код.]),2,0)," ") -> 4 | E48: =IFERROR(VLOOKUP(Реестр_tb[[#This Row],[ДОПЫ]],IF({1,0},Данные_tb[доп. код.],Данные_tb[Источник]),2,0)," ") -> 20 | F48: Нет | G48: февраль | H48: обслуживание тревожной кнопки Росгвардии | I48: 5 | J48: 3500 | O48: =IF(Реестр_tb[[#This Row],[Срок оплаты (дней)]]="","",WORKDAY(Реестр_tb[[#This Row],[входящий (дата)]],Реестр_tb[[#This Row],[Срок оплаты (дней)]]+1,Выходные_tb[Выходные])) ->  | Q48: =IF(AND(Реестр_tb[[#This Row],[Оплачен]]="Да",Реестр_tb[[#This Row],[Факт. дата оплаты]]<=Реестр_tb[[#This Row],[Плановая дата оплаты]]),"Оплачено вовремя",IF(AND(Реестр_tb[[#This Row],[Оплачен]]="Да",Реестр_tb[[#This Row],[Факт. дата оплаты]]>Реестр_tb[[#This Row],[Плановая дата оплаты]]),"Просрочено",IF(AND(Реестр_tb[[#This Row],[Оплачен]]="Нет",Реестр_tb[[#This Row],[Факт. дата оплаты]]="",Реестр_tb[[#This Row],[Плановая дата оплаты]]<$AB$1),"Просрочено",IF(Реестр_tb[[#This Row],[Плановая дата оплаты]]=$AB$1,"Сегодня",IF(Реестр_tb[[#This Row],[Плановая дата оплаты]]<=$AB$1+7,"В течении недели","Через неделю и более"))))) -> Через неделю и более | T48: Контракт № 571 от ххх на сумму 42 000,00 руб. (БО на сумму 42 000,00 руб.)
A49: ООО "Фортуна-С" | B49: Муниципальное задание | C49: обслуживание тревожной кнопки | D49: =IFERROR(VLOOKUP(Реестр_tb[[#This Row],[Подкатегория]],IF({1,0},Данные_tb[ЕД],Данные_tb[доп. код.]),2,0)," ") -> 4 | E49: =IFERROR(VLOOKUP(Реестр_tb[[#This Row],[ДОПЫ]],IF({1,0},Данные_tb[доп. код.],Данные_tb[Источник]),2,0)," ") -> 20 | F49: Нет | G49: март | H49: обслуживание тревожной кнопки Росгвардии | I49: 5 | J49: 3500 | O49: =IF(Реестр_tb[[#This Row],[Срок оплаты (дней)]]="","",WORKDAY(Реестр_tb[[#This Row],[входящий (дата)]],Реестр_tb[[#This Row],[Срок оплаты (дней)]]+1,Выходные_tb[Выходные])) ->  | Q49: =IF(AND(Реестр_tb[[#This Row],[Оплачен]]="Да",Реестр_tb[[#This Row],[Факт. дата оплаты]]<=Реестр_tb[[#This Row],[Плановая дата оплаты]]),"Оплачено вовремя",IF(AND(Реестр_tb[[#This Row],[Оплачен]]="Да",Реестр_tb[[#This Row],[Факт. дата оплаты]]>Реестр_tb[[#This Row],[Плановая дата оплаты]]),"Просрочено",IF(AND(Реестр_tb[[#This Row],[Оплачен]]="Нет",Реестр_tb[[#This Row],[Факт. дата оплаты]]="",Реестр_tb[[#This Row],[Плановая дата оплаты]]<$AB$1),"Просрочено",IF(Реестр_tb[[#This Row],[Плановая дата оплаты]]=$AB$1,"Сегодня",IF(Реестр_tb[[#This Row],[Плановая дата оплаты]]<=$AB$1+7,"В течении недели","Через неделю и более"))))) -> Через неделю и более | T49: Контракт № 571 от ххх на сумму 42 000,00 руб. (БО на сумму 42 000,00 руб.)
A50: ООО "Фортуна-С" | B50: Муниципальное задание | C50: обслуживание тревожной кнопки | D50: =IFERROR(VLOOKUP(Реестр_tb[[#This Row],[Подкатегория]],IF({1,0},Данные_tb[ЕД],Данные_tb[доп. код.]),2,0)," ") -> 4 | E50: =IFERROR(VLOOKUP(Реестр_tb[[#This Row],[ДОПЫ]],IF({1,0},Данные_tb[доп. код.],Данные_tb[Источник]),2,0)," ") -> 20 | F50: Нет | G50: апрель | H50: обслуживание тревожной кнопки Росгвардии | I50: 5 | J50: 3500 | O50: =IF(Реестр_tb[[#This Row],[Срок оплаты (дней)]]="","",WORKDAY(Реестр_tb[[#This Row],[входящий (дата)]],Реестр_tb[[#This Row],[Срок оплаты (дней)]]+1,Выходные_tb[Выходные])) ->  | Q50: =IF(AND(Реестр_tb[[#This Row],[Оплачен]]="Да",Реестр_tb[[#This Row],[Факт. дата оплаты]]<=Реестр_tb[[#This Row],[Плановая дата оплаты]]),"Оплачено вовремя",IF(AND(Реестр_tb[[#This Row],[Оплачен]]="Да",Реестр_tb[[#This Row],[Факт. дата оплаты]]>Реестр_tb[[#This Row],[Плановая дата оплаты]]),"Просрочено",IF(AND(Реестр_tb[[#This Row],[Оплачен]]="Нет",Реестр_tb[[#This Row],[Факт. дата оплаты]]="",Реестр_tb[[#This Row],[Плановая дата оплаты]]<$AB$1),"Просрочено",IF(Реестр_tb[[#This Row],[Плановая дата оплаты]]=$AB$1,"Сегодня",IF(Реестр_tb[[#This Row],[Плановая дата оплаты]]<=$AB$1+7,"В течении недели","Через неделю и более"))))) -> Через неделю и более | T50: Контракт № 571 от ххх на сумму 42 000,00 руб. (БО на сумму 42 000,00 руб.)
A51: ООО "Фортуна-С" | B51: Муниципальное задание | C51: обслуживание тревожной кнопки | D51: =IFERROR(VLOOKUP(Реестр_tb[[#This Row],[Подкатегория]],IF({1,0},Данные_tb[ЕД],Данные_tb[доп. код.]),2,0)," ") -> 4 | E51: =IFERROR(VLOOKUP(Реестр_tb[[#This Row],[ДОПЫ]],IF({1,0},Данные_tb[доп. код.],Данные_tb[Источник]),2,0)," ") -> 20 | F51: Нет | G51: май | H51: обслуживание тревожной кнопки Росгвардии | I51: 5 | J51: 3500 | O51: =IF(Реестр_tb[[#This Row],[Срок оплаты (дней)]]="","",WORKDAY(Реестр_tb[[#This Row],[входящий (дата)]],Реестр_tb[[#This Row],[Срок оплаты (дней)]]+1,Выходные_tb[Выходные])) ->  | Q51: =IF(AND(Реестр_tb[[#This Row],[Оплачен]]="Да",Реестр_tb[[#This Row],[Факт. дата оплаты]]<=Реестр_tb[[#This Row],[Плановая дата оплаты]]),"Оплачено вовремя",IF(AND(Реестр_tb[[#This Row],[Оплачен]]="Да",Реестр_tb[[#This Row],[Факт. дата оплаты]]>Реестр_tb[[#This Row],[Плановая дата оплаты]]),"Просрочено",IF(AND(Реестр_tb[[#This Row],[Оплачен]]="Нет",Реестр_tb[[#This Row],[Факт. дата оплаты]]="",Реестр_tb[[#This Row],[Плановая дата оплаты]]<$AB$1),"Просрочено",IF(Реестр_tb[[#This Row],[Плановая дата оплаты]]=$AB$1,"Сегодня",IF(Реестр_tb[[#This Row],[Плановая дата оплаты]]<=$AB$1+7,"В течении недели","Через неделю и более"))))) -> Через неделю и более | T51: Контракт № 571 от ххх на сумму 42 000,00 руб. (БО на сумму 42 000,00 руб.)
A52: ООО "Фортуна-С" | B52: Муниципальное задание | C52: обслуживание тревожной кнопки | D52: =IFERROR(VLOOKUP(Реестр_tb[[#This Row],[Подкатегория]],IF({1,0},Данные_tb[ЕД],Данные_tb[доп. код.]),2,0)," ") -> 4 | E52: =IFERROR(VLOOKUP(Реестр_tb[[#This Row],[ДОПЫ]],IF({1,0},Данные_tb[доп. код.],Данные_tb[Источник]),2,0)," ") -> 20 | F52: Нет | G52: июнь | H52: обслуживание тревожной кнопки Росгвардии | I52: 5 | J52: 3500 | O52: =IF(Реестр_tb[[#This Row],[Срок оплаты (дней)]]="","",WORKDAY(Реестр_tb[[#This Row],[входящий (дата)]],Реестр_tb[[#This Row],[Срок оплаты (дней)]]+1,Выходные_tb[Выходные])) ->  | Q52: =IF(AND(Реестр_tb[[#This Row],[Оплачен]]="Да",Реестр_tb[[#This Row],[Факт. дата оплаты]]<=Реестр_tb[[#This Row],[Плановая дата оплаты]]),"Оплачено вовремя",IF(AND(Реестр_tb[[#This Row],[Оплачен]]="Да",Реестр_tb[[#This Row],[Факт. дата оплаты]]>Реестр_tb[[#This Row],[Плановая дата оплаты]]),"Просрочено",IF(AND(Реестр_tb[[#This Row],[Оплачен]]="Нет",Реестр_tb[[#This Row],[Факт. дата оплаты]]="",Реестр_tb[[#This Row],[Плановая дата оплаты]]<$AB$1),"Просрочено",IF(Реестр_tb[[#This Row],[Плановая дата оплаты]]=$AB$1,"Сегодня",IF(Реестр_tb[[#This Row],[Плановая дата оплаты]]<=$AB$1+7,"В течении недели","Через неделю и более"))))) -> Через неделю и более | T52: Контракт № 571 от ххх на сумму 42 000,00 руб. (БО на сумму 42 000,00 руб.)
A53: ООО "Фортуна-С" | B53: Муниципальное задание | C53: обслуживание тревожной кнопки | D53: =IFERROR(VLOOKUP(Реестр_tb[[#This Row],[Подкатегория]],IF({1,0},Данные_tb[ЕД],Данные_tb[доп. код.]),2,0)," ") -> 4 | E53: =IFERROR(VLOOKUP(Реестр_tb[[#This Row],[ДОПЫ]],IF({1,0},Данные_tb[доп. код.],Данные_tb[Источник]),2,0)," ") -> 20 | F53: Нет | G53: июль | H53: обслуживание тревожной кнопки Росгвардии | I53: 5 | J53: 3500 | O53: =IF(Реестр_tb[[#This Row],[Срок оплаты (дней)]]="","",WORKDAY(Реестр_tb[[#This Row],[входящий (дата)]],Реестр_tb[[#This Row],[Срок оплаты (дней)]]+1,Выходные_tb[Выходные])) ->  | Q53: =IF(AND(Реестр_tb[[#This Row],[Оплачен]]="Да",Реестр_tb[[#This Row],[Факт. дата оплаты]]<=Реестр_tb[[#This Row],[Плановая дата оплаты]]),"Оплачено вовремя",IF(AND(Реестр_tb[[#This Row],[Оплачен]]="Да",Реестр_tb[[#This Row],[Факт. дата оплаты]]>Реестр_tb[[#This Row],[Плановая дата оплаты]]),"Просрочено",IF(AND(Реестр_tb[[#This Row],[Оплачен]]="Нет",Реестр_tb[[#This Row],[Факт. дата оплаты]]="",Реестр_tb[[#This Row],[Плановая дата оплаты]]<$AB$1),"Просрочено",IF(Реестр_tb[[#This Row],[Плановая дата оплаты]]=$AB$1,"Сегодня",IF(Реестр_tb[[#This Row],[Плановая дата оплаты]]<=$AB$1+7,"В течении недели","Через неделю и более"))))) -> Через неделю и более | T53: Контракт № 571 от ххх на сумму 42 000,00 руб. (БО на сумму 42 000,00 руб.)
A54: ООО "Фортуна-С" | B54: Муниципальное задание | C54: обслуживание тревожной кнопки | D54: =IFERROR(VLOOKUP(Реестр_tb[[#This Row],[Подкатегория]],IF({1,0},Данные_tb[ЕД],Данные_tb[доп. код.]),2,0)," ") -> 4 | E54: =IFERROR(VLOOKUP(Реестр_tb[[#This Row],[ДОПЫ]],IF({1,0},Данные_tb[доп. код.],Данные_tb[Источник]),2,0)," ") -> 20 | F54: Нет | G54: август | H54: обслуживание тревожной кнопки Росгвардии | I54: 5 | J54: 3500 | O54: =IF(Реестр_tb[[#This Row],[Срок оплаты (дней)]]="","",WORKDAY(Реестр_tb[[#This Row],[входящий (дата)]],Реестр_tb[[#This Row],[Срок оплаты (дней)]]+1,Выходные_tb[Выходные])) ->  | Q54: =IF(AND(Реестр_tb[[#This Row],[Оплачен]]="Да",Реестр_tb[[#This Row],[Факт. дата оплаты]]<=Реестр_tb[[#This Row],[Плановая дата оплаты]]),"Оплачено вовремя",IF(AND(Реестр_tb[[#This Row],[Оплачен]]="Да",Реестр_tb[[#This Row],[Факт. дата оплаты]]>Реестр_tb[[#This Row],[Плановая дата оплаты]]),"Просрочено",IF(AND(Реестр_tb[[#This Row],[Оплачен]]="Нет",Реестр_tb[[#This Row],[Факт. дата оплаты]]="",Реестр_tb[[#This Row],[Плановая дата оплаты]]<$AB$1),"Просрочено",IF(Реестр_tb[[#This Row],[Плановая дата оплаты]]=$AB$1,"Сегодня",IF(Реестр_tb[[#This Row],[Плановая дата оплаты]]<=$AB$1+7,"В течении недели","Через неделю и более"))))) -> Через неделю и более | T54: Контракт № 571 от ххх на сумму 42 000,00 руб. (БО на сумму 42 000,00 руб.)
A55: ООО "Фортуна-С" | B55: Муниципальное задание | C55: обслуживание тревожной кнопки | D55: =IFERROR(VLOOKUP(Реестр_tb[[#This Row],[Подкатегория]],IF({1,0},Данные_tb[ЕД],Данные_tb[доп. код.]),2,0)," ") -> 4 | E55: =IFERROR(VLOOKUP(Реестр_tb[[#This Row],[ДОПЫ]],IF({1,0},Данные_tb[доп. код.],Данные_tb[Источник]),2,0)," ") -> 20 | F55: Нет | G55: сентябрь | H55: обслуживание тревожной кнопки Росгвардии | I55: 5 | J55: 3500 | O55: =IF(Реестр_tb[[#This Row],[Срок оплаты (дней)]]="","",WORKDAY(Реестр_tb[[#This Row],[входящий (дата)]],Реестр_tb[[#This Row],[Срок оплаты (дней)]]+1,Выходные_tb[Выходные])) ->  | Q55: =IF(AND(Реестр_tb[[#This Row],[Оплачен]]="Да",Реестр_tb[[#This Row],[Факт. дата оплаты]]<=Реестр_tb[[#This Row],[Плановая дата оплаты]]),"Оплачено вовремя",IF(AND(Реестр_tb[[#This Row],[Оплачен]]="Да",Реестр_tb[[#This Row],[Факт. дата оплаты]]>Реестр_tb[[#This Row],[Плановая дата оплаты]]),"Просрочено",IF(AND(Реестр_tb[[#This Row],[Оплачен]]="Нет",Реестр_tb[[#This Row],[Факт. дата оплаты]]="",Реестр_tb[[#This Row],[Плановая дата оплаты]]<$AB$1),"Просрочено",IF(Реестр_tb[[#This Row],[Плановая дата оплаты]]=$AB$1,"Сегодня",IF(Реестр_tb[[#This Row],[Плановая дата оплаты]]<=$AB$1+7,"В течении недели","Через неделю и более"))))) -> Через неделю и более | T55: Контракт № 571 от ххх на сумму 42 000,00 руб. (БО на сумму 42 000,00 руб.)
A56: ООО "Фортуна-С" | B56: Муниципальное задание | C56: обслуживание тревожной кнопки | D56: =IFERROR(VLOOKUP(Реестр_tb[[#This Row],[Подкатегория]],IF({1,0},Данные_tb[ЕД],Данные_tb[доп. код.]),2,0)," ") -> 4 | E56: =IFERROR(VLOOKUP(Реестр_tb[[#This Row],[ДОПЫ]],IF({1,0},Данные_tb[доп. код.],Данные_tb[Источник]),2,0)," ") -> 20 | F56: Нет | G56: октябрь | H56: обслуживание тревожной кнопки Росгвардии | I56: 5 | J56: 3500 | O56: =IF(Реестр_tb[[#This Row],[Срок оплаты (дней)]]="","",WORKDAY(Реестр_tb[[#This Row],[входящий (дата)]],Реестр_tb[[#This Row],[Срок оплаты (дней)]]+1,Выходные_tb[Выходные])) ->  | Q56: =IF(AND(Реестр_tb[[#This Row],[Оплачен]]="Да",Реестр_tb[[#This Row],[Факт. дата оплаты]]<=Реестр_tb[[#This Row],[Плановая дата оплаты]]),"Оплачено вовремя",IF(AND(Реестр_tb[[#This Row],[Оплачен]]="Да",Реестр_tb[[#This Row],[Факт. дата оплаты]]>Реестр_tb[[#This Row],[Плановая дата оплаты]]),"Просрочено",IF(AND(Реестр_tb[[#This Row],[Оплачен]]="Нет",Реестр_tb[[#This Row],[Факт. дата оплаты]]="",Реестр_tb[[#This Row],[Плановая дата оплаты]]<$AB$1),"Просрочено",IF(Реестр_tb[[#This Row],[Плановая дата оплаты]]=$AB$1,"Сегодня",IF(Реестр_tb[[#This Row],[Плановая дата оплаты]]<=$AB$1+7,"В течении недели","Через неделю и более"))))) -> Через неделю и более | T56: Контракт № 571 от ххх на сумму 42 000,00 руб. (БО на сумму 42 000,00 руб.)
A57: ООО "Фортуна-С" | B57: Муниципальное задание | C57: обслуживание тревожной кнопки | D57: =IFERROR(VLOOKUP(Реестр_tb[[#This Row],[Подкатегория]],IF({1,0},Данные_tb[ЕД],Данные_tb[доп. код.]),2,0)," ") -> 4 | E57: =IFERROR(VLOOKUP(Реестр_tb[[#This Row],[ДОПЫ]],IF({1,0},Данные_tb[доп. код.],Данные_tb[Источник]),2,0)," ") -> 20 | F57: Нет | G57: ноябрь | H57: обслуживание тревожной кнопки Росгвардии | I57: 5 | J57: 3500 | O57: =IF(Реестр_tb[[#This Row],[Срок оплаты (дней)]]="","",WORKDAY(Реестр_tb[[#This Row],[входящий (дата)]],Реестр_tb[[#This Row],[Срок оплаты (дней)]]+1,Выходные_tb[Выходные])) ->  | Q57: =IF(AND(Реестр_tb[[#This Row],[Оплачен]]="Да",Реестр_tb[[#This Row],[Факт. дата оплаты]]<=Реестр_tb[[#This Row],[Плановая дата оплаты]]),"Оплачено вовремя",IF(AND(Реестр_tb[[#This Row],[Оплачен]]="Да",Реестр_tb[[#This Row],[Факт. дата оплаты]]>Реестр_tb[[#This Row],[Плановая дата оплаты]]),"Просрочено",IF(AND(Реестр_tb[[#This Row],[Оплачен]]="Нет",Реестр_tb[[#This Row],[Факт. дата оплаты]]="",Реестр_tb[[#This Row],[Плановая дата оплаты]]<$AB$1),"Просрочено",IF(Реестр_tb[[#This Row],[Плановая дата оплаты]]=$AB$1,"Сегодня",IF(Реестр_tb[[#This Row],[Плановая дата оплаты]]<=$AB$1+7,"В течении недели","Через неделю и более"))))) -> Через неделю и более | T57: Контракт № 571 от ххх на сумму 42 000,00 руб. (БО на сумму 42 000,00 руб.)
A58: ООО "Фортуна-С" | B58: Муниципальное задание | C58: обслуживание тревожной кнопки | D58: =IFERROR(VLOOKUP(Реестр_tb[[#This Row],[Подкатегория]],IF({1,0},Данные_tb[ЕД],Данные_tb[доп. код.]),2,0)," ") -> 4 | E58: =IFERROR(VLOOKUP(Реестр_tb[[#This Row],[ДОПЫ]],IF({1,0},Данные_tb[доп. код.],Данные_tb[Источник]),2,0)," ") -> 20 | F58: Нет | G58: декабрь | H58: обслуживание тревожной кнопки Росгвардии | I58: 5 | J58: 3500 | O58: =IF(Реестр_tb[[#This Row],[Срок оплаты (дней)]]="","",WORKDAY(Реестр_tb[[#This Row],[входящий (дата)]],Реестр_tb[[#This Row],[Срок оплаты (дней)]]+1,Выходные_tb[Выходные])) ->  | Q58: =IF(AND(Реестр_tb[[#This Row],[Оплачен]]="Да",Реестр_tb[[#This Row],[Факт. дата оплаты]]<=Реестр_tb[[#This Row],[Плановая дата оплаты]]),"Оплачено вовремя",IF(AND(Реестр_tb[[#This Row],[Оплачен]]="Да",Реестр_tb[[#This Row],[Факт. дата оплаты]]>Реестр_tb[[#This Row],[Плановая дата оплаты]]),"Просрочено",IF(AND(Реестр_tb[[#This Row],[Оплачен]]="Нет",Реестр_tb[[#This Row],[Факт. дата оплаты]]="",Реестр_tb[[#This Row],[Плановая дата оплаты]]<$AB$1),"Просрочено",IF(Реестр_tb[[#This Row],[Плановая дата оплаты]]=$AB$1,"Сегодня",IF(Реестр_tb[[#This Row],[Плановая дата оплаты]]<=$AB$1+7,"В течении недели","Через неделю и более"))))) -> Через неделю и более | T58: Контракт № 571 от ххх на сумму 42 000,00 руб. (БО на сумму 42 000,00 руб.)
A59: ООО "Южно-Курильский водоканал" | B59: Коммунальные услуги | C59: вода | D59: =IFERROR(VLOOKUP(Реестр_tb[[#This Row],[Подкатегория]],IF({1,0},Данные_tb[ЕД],Данные_tb[доп. код.]),2,0)," ") -> 23 | E59: =IFERROR(VLOOKUP(Реестр_tb[[#This Row],[ДОПЫ]],IF({1,0},Данные_tb[доп. код.],Данные_tb[Источник]),2,0)," ") -> 20 | F59: Нет | G59: январь | H59: Водоснабжение | I59: аукцион и т.п. | J59: 134654 | O59: =IF(Реестр_tb[[#This Row],[Срок оплаты (дней)]]="","",WORKDAY(Реестр_tb[[#This Row],[входящий (дата)]],Реестр_tb[[#This Row],[Срок оплаты (дней)]]+1,Выходные_tb[Выходные])) ->  | Q59: =IF(AND(Реестр_tb[[#This Row],[Оплачен]]="Да",Реестр_tb[[#This Row],[Факт. дата оплаты]]<=Реестр_tb[[#This Row],[Плановая дата оплаты]]),"Оплачено вовремя",IF(AND(Реестр_tb[[#This Row],[Оплачен]]="Да",Реестр_tb[[#This Row],[Факт. дата оплаты]]>Реестр_tb[[#This Row],[Плановая дата оплаты]]),"Просрочено",IF(AND(Реестр_tb[[#This Row],[Оплачен]]="Нет",Реестр_tb[[#This Row],[Факт. дата оплаты]]="",Реестр_tb[[#This Row],[Плановая дата оплаты]]<$AB$1),"Просрочено",IF(Реестр_tb[[#This Row],[Плановая дата оплаты]]=$AB$1,"Сегодня",IF(Реестр_tb[[#This Row],[Плановая дата оплаты]]<=$AB$1+7,"В течении недели","Через неделю и более"))))) -> Через неделю и более | T59: Договор № 1 от 26.11.2021 г. на сумму 672 303,52 руб.
A60: ООО "Южно-Курильский водоканал" | B60: Коммунальные услуги | C60: вода | D60: =IFERROR(VLOOKUP(Реестр_tb[[#This Row],[Подкатегория]],IF({1,0},Данные_tb[ЕД],Данные_tb[доп. код.]),2,0)," ") -> 23 | E60: =IFERROR(VLOOKUP(Реестр_tb[[#This Row],[ДОПЫ]],IF({1,0},Данные_tb[доп. код.],Данные_tb[Источник]),2,0)," ") -> 20 | F60: Нет | G60: февраль | H60: Водоснабжение | I60: аукцион и т.п. | J60: 135655 | O60: =IF(Реестр_tb[[#This Row],[Срок оплаты (дней)]]="","",WORKDAY(Реестр_tb[[#This Row],[входящий (дата)]],Реестр_tb[[#This Row],[Срок оплаты (дней)]]+1,Выходные_tb[Выходные])) ->  | Q60: =IF(AND(Реестр_tb[[#This Row],[Оплачен]]="Да",Реестр_tb[[#This Row],[Факт. дата оплаты]]<=Реестр_tb[[#This Row],[Плановая дата оплаты]]),"Оплачено вовремя",IF(AND(Реестр_tb[[#This Row],[Оплачен]]="Да",Реестр_tb[[#This Row],[Факт. дата оплаты]]>Реестр_tb[[#This Row],[Плановая дата оплаты]]),"Просрочено",IF(AND(Реестр_tb[[#This Row],[Оплачен]]="Нет",Реестр_tb[[#This Row],[Факт. дата оплаты]]="",Реестр_tb[[#This Row],[Плановая дата оплаты]]<$AB$1),"Просрочено",IF(Реестр_tb[[#This Row],[Плановая дата оплаты]]=$AB$1,"Сегодня",IF(Реестр_tb[[#This Row],[Плановая дата оплаты]]<=$AB$1+7,"В течении недели","Через неделю и более"))))) -> Через неделю и более | T60: Договор № 1 от 26.11.2021 г. на сумму 672 303,52 руб.
A61: ООО "Южно-Курильский водоканал" | B61: Коммунальные услуги | C61: вода | D61: =IFERROR(VLOOKUP(Реестр_tb[[#This Row],[Подкатегория]],IF({1,0},Данные_tb[ЕД],Данные_tb[доп. код.]),2,0)," ") -> 23 | E61: =IFERROR(VLOOKUP(Реестр_tb[[#This Row],[ДОПЫ]],IF({1,0},Данные_tb[доп. код.],Данные_tb[Источник]),2,0)," ") -> 20 | F61: Нет | G61: март | H61: Водоснабжение | I61: аукцион и т.п. | J61: 136656 | O61: =IF(Реестр_tb[[#This Row],[Срок оплаты (дней)]]="","",WORKDAY(Реестр_tb[[#This Row],[входящий (дата)]],Реестр_tb[[#This Row],[Срок оплаты (дней)]]+1,Выходные_tb[Выходные])) ->  | Q61: =IF(AND(Реестр_tb[[#This Row],[Оплачен]]="Да",Реестр_tb[[#This Row],[Факт. дата оплаты]]<=Реестр_tb[[#This Row],[Плановая дата оплаты]]),"Оплачено вовремя",IF(AND(Реестр_tb[[#This Row],[Оплачен]]="Да",Реестр_tb[[#This Row],[Факт. дата оплаты]]>Реестр_tb[[#This Row],[Плановая дата оплаты]]),"Просрочено",IF(AND(Реестр_tb[[#This Row],[Оплачен]]="Нет",Реестр_tb[[#This Row],[Факт. дата оплаты]]="",Реестр_tb[[#This Row],[Плановая дата оплаты]]<$AB$1),"Просрочено",IF(Реестр_tb[[#This Row],[Плановая дата оплаты]]=$AB$1,"Сегодня",IF(Реестр_tb[[#This Row],[Плановая дата оплаты]]<=$AB$1+7,"В течении недели","Через неделю и более"))))) -> Через неделю и более | T61: Договор № 1 от 26.11.2021 г. на сумму 672 303,52 руб.
A62: ООО "Южно-Курильский водоканал" | B62: Коммунальные услуги | C62: вода | D62: =IFERROR(VLOOKUP(Реестр_tb[[#This Row],[Подкатегория]],IF({1,0},Данные_tb[ЕД],Данные_tb[доп. код.]),2,0)," ") -> 23 | E62: =IFERROR(VLOOKUP(Реестр_tb[[#This Row],[ДОПЫ]],IF({1,0},Данные_tb[доп. код.],Данные_tb[Источник]),2,0)," ") -> 20 | F62: Нет | G62: апрель | H62: Водоснабжение | I62: аукцион и т.п. | J62: 137657 | O62: =IF(Реестр_tb[[#This Row],[Срок оплаты (дней)]]="","",WORKDAY(Реестр_tb[[#This Row],[входящий (дата)]],Реестр_tb[[#This Row],[Срок оплаты (дней)]]+1,Выходные_tb[Выходные])) ->  | Q62: =IF(AND(Реестр_tb[[#This Row],[Оплачен]]="Да",Реестр_tb[[#This Row],[Факт. дата оплаты]]<=Реестр_tb[[#This Row],[Плановая дата оплаты]]),"Оплачено вовремя",IF(AND(Реестр_tb[[#This Row],[Оплачен]]="Да",Реестр_tb[[#This Row],[Факт. дата оплаты]]>Реестр_tb[[#This Row],[Плановая дата оплаты]]),"Просрочено",IF(AND(Реестр_tb[[#This Row],[Оплачен]]="Нет",Реестр_tb[[#This Row],[Факт. дата оплаты]]="",Реестр_tb[[#This Row],[Плановая дата оплаты]]<$AB$1),"Просрочено",IF(Реестр_tb[[#This Row],[Плановая дата оплаты]]=$AB$1,"Сегодня",IF(Реестр_tb[[#This Row],[Плановая дата оплаты]]<=$AB$1+7,"В течении недели","Через неделю и более"))))) -> Через неделю и более | T62: Договор № 1 от 26.11.2021 г. на сумму 672 303,52 руб.
A63: ООО "Южно-Курильский водоканал" | B63: Коммунальные услуги | C63: вода | D63: =IFERROR(VLOOKUP(Реестр_tb[[#This Row],[Подкатегория]],IF({1,0},Данные_tb[ЕД],Данные_tb[доп. код.]),2,0)," ") -> 23 | E63: =IFERROR(VLOOKUP(Реестр_tb[[#This Row],[ДОПЫ]],IF({1,0},Данные_tb[доп. код.],Данные_tb[Источник]),2,0)," ") -> 20 | F63: Нет | G63: май | H63: Водоснабжение | I63: аукцион и т.п. | J63: 138658 | O63: =IF(Реестр_tb[[#This Row],[Срок оплаты (дней)]]="","",WORKDAY(Реестр_tb[[#This Row],[входящий (дата)]],Реестр_tb[[#This Row],[Срок оплаты (дней)]]+1,Выходные_tb[Выходные])) ->  | Q63: =IF(AND(Реестр_tb[[#This Row],[Оплачен]]="Да",Реестр_tb[[#This Row],[Факт. дата оплаты]]<=Реестр_tb[[#This Row],[Плановая дата оплаты]]),"Оплачено вовремя",IF(AND(Реестр_tb[[#This Row],[Оплачен]]="Да",Реестр_tb[[#This Row],[Факт. дата оплаты]]>Реестр_tb[[#This Row],[Плановая дата оплаты]]),"Просрочено",IF(AND(Реестр_tb[[#This Row],[Оплачен]]="Нет",Реестр_tb[[#This Row],[Факт. дата оплаты]]="",Реестр_tb[[#This Row],[Плановая дата оплаты]]<$AB$1),"Просрочено",IF(Реестр_tb[[#This Row],[Плановая дата оплаты]]=$AB$1,"Сегодня",IF(Реестр_tb[[#This Row],[Плановая дата оплаты]]<=$AB$1+7,"В течении недели","Через неделю и более"))))) -> Через неделю и более | T63: Договор № 1 от 26.11.2021 г. на сумму 672 303,52 руб.
A64: ООО "Южно-Курильский водоканал" | B64: Коммунальные услуги | C64: вода | D64: =IFERROR(VLOOKUP(Реестр_tb[[#This Row],[Подкатегория]],IF({1,0},Данные_tb[ЕД],Данные_tb[доп. код.]),2,0)," ") -> 23 | E64: =IFERROR(VLOOKUP(Реестр_tb[[#This Row],[ДОПЫ]],IF({1,0},Данные_tb[доп. код.],Данные_tb[Источник]),2,0)," ") -> 20 | F64: Нет | G64: июнь | H64: Водоснабжение | I64: аукцион и т.п. | J64: 139659 | O64: =IF(Реестр_tb[[#This Row],[Срок оплаты (дней)]]="","",WORKDAY(Реестр_tb[[#This Row],[входящий (дата)]],Реестр_tb[[#This Row],[Срок оплаты (дней)]]+1,Выходные_tb[Выходные])) ->  | Q64: =IF(AND(Реестр_tb[[#This Row],[Оплачен]]="Да",Реестр_tb[[#This Row],[Факт. дата оплаты]]<=Реестр_tb[[#This Row],[Плановая дата оплаты]]),"Оплачено вовремя",IF(AND(Реестр_tb[[#This Row],[Оплачен]]="Да",Реестр_tb[[#This Row],[Факт. дата оплаты]]>Реестр_tb[[#This Row],[Плановая дата оплаты]]),"Просрочено",IF(AND(Реестр_tb[[#This Row],[Оплачен]]="Нет",Реестр_tb[[#This Row],[Факт. дата оплаты]]="",Реестр_tb[[#This Row],[Плановая дата оплаты]]<$AB$1),"Просрочено",IF(Реестр_tb[[#This Row],[Плановая дата оплаты]]=$AB$1,"Сегодня",IF(Реестр_tb[[#This Row],[Плановая дата оплаты]]<=$AB$1+7,"В течении недели","Через неделю и более"))))) -> Через неделю и более | T64: Договор № 1 от 26.11.2021 г. на сумму 672 303,52 руб.
A65: ООО "Южно-Курильский водоканал" | B65: Коммунальные услуги | C65: вода | D65: =IFERROR(VLOOKUP(Реестр_tb[[#This Row],[Подкатегория]],IF({1,0},Данные_tb[ЕД],Данные_tb[доп. код.]),2,0)," ") -> 23 | E65: =IFERROR(VLOOKUP(Реестр_tb[[#This Row],[ДОПЫ]],IF({1,0},Данные_tb[доп. код.],Данные_tb[Источник]),2,0)," ") -> 20 | F65: Нет | G65: июль | H65: Водоснабжение | I65: аукцион и т.п. | J65: 140660 | O65: =IF(Реестр_tb[[#This Row],[Срок оплаты (дней)]]="","",WORKDAY(Реестр_tb[[#This Row],[входящий (дата)]],Реестр_tb[[#This Row],[Срок оплаты (дней)]]+1,Выходные_tb[Выходные])) ->  | Q65: =IF(AND(Реестр_tb[[#This Row],[Оплачен]]="Да",Реестр_tb[[#This Row],[Факт. дата оплаты]]<=Реестр_tb[[#This Row],[Плановая дата оплаты]]),"Оплачено вовремя",IF(AND(Реестр_tb[[#This Row],[Оплачен]]="Да",Реестр_tb[[#This Row],[Факт. дата оплаты]]>Реестр_tb[[#This Row],[Плановая дата оплаты]]),"Просрочено",IF(AND(Реестр_tb[[#This Row],[Оплачен]]="Нет",Реестр_tb[[#This Row],[Факт. дата оплаты]]="",Реестр_tb[[#This Row],[Плановая дата оплаты]]<$AB$1),"Просрочено",IF(Реестр_tb[[#This Row],[Плановая дата оплаты]]=$AB$1,"Сегодня",IF(Реестр_tb[[#This Row],[Плановая дата оплаты]]<=$AB$1+7,"В течении недели","Через неделю и более"))))) -> Через неделю и более | T65: Договор № 1 от 26.11.2021 г. на сумму 672 303,52 руб.
A66: ООО "Южно-Курильский водоканал" | B66: Коммунальные услуги | C66: вода | D66: =IFERROR(VLOOKUP(Реестр_tb[[#This Row],[Подкатегория]],IF({1,0},Данные_tb[ЕД],Данные_tb[доп. код.]),2,0)," ") -> 23 | E66: =IFERROR(VLOOKUP(Реестр_tb[[#This Row],[ДОПЫ]],IF({1,0},Данные_tb[доп. код.],Данные_tb[Источник]),2,0)," ") -> 20 | F66: Нет | G66: август | H66: Водоснабжение | I66: аукцион и т.п. | J66: 141661 | O66: =IF(Реестр_tb[[#This Row],[Срок оплаты (дней)]]="","",WORKDAY(Реестр_tb[[#This Row],[входящий (дата)]],Реестр_tb[[#This Row],[Срок оплаты (дней)]]+1,Выходные_tb[Выходные])) ->  | Q66: =IF(AND(Реестр_tb[[#This Row],[Оплачен]]="Да",Реестр_tb[[#This Row],[Факт. дата оплаты]]<=Реестр_tb[[#This Row],[Плановая дата оплаты]]),"Оплачено вовремя",IF(AND(Реестр_tb[[#This Row],[Оплачен]]="Да",Реестр_tb[[#This Row],[Факт. дата оплаты]]>Реестр_tb[[#This Row],[Плановая дата оплаты]]),"Просрочено",IF(AND(Реестр_tb[[#This Row],[Оплачен]]="Нет",Реестр_tb[[#This Row],[Факт. дата оплаты]]="",Реестр_tb[[#This Row],[Плановая дата оплаты]]<$AB$1),"Просрочено",IF(Реестр_tb[[#This Row],[Плановая дата оплаты]]=$AB$1,"Сегодня",IF(Реестр_tb[[#This Row],[Плановая дата оплаты]]<=$AB$1+7,"В течении недели","Через неделю и более"))))) -> Через неделю и более | T66: Договор № 1 от 26.11.2021 г. на сумму 672 303,52 руб.
A67: ООО "Южно-Курильский водоканал" | B67: Коммунальные услуги | C67: вода | D67: =IFERROR(VLOOKUP(Реестр_tb[[#This Row],[Подкатегория]],IF({1,0},Данные_tb[ЕД],Данные_tb[доп. код.]),2,0)," ") -> 23 | E67: =IFERROR(VLOOKUP(Реестр_tb[[#This Row],[ДОПЫ]],IF({1,0},Данные_tb[доп. код.],Данные_tb[Источник]),2,0)," ") -> 20 | F67: Нет | G67: сентябрь | H67: Водоснабжение | I67: аукцион и т.п. | J67: 142662 | O67: =IF(Реестр_tb[[#This Row],[Срок оплаты (дней)]]="","",WORKDAY(Реестр_tb[[#This Row],[входящий (дата)]],Реестр_tb[[#This Row],[Срок оплаты (дней)]]+1,Выходные_tb[Выходные])) ->  | Q67: =IF(AND(Реестр_tb[[#This Row],[Оплачен]]="Да",Реестр_tb[[#This Row],[Факт. дата оплаты]]<=Реестр_tb[[#This Row],[Плановая дата оплаты]]),"Оплачено вовремя",IF(AND(Реестр_tb[[#This Row],[Оплачен]]="Да",Реестр_tb[[#This Row],[Факт. дата оплаты]]>Реестр_tb[[#This Row],[Плановая дата оплаты]]),"Просрочено",IF(AND(Реестр_tb[[#This Row],[Оплачен]]="Нет",Реестр_tb[[#This Row],[Факт. дата оплаты]]="",Реестр_tb[[#This Row],[Плановая дата оплаты]]<$AB$1),"Просрочено",IF(Реестр_tb[[#This Row],[Плановая дата оплаты]]=$AB$1,"Сегодня",IF(Реестр_tb[[#This Row],[Плановая дата оплаты]]<=$AB$1+7,"В течении недели","Через неделю и более"))))) -> Через неделю и более | T67: Договор № 1 от 26.11.2021 г. на сумму 672 303,52 руб.
A68: ООО "Южно-Курильский водоканал" | B68: Коммунальные услуги | C68: вода | D68: =IFERROR(VLOOKUP(Реестр_tb[[#This Row],[Подкатегория]],IF({1,0},Данные_tb[ЕД],Данные_tb[доп. код.]),2,0)," ") -> 23 | E68: =IFERROR(VLOOKUP(Реестр_tb[[#This Row],[ДОПЫ]],IF({1,0},Данные_tb[доп. код.],Данные_tb[Источник]),2,0)," ") -> 20 | F68: Нет | G68: октябрь | H68: Водоснабжение | I68: аукцион и т.п. | J68: 143663 | O68: =IF(Реестр_tb[[#This Row],[Срок оплаты (дней)]]="","",WORKDAY(Реестр_tb[[#This Row],[входящий (дата)]],Реестр_tb[[#This Row],[Срок оплаты (дней)]]+1,Выходные_tb[Выходные])) ->  | Q68: =IF(AND(Реестр_tb[[#This Row],[Оплачен]]="Да",Реестр_tb[[#This Row],[Факт. дата оплаты]]<=Реестр_tb[[#This Row],[Плановая дата оплаты]]),"Оплачено вовремя",IF(AND(Реестр_tb[[#This Row],[Оплачен]]="Да",Реестр_tb[[#This Row],[Факт. дата оплаты]]>Реестр_tb[[#This Row],[Плановая дата оплаты]]),"Просрочено",IF(AND(Реестр_tb[[#This Row],[Оплачен]]="Нет",Реестр_tb[[#This Row],[Факт. дата оплаты]]="",Реестр_tb[[#This Row],[Плановая дата оплаты]]<$AB$1),"Просрочено",IF(Реестр_tb[[#This Row],[Плановая дата оплаты]]=$AB$1,"Сегодня",IF(Реестр_tb[[#This Row],[Плановая дата оплаты]]<=$AB$1+7,"В течении недели","Через неделю и более"))))) -> Через неделю и более | T68: Договор № 1 от 26.11.2021 г. на сумму 672 303,52 руб.
A69: ООО "Южно-Курильский водоканал" | B69: Коммунальные услуги | C69: вода | D69: =IFERROR(VLOOKUP(Реестр_tb[[#This Row],[Подкатегория]],IF({1,0},Данные_tb[ЕД],Данные_tb[доп. код.]),2,0)," ") -> 23 | E69: =IFERROR(VLOOKUP(Реестр_tb[[#This Row],[ДОПЫ]],IF({1,0},Данные_tb[доп. код.],Данные_tb[Источник]),2,0)," ") -> 20 | F69: Нет | G69: ноябрь | H69: Водоснабжение | I69: аукцион и т.п. | J69: 144664 | O69: =IF(Реестр_tb[[#This Row],[Срок оплаты (дней)]]="","",WORKDAY(Реестр_tb[[#This Row],[входящий (дата)]],Реестр_tb[[#This Row],[Срок оплаты (дней)]]+1,Выходные_tb[Выходные])) ->  | Q69: =IF(AND(Реестр_tb[[#This Row],[Оплачен]]="Да",Реестр_tb[[#This Row],[Факт. дата оплаты]]<=Реестр_tb[[#This Row],[Плановая дата оплаты]]),"Оплачено вовремя",IF(AND(Реестр_tb[[#This Row],[Оплачен]]="Да",Реестр_tb[[#This Row],[Факт. дата оплаты]]>Реестр_tb[[#This Row],[Плановая дата оплаты]]),"Просрочено",IF(AND(Реестр_tb[[#This Row],[Оплачен]]="Нет",Реестр_tb[[#This Row],[Факт. дата оплаты]]="",Реестр_tb[[#This Row],[Плановая дата оплаты]]<$AB$1),"Просрочено",IF(Реестр_tb[[#This Row],[Плановая дата оплаты]]=$AB$1,"Сегодня",IF(Реестр_tb[[#This Row],[Плановая дата оплаты]]<=$AB$1+7,"В течении недели","Через неделю и более"))))) -> Через неделю и более | T69: Договор № 1 от 26.11.2021 г. на сумму 672 303,52 руб.
A70: ООО "Южно-Курильский водоканал" | B70: Коммунальные услуги | C70: вода | D70: =IFERROR(VLOOKUP(Реестр_tb[[#This Row],[Подкатегория]],IF({1,0},Данные_tb[ЕД],Данные_tb[доп. код.]),2,0)," ") -> 23 | E70: =IFERROR(VLOOKUP(Реестр_tb[[#This Row],[ДОПЫ]],IF({1,0},Данные_tb[доп. код.],Данные_tb[Источник]),2,0)," ") -> 20 | F70: Нет | G70: декабрь | H70: Водоснабжение | I70: аукцион и т.п. | J70: 145665 | O70: =IF(Реестр_tb[[#This Row],[Срок оплаты (дней)]]="","",WORKDAY(Реестр_tb[[#This Row],[входящий (дата)]],Реестр_tb[[#This Row],[Срок оплаты (дней)]]+1,Выходные_tb[Выходные])) ->  | Q70: =IF(AND(Реестр_tb[[#This Row],[Оплачен]]="Да",Реестр_tb[[#This Row],[Факт. дата оплаты]]<=Реестр_tb[[#This Row],[Плановая дата оплаты]]),"Оплачено вовремя",IF(AND(Реестр_tb[[#This Row],[Оплачен]]="Да",Реестр_tb[[#This Row],[Факт. дата оплаты]]>Реестр_tb[[#This Row],[Плановая дата оплаты]]),"Просрочено",IF(AND(Реестр_tb[[#This Row],[Оплачен]]="Нет",Реестр_tb[[#This Row],[Факт. дата оплаты]]="",Реестр_tb[[#This Row],[Плановая дата оплаты]]<$AB$1),"Просрочено",IF(Реестр_tb[[#This Row],[Плановая дата оплаты]]=$AB$1,"Сегодня",IF(Реестр_tb[[#This Row],[Плановая дата оплаты]]<=$AB$1+7,"В течении недели","Через неделю и более"))))) -> Через неделю и более | T70: Договор № 1 от 26.11.2021 г. на сумму 672 303,52 руб.
A71: ООО "Южно-Курильский водоканал" | B71: Коммунальные услуги | C71: теплоснабжение | D71: =IFERROR(VLOOKUP(Реестр_tb[[#This Row],[Подкатегория]],IF({1,0},Данные_tb[ЕД],Данные_tb[доп. код.]),2,0)," ") -> 23 | E71: =IFERROR(VLOOKUP(Реестр_tb[[#This Row],[ДОПЫ]],IF({1,0},Данные_tb[доп. код.],Данные_tb[Источник]),2,0)," ") -> 20 | F71: Нет | G71: январь | H71: теплоснабжение | I71: аукцион и т.п. | J71: 146666 | O71: =IF(Реестр_tb[[#This Row],[Срок оплаты (дней)]]="","",WORKDAY(Реестр_tb[[#This Row],[входящий (дата)]],Реестр_tb[[#This Row],[Срок оплаты (дней)]]+1,Выходные_tb[Выходные])) ->  | Q71: =IF(AND(Реестр_tb[[#This Row],[Оплачен]]="Да",Реестр_tb[[#This Row],[Факт. дата оплаты]]<=Реестр_tb[[#This Row],[Плановая дата оплаты]]),"Оплачено вовремя",IF(AND(Реестр_tb[[#This Row],[Оплачен]]="Да",Реестр_tb[[#This Row],[Факт. дата оплаты]]>Реестр_tb[[#This Row],[Плановая дата оплаты]]),"Просрочено",IF(AND(Реестр_tb[[#This Row],[Оплачен]]="Нет",Реестр_tb[[#This Row],[Факт. дата оплаты]]="",Реестр_tb[[#This Row],[Плановая дата оплаты]]<$AB$1),"Просрочено",IF(Реестр_tb[[#This Row],[Плановая дата оплаты]]=$AB$1,"Сегодня",IF(Реестр_tb[[#This Row],[Плановая дата оплаты]]<=$AB$1+7,"В течении недели","Через неделю и более"))))) -> Через неделю и более | T71: Договор № 7 от 22.12.2021 г. на сумму 4 588 650,74 руб.
A72: ООО "Южно-Курильский водоканал" | B72: Коммунальные услуги | C72: теплоснабжение | D72: =IFERROR(VLOOKUP(Реестр_tb[[#This Row],[Подкатегория]],IF({1,0},Данные_tb[ЕД],Данные_tb[доп. код.]),2,0)," ") -> 23 | E72: =IFERROR(VLOOKUP(Реестр_tb[[#This Row],[ДОПЫ]],IF({1,0},Данные_tb[доп. код.],Данные_tb[Источник]),2,0)," ") -> 20 | F72: Нет | G72: февраль | H72: теплоснабжение | I72: аукцион и т.п. | J72: 147667 | O72: =IF(Реестр_tb[[#This Row],[Срок оплаты (дней)]]="","",WORKDAY(Реестр_tb[[#This Row],[входящий (дата)]],Реестр_tb[[#This Row],[Срок оплаты (дней)]]+1,Выходные_tb[Выходные])) ->  | Q72: =IF(AND(Реестр_tb[[#This Row],[Оплачен]]="Да",Реестр_tb[[#This Row],[Факт. дата оплаты]]<=Реестр_tb[[#This Row],[Плановая дата оплаты]]),"Оплачено вовремя",IF(AND(Реестр_tb[[#This Row],[Оплачен]]="Да",Реестр_tb[[#This Row],[Факт. дата оплаты]]>Реестр_tb[[#This Row],[Плановая дата оплаты]]),"Просрочено",IF(AND(Реестр_tb[[#This Row],[Оплачен]]="Нет",Реестр_tb[[#This Row],[Факт. дата оплаты]]="",Реестр_tb[[#This Row],[Плановая дата оплаты]]<$AB$1),"Просрочено",IF(Реестр_tb[[#This Row],[Плановая дата оплаты]]=$AB$1,"Сегодня",IF(Реестр_tb[[#This Row],[Плановая дата оплаты]]<=$AB$1+7,"В течении недели","Через неделю и более"))))) -> Через неделю и более | T72: Договор № 7 от 22.12.2021 г. на сумму 4 588 650,74 руб.
A73: ООО "Южно-Курильский водоканал" | B73: Коммунальные услуги | C73: теплоснабжение | D73: =IFERROR(VLOOKUP(Реестр_tb[[#This Row],[Подкатегория]],IF({1,0},Данные_tb[ЕД],Данные_tb[доп. код.]),2,0)," ") -> 23 | E73: =IFERROR(VLOOKUP(Реестр_tb[[#This Row],[ДОПЫ]],IF({1,0},Данные_tb[доп. код.],Данные_tb[Источник]),2,0)," ") -> 20 | F73: Нет | G73: март | H73: теплоснабжение | I73: аукцион и т.п. | J73: 148668 | O73: =IF(Реестр_tb[[#This Row],[Срок оплаты (дней)]]="","",WORKDAY(Реестр_tb[[#This Row],[входящий (дата)]],Реестр_tb[[#This Row],[Срок оплаты (дней)]]+1,Выходные_tb[Выходные])) ->  | Q73: =IF(AND(Реестр_tb[[#This Row],[Оплачен]]="Да",Реестр_tb[[#This Row],[Факт. дата оплаты]]<=Реестр_tb[[#This Row],[Плановая дата оплаты]]),"Оплачено вовремя",IF(AND(Реестр_tb[[#This Row],[Оплачен]]="Да",Реестр_tb[[#This Row],[Факт. дата оплаты]]>Реестр_tb[[#This Row],[Плановая дата оплаты]]),"Просрочено",IF(AND(Реестр_tb[[#This Row],[Оплачен]]="Нет",Реестр_tb[[#This Row],[Факт. дата оплаты]]="",Реестр_tb[[#This Row],[Плановая дата оплаты]]<$AB$1),"Просрочено",IF(Реестр_tb[[#This Row],[Плановая дата оплаты]]=$AB$1,"Сегодня",IF(Реестр_tb[[#This Row],[Плановая дата оплаты]]<=$AB$1+7,"В течении недели","Через неделю и более"))))) -> Через неделю и более | T73: Договор № 7 от 22.12.2021 г. на сумму 4 588 650,74 руб.
A74: ООО "Южно-Курильский водоканал" | B74: Коммунальные услуги | C74: теплоснабжение | D74: =IFERROR(VLOOKUP(Реестр_tb[[#This Row],[Подкатегория]],IF({1,0},Данные_tb[ЕД],Данные_tb[доп. код.]),2,0)," ") -> 23 | E74: =IFERROR(VLOOKUP(Реестр_tb[[#This Row],[ДОПЫ]],IF({1,0},Данные_tb[доп. код.],Данные_tb[Источник]),2,0)," ") -> 20 | F74: Нет | G74: апрель | H74: теплоснабжение | I74: аукцион и т.п. | J74: 149669 | O74: =IF(Реестр_tb[[#This Row],[Срок оплаты (дней)]]="","",WORKDAY(Реестр_tb[[#This Row],[входящий (дата)]],Реестр_tb[[#This Row],[Срок оплаты (дней)]]+1,Выходные_tb[Выходные])) ->  | Q74: =IF(AND(Реестр_tb[[#This Row],[Оплачен]]="Да",Реестр_tb[[#This Row],[Факт. дата оплаты]]<=Реестр_tb[[#This Row],[Плановая дата оплаты]]),"Оплачено вовремя",IF(AND(Реестр_tb[[#This Row],[Оплачен]]="Да",Реестр_tb[[#This Row],[Факт. дата оплаты]]>Реестр_tb[[#This Row],[Плановая дата оплаты]]),"Просрочено",IF(AND(Реестр_tb[[#This Row],[Оплачен]]="Нет",Реестр_tb[[#This Row],[Факт. дата оплаты]]="",Реестр_tb[[#This Row],[Плановая дата оплаты]]<$AB$1),"Просрочено",IF(Реестр_tb[[#This Row],[Плановая дата оплаты]]=$AB$1,"Сегодня",IF(Реестр_tb[[#This Row],[Плановая дата оплаты]]<=$AB$1+7,"В течении недели","Через неделю и более"))))) -> Через неделю и более | T74: Договор № 7 от 22.12.2021 г. на сумму 4 588 650,74 руб.
A75: ООО "Южно-Курильский водоканал" | B75: Коммунальные услуги | C75: теплоснабжение | D75: =IFERROR(VLOOKUP(Реестр_tb[[#This Row],[Подкатегория]],IF({1,0},Данные_tb[ЕД],Данные_tb[доп. код.]),2,0)," ") -> 23 | E75: =IFERROR(VLOOKUP(Реестр_tb[[#This Row],[ДОПЫ]],IF({1,0},Данные_tb[доп. код.],Данные_tb[Источник]),2,0)," ") -> 20 | F75: Нет | G75: май | H75: теплоснабжение | I75: аукцион и т.п. | J75: 150670 | O75: =IF(Реестр_tb[[#This Row],[Срок оплаты (дней)]]="","",WORKDAY(Реестр_tb[[#This Row],[входящий (дата)]],Реестр_tb[[#This Row],[Срок оплаты (дней)]]+1,Выходные_tb[Выходные])) ->  | Q75: =IF(AND(Реестр_tb[[#This Row],[Оплачен]]="Да",Реестр_tb[[#This Row],[Факт. дата оплаты]]<=Реестр_tb[[#This Row],[Плановая дата оплаты]]),"Оплачено вовремя",IF(AND(Реестр_tb[[#This Row],[Оплачен]]="Да",Реестр_tb[[#This Row],[Факт. дата оплаты]]>Реестр_tb[[#This Row],[Плановая дата оплаты]]),"Просрочено",IF(AND(Реестр_tb[[#This Row],[Оплачен]]="Нет",Реестр_tb[[#This Row],[Факт. дата оплаты]]="",Реестр_tb[[#This Row],[Плановая дата оплаты]]<$AB$1),"Просрочено",IF(Реестр_tb[[#This Row],[Плановая дата оплаты]]=$AB$1,"Сегодня",IF(Реестр_tb[[#This Row],[Плановая дата оплаты]]<=$AB$1+7,"В течении недели","Через неделю и более"))))) -> Через неделю и более | T75: Договор № 7 от 22.12.2021 г. на сумму 4 588 650,74 руб.
A76: ООО "Южно-Курильский водоканал" | B76: Коммунальные услуги | C76: теплоснабжение | D76: =IFERROR(VLOOKUP(Реестр_tb[[#This Row],[Подкатегория]],IF({1,0},Данные_tb[ЕД],Данные_tb[доп. код.]),2,0)," ") -> 23 | E76: =IFERROR(VLOOKUP(Реестр_tb[[#This Row],[ДОПЫ]],IF({1,0},Данные_tb[доп. код.],Данные_tb[Источник]),2,0)," ") -> 20 | F76: Нет | G76: июнь | H76: теплоснабжение | I76: аукцион и т.п. | J76: 151671 | O76: =IF(Реестр_tb[[#This Row],[Срок оплаты (дней)]]="","",WORKDAY(Реестр_tb[[#This Row],[входящий (дата)]],Реестр_tb[[#This Row],[Срок оплаты (дней)]]+1,Выходные_tb[Выходные])) ->  | Q76: =IF(AND(Реестр_tb[[#This Row],[Оплачен]]="Да",Реестр_tb[[#This Row],[Факт. дата оплаты]]<=Реестр_tb[[#This Row],[Плановая дата оплаты]]),"Оплачено вовремя",IF(AND(Реестр_tb[[#This Row],[Оплачен]]="Да",Реестр_tb[[#This Row],[Факт. дата оплаты]]>Реестр_tb[[#This Row],[Плановая дата оплаты]]),"Просрочено",IF(AND(Реестр_tb[[#This Row],[Оплачен]]="Нет",Реестр_tb[[#This Row],[Факт. дата оплаты]]="",Реестр_tb[[#This Row],[Плановая дата оплаты]]<$AB$1),"Просрочено",IF(Реестр_tb[[#This Row],[Плановая дата оплаты]]=$AB$1,"Сегодня",IF(Реестр_tb[[#This Row],[Плановая дата оплаты]]<=$AB$1+7,"В течении недели","Через неделю и более"))))) -> Через неделю и более | T76: Договор № 7 от 22.12.2021 г. на сумму 4 588 650,74 руб.
A77: ООО "Южно-Курильский водоканал" | B77: Коммунальные услуги | C77: теплоснабжение | D77: =IFERROR(VLOOKUP(Реестр_tb[[#This Row],[Подкатегория]],IF({1,0},Данные_tb[ЕД],Данные_tb[доп. код.]),2,0)," ") -> 23 | E77: =IFERROR(VLOOKUP(Реестр_tb[[#This Row],[ДОПЫ]],IF({1,0},Данные_tb[доп. код.],Данные_tb[Источник]),2,0)," ") -> 20 | F77: Нет | G77: июль | H77: теплоснабжение | I77: аукцион и т.п. | J77: 152672 | O77: =IF(Реестр_tb[[#This Row],[Срок оплаты (дней)]]="","",WORKDAY(Реестр_tb[[#This Row],[входящий (дата)]],Реестр_tb[[#This Row],[Срок оплаты (дней)]]+1,Выходные_tb[Выходные])) ->  | Q77: =IF(AND(Реестр_tb[[#This Row],[Оплачен]]="Да",Реестр_tb[[#This Row],[Факт. дата оплаты]]<=Реестр_tb[[#This Row],[Плановая дата оплаты]]),"Оплачено вовремя",IF(AND(Реестр_tb[[#This Row],[Оплачен]]="Да",Реестр_tb[[#This Row],[Факт. дата оплаты]]>Реестр_tb[[#This Row],[Плановая дата оплаты]]),"Просрочено",IF(AND(Реестр_tb[[#This Row],[Оплачен]]="Нет",Реестр_tb[[#This Row],[Факт. дата оплаты]]="",Реестр_tb[[#This Row],[Плановая дата оплаты]]<$AB$1),"Просрочено",IF(Реестр_tb[[#This Row],[Плановая дата оплаты]]=$AB$1,"Сегодня",IF(Реестр_tb[[#This Row],[Плановая дата оплаты]]<=$AB$1+7,"В течении недели","Через неделю и более"))))) -> Через неделю и более | T77: Договор № 7 от 22.12.2021 г. на сумму 4 588 650,74 руб.
A78: ООО "Южно-Курильский водоканал" | B78: Коммунальные услуги | C78: теплоснабжение | D78: =IFERROR(VLOOKUP(Реестр_tb[[#This Row],[Подкатегория]],IF({1,0},Данные_tb[ЕД],Данные_tb[доп. код.]),2,0)," ") -> 23 | E78: =IFERROR(VLOOKUP(Реестр_tb[[#This Row],[ДОПЫ]],IF({1,0},Данные_tb[доп. код.],Данные_tb[Источник]),2,0)," ") -> 20 | F78: Нет | G78: август | H78: теплоснабжение | I78: аукцион и т.п. | J78: 153673 | O78: =IF(Реестр_tb[[#This Row],[Срок оплаты (дней)]]="","",WORKDAY(Реестр_tb[[#This Row],[входящий (дата)]],Реестр_tb[[#This Row],[Срок оплаты (дней)]]+1,Выходные_tb[Выходные])) ->  | Q78: =IF(AND(Реестр_tb[[#This Row],[Оплачен]]="Да",Реестр_tb[[#This Row],[Факт. дата оплаты]]<=Реестр_tb[[#This Row],[Плановая дата оплаты]]),"Оплачено вовремя",IF(AND(Реестр_tb[[#This Row],[Оплачен]]="Да",Реестр_tb[[#This Row],[Факт. дата оплаты]]>Реестр_tb[[#This Row],[Плановая дата оплаты]]),"Просрочено",IF(AND(Реестр_tb[[#This Row],[Оплачен]]="Нет",Реестр_tb[[#This Row],[Факт. дата оплаты]]="",Реестр_tb[[#This Row],[Плановая дата оплаты]]<$AB$1),"Просрочено",IF(Реестр_tb[[#This Row],[Плановая дата оплаты]]=$AB$1,"Сегодня",IF(Реестр_tb[[#This Row],[Плановая дата оплаты]]<=$AB$1+7,"В течении недели","Через неделю и более"))))) -> Через неделю и более | T78: Договор № 7 от 22.12.2021 г. на сумму 4 588 650,74 руб.
A79: ООО "Южно-Курильский водоканал" | B79: Коммунальные услуги | C79: теплоснабжение | D79: =IFERROR(VLOOKUP(Реестр_tb[[#This Row],[Подкатегория]],IF({1,0},Данные_tb[ЕД],Данные_tb[доп. код.]),2,0)," ") -> 23 | E79: =IFERROR(VLOOKUP(Реестр_tb[[#This Row],[ДОПЫ]],IF({1,0},Данные_tb[доп. код.],Данные_tb[Источник]),2,0)," ") -> 20 | F79: Нет | G79: сентябрь | H79: теплоснабжение | I79: аукцион и т.п. | J79: 154674 | O79: =IF(Реестр_tb[[#This Row],[Срок оплаты (дней)]]="","",WORKDAY(Реестр_tb[[#This Row],[входящий (дата)]],Реестр_tb[[#This Row],[Срок оплаты (дней)]]+1,Выходные_tb[Выходные])) ->  | Q79: =IF(AND(Реестр_tb[[#This Row],[Оплачен]]="Да",Реестр_tb[[#This Row],[Факт. дата оплаты]]<=Реестр_tb[[#This Row],[Плановая дата оплаты]]),"Оплачено вовремя",IF(AND(Реестр_tb[[#This Row],[Оплачен]]="Да",Реестр_tb[[#This Row],[Факт. дата оплаты]]>Реестр_tb[[#This Row],[Плановая дата оплаты]]),"Просрочено",IF(AND(Реестр_tb[[#This Row],[Оплачен]]="Нет",Реестр_tb[[#This Row],[Факт. дата оплаты]]="",Реестр_tb[[#This Row],[Плановая дата оплаты]]<$AB$1),"Просрочено",IF(Реестр_tb[[#This Row],[Плановая дата оплаты]]=$AB$1,"Сегодня",IF(Реестр_tb[[#This Row],[Плановая дата оплаты]]<=$AB$1+7,"В течении недели","Через неделю и более"))))) -> Через неделю и более | T79: Договор № 7 от 22.12.2021 г. на сумму 4 588 650,74 руб.
A80: ООО "Южно-Курильский водоканал" | B80: Коммунальные услуги | C80: теплоснабжение | D80: =IFERROR(VLOOKUP(Реестр_tb[[#This Row],[Подкатегория]],IF({1,0},Данные_tb[ЕД],Данные_tb[доп. код.]),2,0)," ") -> 23 | E80: =IFERROR(VLOOKUP(Реестр_tb[[#This Row],[ДОПЫ]],IF({1,0},Данные_tb[доп. код.],Данные_tb[Источник]),2,0)," ") -> 20 | F80: Нет | G80: октябрь | H80: теплоснабжение | I80: аукцион и т.п. | J80: 155675 | O80: =IF(Реестр_tb[[#This Row],[Срок оплаты (дней)]]="","",WORKDAY(Реестр_tb[[#This Row],[входящий (дата)]],Реестр_tb[[#This Row],[Срок оплаты (дней)]]+1,Выходные_tb[Выходные])) ->  | Q80: =IF(AND(Реестр_tb[[#This Row],[Оплачен]]="Да",Реестр_tb[[#This Row],[Факт. дата оплаты]]<=Реестр_tb[[#This Row],[Плановая дата оплаты]]),"Оплачено вовремя",IF(AND(Реестр_tb[[#This Row],[Оплачен]]="Да",Реестр_tb[[#This Row],[Факт. дата оплаты]]>Реестр_tb[[#This Row],[Плановая дата оплаты]]),"Просрочено",IF(AND(Реестр_tb[[#This Row],[Оплачен]]="Нет",Реестр_tb[[#This Row],[Факт. дата оплаты]]="",Реестр_tb[[#This Row],[Плановая дата оплаты]]<$AB$1),"Просрочено",IF(Реестр_tb[[#This Row],[Плановая дата оплаты]]=$AB$1,"Сегодня",IF(Реестр_tb[[#This Row],[Плановая дата оплаты]]<=$AB$1+7,"В течении недели","Через неделю и более"))))) -> Через неделю и более | T80: Договор № 7 от 22.12.2021 г. на сумму 4 588 650,74 руб.
A81: ООО "Южно-Курильский водоканал" | B81: Коммунальные услуги | C81: теплоснабжение | D81: =IFERROR(VLOOKUP(Реестр_tb[[#This Row],[Подкатегория]],IF({1,0},Данные_tb[ЕД],Данные_tb[доп. код.]),2,0)," ") -> 23 | E81: =IFERROR(VLOOKUP(Реестр_tb[[#This Row],[ДОПЫ]],IF({1,0},Данные_tb[доп. код.],Данные_tb[Источник]),2,0)," ") -> 20 | F81: Нет | G81: ноябрь | H81: теплоснабжение | I81: аукцион и т.п. | J81: 156676 | O81: =IF(Реестр_tb[[#This Row],[Срок оплаты (дней)]]="","",WORKDAY(Реестр_tb[[#This Row],[входящий (дата)]],Реестр_tb[[#This Row],[Срок оплаты (дней)]]+1,Выходные_tb[Выходные])) ->  | Q81: =IF(AND(Реестр_tb[[#This Row],[Оплачен]]="Да",Реестр_tb[[#This Row],[Факт. дата оплаты]]<=Реестр_tb[[#This Row],[Плановая дата оплаты]]),"Оплачено вовремя",IF(AND(Реестр_tb[[#This Row],[Оплачен]]="Да",Реестр_tb[[#This Row],[Факт. дата оплаты]]>Реестр_tb[[#This Row],[Плановая дата оплаты]]),"Просрочено",IF(AND(Реестр_tb[[#This Row],[Оплачен]]="Нет",Реестр_tb[[#This Row],[Факт. дата оплаты]]="",Реестр_tb[[#This Row],[Плановая дата оплаты]]<$AB$1),"Просрочено",IF(Реестр_tb[[#This Row],[Плановая дата оплаты]]=$AB$1,"Сегодня",IF(Реестр_tb[[#This Row],[Плановая дата оплаты]]<=$AB$1+7,"В течении недели","Через неделю и более"))))) -> Через неделю и более | T81: Договор № 7 от 22.12.2021 г. на сумму 4 588 650,74 руб.
A82: ООО "Южно-Курильский водоканал" | B82: Коммунальные услуги | C82: теплоснабжение | D82: =IFERROR(VLOOKUP(Реестр_tb[[#This Row],[Подкатегория]],IF({1,0},Данные_tb[ЕД],Данные_tb[доп. код.]),2,0)," ") -> 23 | E82: =IFERROR(VLOOKUP(Реестр_tb[[#This Row],[ДОПЫ]],IF({1,0},Данные_tb[доп. код.],Данные_tb[Источник]),2,0)," ") -> 20 | F82: Нет | G82: декабрь | H82: теплоснабжение | I82: аукцион и т.п. | J82: 157677 | O82: =IF(Реестр_tb[[#This Row],[Срок оплаты (дней)]]="","",WORKDAY(Реестр_tb[[#This Row],[входящий (дата)]],Реестр_tb[[#This Row],[Срок оплаты (дней)]]+1,Выходные_tb[Выходные])) ->  | Q82: =IF(AND(Реестр_tb[[#This Row],[Оплачен]]="Да",Реестр_tb[[#This Row],[Факт. дата оплаты]]<=Реестр_tb[[#This Row],[Плановая дата оплаты]]),"Оплачено вовремя",IF(AND(Реестр_tb[[#This Row],[Оплачен]]="Да",Реестр_tb[[#This Row],[Факт. дата оплаты]]>Реестр_tb[[#This Row],[Плановая дата оплаты]]),"Просрочено",IF(AND(Реестр_tb[[#This Row],[Оплачен]]="Нет",Реестр_tb[[#This Row],[Факт. дата оплаты]]="",Реестр_tb[[#This Row],[Плановая дата оплаты]]<$AB$1),"Просрочено",IF(Реестр_tb[[#This Row],[Плановая дата оплаты]]=$AB$1,"Сегодня",IF(Реестр_tb[[#This Row],[Плановая дата оплаты]]<=$AB$1+7,"В течении недели","Через неделю и более"))))) -> Через неделю и более | T82: Договор № 7 от 22.12.2021 г. на сумму 4 588 650,74 руб.
A83: АО "Мобильные газотурбинные электрические станции" | B83: Коммунальные услуги | C83: электроэнергия | D83: =IFERROR(VLOOKUP(Реестр_tb[[#This Row],[Подкатегория]],IF({1,0},Данные_tb[ЕД],Данные_tb[доп. код.]),2,0)," ") -> 23 | E83: =IFERROR(VLOOKUP(Реестр_tb[[#This Row],[ДОПЫ]],IF({1,0},Данные_tb[доп. код.],Данные_tb[Источник]),2,0)," ") -> 20 | F83: Нет | G83: январь | H83: электроэнергия | I83: аукцион и т.п. | J83: 158678 | O83: =IF(Реестр_tb[[#This Row],[Срок оплаты (дней)]]="","",WORKDAY(Реестр_tb[[#This Row],[входящий (дата)]],Реестр_tb[[#This Row],[Срок оплаты (дней)]]+1,Выходные_tb[Выходные])) ->  | Q83: =IF(AND(Реестр_tb[[#This Row],[Оплачен]]="Да",Реестр_tb[[#This Row],[Факт. дата оплаты]]<=Реестр_tb[[#This Row],[Плановая дата оплаты]]),"Оплачено вовремя",IF(AND(Реестр_tb[[#This Row],[Оплачен]]="Да",Реестр_tb[[#This Row],[Факт. дата оплаты]]>Реестр_tb[[#This Row],[Плановая дата оплаты]]),"Просрочено",IF(AND(Реестр_tb[[#This Row],[Оплачен]]="Нет",Реестр_tb[[#This Row],[Факт. дата оплаты]]="",Реестр_tb[[#This Row],[Плановая дата оплаты]]<$AB$1),"Просрочено",IF(Реестр_tb[[#This Row],[Плановая дата оплаты]]=$AB$1,"Сегодня",IF(Реестр_tb[[#This Row],[Плановая дата оплаты]]<=$AB$1+7,"В течении недели","Через неделю и более"))))) -> Через неделю и более | T83: Контракт № 008-22 от 30.11.2021 г. на сумму 1 400 222,40 руб.
A84: АО "Мобильные газотурбинные электрические станции" | B84: Коммунальные услуги | C84: электроэнергия | D84: =IFERROR(VLOOKUP(Реестр_tb[[#This Row],[Подкатегория]],IF({1,0},Данные_tb[ЕД],Данные_tb[доп. код.]),2,0)," ") -> 23 | E84: =IFERROR(VLOOKUP(Реестр_tb[[#This Row],[ДОПЫ]],IF({1,0},Данные_tb[доп. код.],Данные_tb[Источник]),2,0)," ") -> 20 | F84: Нет | G84: февраль | H84: электроэнергия | I84: аукцион и т.п. | J84: 159679 | O84: =IF(Реестр_tb[[#This Row],[Срок оплаты (дней)]]="","",WORKDAY(Реестр_tb[[#This Row],[входящий (дата)]],Реестр_tb[[#This Row],[Срок оплаты (дней)]]+1,Выходные_tb[Выходные])) ->  | Q84: =IF(AND(Реестр_tb[[#This Row],[Оплачен]]="Да",Реестр_tb[[#This Row],[Факт. дата оплаты]]<=Реестр_tb[[#This Row],[Плановая дата оплаты]]),"Оплачено вовремя",IF(AND(Реестр_tb[[#This Row],[Оплачен]]="Да",Реестр_tb[[#This Row],[Факт. дата оплаты]]>Реестр_tb[[#This Row],[Плановая дата оплаты]]),"Просрочено",IF(AND(Реестр_tb[[#This Row],[Оплачен]]="Нет",Реестр_tb[[#This Row],[Факт. дата оплаты]]="",Реестр_tb[[#This Row],[Плановая дата оплаты]]<$AB$1),"Просрочено",IF(Реестр_tb[[#This Row],[Плановая дата оплаты]]=$AB$1,"Сегодня",IF(Реестр_tb[[#This Row],[Плановая дата оплаты]]<=$AB$1+7,"В течении недели","Через неделю и более"))))) -> Через неделю и более | T84: Контракт № 008-22 от 30.11.2021 г. на сумму 1 400 222,40 руб.
A85: АО "Мобильные газотурбинные электрические станции" | B85: Коммунальные услуги | C85: электроэнергия | D85: =IFERROR(VLOOKUP(Реестр_tb[[#This Row],[Подкатегория]],IF({1,0},Данные_tb[ЕД],Данные_tb[доп. код.]),2,0)," ") -> 23 | E85: =IFERROR(VLOOKUP(Реестр_tb[[#This Row],[ДОПЫ]],IF({1,0},Данные_tb[доп. код.],Данные_tb[Источник]),2,0)," ") -> 20 | F85: Нет | G85: март | H85: электроэнергия | I85: аукцион и т.п. | J85: 160680 | O85: =IF(Реестр_tb[[#This Row],[Срок оплаты (дней)]]="","",WORKDAY(Реестр_tb[[#This Row],[входящий (дата)]],Реестр_tb[[#This Row],[Срок оплаты (дней)]]+1,Выходные_tb[Выходные])) ->  | Q85: =IF(AND(Реестр_tb[[#This Row],[Оплачен]]="Да",Реестр_tb[[#This Row],[Факт. дата оплаты]]<=Реестр_tb[[#This Row],[Плановая дата оплаты]]),"Оплачено вовремя",IF(AND(Реестр_tb[[#This Row],[Оплачен]]="Да",Реестр_tb[[#This Row],[Факт. дата оплаты]]>Реестр_tb[[#This Row],[Плановая дата оплаты]]),"Просрочено",IF(AND(Реестр_tb[[#This Row],[Оплачен]]="Нет",Реестр_tb[[#This Row],[Факт. дата оплаты]]="",Реестр_tb[[#This Row],[Плановая дата оплаты]]<$AB$1),"Просрочено",IF(Реестр_tb[[#This Row],[Плановая дата оплаты]]=$AB$1,"Сегодня",IF(Реестр_tb[[#This Row],[Плановая дата оплаты]]<=$AB$1+7,"В течении недели","Через неделю и более"))))) -> Через неделю и более | T85: Контракт № 008-22 от 30.11.2021 г. на сумму 1 400 222,40 руб.
A86: АО "Мобильные газотурбинные электрические станции" | B86: Коммунальные услуги | C86: электроэнергия | D86: =IFERROR(VLOOKUP(Реестр_tb[[#This Row],[Подкатегория]],IF({1,0},Данные_tb[ЕД],Данные_tb[доп. код.]),2,0)," ") -> 23 | E86: =IFERROR(VLOOKUP(Реестр_tb[[#This Row],[ДОПЫ]],IF({1,0},Данные_tb[доп. код.],Данные_tb[Источник]),2,0)," ") -> 20 | F86: Нет | G86: апрель | H86: электроэнергия | I86: аукцион и т.п. | J86: 161681 | O86: =IF(Реестр_tb[[#This Row],[Срок оплаты (дней)]]="","",WORKDAY(Реестр_tb[[#This Row],[входящий (дата)]],Реестр_tb[[#This Row],[Срок оплаты (дней)]]+1,Выходные_tb[Выходные])) ->  | Q86: =IF(AND(Реестр_tb[[#This Row],[Оплачен]]="Да",Реестр_tb[[#This Row],[Факт. дата оплаты]]<=Реестр_tb[[#This Row],[Плановая дата оплаты]]),"Оплачено вовремя",IF(AND(Реестр_tb[[#This Row],[Оплачен]]="Да",Реестр_tb[[#This Row],[Факт. дата оплаты]]>Реестр_tb[[#This Row],[Плановая дата оплаты]]),"Просрочено",IF(AND(Реестр_tb[[#This Row],[Оплачен]]="Нет",Реестр_tb[[#This Row],[Факт. дата оплаты]]="",Реестр_tb[[#This Row],[Плановая дата оплаты]]<$AB$1),"Просрочено",IF(Реестр_tb[[#This Row],[Плановая дата оплаты]]=$AB$1,"Сегодня",IF(Реестр_tb[[#This Row],[Плановая дата оплаты]]<=$AB$1+7,"В течении недели","Через неделю и более"))))) -> Через неделю и более | T86: Контракт № 008-22 от 30.11.2021 г. на сумму 1 400 222,40 руб.
A87: АО "Мобильные газотурбинные электрические станции" | B87: Коммунальные услуги | C87: электроэнергия | D87: =IFERROR(VLOOKUP(Реестр_tb[[#This Row],[Подкатегория]],IF({1,0},Данные_tb[ЕД],Данные_tb[доп. код.]),2,0)," ") -> 23 | E87: =IFERROR(VLOOKUP(Реестр_tb[[#This Row],[ДОПЫ]],IF({1,0},Данные_tb[доп. код.],Данные_tb[Источник]),2,0)," ") -> 20 | F87: Нет | G87: май | H87: электроэнергия | I87: аукцион и т.п. | J87: 162682 | O87: =IF(Реестр_tb[[#This Row],[Срок оплаты (дней)]]="","",WORKDAY(Реестр_tb[[#This Row],[входящий (дата)]],Реестр_tb[[#This Row],[Срок оплаты (дней)]]+1,Выходные_tb[Выходные])) ->  | Q87: =IF(AND(Реестр_tb[[#This Row],[Оплачен]]="Да",Реестр_tb[[#This Row],[Факт. дата оплаты]]<=Реестр_tb[[#This Row],[Плановая дата оплаты]]),"Оплачено вовремя",IF(AND(Реестр_tb[[#This Row],[Оплачен]]="Да",Реестр_tb[[#This Row],[Факт. дата оплаты]]>Реестр_tb[[#This Row],[Плановая дата оплаты]]),"Просрочено",IF(AND(Реестр_tb[[#This Row],[Оплачен]]="Нет",Реестр_tb[[#This Row],[Факт. дата оплаты]]="",Реестр_tb[[#This Row],[Плановая дата оплаты]]<$AB$1),"Просрочено",IF(Реестр_tb[[#This Row],[Плановая дата оплаты]]=$AB$1,"Сегодня",IF(Реестр_tb[[#This Row],[Плановая дата оплаты]]<=$AB$1+7,"В течении недели","Через неделю и более"))))) -> Через неделю и более | T87: Контракт № 008-22 от 30.11.2021 г. на сумму 1 400 222,40 руб.
A88: АО "Мобильные газотурбинные электрические станции" | B88: Коммунальные услуги | C88: электроэнергия | D88: =IFERROR(VLOOKUP(Реестр_tb[[#This Row],[Подкатегория]],IF({1,0},Данные_tb[ЕД],Данные_tb[доп. код.]),2,0)," ") -> 23 | E88: =IFERROR(VLOOKUP(Реестр_tb[[#This Row],[ДОПЫ]],IF({1,0},Данные_tb[доп. код.],Данные_tb[Источник]),2,0)," ") -> 20 | F88: Нет | G88: июнь | H88: электроэнергия | I88: аукцион и т.п. | J88: 163683 | O88: =IF(Реестр_tb[[#This Row],[Срок оплаты (дней)]]="","",WORKDAY(Реестр_tb[[#This Row],[входящий (дата)]],Реестр_tb[[#This Row],[Срок оплаты (дней)]]+1,Выходные_tb[Выходные])) ->  | Q88: =IF(AND(Реестр_tb[[#This Row],[Оплачен]]="Да",Реестр_tb[[#This Row],[Факт. дата оплаты]]<=Реестр_tb[[#This Row],[Плановая дата оплаты]]),"Оплачено вовремя",IF(AND(Реестр_tb[[#This Row],[Оплачен]]="Да",Реестр_tb[[#This Row],[Факт. дата оплаты]]>Реестр_tb[[#This Row],[Плановая дата оплаты]]),"Просрочено",IF(AND(Реестр_tb[[#This Row],[Оплачен]]="Нет",Реестр_tb[[#This Row],[Факт. дата оплаты]]="",Реестр_tb[[#This Row],[Плановая дата оплаты]]<$AB$1),"Просрочено",IF(Реестр_tb[[#This Row],[Плановая дата оплаты]]=$AB$1,"Сегодня",IF(Реестр_tb[[#This Row],[Плановая дата оплаты]]<=$AB$1+7,"В течении недели","Через неделю и более"))))) -> Через неделю и более | T88: Контракт № 008-22 от 30.11.2021 г. на сумму 1 400 222,40 руб.
A89: АО "Мобильные газотурбинные электрические станции" | B89: Коммунальные услуги | C89: электроэнергия | D89: =IFERROR(VLOOKUP(Реестр_tb[[#This Row],[Подкатегория]],IF({1,0},Данные_tb[ЕД],Данные_tb[доп. код.]),2,0)," ") -> 23 | E89: =IFERROR(VLOOKUP(Реестр_tb[[#This Row],[ДОПЫ]],IF({1,0},Данные_tb[доп. код.],Данные_tb[Источник]),2,0)," ") -> 20 | F89: Нет | G89: июль | H89: электроэнергия | I89: аукцион и т.п. | J89: 164684 | O89: =IF(Реестр_tb[[#This Row],[Срок оплаты (дней)]]="","",WORKDAY(Реестр_tb[[#This Row],[входящий (дата)]],Реестр_tb[[#This Row],[Срок оплаты (дней)]]+1,Выходные_tb[Выходные])) ->  | Q89: =IF(AND(Реестр_tb[[#This Row],[Оплачен]]="Да",Реестр_tb[[#This Row],[Факт. дата оплаты]]<=Реестр_tb[[#This Row],[Плановая дата оплаты]]),"Оплачено вовремя",IF(AND(Реестр_tb[[#This Row],[Оплачен]]="Да",Реестр_tb[[#This Row],[Факт. дата оплаты]]>Реестр_tb[[#This Row],[Плановая дата оплаты]]),"Просрочено",IF(AND(Реестр_tb[[#This Row],[Оплачен]]="Нет",Реестр_tb[[#This Row],[Факт. дата оплаты]]="",Реестр_tb[[#This Row],[Плановая дата оплаты]]<$AB$1),"Просрочено",IF(Реестр_tb[[#This Row],[Плановая дата оплаты]]=$AB$1,"Сегодня",IF(Реестр_tb[[#This Row],[Плановая дата оплаты]]<=$AB$1+7,"В течении недели","Через неделю и более"))))) -> Через неделю и более | T89: Контракт № 008-22 от 30.11.2021 г. на сумму 1 400 222,40 руб.
A90: АО "Мобильные газотурбинные электрические станции" | B90: Коммунальные услуги | C90: электроэнергия | D90: =IFERROR(VLOOKUP(Реестр_tb[[#This Row],[Подкатегория]],IF({1,0},Данные_tb[ЕД],Данные_tb[доп. код.]),2,0)," ") -> 23 | E90: =IFERROR(VLOOKUP(Реестр_tb[[#This Row],[ДОПЫ]],IF({1,0},Данные_tb[доп. код.],Данные_tb[Источник]),2,0)," ") -> 20 | F90: Нет | G90: август | H90: электроэнергия | I90: аукцион и т.п. | J90: 165685 | O90: =IF(Реестр_tb[[#This Row],[Срок оплаты (дней)]]="","",WORKDAY(Реестр_tb[[#This Row],[входящий (дата)]],Реестр_tb[[#This Row],[Срок оплаты (дней)]]+1,Выходные_tb[Выходные])) ->  | Q90: =IF(AND(Реестр_tb[[#This Row],[Оплачен]]="Да",Реестр_tb[[#This Row],[Факт. дата оплаты]]<=Реестр_tb[[#This Row],[Плановая дата оплаты]]),"Оплачено вовремя",IF(AND(Реестр_tb[[#This Row],[Оплачен]]="Да",Реестр_tb[[#This Row],[Факт. дата оплаты]]>Реестр_tb[[#This Row],[Плановая дата оплаты]]),"Просрочено",IF(AND(Реестр_tb[[#This Row],[Оплачен]]="Нет",Реестр_tb[[#This Row],[Факт. дата оплаты]]="",Реестр_tb[[#This Row],[Плановая дата оплаты]]<$AB$1),"Просрочено",IF(Реестр_tb[[#This Row],[Плановая дата оплаты]]=$AB$1,"Сегодня",IF(Реестр_tb[[#This Row],[Плановая дата оплаты]]<=$AB$1+7,"В течении недели","Через неделю и более"))))) -> Через неделю и более | T90: Контракт № 008-22 от 30.11.2021 г. на сумму 1 400 222,40 руб.
A91: АО "Мобильные газотурбинные электрические станции" | B91: Коммунальные услуги | C91: электроэнергия | D91: =IFERROR(VLOOKUP(Реестр_tb[[#This Row],[Подкатегория]],IF({1,0},Данные_tb[ЕД],Данные_tb[доп. код.]),2,0)," ") -> 23 | E91: =IFERROR(VLOOKUP(Реестр_tb[[#This Row],[ДОПЫ]],IF({1,0},Данные_tb[доп. код.],Данные_tb[Источник]),2,0)," ") -> 20 | F91: Нет | G91: сентябрь | H91: электроэнергия | I91: аукцион и т.п. | J91: 166686 | O91: =IF(Реестр_tb[[#This Row],[Срок оплаты (дней)]]="","",WORKDAY(Реестр_tb[[#This Row],[входящий (дата)]],Реестр_tb[[#This Row],[Срок оплаты (дней)]]+1,Выходные_tb[Выходные])) ->  | Q91: =IF(AND(Реестр_tb[[#This Row],[Оплачен]]="Да",Реестр_tb[[#This Row],[Факт. дата оплаты]]<=Реестр_tb[[#This Row],[Плановая дата оплаты]]),"Оплачено вовремя",IF(AND(Реестр_tb[[#This Row],[Оплачен]]="Да",Реестр_tb[[#This Row],[Факт. дата оплаты]]>Реестр_tb[[#This Row],[Плановая дата оплаты]]),"Просрочено",IF(AND(Реестр_tb[[#This Row],[Оплачен]]="Нет",Реестр_tb[[#This Row],[Факт. дата оплаты]]="",Реестр_tb[[#This Row],[Плановая дата оплаты]]<$AB$1),"Просрочено",IF(Реестр_tb[[#This Row],[Плановая дата оплаты]]=$AB$1,"Сегодня",IF(Реестр_tb[[#This Row],[Плановая дата оплаты]]<=$AB$1+7,"В течении недели","Через неделю и более"))))) -> Через неделю и более | T91: Контракт № 008-22 от 30.11.2021 г. на сумму 1 400 222,40 руб.
A92: АО "Мобильные газотурбинные электрические станции" | B92: Коммунальные услуги | C92: электроэнергия | D92: =IFERROR(VLOOKUP(Реестр_tb[[#This Row],[Подкатегория]],IF({1,0},Данные_tb[ЕД],Данные_tb[доп. код.]),2,0)," ") -> 23 | E92: =IFERROR(VLOOKUP(Реестр_tb[[#This Row],[ДОПЫ]],IF({1,0},Данные_tb[доп. код.],Данные_tb[Источник]),2,0)," ") -> 20 | F92: Нет | G92: октябрь | H92: электроэнергия | I92: аукцион и т.п. | J92: 167687 | O92: =IF(Реестр_tb[[#This Row],[Срок оплаты (дней)]]="","",WORKDAY(Реестр_tb[[#This Row],[входящий (дата)]],Реестр_tb[[#This Row],[Срок оплаты (дней)]]+1,Выходные_tb[Выходные])) ->  | Q92: =IF(AND(Реестр_tb[[#This Row],[Оплачен]]="Да",Реестр_tb[[#This Row],[Факт. дата оплаты]]<=Реестр_tb[[#This Row],[Плановая дата оплаты]]),"Оплачено вовремя",IF(AND(Реестр_tb[[#This Row],[Оплачен]]="Да",Реестр_tb[[#This Row],[Факт. дата оплаты]]>Реестр_tb[[#This Row],[Плановая дата оплаты]]),"Просрочено",IF(AND(Реестр_tb[[#This Row],[Оплачен]]="Нет",Реестр_tb[[#This Row],[Факт. дата оплаты]]="",Реестр_tb[[#This Row],[Плановая дата оплаты]]<$AB$1),"Просрочено",IF(Реестр_tb[[#This Row],[Плановая дата оплаты]]=$AB$1,"Сегодня",IF(Реестр_tb[[#This Row],[Плановая дата оплаты]]<=$AB$1+7,"В течении недели","Через неделю и более"))))) -> Через неделю и более | T92: Контракт № 008-22 от 30.11.2021 г. на сумму 1 400 222,40 руб.
A93: АО "Мобильные газотурбинные электрические станции" | B93: Коммунальные услуги | C93: электроэнергия | D93: =IFERROR(VLOOKUP(Реестр_tb[[#This Row],[Подкатегория]],IF({1,0},Данные_tb[ЕД],Данные_tb[доп. код.]),2,0)," ") -> 23 | E93: =IFERROR(VLOOKUP(Реестр_tb[[#This Row],[ДОПЫ]],IF({1,0},Данные_tb[доп. код.],Данные_tb[Источник]),2,0)," ") -> 20 | F93: Нет | G93: ноябрь | H93: электроэнергия | I93: аукцион и т.п. | J93: 168688 | O93: =IF(Реестр_tb[[#This Row],[Срок оплаты (дней)]]="","",WORKDAY(Реестр_tb[[#This Row],[входящий (дата)]],Реестр_tb[[#This Row],[Срок оплаты (дней)]]+1,Выходные_tb[Выходные])) ->  | Q93: =IF(AND(Реестр_tb[[#This Row],[Оплачен]]="Да",Реестр_tb[[#This Row],[Факт. дата оплаты]]<=Реестр_tb[[#This Row],[Плановая дата оплаты]]),"Оплачено вовремя",IF(AND(Реестр_tb[[#This Row],[Оплачен]]="Да",Реестр_tb[[#This Row],[Факт. дата оплаты]]>Реестр_tb[[#This Row],[Плановая дата оплаты]]),"Просрочено",IF(AND(Реестр_tb[[#This Row],[Оплачен]]="Нет",Реестр_tb[[#This Row],[Факт. дата оплаты]]="",Реестр_tb[[#This Row],[Плановая дата оплаты]]<$AB$1),"Просрочено",IF(Реестр_tb[[#This Row],[Плановая дата оплаты]]=$AB$1,"Сегодня",IF(Реестр_tb[[#This Row],[Плановая дата оплаты]]<=$AB$1+7,"В течении недели","Через неделю и более"))))) -> Через неделю и более | T93: Контракт № 008-22 от 30.11.2021 г. на сумму 1 400 222,40 руб.
A94: АО "Мобильные газотурбинные электрические станции" | B94: Коммунальные услуги | C94: электроэнергия | D94: =IFERROR(VLOOKUP(Реестр_tb[[#This Row],[Подкатегория]],IF({1,0},Данные_tb[ЕД],Данные_tb[доп. код.]),2,0)," ") -> 23 | E94: =IFERROR(VLOOKUP(Реестр_tb[[#This Row],[ДОПЫ]],IF({1,0},Данные_tb[доп. код.],Данные_tb[Источник]),2,0)," ") -> 20 | F94: Нет | G94: декабрь | H94: электроэнергия | I94: аукцион и т.п. | J94: 169689 | O94: =IF(Реестр_tb[[#This Row],[Срок оплаты (дней)]]="","",WORKDAY(Реестр_tb[[#This Row],[входящий (дата)]],Реестр_tb[[#This Row],[Срок оплаты (дней)]]+1,Выходные_tb[Выходные])) ->  | Q94: =IF(AND(Реестр_tb[[#This Row],[Оплачен]]="Да",Реестр_tb[[#This Row],[Факт. дата оплаты]]<=Реестр_tb[[#This Row],[Плановая дата оплаты]]),"Оплачено вовремя",IF(AND(Реестр_tb[[#This Row],[Оплачен]]="Да",Реестр_tb[[#This Row],[Факт. дата оплаты]]>Реестр_tb[[#This Row],[Плановая дата оплаты]]),"Просрочено",IF(AND(Реестр_tb[[#This Row],[Оплачен]]="Нет",Реестр_tb[[#This Row],[Факт. дата оплаты]]="",Реестр_tb[[#This Row],[Плановая дата оплаты]]<$AB$1),"Просрочено",IF(Реестр_tb[[#This Row],[Плановая дата оплаты]]=$AB$1,"Сегодня",IF(Реестр_tb[[#This Row],[Плановая дата оплаты]]<=$AB$1+7,"В течении недели","Через неделю и более"))))) -> Через неделю и более | T94: Контракт № 008-22 от 30.11.2021 г. на сумму 1 400 222,40 руб.
A95: ФГКУ «ОВО ВНГ России по Сахалинской области» | B95: Муниципальное задание | C95: мониторинг тенических средств охраны (Росгвардия) | D95: =IFERROR(VLOOKUP(Реестр_tb[[#This Row],[Подкатегория]],IF({1,0},Данные_tb[ЕД],Данные_tb[доп. код.]),2,0)," ") -> 4 | E95: =IFERROR(VLOOKUP(Реестр_tb[[#This Row],[ДОПЫ]],IF({1,0},Данные_tb[доп. код.],Данные_tb[Источник]),2,0)," ") -> 20 | F95: Нет | G95: январь | H95: мониторинг тенических средств охраны (Росгвардия) | I95: 5 | J95: 5168.4 | O95: =IF(Реестр_tb[[#This Row],[Срок оплаты (дней)]]="","",WORKDAY(Реестр_tb[[#This Row],[входящий (дата)]],Реестр_tb[[#This Row],[Срок оплаты (дней)]]+1,Выходные_tb[Выходные])) ->  | Q95: =IF(AND(Реестр_tb[[#This Row],[Оплачен]]="Да",Реестр_tb[[#This Row],[Факт. дата оплаты]]<=Реестр_tb[[#This Row],[Плановая дата оплаты]]),"Оплачено вовремя",IF(AND(Реестр_tb[[#This Row],[Оплачен]]="Да",Реестр_tb[[#This Row],[Факт. дата оплаты]]>Реестр_tb[[#This Row],[Плановая дата оплаты]]),"Просрочено",IF(AND(Реестр_tb[[#This Row],[Оплачен]]="Нет",Реестр_tb[[#This Row],[Факт. дата оплаты]]="",Реестр_tb[[#This Row],[Плановая дата оплаты]]<$AB$1),"Просрочено",IF(Реестр_tb[[#This Row],[Плановая дата оплаты]]=$AB$1,"Сегодня",IF(Реестр_tb[[#This Row],[Плановая дата оплаты]]<=$AB$1+7,"В течении недели","Через неделю и более"))))) -> Через неделю и более | T95: Договор № 579-М-КТС-GSM от ххх на сумму 62 020,80 руб. (БО на сумму 62 020,80 руб.)
A96: ФГКУ «ОВО ВНГ России по Сахалинской области» | B96: Муниципальное задание | C96: мониторинг тенических средств охраны (Росгвардия) | D96: =IFERROR(VLOOKUP(Реестр_tb[[#This Row],[Подкатегория]],IF({1,0},Данные_tb[ЕД],Данные_tb[доп. код.]),2,0)," ") -> 4 | E96: =IFERROR(VLOOKUP(Реестр_tb[[#This Row],[ДОПЫ]],IF({1,0},Данные_tb[доп. код.],Данные_tb[Источник]),2,0)," ") -> 20 | F96: Нет | G96: февраль | H96: мониторинг тенических средств охраны (Росгвардия) | I96: 5 | J96: 5168.4 | O96: =IF(Реестр_tb[[#This Row],[Срок оплаты (дней)]]="","",WORKDAY(Реестр_tb[[#This Row],[входящий (дата)]],Реестр_tb[[#This Row],[Срок оплаты (дней)]]+1,Выходные_tb[Выходные])) ->  | Q96: =IF(AND(Реестр_tb[[#This Row],[Оплачен]]="Да",Реестр_tb[[#This Row],[Факт. дата оплаты]]<=Реестр_tb[[#This Row],[Плановая дата оплаты]]),"Оплачено вовремя",IF(AND(Реестр_tb[[#This Row],[Оплачен]]="Да",Реестр_tb[[#This Row],[Факт. дата оплаты]]>Реестр_tb[[#This Row],[Плановая дата оплаты]]),"Просрочено",IF(AND(Реестр_tb[[#This Row],[Оплачен]]="Нет",Реестр_tb[[#This Row],[Факт. дата оплаты]]="",Реестр_tb[[#This Row],[Плановая дата оплаты]]<$AB$1),"Просрочено",IF(Реестр_tb[[#This Row],[Плановая дата оплаты]]=$AB$1,"Сегодня",IF(Реестр_tb[[#This Row],[Плановая дата оплаты]]<=$AB$1+7,"В течении недели","Через неделю и более"))))) -> Через неделю и более | T96: Договор № 579-М-КТС-GSM от ххх на сумму 62 020,80 руб. (БО на сумму 62 020,80 руб.)
A97: ФГКУ «ОВО ВНГ России по Сахалинской области» | B97: Муниципальное задание | C97: мониторинг тенических средств охраны (Росгвардия) | D97: =IFERROR(VLOOKUP(Реестр_tb[[#This Row],[Подкатегория]],IF({1,0},Данные_tb[ЕД],Данные_tb[доп. код.]),2,0)," ") -> 4 | E97: =IFERROR(VLOOKUP(Реестр_tb[[#This Row],[ДОПЫ]],IF({1,0},Данные_tb[доп. код.],Данные_tb[Источник]),2,0)," ") -> 20 | F97: Нет | G97: март | H97: мониторинг тенических средств охраны (Росгвардия) | I97: 5 | J97: 5168.4 | O97: =IF(Реестр_tb[[#This Row],[Срок оплаты (дней)]]="","",WORKDAY(Реестр_tb[[#This Row],[входящий (дата)]],Реестр_tb[[#This Row],[Срок оплаты (дней)]]+1,Выходные_tb[Выходные])) ->  | Q97: =IF(AND(Реестр_tb[[#This Row],[Оплачен]]="Да",Реестр_tb[[#This Row],[Факт. дата оплаты]]<=Реестр_tb[[#This Row],[Плановая дата оплаты]]),"Оплачено вовремя",IF(AND(Реестр_tb[[#This Row],[Оплачен]]="Да",Реестр_tb[[#This Row],[Факт. дата оплаты]]>Реестр_tb[[#This Row],[Плановая дата оплаты]]),"Просрочено",IF(AND(Реестр_tb[[#This Row],[Оплачен]]="Нет",Реестр_tb[[#This Row],[Факт. дата оплаты]]="",Реестр_tb[[#This Row],[Плановая дата оплаты]]<$AB$1),"Просрочено",IF(Реестр_tb[[#This Row],[Плановая дата оплаты]]=$AB$1,"Сегодня",IF(Реестр_tb[[#This Row],[Плановая дата оплаты]]<=$AB$1+7,"В течении недели","Через неделю и более"))))) -> Через неделю и более | T97: Договор № 579-М-КТС-GSM от ххх на сумму 62 020,80 руб. (БО на сумму 62 020,80 руб.)
A98: ФГКУ «ОВО ВНГ России по Сахалинской области» | B98: Муниципальное задание | C98: мониторинг тенических средств охраны (Росгвардия) | D98: =IFERROR(VLOOKUP(Реестр_tb[[#This Row],[Подкатегория]],IF({1,0},Данные_tb[ЕД],Данные_tb[доп. код.]),2,0)," ") -> 4 | E98: =IFERROR(VLOOKUP(Реестр_tb[[#This Row],[ДОПЫ]],IF({1,0},Данные_tb[доп. код.],Данные_tb[Источник]),2,0)," ") -> 20 | F98: Нет | G98: апрель | H98: мониторинг тенических средств охраны (Росгвардия) | I98: 5 | J98: 5168.4 | O98: =IF(Реестр_tb[[#This Row],[Срок оплаты (дней)]]="","",WORKDAY(Реестр_tb[[#This Row],[входящий (дата)]],Реестр_tb[[#This Row],[Срок оплаты (дней)]]+1,Выходные_tb[Выходные])) ->  | Q98: =IF(AND(Реестр_tb[[#This Row],[Оплачен]]="Да",Реестр_tb[[#This Row],[Факт. дата оплаты]]<=Реестр_tb[[#This Row],[Плановая дата оплаты]]),"Оплачено вовремя",IF(AND(Реестр_tb[[#This Row],[Оплачен]]="Да",Реестр_tb[[#This Row],[Факт. дата оплаты]]>Реестр_tb[[#This Row],[Плановая дата оплаты]]),"Просрочено",IF(AND(Реестр_tb[[#This Row],[Оплачен]]="Нет",Реестр_tb[[#This Row],[Факт. дата оплаты]]="",Реестр_tb[[#This Row],[Плановая дата оплаты]]<$AB$1),"Просрочено",IF(Реестр_tb[[#This Row],[Плановая дата оплаты]]=$AB$1,"Сегодня",IF(Реестр_tb[[#This Row],[Плановая дата оплаты]]<=$AB$1+7,"В течении недели","Через неделю и более"))))) -> Через неделю и более | T98: Договор № 579-М-КТС-GSM от ххх на сумму 62 020,80 руб. (БО на сумму 62 020,80 руб.)
A99: ФГКУ «ОВО ВНГ России по Сахалинской области» | B99: Муниципальное задание | C99: мониторинг тенических средств охраны (Росгвардия) | D99: =IFERROR(VLOOKUP(Реестр_tb[[#This Row],[Подкатегория]],IF({1,0},Данные_tb[ЕД],Данные_tb[доп. код.]),2,0)," ") -> 4 | E99: =IFERROR(VLOOKUP(Реестр_tb[[#This Row],[ДОПЫ]],IF({1,0},Данные_tb[доп. код.],Данные_tb[Источник]),2,0)," ") -> 20 | F99: Нет | G99: май | H99: мониторинг тенических средств охраны (Росгвардия) | I99: 5 | J99: 5168.4 | O99: =IF(Реестр_tb[[#This Row],[Срок оплаты (дней)]]="","",WORKDAY(Реестр_tb[[#This Row],[входящий (дата)]],Реестр_tb[[#This Row],[Срок оплаты (дней)]]+1,Выходные_tb[Выходные])) ->  | Q99: =IF(AND(Реестр_tb[[#This Row],[Оплачен]]="Да",Реестр_tb[[#This Row],[Факт. дата оплаты]]<=Реестр_tb[[#This Row],[Плановая дата оплаты]]),"Оплачено вовремя",IF(AND(Реестр_tb[[#This Row],[Оплачен]]="Да",Реестр_tb[[#This Row],[Факт. дата оплаты]]>Реестр_tb[[#This Row],[Плановая дата оплаты]]),"Просрочено",IF(AND(Реестр_tb[[#This Row],[Оплачен]]="Нет",Реестр_tb[[#This Row],[Факт. дата оплаты]]="",Реестр_tb[[#This Row],[Плановая дата оплаты]]<$AB$1),"Просрочено",IF(Реестр_tb[[#This Row],[Плановая дата оплаты]]=$AB$1,"Сегодня",IF(Реестр_tb[[#This Row],[Плановая дата оплаты]]<=$AB$1+7,"В течении недели","Через неделю и более"))))) -> Через неделю и более | T99: Договор № 579-М-КТС-GSM от ххх на сумму 62 020,80 руб. (БО на сумму 62 020,80 руб.)
A100: ФГКУ «ОВО ВНГ России по Сахалинской области» | B100: Муниципальное задание | C100: мониторинг тенических средств охраны (Росгвардия) | D100: =IFERROR(VLOOKUP(Реестр_tb[[#This Row],[Подкатегория]],IF({1,0},Данные_tb[ЕД],Данные_tb[доп. код.]),2,0)," ") -> 4 | E100: =IFERROR(VLOOKUP(Реестр_tb[[#This Row],[ДОПЫ]],IF({1,0},Данные_tb[доп. код.],Данные_tb[Источник]),2,0)," ") -> 20 | F100: Нет | G100: июнь | H100: мониторинг тенических средств охраны (Росгвардия) | I100: 5 | J100: 5168.4 | O100: =IF(Реестр_tb[[#This Row],[Срок оплаты (дней)]]="","",WORKDAY(Реестр_tb[[#This Row],[входящий (дата)]],Реестр_tb[[#This Row],[Срок оплаты (дней)]]+1,Выходные_tb[Выходные])) ->  | Q100: =IF(AND(Реестр_tb[[#This Row],[Оплачен]]="Да",Реестр_tb[[#This Row],[Факт. дата оплаты]]<=Реестр_tb[[#This Row],[Плановая дата оплаты]]),"Оплачено вовремя",IF(AND(Реестр_tb[[#This Row],[Оплачен]]="Да",Реестр_tb[[#This Row],[Факт. дата оплаты]]>Реестр_tb[[#This Row],[Плановая дата оплаты]]),"Просрочено",IF(AND(Реестр_tb[[#This Row],[Оплачен]]="Нет",Реестр_tb[[#This Row],[Факт. дата оплаты]]="",Реестр_tb[[#This Row],[Плановая дата оплаты]]<$AB$1),"Просрочено",IF(Реестр_tb[[#This Row],[Плановая дата оплаты]]=$AB$1,"Сегодня",IF(Реестр_tb[[#This Row],[Плановая дата оплаты]]<=$AB$1+7,"В течении недели","Через неделю и более"))))) -> Через неделю и более | T100: Договор № 579-М-КТС-GSM от ххх на сумму 62 020,80 руб. (БО на сумму 62 020,80 руб.)
A101: ФГКУ «ОВО ВНГ России по Сахалинской области» | B101: Муниципальное задание | C101: мониторинг тенических средств охраны (Росгвардия) | D101: =IFERROR(VLOOKUP(Реестр_tb[[#This Row],[Подкатегория]],IF({1,0},Данные_tb[ЕД],Данные_tb[доп. код.]),2,0)," ") -> 4 | E101: =IFERROR(VLOOKUP(Реестр_tb[[#This Row],[ДОПЫ]],IF({1,0},Данные_tb[доп. код.],Данные_tb[Источник]),2,0)," ") -> 20 | F101: Нет | G101: июль | H101: мониторинг тенических средств охраны (Росгвардия) | I101: 5 | J101: 5168.4 | O101: =IF(Реестр_tb[[#This Row],[Срок оплаты (дней)]]="","",WORKDAY(Реестр_tb[[#This Row],[входящий (дата)]],Реестр_tb[[#This Row],[Срок оплаты (дней)]]+1,Выходные_tb[Выходные])) ->  | Q101: =IF(AND(Реестр_tb[[#This Row],[Оплачен]]="Да",Реестр_tb[[#This Row],[Факт. дата оплаты]]<=Реестр_tb[[#This Row],[Плановая дата оплаты]]),"Оплачено вовремя",IF(AND(Реестр_tb[[#This Row],[Оплачен]]="Да",Реестр_tb[[#This Row],[Факт. дата оплаты]]>Реестр_tb[[#This Row],[Плановая дата оплаты]]),"Просрочено",IF(AND(Реестр_tb[[#This Row],[Оплачен]]="Нет",Реестр_tb[[#This Row],[Факт. дата оплаты]]="",Реестр_tb[[#This Row],[Плановая дата оплаты]]<$AB$1),"Просрочено",IF(Реестр_tb[[#This Row],[Плановая дата оплаты]]=$AB$1,"Сегодня",IF(Реестр_tb[[#This Row],[Плановая дата оплаты]]<=$AB$1+7,"В течении недели","Через неделю и более"))))) -> Через неделю и более | T101: Договор № 579-М-КТС-GSM от ххх на сумму 62 020,80 руб. (БО на сумму 62 020,80 руб.)
A102: ФГКУ «ОВО ВНГ России по Сахалинской области» | B102: Муниципальное задание | C102: мониторинг тенических средств охраны (Росгвардия) | D102: =IFERROR(VLOOKUP(Реестр_tb[[#This Row],[Подкатегория]],IF({1,0},Данные_tb[ЕД],Данные_tb[доп. код.]),2,0)," ") -> 4 | E102: =IFERROR(VLOOKUP(Реестр_tb[[#This Row],[ДОПЫ]],IF({1,0},Данные_tb[доп. код.],Данные_tb[Источник]),2,0)," ") -> 20 | F102: Нет | G102: август | H102: мониторинг тенических средств охраны (Росгвардия) | I102: 5 | J102: 5168.4 | O102: =IF(Реестр_tb[[#This Row],[Срок оплаты (дней)]]="","",WORKDAY(Реестр_tb[[#This Row],[входящий (дата)]],Реестр_tb[[#This Row],[Срок оплаты (дней)]]+1,Выходные_tb[Выходные])) ->  | Q102: =IF(AND(Реестр_tb[[#This Row],[Оплачен]]="Да",Реестр_tb[[#This Row],[Факт. дата оплаты]]<=Реестр_tb[[#This Row],[Плановая дата оплаты]]),"Оплачено вовремя",IF(AND(Реестр_tb[[#This Row],[Оплачен]]="Да",Реестр_tb[[#This Row],[Факт. дата оплаты]]>Реестр_tb[[#This Row],[Плановая дата оплаты]]),"Просрочено",IF(AND(Реестр_tb[[#This Row],[Оплачен]]="Нет",Реестр_tb[[#This Row],[Факт. дата оплаты]]="",Реестр_tb[[#This Row],[Плановая дата оплаты]]<$AB$1),"Просрочено",IF(Реестр_tb[[#This Row],[Плановая дата оплаты]]=$AB$1,"Сегодня",IF(Реестр_tb[[#This Row],[Плановая дата оплаты]]<=$AB$1+7,"В течении недели","Через неделю и более"))))) -> Через неделю и более | T102: Договор № 579-М-КТС-GSM от ххх на сумму 62 020,80 руб. (БО на сумму 62 020,80 руб.)
A103: ФГКУ «ОВО ВНГ России по Сахалинской области» | B103: Муниципальное задание | C103: мониторинг тенических средств охраны (Росгвардия) | D103: =IFERROR(VLOOKUP(Реестр_tb[[#This Row],[Подкатегория]],IF({1,0},Данные_tb[ЕД],Данные_tb[доп. код.]),2,0)," ") -> 4 | E103: =IFERROR(VLOOKUP(Реестр_tb[[#This Row],[ДОПЫ]],IF({1,0},Данные_tb[доп. код.],Данные_tb[Источник]),2,0)," ") -> 20 | F103: Нет | G103: сентябрь | H103: мониторинг тенических средств охраны (Росгвардия) | I103: 5 | J103: 5168.4 | O103: =IF(Реестр_tb[[#This Row],[Срок оплаты (дней)]]="","",WORKDAY(Реестр_tb[[#This Row],[входящий (дата)]],Реестр_tb[[#This Row],[Срок оплаты (дней)]]+1,Выходные_tb[Выходные])) ->  | Q103: =IF(AND(Реестр_tb[[#This Row],[Оплачен]]="Да",Реестр_tb[[#This Row],[Факт. дата оплаты]]<=Реестр_tb[[#This Row],[Плановая дата оплаты]]),"Оплачено вовремя",IF(AND(Реестр_tb[[#This Row],[Оплачен]]="Да",Реестр_tb[[#This Row],[Факт. дата оплаты]]>Реестр_tb[[#This Row],[Плановая дата оплаты]]),"Просрочено",IF(AND(Реестр_tb[[#This Row],[Оплачен]]="Нет",Реестр_tb[[#This Row],[Факт. дата оплаты]]="",Реестр_tb[[#This Row],[Плановая дата оплаты]]<$AB$1),"Просрочено",IF(Реестр_tb[[#This Row],[Плановая дата оплаты]]=$AB$1,"Сегодня",IF(Реестр_tb[[#This Row],[Плановая дата оплаты]]<=$AB$1+7,"В течении недели","Через неделю и более"))))) -> Через неделю и более | T103: Договор № 579-М-КТС-GSM от ххх на сумму 62 020,80 руб. (БО на сумму 62 020,80 руб.)
A104: ФГКУ «ОВО ВНГ России по Сахалинской области» | B104: Муниципальное задание | C104: мониторинг тенических средств охраны (Росгвардия) | D104: =IFERROR(VLOOKUP(Реестр_tb[[#This Row],[Подкатегория]],IF({1,0},Данные_tb[ЕД],Данные_tb[доп. код.]),2,0)," ") -> 4 | E104: =IFERROR(VLOOKUP(Реестр_tb[[#This Row],[ДОПЫ]],IF({1,0},Данные_tb[доп. код.],Данные_tb[Источник]),2,0)," ") -> 20 | F104: Нет | G104: октябрь | H104: мониторинг тенических средств охраны (Росгвардия) | I104: 5 | J104: 5168.4 | O104: =IF(Реестр_tb[[#This Row],[Срок оплаты (дней)]]="","",WORKDAY(Реестр_tb[[#This Row],[входящий (дата)]],Реестр_tb[[#This Row],[Срок оплаты (дней)]]+1,Выходные_tb[Выходные])) ->  | Q104: =IF(AND(Реестр_tb[[#This Row],[Оплачен]]="Да",Реестр_tb[[#This Row],[Факт. дата оплаты]]<=Реестр_tb[[#This Row],[Плановая дата оплаты]]),"Оплачено вовремя",IF(AND(Реестр_tb[[#This Row],[Оплачен]]="Да",Реестр_tb[[#This Row],[Факт. дата оплаты]]>Реестр_tb[[#This Row],[Плановая дата оплаты]]),"Просрочено",IF(AND(Реестр_tb[[#This Row],[Оплачен]]="Нет",Реестр_tb[[#This Row],[Факт. дата оплаты]]="",Реестр_tb[[#This Row],[Плановая дата оплаты]]<$AB$1),"Просрочено",IF(Реестр_tb[[#This Row],[Плановая дата оплаты]]=$AB$1,"Сегодня",IF(Реестр_tb[[#This Row],[Плановая дата оплаты]]<=$AB$1+7,"В течении недели","Через неделю и более"))))) -> Через неделю и более | T104: Договор № 579-М-КТС-GSM от ххх на сумму 62 020,80 руб. (БО на сумму 62 020,80 руб.)
A105: ФГКУ «ОВО ВНГ России по Сахалинской области» | B105: Муниципальное задание | C105: мониторинг тенических средств охраны (Росгвардия) | D105: =IFERROR(VLOOKUP(Реестр_tb[[#This Row],[Подкатегория]],IF({1,0},Данные_tb[ЕД],Данные_tb[доп. код.]),2,0)," ") -> 4 | E105: =IFERROR(VLOOKUP(Реестр_tb[[#This Row],[ДОПЫ]],IF({1,0},Данные_tb[доп. код.],Данные_tb[Источник]),2,0)," ") -> 20 | F105: Нет | G105: ноябрь | H105: мониторинг тенических средств охраны (Росгвардия) | I105: 5 | J105: 5168.4 | O105: =IF(Реестр_tb[[#This Row],[Срок оплаты (дней)]]="","",WORKDAY(Реестр_tb[[#This Row],[входящий (дата)]],Реестр_tb[[#This Row],[Срок оплаты (дней)]]+1,Выходные_tb[Выходные])) ->  | Q105: =IF(AND(Реестр_tb[[#This Row],[Оплачен]]="Да",Реестр_tb[[#This Row],[Факт. дата оплаты]]<=Реестр_tb[[#This Row],[Плановая дата оплаты]]),"Оплачено вовремя",IF(AND(Реестр_tb[[#This Row],[Оплачен]]="Да",Реестр_tb[[#This Row],[Факт. дата оплаты]]>Реестр_tb[[#This Row],[Плановая дата оплаты]]),"Просрочено",IF(AND(Реестр_tb[[#This Row],[Оплачен]]="Нет",Реестр_tb[[#This Row],[Факт. дата оплаты]]="",Реестр_tb[[#This Row],[Плановая дата оплаты]]<$AB$1),"Просрочено",IF(Реестр_tb[[#This Row],[Плановая дата оплаты]]=$AB$1,"Сегодня",IF(Реестр_tb[[#This Row],[Плановая дата оплаты]]<=$AB$1+7,"В течении недели","Через неделю и более"))))) -> Через неделю и более | T105: Договор № 579-М-КТС-GSM от ххх на сумму 62 020,80 руб. (БО на сумму 62 020,80 руб.)
A106: ФГКУ «ОВО ВНГ России по Сахалинской области» | B106: Муниципальное задание | C106: мониторинг тенических средств охраны (Росгвардия) | D106: =IFERROR(VLOOKUP(Реестр_tb[[#This Row],[Подкатегория]],IF({1,0},Данные_tb[ЕД],Данные_tb[доп. код.]),2,0)," ") -> 4 | E106: =IFERROR(VLOOKUP(Реестр_tb[[#This Row],[ДОПЫ]],IF({1,0},Данные_tb[доп. код.],Данные_tb[Источник]),2,0)," ") -> 20 | F106: Нет | G106: декабрь | H106: мониторинг тенических средств охраны (Росгвардия) | I106: 5 | J106: 5168.4 | O106: =IF(Реестр_tb[[#This Row],[Срок оплаты (дней)]]="","",WORKDAY(Реестр_tb[[#This Row],[входящий (дата)]],Реестр_tb[[#This Row],[Срок оплаты (дней)]]+1,Выходные_tb[Выходные])) ->  | Q106: =IF(AND(Реестр_tb[[#This Row],[Оплачен]]="Да",Реестр_tb[[#This Row],[Факт. дата оплаты]]<=Реестр_tb[[#This Row],[Плановая дата оплаты]]),"Оплачено вовремя",IF(AND(Реестр_tb[[#This Row],[Оплачен]]="Да",Реестр_tb[[#This Row],[Факт. дата оплаты]]>Реестр_tb[[#This Row],[Плановая дата оплаты]]),"Просрочено",IF(AND(Реестр_tb[[#This Row],[Оплачен]]="Нет",Реестр_tb[[#This Row],[Факт. дата оплаты]]="",Реестр_tb[[#This Row],[Плановая дата оплаты]]<$AB$1),"Просрочено",IF(Реестр_tb[[#This Row],[Плановая дата оплаты]]=$AB$1,"Сегодня",IF(Реестр_tb[[#This Row],[Плановая дата оплаты]]<=$AB$1+7,"В течении недели","Через неделю и более"))))) -> Через неделю и более | T106: Договор № 579-М-КТС-GSM от ххх на сумму 62 020,80 руб. (БО на сумму 62 020,80 руб.)
A107: ИП Ибрагимов Рустам Ибрагимович | B107: Муниципальное задание | C107: обслуживание системы видеонаблюдения | D107: =IFERROR(VLOOKUP(Реестр_tb[[#This Row],[Подкатегория]],IF({1,0},Данные_tb[ЕД],Данные_tb[доп. код.]),2,0)," ") -> 4 | E107: =IFERROR(VLOOKUP(Реестр_tb[[#This Row],[ДОПЫ]],IF({1,0},Данные_tb[доп. код.],Данные_tb[Источник]),2,0)," ") -> 20 | F107: Нет | G107: январь | H107: обслуживание системы видеонаблюдения | I107: 5 | J107: 18000 | O107: =IF(Реестр_tb[[#This Row],[Срок оплаты (дней)]]="","",WORKDAY(Реестр_tb[[#This Row],[входящий (дата)]],Реестр_tb[[#This Row],[Срок оплаты (дней)]]+1,Выходные_tb[Выходные])) ->  | Q107: =IF(AND(Реестр_tb[[#This Row],[Оплачен]]="Да",Реестр_tb[[#This Row],[Факт. дата оплаты]]<=Реестр_tb[[#This Row],[Плановая дата оплаты]]),"Оплачено вовремя",IF(AND(Реестр_tb[[#This Row],[Оплачен]]="Да",Реестр_tb[[#This Row],[Факт. дата оплаты]]>Реестр_tb[[#This Row],[Плановая дата оплаты]]),"Просрочено",IF(AND(Реестр_tb[[#This Row],[Оплачен]]="Нет",Реестр_tb[[#This Row],[Факт. дата оплаты]]="",Реестр_tb[[#This Row],[Плановая дата оплаты]]<$AB$1),"Просрочено",IF(Реестр_tb[[#This Row],[Плановая дата оплаты]]=$AB$1,"Сегодня",IF(Реестр_tb[[#This Row],[Плановая дата оплаты]]<=$AB$1+7,"В течении недели","Через неделю и более"))))) -> Через неделю и более | T107: Договор № ТО-5-22 от ххх на сумму 216 000,00 руб. (БО на сумму 216 000,00 руб.)
A108: ИП Ибрагимов Рустам Ибрагимович | B108: Муниципальное задание | C108: обслуживание системы видеонаблюдения | D108: =IFERROR(VLOOKUP(Реестр_tb[[#This Row],[Подкатегория]],IF({1,0},Данные_tb[ЕД],Данные_tb[доп. код.]),2,0)," ") -> 4 | E108: =IFERROR(VLOOKUP(Реестр_tb[[#This Row],[ДОПЫ]],IF({1,0},Данные_tb[доп. код.],Данные_tb[Источник]),2,0)," ") -> 20 | F108: Нет | G108: февраль | H108: обслуживание системы видеонаблюдения | I108: 5 | J108: 18000 | O108: =IF(Реестр_tb[[#This Row],[Срок оплаты (дней)]]="","",WORKDAY(Реестр_tb[[#This Row],[входящий (дата)]],Реестр_tb[[#This Row],[Срок оплаты (дней)]]+1,Выходные_tb[Выходные])) ->  | Q108: =IF(AND(Реестр_tb[[#This Row],[Оплачен]]="Да",Реестр_tb[[#This Row],[Факт. дата оплаты]]<=Реестр_tb[[#This Row],[Плановая дата оплаты]]),"Оплачено вовремя",IF(AND(Реестр_tb[[#This Row],[Оплачен]]="Да",Реестр_tb[[#This Row],[Факт. дата оплаты]]>Реестр_tb[[#This Row],[Плановая дата оплаты]]),"Просрочено",IF(AND(Реестр_tb[[#This Row],[Оплачен]]="Нет",Реестр_tb[[#This Row],[Факт. дата оплаты]]="",Реестр_tb[[#This Row],[Плановая дата оплаты]]<$AB$1),"Просрочено",IF(Реестр_tb[[#This Row],[Плановая дата оплаты]]=$AB$1,"Сегодня",IF(Реестр_tb[[#This Row],[Плановая дата оплаты]]<=$AB$1+7,"В течении недели","Через неделю и более"))))) -> Через неделю и более | T108: Договор № ТО-5-22 от ххх на сумму 216 000,00 руб. (БО на сумму 216 000,00 руб.)
A109: ИП Ибрагимов Рустам Ибрагимович | B109: Муниципальное задание | C109: обслуживание системы видеонаблюдения | D109: =IFERROR(VLOOKUP(Реестр_tb[[#This Row],[Подкатегория]],IF({1,0},Данные_tb[ЕД],Данные_tb[доп. код.]),2,0)," ") -> 4 | E109: =IFERROR(VLOOKUP(Реестр_tb[[#This Row],[ДОПЫ]],IF({1,0},Данные_tb[доп. код.],Данные_tb[Источник]),2,0)," ") -> 20 | F109: Нет | G109: март | H109: обслуживание системы видеонаблюдения | I109: 5 | J109: 18000 | O109: =IF(Реестр_tb[[#This Row],[Срок оплаты (дней)]]="","",WORKDAY(Реестр_tb[[#This Row],[входящий (дата)]],Реестр_tb[[#This Row],[Срок оплаты (дней)]]+1,Выходные_tb[Выходные])) ->  | Q109: =IF(AND(Реестр_tb[[#This Row],[Оплачен]]="Да",Реестр_tb[[#This Row],[Факт. дата оплаты]]<=Реестр_tb[[#This Row],[Плановая дата оплаты]]),"Оплачено вовремя",IF(AND(Реестр_tb[[#This Row],[Оплачен]]="Да",Реестр_tb[[#This Row],[Факт. дата оплаты]]>Реестр_tb[[#This Row],[Плановая дата оплаты]]),"Просрочено",IF(AND(Реестр_tb[[#This Row],[Оплачен]]="Нет",Реестр_tb[[#This Row],[Факт. дата оплаты]]="",Реестр_tb[[#This Row],[Плановая дата оплаты]]<$AB$1),"Просрочено",IF(Реестр_tb[[#This Row],[Плановая дата оплаты]]=$AB$1,"Сегодня",IF(Реестр_tb[[#This Row],[Плановая дата оплаты]]<=$AB$1+7,"В течении недели","Через неделю и более"))))) -> Через неделю и более | T109: Договор № ТО-5-22 от ххх на сумму 216 000,00 руб. (БО на сумму 216 000,00 руб.)
A110: ИП Ибрагимов Рустам Ибрагимович | B110: Муниципальное задание | C110: обслуживание системы видеонаблюдения | D110: =IFERROR(VLOOKUP(Реестр_tb[[#This Row],[Подкатегория]],IF({1,0},Данные_tb[ЕД],Данные_tb[доп. код.]),2,0)," ") -> 4 | E110: =IFERROR(VLOOKUP(Реестр_tb[[#This Row],[ДОПЫ]],IF({1,0},Данные_tb[доп. код.],Данные_tb[Источник]),2,0)," ") -> 20 | F110: Нет | G110: апрель | H110: обслуживание системы видеонаблюдения | I110: 5 | J110: 18000 | O110: =IF(Реестр_tb[[#This Row],[Срок оплаты (дней)]]="","",WORKDAY(Реестр_tb[[#This Row],[входящий (дата)]],Реестр_tb[[#This Row],[Срок оплаты (дней)]]+1,Выходные_tb[Выходные])) ->  | Q110: =IF(AND(Реестр_tb[[#This Row],[Оплачен]]="Да",Реестр_tb[[#This Row],[Факт. дата оплаты]]<=Реестр_tb[[#This Row],[Плановая дата оплаты]]),"Оплачено вовремя",IF(AND(Реестр_tb[[#This Row],[Оплачен]]="Да",Реестр_tb[[#This Row],[Факт. дата оплаты]]>Реестр_tb[[#This Row],[Плановая дата оплаты]]),"Просрочено",IF(AND(Реестр_tb[[#This Row],[Оплачен]]="Нет",Реестр_tb[[#This Row],[Факт. дата оплаты]]="",Реестр_tb[[#This Row],[Плановая дата оплаты]]<$AB$1),"Просрочено",IF(Реестр_tb[[#This Row],[Плановая дата оплаты]]=$AB$1,"Сегодня",IF(Реестр_tb[[#This Row],[Плановая дата оплаты]]<=$AB$1+7,"В течении недели","Через неделю и более"))))) -> Через неделю и более | T110: Договор № ТО-5-22 от ххх на сумму 216 000,00 руб. (БО на сумму 216 000,00 руб.)
A111: ИП Ибрагимов Рустам Ибрагимович | B111: Муниципальное задание | C111: обслуживание системы видеонаблюдения | D111: =IFERROR(VLOOKUP(Реестр_tb[[#This Row],[Подкатегория]],IF({1,0},Данные_tb[ЕД],Данные_tb[доп. код.]),2,0)," ") -> 4 | E111: =IFERROR(VLOOKUP(Реестр_tb[[#This Row],[ДОПЫ]],IF({1,0},Данные_tb[доп. код.],Данные_tb[Источник]),2,0)," ") -> 20 | F111: Нет | G111: май | H111: обслуживание системы видеонаблюдения | I111: 5 | J111: 18000 | O111: =IF(Реестр_tb[[#This Row],[Срок оплаты (дней)]]="","",WORKDAY(Реестр_tb[[#This Row],[входящий (дата)]],Реестр_tb[[#This Row],[Срок оплаты (дней)]]+1,Выходные_tb[Выходные])) ->  | Q111: =IF(AND(Реестр_tb[[#This Row],[Оплачен]]="Да",Реестр_tb[[#This Row],[Факт. дата оплаты]]<=Реестр_tb[[#This Row],[Плановая дата оплаты]]),"Оплачено вовремя",IF(AND(Реестр_tb[[#This Row],[Оплачен]]="Да",Реестр_tb[[#This Row],[Факт. дата оплаты]]>Реестр_tb[[#This Row],[Плановая дата оплаты]]),"Просрочено",IF(AND(Реестр_tb[[#This Row],[Оплачен]]="Нет",Реестр_tb[[#This Row],[Факт. дата оплаты]]="",Реестр_tb[[#This Row],[Плановая дата оплаты]]<$AB$1),"Просрочено",IF(Реестр_tb[[#This Row],[Плановая дата оплаты]]=$AB$1,"Сегодня",IF(Реестр_tb[[#This Row],[Плановая дата оплаты]]<=$AB$1+7,"В течении недели","Через неделю и более"))))) -> Через неделю и более | T111: Договор № ТО-5-22 от ххх на сумму 216 000,00 руб. (БО на сумму 216 000,00 руб.)
A112: ИП Ибрагимов Рустам Ибрагимович | B112: Муниципальное задание | C112: обслуживание системы видеонаблюдения | D112: =IFERROR(VLOOKUP(Реестр_tb[[#This Row],[Подкатегория]],IF({1,0},Данные_tb[ЕД],Данные_tb[доп. код.]),2,0)," ") -> 4 | E112: =IFERROR(VLOOKUP(Реестр_tb[[#This Row],[ДОПЫ]],IF({1,0},Данные_tb[доп. код.],Данные_tb[Источник]),2,0)," ") -> 20 | F112: Нет | G112: июнь | H112: обслуживание системы видеонаблюдения | I112: 5 | J112: 18000 | O112: =IF(Реестр_tb[[#This Row],[Срок оплаты (дней)]]="","",WORKDAY(Реестр_tb[[#This Row],[входящий (дата)]],Реестр_tb[[#This Row],[Срок оплаты (дней)]]+1,Выходные_tb[Выходные])) ->  | Q112: =IF(AND(Реестр_tb[[#This Row],[Оплачен]]="Да",Реестр_tb[[#This Row],[Факт. дата оплаты]]<=Реестр_tb[[#This Row],[Плановая дата оплаты]]),"Оплачено вовремя",IF(AND(Реестр_tb[[#This Row],[Оплачен]]="Да",Реестр_tb[[#This Row],[Факт. дата оплаты]]>Реестр_tb[[#This Row],[Плановая дата оплаты]]),"Просрочено",IF(AND(Реестр_tb[[#This Row],[Оплачен]]="Нет",Реестр_tb[[#This Row],[Факт. дата оплаты]]="",Реестр_tb[[#This Row],[Плановая дата оплаты]]<$AB$1),"Просрочено",IF(Реестр_tb[[#This Row],[Плановая дата оплаты]]=$AB$1,"Сегодня",IF(Реестр_tb[[#This Row],[Плановая дата оплаты]]<=$AB$1+7,"В течении недели","Через неделю и более"))))) -> Через неделю и более | T112: Договор № ТО-5-22 от ххх на сумму 216 000,00 руб. (БО на сумму 216 000,00 руб.)
A113: ИП Ибрагимов Рустам Ибрагимович | B113: Муниципальное задание | C113: обслуживание системы видеонаблюдения | D113: =IFERROR(VLOOKUP(Реестр_tb[[#This Row],[Подкатегория]],IF({1,0},Данные_tb[ЕД],Данные_tb[доп. код.]),2,0)," ") -> 4 | E113: =IFERROR(VLOOKUP(Реестр_tb[[#This Row],[ДОПЫ]],IF({1,0},Данные_tb[доп. код.],Данные_tb[Источник]),2,0)," ") -> 20 | F113: Нет | G113: июль | H113: обслуживание системы видеонаблюдения | I113: 5 | J113: 18000 | O113: =IF(Реестр_tb[[#This Row],[Срок оплаты (дней)]]="","",WORKDAY(Реестр_tb[[#This Row],[входящий (дата)]],Реестр_tb[[#This Row],[Срок оплаты (дней)]]+1,Выходные_tb[Выходные])) ->  | Q113: =IF(AND(Реестр_tb[[#This Row],[Оплачен]]="Да",Реестр_tb[[#This Row],[Факт. дата оплаты]]<=Реестр_tb[[#This Row],[Плановая дата оплаты]]),"Оплачено вовремя",IF(AND(Реестр_tb[[#This Row],[Оплачен]]="Да",Реестр_tb[[#This Row],[Факт. дата оплаты]]>Реестр_tb[[#This Row],[Плановая дата оплаты]]),"Просрочено",IF(AND(Реестр_tb[[#This Row],[Оплачен]]="Нет",Реестр_tb[[#This Row],[Факт. дата оплаты]]="",Реестр_tb[[#This Row],[Плановая дата оплаты]]<$AB$1),"Просрочено",IF(Реестр_tb[[#This Row],[Плановая дата оплаты]]=$AB$1,"Сегодня",IF(Реестр_tb[[#This Row],[Плановая дата оплаты]]<=$AB$1+7,"В течении недели","Через неделю и более"))))) -> Через неделю и более | T113: Договор № ТО-5-22 от ххх на сумму 216 000,00 руб. (БО на сумму 216 000,00 руб.)
A114: ИП Ибрагимов Рустам Ибрагимович | B114: Муниципальное задание | C114: обслуживание системы видеонаблюдения | D114: =IFERROR(VLOOKUP(Реестр_tb[[#This Row],[Подкатегория]],IF({1,0},Данные_tb[ЕД],Данные_tb[доп. код.]),2,0)," ") -> 4 | E114: =IFERROR(VLOOKUP(Реестр_tb[[#This Row],[ДОПЫ]],IF({1,0},Данные_tb[доп. код.],Данные_tb[Источник]),2,0)," ") -> 20 | F114: Нет | G114: август | H114: обслуживание системы видеонаблюдения | I114: 5 | J114: 18000 | O114: =IF(Реестр_tb[[#This Row],[Срок оплаты (дней)]]="","",WORKDAY(Реестр_tb[[#This Row],[входящий (дата)]],Реестр_tb[[#This Row],[Срок оплаты (дней)]]+1,Выходные_tb[Выходные])) ->  | Q114: =IF(AND(Реестр_tb[[#This Row],[Оплачен]]="Да",Реестр_tb[[#This Row],[Факт. дата оплаты]]<=Реестр_tb[[#This Row],[Плановая дата оплаты]]),"Оплачено вовремя",IF(AND(Реестр_tb[[#This Row],[Оплачен]]="Да",Реестр_tb[[#This Row],[Факт. дата оплаты]]>Реестр_tb[[#This Row],[Плановая дата оплаты]]),"Просрочено",IF(AND(Реестр_tb[[#This Row],[Оплачен]]="Нет",Реестр_tb[[#This Row],[Факт. дата оплаты]]="",Реестр_tb[[#This Row],[Плановая дата оплаты]]<$AB$1),"Просрочено",IF(Реестр_tb[[#This Row],[Плановая дата оплаты]]=$AB$1,"Сегодня",IF(Реестр_tb[[#This Row],[Плановая дата оплаты]]<=$AB$1+7,"В течении недели","Через неделю и более"))))) -> Через неделю и более | T114: Договор № ТО-5-22 от ххх на сумму 216 000,00 руб. (БО на сумму 216 000,00 руб.)
A115: ИП Ибрагимов Рустам Ибрагимович | B115: Муниципальное задание | C115: обслуживание системы видеонаблюдения | D115: =IFERROR(VLOOKUP(Реестр_tb[[#This Row],[Подкатегория]],IF({1,0},Данные_tb[ЕД],Данные_tb[доп. код.]),2,0)," ") -> 4 | E115: =IFERROR(VLOOKUP(Реестр_tb[[#This Row],[ДОПЫ]],IF({1,0},Данные_tb[доп. код.],Данные_tb[Источник]),2,0)," ") -> 20 | F115: Нет | G115: сентябрь | H115: обслуживание системы видеонаблюдения | I115: 5 | J115: 18000 | O115: =IF(Реестр_tb[[#This Row],[Срок оплаты (дней)]]="","",WORKDAY(Реестр_tb[[#This Row],[входящий (дата)]],Реестр_tb[[#This Row],[Срок оплаты (дней)]]+1,Выходные_tb[Выходные])) ->  | Q115: =IF(AND(Реестр_tb[[#This Row],[Оплачен]]="Да",Реестр_tb[[#This Row],[Факт. дата оплаты]]<=Реестр_tb[[#This Row],[Плановая дата оплаты]]),"Оплачено вовремя",IF(AND(Реестр_tb[[#This Row],[Оплачен]]="Да",Реестр_tb[[#This Row],[Факт. дата оплаты]]>Реестр_tb[[#This Row],[Плановая дата оплаты]]),"Просрочено",IF(AND(Реестр_tb[[#This Row],[Оплачен]]="Нет",Реестр_tb[[#This Row],[Факт. дата оплаты]]="",Реестр_tb[[#This Row],[Плановая дата оплаты]]<$AB$1),"Просрочено",IF(Реестр_tb[[#This Row],[Плановая дата оплаты]]=$AB$1,"Сегодня",IF(Реестр_tb[[#This Row],[Плановая дата оплаты]]<=$AB$1+7,"В течении недели","Через неделю и более"))))) -> Через неделю и более | T115: Договор № ТО-5-22 от ххх на сумму 216 000,00 руб. (БО на сумму 216 000,00 руб.)
A116: ИП Ибрагимов Рустам Ибрагимович | B116: Муниципальное задание | C116: обслуживание системы видеонаблюдения | D116: =IFERROR(VLOOKUP(Реестр_tb[[#This Row],[Подкатегория]],IF({1,0},Данные_tb[ЕД],Данные_tb[доп. код.]),2,0)," ") -> 4 | E116: =IFERROR(VLOOKUP(Реестр_tb[[#This Row],[ДОПЫ]],IF({1,0},Данные_tb[доп. код.],Данные_tb[Источник]),2,0)," ") -> 20 | F116: Нет | G116: октябрь | H116: обслуживание системы видеонаблюдения | I116: 5 | J116: 18000 | O116: =IF(Реестр_tb[[#This Row],[Срок оплаты (дней)]]="","",WORKDAY(Реестр_tb[[#This Row],[входящий (дата)]],Реестр_tb[[#This Row],[Срок оплаты (дней)]]+1,Выходные_tb[Выходные])) ->  | Q116: =IF(AND(Реестр_tb[[#This Row],[Оплачен]]="Да",Реестр_tb[[#This Row],[Факт. дата оплаты]]<=Реестр_tb[[#This Row],[Плановая дата оплаты]]),"Оплачено вовремя",IF(AND(Реестр_tb[[#This Row],[Оплачен]]="Да",Реестр_tb[[#This Row],[Факт. дата оплаты]]>Реестр_tb[[#This Row],[Плановая дата оплаты]]),"Просрочено",IF(AND(Реестр_tb[[#This Row],[Оплачен]]="Нет",Реестр_tb[[#This Row],[Факт. дата оплаты]]="",Реестр_tb[[#This Row],[Плановая дата оплаты]]<$AB$1),"Просрочено",IF(Реестр_tb[[#This Row],[Плановая дата оплаты]]=$AB$1,"Сегодня",IF(Реестр_tb[[#This Row],[Плановая дата оплаты]]<=$AB$1+7,"В течении недели","Через неделю и более"))))) -> Через неделю и более | T116: Договор № ТО-5-22 от ххх на сумму 216 000,00 руб. (БО на сумму 216 000,00 руб.)
A117: ИП Ибрагимов Рустам Ибрагимович | B117: Муниципальное задание | C117: обслуживание системы видеонаблюдения | D117: =IFERROR(VLOOKUP(Реестр_tb[[#This Row],[Подкатегория]],IF({1,0},Данные_tb[ЕД],Данные_tb[доп. код.]),2,0)," ") -> 4 | E117: =IFERROR(VLOOKUP(Реестр_tb[[#This Row],[ДОПЫ]],IF({1,0},Данные_tb[доп. код.],Данные_tb[Источник]),2,0)," ") -> 20 | F117: Нет | G117: ноябрь | H117: обслуживание системы видеонаблюдения | I117: 5 | J117: 18000 | O117: =IF(Реестр_tb[[#This Row],[Срок оплаты (дней)]]="","",WORKDAY(Реестр_tb[[#This Row],[входящий (дата)]],Реестр_tb[[#This Row],[Срок оплаты (дней)]]+1,Выходные_tb[Выходные])) ->  | Q117: =IF(AND(Реестр_tb[[#This Row],[Оплачен]]="Да",Реестр_tb[[#This Row],[Факт. дата оплаты]]<=Реестр_tb[[#This Row],[Плановая дата оплаты]]),"Оплачено вовремя",IF(AND(Реестр_tb[[#This Row],[Оплачен]]="Да",Реестр_tb[[#This Row],[Факт. дата оплаты]]>Реестр_tb[[#This Row],[Плановая дата оплаты]]),"Просрочено",IF(AND(Реестр_tb[[#This Row],[Оплачен]]="Нет",Реестр_tb[[#This Row],[Факт. дата оплаты]]="",Реестр_tb[[#This Row],[Плановая дата оплаты]]<$AB$1),"Просрочено",IF(Реестр_tb[[#This Row],[Плановая дата оплаты]]=$AB$1,"Сегодня",IF(Реестр_tb[[#This Row],[Плановая дата оплаты]]<=$AB$1+7,"В течении недели","Через неделю и более"))))) -> Через неделю и более | T117: Договор № ТО-5-22 от ххх на сумму 216 000,00 руб. (БО на сумму 216 000,00 руб.)
A118: ИП Ибрагимов Рустам Ибрагимович | B118: Муниципальное задание | C118: обслуживание системы видеонаблюдения | D118: =IFERROR(VLOOKUP(Реестр_tb[[#This Row],[Подкатегория]],IF({1,0},Данные_tb[ЕД],Данные_tb[доп. код.]),2,0)," ") -> 4 | E118: =IFERROR(VLOOKUP(Реестр_tb[[#This Row],[ДОПЫ]],IF({1,0},Данные_tb[доп. код.],Данные_tb[Источник]),2,0)," ") -> 20 | F118: Нет | G118: декабрь | H118: обслуживание системы видеонаблюдения | I118: 5 | J118: 18000 | O118: =IF(Реестр_tb[[#This Row],[Срок оплаты (дней)]]="","",WORKDAY(Реестр_tb[[#This Row],[входящий (дата)]],Реестр_tb[[#This Row],[Срок оплаты (дней)]]+1,Выходные_tb[Выходные])) ->  | Q118: =IF(AND(Реестр_tb[[#This Row],[Оплачен]]="Да",Реестр_tb[[#This Row],[Факт. дата оплаты]]<=Реестр_tb[[#This Row],[Плановая дата оплаты]]),"Оплачено вовремя",IF(AND(Реестр_tb[[#This Row],[Оплачен]]="Да",Реестр_tb[[#This Row],[Факт. дата оплаты]]>Реестр_tb[[#This Row],[Плановая дата оплаты]]),"Просрочено",IF(AND(Реестр_tb[[#This Row],[Оплачен]]="Нет",Реестр_tb[[#This Row],[Факт. дата оплаты]]="",Реестр_tb[[#This Row],[Плановая дата оплаты]]<$AB$1),"Просрочено",IF(Реестр_tb[[#This Row],[Плановая дата оплаты]]=$AB$1,"Сегодня",IF(Реестр_tb[[#This Row],[Плановая дата оплаты]]<=$AB$1+7,"В течении недели","Через неделю и более"))))) -> Через неделю и более | T118: Договор № ТО-5-22 от ххх на сумму 216 000,00 руб. (БО на сумму 216 000,00 руб.)
A119: ООО "Кашалот-К" | B119: Муниципальное задание | C119: обслуживание пожарной сигнализации | D119: =IFERROR(VLOOKUP(Реестр_tb[[#This Row],[Подкатегория]],IF({1,0},Данные_tb[ЕД],Данные_tb[доп. код.]),2,0)," ") -> 4 | E119: =IFERROR(VLOOKUP(Реестр_tb[[#This Row],[ДОПЫ]],IF({1,0},Данные_tb[доп. код.],Данные_tb[Источник]),2,0)," ") -> 20 | F119: Нет | G119: январь | H119: обслуживание пожарной сигнализации | I119: 5 | J119: 25000 | O119: =IF(Реестр_tb[[#This Row],[Срок оплаты (дней)]]="","",WORKDAY(Реестр_tb[[#This Row],[входящий (дата)]],Реестр_tb[[#This Row],[Срок оплаты (дней)]]+1,Выходные_tb[Выходные])) ->  | Q119: =IF(AND(Реестр_tb[[#This Row],[Оплачен]]="Да",Реестр_tb[[#This Row],[Факт. дата оплаты]]<=Реестр_tb[[#This Row],[Плановая дата оплаты]]),"Оплачено вовремя",IF(AND(Реестр_tb[[#This Row],[Оплачен]]="Да",Реестр_tb[[#This Row],[Факт. дата оплаты]]>Реестр_tb[[#This Row],[Плановая дата оплаты]]),"Просрочено",IF(AND(Реестр_tb[[#This Row],[Оплачен]]="Нет",Реестр_tb[[#This Row],[Факт. дата оплаты]]="",Реестр_tb[[#This Row],[Плановая дата оплаты]]<$AB$1),"Просрочено",IF(Реестр_tb[[#This Row],[Плановая дата оплаты]]=$AB$1,"Сегодня",IF(Реестр_tb[[#This Row],[Плановая дата оплаты]]<=$AB$1+7,"В течении недели","Через неделю и более"))))) -> Через неделю и более | T119: Контракт № ТО-5-22 от ххх на сумму 300 000,00 руб. (БО на сумму 300 000 руб.)
A120: ООО "Кашалот-К" | B120: Муниципальное задание | C120: обслуживание пожарной сигнализации | D120: =IFERROR(VLOOKUP(Реестр_tb[[#This Row],[Подкатегория]],IF({1,0},Данные_tb[ЕД],Данные_tb[доп. код.]),2,0)," ") -> 4 | E120: =IFERROR(VLOOKUP(Реестр_tb[[#This Row],[ДОПЫ]],IF({1,0},Данные_tb[доп. код.],Данные_tb[Источник]),2,0)," ") -> 20 | F120: Нет | G120: февраль | H120: обслуживание пожарной сигнализации | I120: 5 | J120: 25000 | O120: =IF(Реестр_tb[[#This Row],[Срок оплаты (дней)]]="","",WORKDAY(Реестр_tb[[#This Row],[входящий (дата)]],Реестр_tb[[#This Row],[Срок оплаты (дней)]]+1,Выходные_tb[Выходные])) ->  | Q120: =IF(AND(Реестр_tb[[#This Row],[Оплачен]]="Да",Реестр_tb[[#This Row],[Факт. дата оплаты]]<=Реестр_tb[[#This Row],[Плановая дата оплаты]]),"Оплачено вовремя",IF(AND(Реестр_tb[[#This Row],[Оплачен]]="Да",Реестр_tb[[#This Row],[Факт. дата оплаты]]>Реестр_tb[[#This Row],[Плановая дата оплаты]]),"Просрочено",IF(AND(Реестр_tb[[#This Row],[Оплачен]]="Нет",Реестр_tb[[#This Row],[Факт. дата оплаты]]="",Реестр_tb[[#This Row],[Плановая дата оплаты]]<$AB$1),"Просрочено",IF(Реестр_tb[[#This Row],[Плановая дата оплаты]]=$AB$1,"Сегодня",IF(Реестр_tb[[#This Row],[Плановая дата оплаты]]<=$AB$1+7,"В течении недели","Через неделю и более"))))) -> Через неделю и более | T120: Контракт № ТО-5-22 от ххх на сумму 300 000,00 руб. (БО на сумму 300 000 руб.)
A121: ООО "Кашалот-К" | B121: Муниципальное задание | C121: обслуживание пожарной сигнализации | D121: =IFERROR(VLOOKUP(Реестр_tb[[#This Row],[Подкатегория]],IF({1,0},Данные_tb[ЕД],Данные_tb[доп. код.]),2,0)," ") -> 4 | E121: =IFERROR(VLOOKUP(Реестр_tb[[#This Row],[ДОПЫ]],IF({1,0},Данные_tb[доп. код.],Данные_tb[Источник]),2,0)," ") -> 20 | F121: Нет | G121: март | H121: обслуживание пожарной сигнализации | I121: 5 | J121: 25000 | O121: =IF(Реестр_tb[[#This Row],[Срок оплаты (дней)]]="","",WORKDAY(Реестр_tb[[#This Row],[входящий (дата)]],Реестр_tb[[#This Row],[Срок оплаты (дней)]]+1,Выходные_tb[Выходные])) ->  | Q121: =IF(AND(Реестр_tb[[#This Row],[Оплачен]]="Да",Реестр_tb[[#This Row],[Факт. дата оплаты]]<=Реестр_tb[[#This Row],[Плановая дата оплаты]]),"Оплачено вовремя",IF(AND(Реестр_tb[[#This Row],[Оплачен]]="Да",Реестр_tb[[#This Row],[Факт. дата оплаты]]>Реестр_tb[[#This Row],[Плановая дата оплаты]]),"Просрочено",IF(AND(Реестр_tb[[#This Row],[Оплачен]]="Нет",Реестр_tb[[#This Row],[Факт. дата оплаты]]="",Реестр_tb[[#This Row],[Плановая дата оплаты]]<$AB$1),"Просрочено",IF(Реестр_tb[[#This Row],[Плановая дата оплаты]]=$AB$1,"Сегодня",IF(Реестр_tb[[#This Row],[Плановая дата оплаты]]<=$AB$1+7,"В течении недели","Через неделю и более"))))) -> Через неделю и более | T121: Контракт № ТО-5-22 от ххх на сумму 300 000,00 руб. (БО на сумму 300 000 руб.)
A122: ООО "Кашалот-К" | B122: Муниципальное задание | C122: обслуживание пожарной сигнализации | D122: =IFERROR(VLOOKUP(Реестр_tb[[#This Row],[Подкатегория]],IF({1,0},Данные_tb[ЕД],Данные_tb[доп. код.]),2,0)," ") -> 4 | E122: =IFERROR(VLOOKUP(Реестр_tb[[#This Row],[ДОПЫ]],IF({1,0},Данные_tb[доп. код.],Данные_tb[Источник]),2,0)," ") -> 20 | F122: Нет | G122: апрель | H122: обслуживание пожарной сигнализации | I122: 5 | J122: 25000 | O122: =IF(Реестр_tb[[#This Row],[Срок оплаты (дней)]]="","",WORKDAY(Реестр_tb[[#This Row],[входящий (дата)]],Реестр_tb[[#This Row],[Срок оплаты (дней)]]+1,Выходные_tb[Выходные])) ->  | Q122: =IF(AND(Реестр_tb[[#This Row],[Оплачен]]="Да",Реестр_tb[[#This Row],[Факт. дата оплаты]]<=Реестр_tb[[#This Row],[Плановая дата оплаты]]),"Оплачено вовремя",IF(AND(Реестр_tb[[#This Row],[Оплачен]]="Да",Реестр_tb[[#This Row],[Факт. дата оплаты]]>Реестр_tb[[#This Row],[Плановая дата оплаты]]),"Просрочено",IF(AND(Реестр_tb[[#This Row],[Оплачен]]="Нет",Реестр_tb[[#This Row],[Факт. дата оплаты]]="",Реестр_tb[[#This Row],[Плановая дата оплаты]]<$AB$1),"Просрочено",IF(Реестр_tb[[#This Row],[Плановая дата оплаты]]=$AB$1,"Сегодня",IF(Реестр_tb[[#This Row],[Плановая дата оплаты]]<=$AB$1+7,"В течении недели","Через неделю и более"))))) -> Через неделю и более | T122: Контракт № ТО-5-22 от ххх на сумму 300 000,00 руб. (БО на сумму 300 000 руб.)
A123: ООО "Кашалот-К" | B123: Муниципальное задание | C123: обслуживание пожарной сигнализации | D123: =IFERROR(VLOOKUP(Реестр_tb[[#This Row],[Подкатегория]],IF({1,0},Данные_tb[ЕД],Данные_tb[доп. код.]),2,0)," ") -> 4 | E123: =IFERROR(VLOOKUP(Реестр_tb[[#This Row],[ДОПЫ]],IF({1,0},Данные_tb[доп. код.],Данные_tb[Источник]),2,0)," ") -> 20 | F123: Нет | G123: май | H123: обслуживание пожарной сигнализации | I123: 5 | J123: 25000 | O123: =IF(Реестр_tb[[#This Row],[Срок оплаты (дней)]]="","",WORKDAY(Реестр_tb[[#This Row],[входящий (дата)]],Реестр_tb[[#This Row],[Срок оплаты (дней)]]+1,Выходные_tb[Выходные])) ->  | Q123: =IF(AND(Реестр_tb[[#This Row],[Оплачен]]="Да",Реестр_tb[[#This Row],[Факт. дата оплаты]]<=Реестр_tb[[#This Row],[Плановая дата оплаты]]),"Оплачено вовремя",IF(AND(Реестр_tb[[#This Row],[Оплачен]]="Да",Реестр_tb[[#This Row],[Факт. дата оплаты]]>Реестр_tb[[#This Row],[Плановая дата оплаты]]),"Просрочено",IF(AND(Реестр_tb[[#This Row],[Оплачен]]="Нет",Реестр_tb[[#This Row],[Факт. дата оплаты]]="",Реестр_tb[[#This Row],[Плановая дата оплаты]]<$AB$1),"Просрочено",IF(Реестр_tb[[#This Row],[Плановая дата оплаты]]=$AB$1,"Сегодня",IF(Реестр_tb[[#This Row],[Плановая дата оплаты]]<=$AB$1+7,"В течении недели","Через неделю и более"))))) -> Через неделю и более | T123: Контракт № ТО-5-22 от ххх на сумму 300 000,00 руб. (БО на сумму 300 000 руб.)
A124: ООО "Кашалот-К" | B124: Муниципальное задание | C124: обслуживание пожарной сигнализации | D124: =IFERROR(VLOOKUP(Реестр_tb[[#This Row],[Подкатегория]],IF({1,0},Данные_tb[ЕД],Данные_tb[доп. код.]),2,0)," ") -> 4 | E124: =IFERROR(VLOOKUP(Реестр_tb[[#This Row],[ДОПЫ]],IF({1,0},Данные_tb[доп. код.],Данные_tb[Источник]),2,0)," ") -> 20 | F124: Нет | G124: июнь | H124: обслуживание пожарной сигнализации | I124: 5 | J124: 25000 | O124: =IF(Реестр_tb[[#This Row],[Срок оплаты (дней)]]="","",WORKDAY(Реестр_tb[[#This Row],[входящий (дата)]],Реестр_tb[[#This Row],[Срок оплаты (дней)]]+1,Выходные_tb[Выходные])) ->  | Q124: =IF(AND(Реестр_tb[[#This Row],[Оплачен]]="Да",Реестр_tb[[#This Row],[Факт. дата оплаты]]<=Реестр_tb[[#This Row],[Плановая дата оплаты]]),"Оплачено вовремя",IF(AND(Реестр_tb[[#This Row],[Оплачен]]="Да",Реестр_tb[[#This Row],[Факт. дата оплаты]]>Реестр_tb[[#This Row],[Плановая дата оплаты]]),"Просрочено",IF(AND(Реестр_tb[[#This Row],[Оплачен]]="Нет",Реестр_tb[[#This Row],[Факт. дата оплаты]]="",Реестр_tb[[#This Row],[Плановая дата оплаты]]<$AB$1),"Просрочено",IF(Реестр_tb[[#This Row],[Плановая дата оплаты]]=$AB$1,"Сегодня",IF(Реестр_tb[[#This Row],[Плановая дата оплаты]]<=$AB$1+7,"В течении недели","Через неделю и более"))))) -> Через неделю и более | T124: Контракт № ТО-5-22 от ххх на сумму 300 000,00 руб. (БО на сумму 300 000 руб.)
A125: ООО "Кашалот-К" | B125: Муниципальное задание | C125: обслуживание пожарной сигнализации | D125: =IFERROR(VLOOKUP(Реестр_tb[[#This Row],[Подкатегория]],IF({1,0},Данные_tb[ЕД],Данные_tb[доп. код.]),2,0)," ") -> 4 | E125: =IFERROR(VLOOKUP(Реестр_tb[[#This Row],[ДОПЫ]],IF({1,0},Данные_tb[доп. код.],Данные_tb[Источник]),2,0)," ") -> 20 | F125: Нет | G125: июль | H125: обслуживание пожарной сигнализации | I125: 5 | J125: 25000 | O125: =IF(Реестр_tb[[#This Row],[Срок оплаты (дней)]]="","",WORKDAY(Реестр_tb[[#This Row],[входящий (дата)]],Реестр_tb[[#This Row],[Срок оплаты (дней)]]+1,Выходные_tb[Выходные])) ->  | Q125: =IF(AND(Реестр_tb[[#This Row],[Оплачен]]="Да",Реестр_tb[[#This Row],[Факт. дата оплаты]]<=Реестр_tb[[#This Row],[Плановая дата оплаты]]),"Оплачено вовремя",IF(AND(Реестр_tb[[#This Row],[Оплачен]]="Да",Реестр_tb[[#This Row],[Факт. дата оплаты]]>Реестр_tb[[#This Row],[Плановая дата оплаты]]),"Просрочено",IF(AND(Реестр_tb[[#This Row],[Оплачен]]="Нет",Реестр_tb[[#This Row],[Факт. дата оплаты]]="",Реестр_tb[[#This Row],[Плановая дата оплаты]]<$AB$1),"Просрочено",IF(Реестр_tb[[#This Row],[Плановая дата оплаты]]=$AB$1,"Сегодня",IF(Реестр_tb[[#This Row],[Плановая дата оплаты]]<=$AB$1+7,"В течении недели","Через неделю и более"))))) -> Через неделю и более | T125: Контракт № ТО-5-22 от ххх на сумму 300 000,00 руб. (БО на сумму 300 000 руб.)
A126: ООО "Кашалот-К" | B126: Муниципальное задание | C126: обслуживание пожарной сигнализации | D126: =IFERROR(VLOOKUP(Реестр_tb[[#This Row],[Подкатегория]],IF({1,0},Данные_tb[ЕД],Данные_tb[доп. код.]),2,0)," ") -> 4 | E126: =IFERROR(VLOOKUP(Реестр_tb[[#This Row],[ДОПЫ]],IF({1,0},Данные_tb[доп. код.],Данные_tb[Источник]),2,0)," ") -> 20 | F126: Нет | G126: август | H126: обслуживание пожарной сигнализации | I126: 5 | J126: 25000 | O126: =IF(Реестр_tb[[#This Row],[Срок оплаты (дней)]]="","",WORKDAY(Реестр_tb[[#This Row],[входящий (дата)]],Реестр_tb[[#This Row],[Срок оплаты (дней)]]+1,Выходные_tb[Выходные])) ->  | Q126: =IF(AND(Реестр_tb[[#This Row],[Оплачен]]="Да",Реестр_tb[[#This Row],[Факт. дата оплаты]]<=Реестр_tb[[#This Row],[Плановая дата оплаты]]),"Оплачено вовремя",IF(AND(Реестр_tb[[#This Row],[Оплачен]]="Да",Реестр_tb[[#This Row],[Факт. дата оплаты]]>Реестр_tb[[#This Row],[Плановая дата оплаты]]),"Просрочено",IF(AND(Реестр_tb[[#This Row],[Оплачен]]="Нет",Реестр_tb[[#This Row],[Факт. дата оплаты]]="",Реестр_tb[[#This Row],[Плановая дата оплаты]]<$AB$1),"Просрочено",IF(Реестр_tb[[#This Row],[Плановая дата оплаты]]=$AB$1,"Сегодня",IF(Реестр_tb[[#This Row],[Плановая дата оплаты]]<=$AB$1+7,"В течении недели","Через неделю и более"))))) -> Через неделю и более | T126: Контракт № ТО-5-22 от ххх на сумму 300 000,00 руб. (БО на сумму 300 000 руб.)
A127: ООО "Кашалот-К" | B127: Муниципальное задание | C127: обслуживание пожарной сигнализации | D127: =IFERROR(VLOOKUP(Реестр_tb[[#This Row],[Подкатегория]],IF({1,0},Данные_tb[ЕД],Данные_tb[доп. код.]),2,0)," ") -> 4 | E127: =IFERROR(VLOOKUP(Реестр_tb[[#This Row],[ДОПЫ]],IF({1,0},Данные_tb[доп. код.],Данные_tb[Источник]),2,0)," ") -> 20 | F127: Нет | G127: сентябрь | H127: обслуживание пожарной сигнализации | I127: 5 | J127: 25000 | O127: =IF(Реестр_tb[[#This Row],[Срок оплаты (дней)]]="","",WORKDAY(Реестр_tb[[#This Row],[входящий (дата)]],Реестр_tb[[#This Row],[Срок оплаты (дней)]]+1,Выходные_tb[Выходные])) ->  | Q127: =IF(AND(Реестр_tb[[#This Row],[Оплачен]]="Да",Реестр_tb[[#This Row],[Факт. дата оплаты]]<=Реестр_tb[[#This Row],[Плановая дата оплаты]]),"Оплачено вовремя",IF(AND(Реестр_tb[[#This Row],[Оплачен]]="Да",Реестр_tb[[#This Row],[Факт. дата оплаты]]>Реестр_tb[[#This Row],[Плановая дата оплаты]]),"Просрочено",IF(AND(Реестр_tb[[#This Row],[Оплачен]]="Нет",Реестр_tb[[#This Row],[Факт. дата оплаты]]="",Реестр_tb[[#This Row],[Плановая дата оплаты]]<$AB$1),"Просрочено",IF(Реестр_tb[[#This Row],[Плановая дата оплаты]]=$AB$1,"Сегодня",IF(Реестр_tb[[#This Row],[Плановая дата оплаты]]<=$AB$1+7,"В течении недели","Через неделю и более"))))) -> Через неделю и более | T127: Контракт № ТО-5-22 от ххх на сумму 300 000,00 руб. (БО на сумму 300 000 руб.)
A128: ООО "Кашалот-К" | B128: Муниципальное задание | C128: обслуживание пожарной сигнализации | D128: =IFERROR(VLOOKUP(Реестр_tb[[#This Row],[Подкатегория]],IF({1,0},Данные_tb[ЕД],Данные_tb[доп. код.]),2,0)," ") -> 4 | E128: =IFERROR(VLOOKUP(Реестр_tb[[#This Row],[ДОПЫ]],IF({1,0},Данные_tb[доп. код.],Данные_tb[Источник]),2,0)," ") -> 20 | F128: Нет | G128: октябрь | H128: обслуживание пожарной сигнализации | I128: 5 | J128: 25000 | O128: =IF(Реестр_tb[[#This Row],[Срок оплаты (дней)]]="","",WORKDAY(Реестр_tb[[#This Row],[входящий (дата)]],Реестр_tb[[#This Row],[Срок оплаты (дней)]]+1,Выходные_tb[Выходные])) ->  | Q128: =IF(AND(Реестр_tb[[#This Row],[Оплачен]]="Да",Реестр_tb[[#This Row],[Факт. дата оплаты]]<=Реестр_tb[[#This Row],[Плановая дата оплаты]]),"Оплачено вовремя",IF(AND(Реестр_tb[[#This Row],[Оплачен]]="Да",Реестр_tb[[#This Row],[Факт. дата оплаты]]>Реестр_tb[[#This Row],[Плановая дата оплаты]]),"Просрочено",IF(AND(Реестр_tb[[#This Row],[Оплачен]]="Нет",Реестр_tb[[#This Row],[Факт. дата оплаты]]="",Реестр_tb[[#This Row],[Плановая дата оплаты]]<$AB$1),"Просрочено",IF(Реестр_tb[[#This Row],[Плановая дата оплаты]]=$AB$1,"Сегодня",IF(Реестр_tb[[#This Row],[Плановая дата оплаты]]<=$AB$1+7,"В течении недели","Через неделю и более"))))) -> Через неделю и более | T128: Контракт № ТО-5-22 от ххх на сумму 300 000,00 руб. (БО на сумму 300 000 руб.)
A129: ООО "Кашалот-К" | B129: Муниципальное задание | C129: обслуживание пожарной сигнализации | D129: =IFERROR(VLOOKUP(Реестр_tb[[#This Row],[Подкатегория]],IF({1,0},Данные_tb[ЕД],Данные_tb[доп. код.]),2,0)," ") -> 4 | E129: =IFERROR(VLOOKUP(Реестр_tb[[#This Row],[ДОПЫ]],IF({1,0},Данные_tb[доп. код.],Данные_tb[Источник]),2,0)," ") -> 20 | F129: Нет | G129: ноябрь | H129: обслуживание пожарной сигнализации | I129: 5 | J129: 25000 | O129: =IF(Реестр_tb[[#This Row],[Срок оплаты (дней)]]="","",WORKDAY(Реестр_tb[[#This Row],[входящий (дата)]],Реестр_tb[[#This Row],[Срок оплаты (дней)]]+1,Выходные_tb[Выходные])) ->  | Q129: =IF(AND(Реестр_tb[[#This Row],[Оплачен]]="Да",Реестр_tb[[#This Row],[Факт. дата оплаты]]<=Реестр_tb[[#This Row],[Плановая дата оплаты]]),"Оплачено вовремя",IF(AND(Реестр_tb[[#This Row],[Оплачен]]="Да",Реестр_tb[[#This Row],[Факт. дата оплаты]]>Реестр_tb[[#This Row],[Плановая дата оплаты]]),"Просрочено",IF(AND(Реестр_tb[[#This Row],[Оплачен]]="Нет",Реестр_tb[[#This Row],[Факт. дата оплаты]]="",Реестр_tb[[#This Row],[Плановая дата оплаты]]<$AB$1),"Просрочено",IF(Реестр_tb[[#This Row],[Плановая дата оплаты]]=$AB$1,"Сегодня",IF(Реестр_tb[[#This Row],[Плановая дата оплаты]]<=$AB$1+7,"В течении недели","Через неделю и более"))))) -> Через неделю и более | T129: Контракт № ТО-5-22 от ххх на сумму 300 000,00 руб. (БО на сумму 300 000 руб.)
A130: ООО "Кашалот-К" | B130: Муниципальное задание | C130: обслуживание пожарной сигнализации | D130: =IFERROR(VLOOKUP(Реестр_tb[[#This Row],[Подкатегория]],IF({1,0},Данные_tb[ЕД],Данные_tb[доп. код.]),2,0)," ") -> 4 | E130: =IFERROR(VLOOKUP(Реестр_tb[[#This Row],[ДОПЫ]],IF({1,0},Данные_tb[доп. код.],Данные_tb[Источник]),2,0)," ") -> 20 | F130: Нет | G130: декабрь | H130: обслуживание пожарной сигнализации | I130: 5 | J130: 25000 | O130: =IF(Реестр_tb[[#This Row],[Срок оплаты (дней)]]="","",WORKDAY(Реестр_tb[[#This Row],[входящий (дата)]],Реестр_tb[[#This Row],[Срок оплаты (дней)]]+1,Выходные_tb[Выходные])) ->  | Q130: =IF(AND(Реестр_tb[[#This Row],[Оплачен]]="Да",Реестр_tb[[#This Row],[Факт. дата оплаты]]<=Реестр_tb[[#This Row],[Плановая дата оплаты]]),"Оплачено вовремя",IF(AND(Реестр_tb[[#This Row],[Оплачен]]="Да",Реестр_tb[[#This Row],[Факт. дата оплаты]]>Реестр_tb[[#This Row],[Плановая дата оплаты]]),"Просрочено",IF(AND(Реестр_tb[[#This Row],[Оплачен]]="Нет",Реестр_tb[[#This Row],[Факт. дата оплаты]]="",Реестр_tb[[#This Row],[Плановая дата оплаты]]<$AB$1),"Просрочено",IF(Реестр_tb[[#This Row],[Плановая дата оплаты]]=$AB$1,"Сегодня",IF(Реестр_tb[[#This Row],[Плановая дата оплаты]]<=$AB$1+7,"В течении недели","Через неделю и более"))))) -> Через неделю и более | T130: Контракт № ТО-5-22 от ххх на сумму 300 000,00 руб. (БО на сумму 300 000 руб.)
A131: ООО «Региональный Центр Консультант» | B131: Муниципальное задание | C131: обновление справочно-информационных баз (Консультант) | D131: =IFERROR(VLOOKUP(Реестр_tb[[#This Row],[Подкатегория]],IF({1,0},Данные_tb[ЕД],Данные_tb[доп. код.]),2,0)," ") -> 4 | E131: =IFERROR(VLOOKUP(Реестр_tb[[#This Row],[ДОПЫ]],IF({1,0},Данные_tb[доп. код.],Данные_tb[Источник]),2,0)," ") -> 20 | F131: Нет | G131: 179 от 10.01.2022 | H131: обновление справочно-информационных баз (Консультант) | I131: 4 | J131: 6942.5 | L131: 2022-01-27 | M131: 15 | N131: Акта | O131: =IF(Реестр_tb[[#This Row],[Срок оплаты (дней)]]="","",WORKDAY(Реестр_tb[[#This Row],[входящий (дата)]],Реестр_tb[[#This Row],[Срок оплаты (дней)]]+1,Выходные_tb[Выходные])) -> 2022-02-18 | Q131: =IF(AND(Реестр_tb[[#This Row],[Оплачен]]="Да",Реестр_tb[[#This Row],[Факт. дата оплаты]]<=Реестр_tb[[#This Row],[Плановая дата оплаты]]),"Оплачено вовремя",IF(AND(Реестр_tb[[#This Row],[Оплачен]]="Да",Реестр_tb[[#This Row],[Факт. дата оплаты]]>Реестр_tb[[#This Row],[Плановая дата оплаты]]),"Просрочено",IF(AND(Реестр_tb[[#This Row],[Оплачен]]="Нет",Реестр_tb[[#This Row],[Факт. дата оплаты]]="",Реестр_tb[[#This Row],[Плановая дата оплаты]]<$AB$1),"Просрочено",IF(Реестр_tb[[#This Row],[Плановая дата оплаты]]=$AB$1,"Сегодня",IF(Реестр_tb[[#This Row],[Плановая дата оплаты]]<=$AB$1+7,"В течении недели","Через неделю и более"))))) -> Через неделю и более | R131: Полный расчет | S131: Оригиналы | T131: Договор № Р18.035/СП от ххх на сумму 97 533,72 руб. (БО на сумму 97 533,72 руб.)
A132: ООО «Региональный Центр Консультант» | B132: Муниципальное задание | C132: обновление справочно-информационных баз (Консультант) | D132: =IFERROR(VLOOKUP(Реестр_tb[[#This Row],[Подкатегория]],IF({1,0},Данные_tb[ЕД],Данные_tb[доп. код.]),2,0)," ") -> 4 | E132: =IFERROR(VLOOKUP(Реестр_tb[[#This Row],[ДОПЫ]],IF({1,0},Данные_tb[доп. код.],Данные_tb[Источник]),2,0)," ") -> 20 | F132: Нет | G132: февраль | H132: обновление справочно-информационных баз (Консультант) | I132: 4 | J132: 6942.5 | O132: =IF(Реестр_tb[[#This Row],[Срок оплаты (дней)]]="","",WORKDAY(Реестр_tb[[#This Row],[входящий (дата)]],Реестр_tb[[#This Row],[Срок оплаты (дней)]]+1,Выходные_tb[Выходные])) ->  | Q132: =IF(AND(Реестр_tb[[#This Row],[Оплачен]]="Да",Реестр_tb[[#This Row],[Факт. дата оплаты]]<=Реестр_tb[[#This Row],[Плановая дата оплаты]]),"Оплачено вовремя",IF(AND(Реестр_tb[[#This Row],[Оплачен]]="Да",Реестр_tb[[#This Row],[Факт. дата оплаты]]>Реестр_tb[[#This Row],[Плановая дата оплаты]]),"Просрочено",IF(AND(Реестр_tb[[#This Row],[Оплачен]]="Нет",Реестр_tb[[#This Row],[Факт. дата оплаты]]="",Реестр_tb[[#This Row],[Плановая дата оплаты]]<$AB$1),"Просрочено",IF(Реестр_tb[[#This Row],[Плановая дата оплаты]]=$AB$1,"Сегодня",IF(Реестр_tb[[#This Row],[Плановая дата оплаты]]<=$AB$1+7,"В течении недели","Через неделю и более"))))) -> Через неделю и более | T132: Договор № Р18.035/СП от ххх на сумму 97 533,72 руб. (БО на сумму 97 533,72 руб.)
A133: ООО «Региональный Центр Консультант» | B133: Муниципальное задание | C133: обновление справочно-информационных баз (Консультант) | D133: =IFERROR(VLOOKUP(Реестр_tb[[#This Row],[Подкатегория]],IF({1,0},Данные_tb[ЕД],Данные_tb[доп. код.]),2,0)," ") -> 4 | E133: =IFERROR(VLOOKUP(Реестр_tb[[#This Row],[ДОПЫ]],IF({1,0},Данные_tb[доп. код.],Данные_tb[Источник]),2,0)," ") -> 20 | F133: Нет | G133: март | H133: обновление справочно-информационных баз (Консультант) | I133: 4 | J133: 6942.5 | O133: =IF(Реестр_tb[[#This Row],[Срок оплаты (дней)]]="","",WORKDAY(Реестр_tb[[#This Row],[входящий (дата)]],Реестр_tb[[#This Row],[Срок оплаты (дней)]]+1,Выходные_tb[Выходные])) ->  | Q133: =IF(AND(Реестр_tb[[#This Row],[Оплачен]]="Да",Реестр_tb[[#This Row],[Факт. дата оплаты]]<=Реестр_tb[[#This Row],[Плановая дата оплаты]]),"Оплачено вовремя",IF(AND(Реестр_tb[[#This Row],[Оплачен]]="Да",Реестр_tb[[#This Row],[Факт. дата оплаты]]>Реестр_tb[[#This Row],[Плановая дата оплаты]]),"Просрочено",IF(AND(Реестр_tb[[#This Row],[Оплачен]]="Нет",Реестр_tb[[#This Row],[Факт. дата оплаты]]="",Реестр_tb[[#This Row],[Плановая дата оплаты]]<$AB$1),"Просрочено",IF(Реестр_tb[[#This Row],[Плановая дата оплаты]]=$AB$1,"Сегодня",IF(Реестр_tb[[#This Row],[Плановая дата оплаты]]<=$AB$1+7,"В течении недели","Через неделю и более"))))) -> Через неделю и более | T133: Договор № Р18.035/СП от ххх на сумму 97 533,72 руб. (БО на сумму 97 533,72 руб.)
A134: ООО «Региональный Центр Консультант» | B134: Муниципальное задание | C134: обновление справочно-информационных баз (Консультант) | D134: =IFERROR(VLOOKUP(Реестр_tb[[#This Row],[Подкатегория]],IF({1,0},Данные_tb[ЕД],Данные_tb[доп. код.]),2,0)," ") -> 4 | E134: =IFERROR(VLOOKUP(Реестр_tb[[#This Row],[ДОПЫ]],IF({1,0},Данные_tb[доп. код.],Данные_tb[Источник]),2,0)," ") -> 20 | F134: Нет | G134: март | H134: обновление справочно-информационных баз (Консультант) | I134: 4 | J134: 7111.86 | O134: =IF(Реестр_tb[[#This Row],[Срок оплаты (дней)]]="","",WORKDAY(Реестр_tb[[#This Row],[входящий (дата)]],Реестр_tb[[#This Row],[Срок оплаты (дней)]]+1,Выходные_tb[Выходные])) ->  | Q134: =IF(AND(Реестр_tb[[#This Row],[Оплачен]]="Да",Реестр_tb[[#This Row],[Факт. дата оплаты]]<=Реестр_tb[[#This Row],[Плановая дата оплаты]]),"Оплачено вовремя",IF(AND(Реестр_tb[[#This Row],[Оплачен]]="Да",Реестр_tb[[#This Row],[Факт. дата оплаты]]>Реестр_tb[[#This Row],[Плановая дата оплаты]]),"Просрочено",IF(AND(Реестр_tb[[#This Row],[Оплачен]]="Нет",Реестр_tb[[#This Row],[Факт. дата оплаты]]="",Реестр_tb[[#This Row],[Плановая дата оплаты]]<$AB$1),"Просрочено",IF(Реестр_tb[[#This Row],[Плановая дата оплаты]]=$AB$1,"Сегодня",IF(Реестр_tb[[#This Row],[Плановая дата оплаты]]<=$AB$1+7,"В течении недели","Через неделю и более"))))) -> Через неделю и более | T134: Договор № Р18.035/СП от ххх на сумму 97 533,72 руб. (БО на сумму 97 533,72 руб.)
A135: ООО «Региональный Центр Консультант» | B135: Муниципальное задание | C135: обновление справочно-информационных баз (Консультант) | D135: =IFERROR(VLOOKUP(Реестр_tb[[#This Row],[Подкатегория]],IF({1,0},Данные_tb[ЕД],Данные_tb[доп. код.]),2,0)," ") -> 4 | E135: =IFERROR(VLOOKUP(Реестр_tb[[#This Row],[ДОПЫ]],IF({1,0},Данные_tb[доп. код.],Данные_tb[Источник]),2,0)," ") -> 20 | F135: Нет | G135: апрель | H135: обновление справочно-информационных баз (Консультант) | I135: 4 | J135: 6942.5 | O135: =IF(Реестр_tb[[#This Row],[Срок оплаты (дней)]]="","",WORKDAY(Реестр_tb[[#This Row],[входящий (дата)]],Реестр_tb[[#This Row],[Срок оплаты (дней)]]+1,Выходные_tb[Выходные])) ->  | Q135: =IF(AND(Реестр_tb[[#This Row],[Оплачен]]="Да",Реестр_tb[[#This Row],[Факт. дата оплаты]]<=Реестр_tb[[#This Row],[Плановая дата оплаты]]),"Оплачено вовремя",IF(AND(Реестр_tb[[#This Row],[Оплачен]]="Да",Реестр_tb[[#This Row],[Факт. дата оплаты]]>Реестр_tb[[#This Row],[Плановая дата оплаты]]),"Просрочено",IF(AND(Реестр_tb[[#This Row],[Оплачен]]="Нет",Реестр_tb[[#This Row],[Факт. дата оплаты]]="",Реестр_tb[[#This Row],[Плановая дата оплаты]]<$AB$1),"Просрочено",IF(Реестр_tb[[#This Row],[Плановая дата оплаты]]=$AB$1,"Сегодня",IF(Реестр_tb[[#This Row],[Плановая дата оплаты]]<=$AB$1+7,"В течении недели","Через неделю и более"))))) -> Через неделю и более | T135: Договор № Р18.035/СП от ххх на сумму 97 533,72 руб. (БО на сумму 97 533,72 руб.)
A136: ООО «Региональный Центр Консультант» | B136: Муниципальное задание | C136: обновление справочно-информационных баз (Консультант) | D136: =IFERROR(VLOOKUP(Реестр_tb[[#This Row],[Подкатегория]],IF({1,0},Данные_tb[ЕД],Данные_tb[доп. код.]),2,0)," ") -> 4 | E136: =IFERROR(VLOOKUP(Реестр_tb[[#This Row],[ДОПЫ]],IF({1,0},Данные_tb[доп. код.],Данные_tb[Источник]),2,0)," ") -> 20 | F136: Нет | G136: май | H136: обновление справочно-информационных баз (Консультант) | I136: 4 | J136: 6942.5 | O136: =IF(Реестр_tb[[#This Row],[Срок оплаты (дней)]]="","",WORKDAY(Реестр_tb[[#This Row],[входящий (дата)]],Реестр_tb[[#This Row],[Срок оплаты (дней)]]+1,Выходные_tb[Выходные])) ->  | Q136: =IF(AND(Реестр_tb[[#This Row],[Оплачен]]="Да",Реестр_tb[[#This Row],[Факт. дата оплаты]]<=Реестр_tb[[#This Row],[Плановая дата оплаты]]),"Оплачено вовремя",IF(AND(Реестр_tb[[#This Row],[Оплачен]]="Да",Реестр_tb[[#This Row],[Факт. дата оплаты]]>Реестр_tb[[#This Row],[Плановая дата оплаты]]),"Просрочено",IF(AND(Реестр_tb[[#This Row],[Оплачен]]="Нет",Реестр_tb[[#This Row],[Факт. дата оплаты]]="",Реестр_tb[[#This Row],[Плановая дата оплаты]]<$AB$1),"Просрочено",IF(Реестр_tb[[#This Row],[Плановая дата оплаты]]=$AB$1,"Сегодня",IF(Реестр_tb[[#This Row],[Плановая дата оплаты]]<=$AB$1+7,"В течении недели","Через неделю и более"))))) -> Через неделю и более | T136: Договор № Р18.035/СП от ххх на сумму 97 533,72 руб. (БО на сумму 97 533,72 руб.)
A137: ООО «Региональный Центр Консультант» | B137: Муниципальное задание | C137: обновление справочно-информационных баз (Консультант) | D137: =IFERROR(VLOOKUP(Реестр_tb[[#This Row],[Подкатегория]],IF({1,0},Данные_tb[ЕД],Данные_tb[доп. код.]),2,0)," ") -> 4 | E137: =IFERROR(VLOOKUP(Реестр_tb[[#This Row],[ДОПЫ]],IF({1,0},Данные_tb[доп. код.],Данные_tb[Источник]),2,0)," ") -> 20 | F137: Нет | G137: июнь | H137: обновление справочно-информационных баз (Консультант) | I137: 4 | J137: 6942.5 | O137: =IF(Реестр_tb[[#This Row],[Срок оплаты (дней)]]="","",WORKDAY(Реестр_tb[[#This Row],[входящий (дата)]],Реестр_tb[[#This Row],[Срок оплаты (дней)]]+1,Выходные_tb[Выходные])) ->  | Q137: =IF(AND(Реестр_tb[[#This Row],[Оплачен]]="Да",Реестр_tb[[#This Row],[Факт. дата оплаты]]<=Реестр_tb[[#This Row],[Плановая дата оплаты]]),"Оплачено вовремя",IF(AND(Реестр_tb[[#This Row],[Оплачен]]="Да",Реестр_tb[[#This Row],[Факт. дата оплаты]]>Реестр_tb[[#This Row],[Плановая дата оплаты]]),"Просрочено",IF(AND(Реестр_tb[[#This Row],[Оплачен]]="Нет",Реестр_tb[[#This Row],[Факт. дата оплаты]]="",Реестр_tb[[#This Row],[Плановая дата оплаты]]<$AB$1),"Просрочено",IF(Реестр_tb[[#This Row],[Плановая дата оплаты]]=$AB$1,"Сегодня",IF(Реестр_tb[[#This Row],[Плановая дата оплаты]]<=$AB$1+7,"В течении недели","Через неделю и более"))))) -> Через неделю и более | T137: Договор № Р18.035/СП от ххх на сумму 97 533,72 руб. (БО на сумму 97 533,72 руб.)
A138: ООО «Региональный Центр Консультант» | B138: Муниципальное задание | C138: обновление справочно-информационных баз (Консультант) | D138: =IFERROR(VLOOKUP(Реестр_tb[[#This Row],[Подкатегория]],IF({1,0},Данные_tb[ЕД],Данные_tb[доп. код.]),2,0)," ") -> 4 | E138: =IFERROR(VLOOKUP(Реестр_tb[[#This Row],[ДОПЫ]],IF({1,0},Данные_tb[доп. код.],Данные_tb[Источник]),2,0)," ") -> 20 | F138: Нет | G138: июль | H138: обновление справочно-информационных баз (Консультант) | I138: 4 | J138: 6942.5 | O138: =IF(Реестр_tb[[#This Row],[Срок оплаты (дней)]]="","",WORKDAY(Реестр_tb[[#This Row],[входящий (дата)]],Реестр_tb[[#This Row],[Срок оплаты (дней)]]+1,Выходные_tb[Выходные])) ->  | Q138: =IF(AND(Реестр_tb[[#This Row],[Оплачен]]="Да",Реестр_tb[[#This Row],[Факт. дата оплаты]]<=Реестр_tb[[#This Row],[Плановая дата оплаты]]),"Оплачено вовремя",IF(AND(Реестр_tb[[#This Row],[Оплачен]]="Да",Реестр_tb[[#This Row],[Факт. дата оплаты]]>Реестр_tb[[#This Row],[Плановая дата оплаты]]),"Просрочено",IF(AND(Реестр_tb[[#This Row],[Оплачен]]="Нет",Реестр_tb[[#This Row],[Факт. дата оплаты]]="",Реестр_tb[[#This Row],[Плановая дата оплаты]]<$AB$1),"Просрочено",IF(Реестр_tb[[#This Row],[Плановая дата оплаты]]=$AB$1,"Сегодня",IF(Реестр_tb[[#This Row],[Плановая дата оплаты]]<=$AB$1+7,"В течении недели","Через неделю и более"))))) -> Через неделю и более | T138: Договор № Р18.035/СП от ххх на сумму 97 533,72 руб. (БО на сумму 97 533,72 руб.)
A139: ООО «Региональный Центр Консультант» | B139: Муниципальное задание | C139: обновление справочно-информационных баз (Консультант) | D139: =IFERROR(VLOOKUP(Реестр_tb[[#This Row],[Подкатегория]],IF({1,0},Данные_tb[ЕД],Данные_tb[доп. код.]),2,0)," ") -> 4 | E139: =IFERROR(VLOOKUP(Реестр_tb[[#This Row],[ДОПЫ]],IF({1,0},Данные_tb[доп. код.],Данные_tb[Источник]),2,0)," ") -> 20 | F139: Нет | G139: август | H139: обновление справочно-информационных баз (Консультант) | I139: 4 | J139: 6942.5 | O139: =IF(Реестр_tb[[#This Row],[Срок оплаты (дней)]]="","",WORKDAY(Реестр_tb[[#This Row],[входящий (дата)]],Реестр_tb[[#This Row],[Срок оплаты (дней)]]+1,Выходные_tb[Выходные])) ->  | Q139: =IF(AND(Реестр_tb[[#This Row],[Оплачен]]="Да",Реестр_tb[[#This Row],[Факт. дата оплаты]]<=Реестр_tb[[#This Row],[Плановая дата оплаты]]),"Оплачено вовремя",IF(AND(Реестр_tb[[#This Row],[Оплачен]]="Да",Реестр_tb[[#This Row],[Факт. дата оплаты]]>Реестр_tb[[#This Row],[Плановая дата оплаты]]),"Просрочено",IF(AND(Реестр_tb[[#This Row],[Оплачен]]="Нет",Реестр_tb[[#This Row],[Факт. дата оплаты]]="",Реестр_tb[[#This Row],[Плановая дата оплаты]]<$AB$1),"Просрочено",IF(Реестр_tb[[#This Row],[Плановая дата оплаты]]=$AB$1,"Сегодня",IF(Реестр_tb[[#This Row],[Плановая дата оплаты]]<=$AB$1+7,"В течении недели","Через неделю и более"))))) -> Через неделю и более | T139: Договор № Р18.035/СП от ххх на сумму 97 533,72 руб. (БО на сумму 97 533,72 руб.)
A140: ООО «Региональный Центр Консультант» | B140: Муниципальное задание | C140: обновление справочно-информационных баз (Консультант) | D140: =IFERROR(VLOOKUP(Реестр_tb[[#This Row],[Подкатегория]],IF({1,0},Данные_tb[ЕД],Данные_tb[доп. код.]),2,0)," ") -> 4 | E140: =IFERROR(VLOOKUP(Реестр_tb[[#This Row],[ДОПЫ]],IF({1,0},Данные_tb[доп. код.],Данные_tb[Источник]),2,0)," ") -> 20 | F140: Нет | G140: сентябрь | H140: обновление справочно-информационных баз (Консультант) | I140: 4 | J140: 6942.5 | O140: =IF(Реестр_tb[[#This Row],[Срок оплаты (дней)]]="","",WORKDAY(Реестр_tb[[#This Row],[входящий (дата)]],Реестр_tb[[#This Row],[Срок оплаты (дней)]]+1,Выходные_tb[Выходные])) ->  | Q140: =IF(AND(Реестр_tb[[#This Row],[Оплачен]]="Да",Реестр_tb[[#This Row],[Факт. дата оплаты]]<=Реестр_tb[[#This Row],[Плановая дата оплаты]]),"Оплачено вовремя",IF(AND(Реестр_tb[[#This Row],[Оплачен]]="Да",Реестр_tb[[#This Row],[Факт. дата оплаты]]>Реестр_tb[[#This Row],[Плановая дата оплаты]]),"Просрочено",IF(AND(Реестр_tb[[#This Row],[Оплачен]]="Нет",Реестр_tb[[#This Row],[Факт. дата оплаты]]="",Реестр_tb[[#This Row],[Плановая дата оплаты]]<$AB$1),"Просрочено",IF(Реестр_tb[[#This Row],[Плановая дата оплаты]]=$AB$1,"Сегодня",IF(Реестр_tb[[#This Row],[Плановая дата оплаты]]<=$AB$1+7,"В течении недели","Через неделю и более"))))) -> Через неделю и более | T140: Договор № Р18.035/СП от ххх на сумму 97 533,72 руб. (БО на сумму 97 533,72 руб.)
A141: ООО «Региональный Центр Консультант» | B141: Муниципальное задание | C141: обновление справочно-информационных баз (Консультант) | D141: =IFERROR(VLOOKUP(Реестр_tb[[#This Row],[Подкатегория]],IF({1,0},Данные_tb[ЕД],Данные_tb[доп. код.]),2,0)," ") -> 4 | E141: =IFERROR(VLOOKUP(Реестр_tb[[#This Row],[ДОПЫ]],IF({1,0},Данные_tb[доп. код.],Данные_tb[Источник]),2,0)," ") -> 20 | F141: Нет | G141: октябрь | H141: обновление справочно-информационных баз (Консультант) | I141: 4 | J141: 6942.5 | O141: =IF(Реестр_tb[[#This Row],[Срок оплаты (дней)]]="","",WORKDAY(Реестр_tb[[#This Row],[входящий (дата)]],Реестр_tb[[#This Row],[Срок оплаты (дней)]]+1,Выходные_tb[Выходные])) ->  | Q141: =IF(AND(Реестр_tb[[#This Row],[Оплачен]]="Да",Реестр_tb[[#This Row],[Факт. дата оплаты]]<=Реестр_tb[[#This Row],[Плановая дата оплаты]]),"Оплачено вовремя",IF(AND(Реестр_tb[[#This Row],[Оплачен]]="Да",Реестр_tb[[#This Row],[Факт. дата оплаты]]>Реестр_tb[[#This Row],[Плановая дата оплаты]]),"Просрочено",IF(AND(Реестр_tb[[#This Row],[Оплачен]]="Нет",Реестр_tb[[#This Row],[Факт. дата оплаты]]="",Реестр_tb[[#This Row],[Плановая дата оплаты]]<$AB$1),"Просрочено",IF(Реестр_tb[[#This Row],[Плановая дата оплаты]]=$AB$1,"Сегодня",IF(Реестр_tb[[#This Row],[Плановая дата оплаты]]<=$AB$1+7,"В течении недели","Через неделю и более"))))) -> Через неделю и более | T141: Договор № Р18.035/СП от ххх на сумму 97 533,72 руб. (БО на сумму 97 533,72 руб.)
A142: ООО «Региональный Центр Консультант» | B142: Муниципальное задание | C142: обновление справочно-информационных баз (Консультант) | D142: =IFERROR(VLOOKUP(Реестр_tb[[#This Row],[Подкатегория]],IF({1,0},Данные_tb[ЕД],Данные_tb[доп. код.]),2,0)," ") -> 4 | E142: =IFERROR(VLOOKUP(Реестр_tb[[#This Row],[ДОПЫ]],IF({1,0},Данные_tb[доп. код.],Данные_tb[Источник]),2,0)," ") -> 20 | F142: Нет | G142: ноябрь | H142: обновление справочно-информационных баз (Консультант) | I142: 4 | J142: 6942.5 | O142: =IF(Реестр_tb[[#This Row],[Срок оплаты (дней)]]="","",WORKDAY(Реестр_tb[[#This Row],[входящий (дата)]],Реестр_tb[[#This Row],[Срок оплаты (дней)]]+1,Выходные_tb[Выходные])) ->  | Q142: =IF(AND(Реестр_tb[[#This Row],[Оплачен]]="Да",Реестр_tb[[#This Row],[Факт. дата оплаты]]<=Реестр_tb[[#This Row],[Плановая дата оплаты]]),"Оплачено вовремя",IF(AND(Реестр_tb[[#This Row],[Оплачен]]="Да",Реестр_tb[[#This Row],[Факт. дата оплаты]]>Реестр_tb[[#This Row],[Плановая дата оплаты]]),"Просрочено",IF(AND(Реестр_tb[[#This Row],[Оплачен]]="Нет",Реестр_tb[[#This Row],[Факт. дата оплаты]]="",Реестр_tb[[#This Row],[Плановая дата оплаты]]<$AB$1),"Просрочено",IF(Реестр_tb[[#This Row],[Плановая дата оплаты]]=$AB$1,"Сегодня",IF(Реестр_tb[[#This Row],[Плановая дата оплаты]]<=$AB$1+7,"В течении недели","Через неделю и более"))))) -> Через неделю и более | T142: Договор № Р18.035/СП от ххх на сумму 97 533,72 руб. (БО на сумму 97 533,72 руб.)
A143: ООО «Региональный Центр Консультант» | B143: Муниципальное задание | C143: обновление справочно-информационных баз (Консультант) | D143: =IFERROR(VLOOKUP(Реестр_tb[[#This Row],[Подкатегория]],IF({1,0},Данные_tb[ЕД],Данные_tb[доп. код.]),2,0)," ") -> 4 | E143: =IFERROR(VLOOKUP(Реестр_tb[[#This Row],[ДОПЫ]],IF({1,0},Данные_tb[доп. код.],Данные_tb[Источник]),2,0)," ") -> 20 | F143: Нет | G143: ноябрь | H143: обновление справочно-информационных баз (Консультант) | I143: 4 | J143: 7111.86 | O143: =IF(Реестр_tb[[#This Row],[Срок оплаты (дней)]]="","",WORKDAY(Реестр_tb[[#This Row],[входящий (дата)]],Реестр_tb[[#This Row],[Срок оплаты (дней)]]+1,Выходные_tb[Выходные])) ->  | Q143: =IF(AND(Реестр_tb[[#This Row],[Оплачен]]="Да",Реестр_tb[[#This Row],[Факт. дата оплаты]]<=Реестр_tb[[#This Row],[Плановая дата оплаты]]),"Оплачено вовремя",IF(AND(Реестр_tb[[#This Row],[Оплачен]]="Да",Реестр_tb[[#This Row],[Факт. дата оплаты]]>Реестр_tb[[#This Row],[Плановая дата оплаты]]),"Просрочено",IF(AND(Реестр_tb[[#This Row],[Оплачен]]="Нет",Реестр_tb[[#This Row],[Факт. дата оплаты]]="",Реестр_tb[[#This Row],[Плановая дата оплаты]]<$AB$1),"Просрочено",IF(Реестр_tb[[#This Row],[Плановая дата оплаты]]=$AB$1,"Сегодня",IF(Реестр_tb[[#This Row],[Плановая дата оплаты]]<=$AB$1+7,"В течении недели","Через неделю и более"))))) -> Через неделю и более | T143: Договор № Р18.035/СП от ххх на сумму 97 533,72 руб. (БО на сумму 97 533,72 руб.)
A144: ООО «Региональный Центр Консультант» | B144: Муниципальное задание | C144: обновление справочно-информационных баз (Консультант) | D144: =IFERROR(VLOOKUP(Реестр_tb[[#This Row],[Подкатегория]],IF({1,0},Данные_tb[ЕД],Данные_tb[доп. код.]),2,0)," ") -> 4 | E144: =IFERROR(VLOOKUP(Реестр_tb[[#This Row],[ДОПЫ]],IF({1,0},Данные_tb[доп. код.],Данные_tb[Источник]),2,0)," ") -> 20 | F144: Нет | G144: декабрь | H144: обновление справочно-информационных баз (Консультант) | I144: 4 | J144: 6942.5 | O144: =IF(Реестр_tb[[#This Row],[Срок оплаты (дней)]]="","",WORKDAY(Реестр_tb[[#This Row],[входящий (дата)]],Реестр_tb[[#This Row],[Срок оплаты (дней)]]+1,Выходные_tb[Выходные])) ->  | Q144: =IF(AND(Реестр_tb[[#This Row],[Оплачен]]="Да",Реестр_tb[[#This Row],[Факт. дата оплаты]]<=Реестр_tb[[#This Row],[Плановая дата оплаты]]),"Оплачено вовремя",IF(AND(Реестр_tb[[#This Row],[Оплачен]]="Да",Реестр_tb[[#This Row],[Факт. дата оплаты]]>Реестр_tb[[#This Row],[Плановая дата оплаты]]),"Просрочено",IF(AND(Реестр_tb[[#This Row],[Оплачен]]="Нет",Реестр_tb[[#This Row],[Факт. дата оплаты]]="",Реестр_tb[[#This Row],[Плановая дата оплаты]]<$AB$1),"Просрочено",IF(Реестр_tb[[#This Row],[Плановая дата оплаты]]=$AB$1,"Сегодня",IF(Реестр_tb[[#This Row],[Плановая дата оплаты]]<=$AB$1+7,"В течении недели","Через неделю и более"))))) -> Через неделю и более | T144: Договор № Р18.035/СП от ххх на сумму 97 533,72 руб. (БО на сумму 97 533,72 руб.)
A145: ИП Николаева Ольга Ваильевна | B145: Муниципальное задание | C145: экология ЦЛАТИ (ИП Николаева) | D145: =IFERROR(VLOOKUP(Реестр_tb[[#This Row],[Подкатегория]],IF({1,0},Данные_tb[ЕД],Данные_tb[доп. код.]),2,0)," ") -> 4 | E145: =IFERROR(VLOOKUP(Реестр_tb[[#This Row],[ДОПЫ]],IF({1,0},Данные_tb[доп. код.],Данные_tb[Источник]),2,0)," ") -> 20 | F145: Нет | I145: 5 | J145: 23000 | O145: =IF(Реестр_tb[[#This Row],[Срок оплаты (дней)]]="","",WORKDAY(Реестр_tb[[#This Row],[входящий (дата)]],Реестр_tb[[#This Row],[Срок оплаты (дней)]]+1,Выходные_tb[Выходные])) ->  | Q145: =IF(AND(Реестр_tb[[#This Row],[Оплачен]]="Да",Реестр_tb[[#This Row],[Факт. дата оплаты]]<=Реестр_tb[[#This Row],[Плановая дата оплаты]]),"Оплачено вовремя",IF(AND(Реестр_tb[[#This Row],[Оплачен]]="Да",Реестр_tb[[#This Row],[Факт. дата оплаты]]>Реестр_tb[[#This Row],[Плановая дата оплаты]]),"Просрочено",IF(AND(Реестр_tb[[#This Row],[Оплачен]]="Нет",Реестр_tb[[#This Row],[Факт. дата оплаты]]="",Реестр_tb[[#This Row],[Плановая дата оплаты]]<$AB$1),"Просрочено",IF(Реестр_tb[[#This Row],[Плановая дата оплаты]]=$AB$1,"Сегодня",IF(Реестр_tb[[#This Row],[Плановая дата оплаты]]<=$AB$1+7,"В течении недели","Через неделю и более"))))) -> Через неделю и более | T145: Договор № 8/2022 от ххх на сумму 23000,00 руб. (БО на сумму 23 000,00 руб.)
A146: ПАО "Ростелеком" | B146: Муниципальное задание | C146: услуги связи | D146: =IFERROR(VLOOKUP(Реестр_tb[[#This Row],[Подкатегория]],IF({1,0},Данные_tb[ЕД],Данные_tb[доп. код.]),2,0)," ") -> 4 | E146: =IFERROR(VLOOKUP(Реестр_tb[[#This Row],[ДОПЫ]],IF({1,0},Данные_tb[доп. код.],Данные_tb[Источник]),2,0)," ") -> 20 | F146: Нет | G146: 765000022110 от 31.12.21 | H146: услуги связи | I146: 5 | J146: -928.98 | O146: =IF(Реестр_tb[[#This Row],[Срок оплаты (дней)]]="","",WORKDAY(Реестр_tb[[#This Row],[входящий (дата)]],Реестр_tb[[#This Row],[Срок оплаты (дней)]]+1,Выходные_tb[Выходные])) ->  | Q146: =IF(AND(Реестр_tb[[#This Row],[Оплачен]]="Да",Реестр_tb[[#This Row],[Факт. дата оплаты]]<=Реестр_tb[[#This Row],[Плановая дата оплаты]]),"Оплачено вовремя",IF(AND(Реестр_tb[[#This Row],[Оплачен]]="Да",Реестр_tb[[#This Row],[Факт. дата оплаты]]>Реестр_tb[[#This Row],[Плановая дата оплаты]]),"Просрочено",IF(AND(Реестр_tb[[#This Row],[Оплачен]]="Нет",Реестр_tb[[#This Row],[Факт. дата оплаты]]="",Реестр_tb[[#This Row],[Плановая дата оплаты]]<$AB$1),"Просрочено",IF(Реестр_tb[[#This Row],[Плановая дата оплаты]]=$AB$1,"Сегодня",IF(Реестр_tb[[#This Row],[Плановая дата оплаты]]<=$AB$1+7,"В течении недели","Через неделю и более"))))) -> Через неделю и более
A147: ПАО "Ростелеком" | B147: Муниципальное задание | C147: услуги связи | D147: =IFERROR(VLOOKUP(Реестр_tb[[#This Row],[Подкатегория]],IF({1,0},Данные_tb[ЕД],Данные_tb[доп. код.]),2,0)," ") -> 4 | E147: =IFERROR(VLOOKUP(Реестр_tb[[#This Row],[ДОПЫ]],IF({1,0},Данные_tb[доп. код.],Данные_tb[Источник]),2,0)," ") -> 20 | F147: Нет | G147: 765000027209 от 31.12.21 | H147: услуги связи | I147: 5 | J147: -272.45 | O147: =IF(Реестр_tb[[#This Row],[Срок оплаты (дней)]]="","",WORKDAY(Реестр_tb[[#This Row],[входящий (дата)]],Реестр_tb[[#This Row],[Срок оплаты (дней)]]+1,Выходные_tb[Выходные])) ->  | Q147: =IF(AND(Реестр_tb[[#This Row],[Оплачен]]="Да",Реестр_tb[[#This Row],[Факт. дата оплаты]]<=Реестр_tb[[#This Row],[Плановая дата оплаты]]),"Оплачено вовремя",IF(AND(Реестр_tb[[#This Row],[Оплачен]]="Да",Реестр_tb[[#This Row],[Факт. дата оплаты]]>Реестр_tb[[#This Row],[Плановая дата оплаты]]),"Просрочено",IF(AND(Реестр_tb[[#This Row],[Оплачен]]="Нет",Реестр_tb[[#This Row],[Факт. дата оплаты]]="",Реестр_tb[[#This Row],[Плановая дата оплаты]]<$AB$1),"Просрочено",IF(Реестр_tb[[#This Row],[Плановая дата оплаты]]=$AB$1,"Сегодня",IF(Реестр_tb[[#This Row],[Плановая дата оплаты]]<=$AB$1+7,"В течении недели","Через неделю и более"))))) -> Через неделю и более
A148: ПАО "Ростелеком" | B148: Муниципальное задание | C148: услуги связи | D148: =IFERROR(VLOOKUP(Реестр_tb[[#This Row],[Подкатегория]],IF({1,0},Данные_tb[ЕД],Данные_tb[доп. код.]),2,0)," ") -> 4 | E148: =IFERROR(VLOOKUP(Реестр_tb[[#This Row],[ДОПЫ]],IF({1,0},Данные_tb[доп. код.],Данные_tb[Источник]),2,0)," ") -> 20 | F148: Нет | G148: январь | H148: услуги связи | I148: 4 | J148: 5000 | O148: =IF(Реестр_tb[[#This Row],[Срок оплаты (дней)]]="","",WORKDAY(Реестр_tb[[#This Row],[входящий (дата)]],Реестр_tb[[#This Row],[Срок оплаты (дней)]]+1,Выходные_tb[Выходные])) ->  | Q148: =IF(AND(Реестр_tb[[#This Row],[Оплачен]]="Да",Реестр_tb[[#This Row],[Факт. дата оплаты]]<=Реестр_tb[[#This Row],[Плановая дата оплаты]]),"Оплачено вовремя",IF(AND(Реестр_tb[[#This Row],[Оплачен]]="Да",Реестр_tb[[#This Row],[Факт. дата оплаты]]>Реестр_tb[[#This Row],[Плановая дата оплаты]]),"Просрочено",IF(AND(Реестр_tb[[#This Row],[Оплачен]]="Нет",Реестр_tb[[#This Row],[Факт. дата оплаты]]="",Реестр_tb[[#This Row],[Плановая дата оплаты]]<$AB$1),"Просрочено",IF(Реестр_tb[[#This Row],[Плановая дата оплаты]]=$AB$1,"Сегодня",IF(Реестр_tb[[#This Row],[Плановая дата оплаты]]<=$AB$1+7,"В течении недели","Через неделю и более"))))) -> Через неделю и более | T148: Контракт № 765000027209 о т ххх на сумму 80 000,00 руб. (БО на сумму 80 000,00 руб.)
A149: ПАО "Ростелеком" | B149: Муниципальное задание | C149: услуги связи | D149: =IFERROR(VLOOKUP(Реестр_tb[[#This Row],[Подкатегория]],IF({1,0},Данные_tb[ЕД],Данные_tb[доп. код.]),2,0)," ") -> 4 | E149: =IFERROR(VLOOKUP(Реестр_tb[[#This Row],[ДОПЫ]],IF({1,0},Данные_tb[доп. код.],Данные_tb[Источник]),2,0)," ") -> 20 | F149: Нет | G149: январь | H149: услуги связи | I149: 4 | J149: 1000 | O149: =IF(Реестр_tb[[#This Row],[Срок оплаты (дней)]]="","",WORKDAY(Реестр_tb[[#This Row],[входящий (дата)]],Реестр_tb[[#This Row],[Срок оплаты (дней)]]+1,Выходные_tb[Выходные])) ->  | Q149: =IF(AND(Реестр_tb[[#This Row],[Оплачен]]="Да",Реестр_tb[[#This Row],[Факт. дата оплаты]]<=Реестр_tb[[#This Row],[Плановая дата оплаты]]),"Оплачено вовремя",IF(AND(Реестр_tb[[#This Row],[Оплачен]]="Да",Реестр_tb[[#This Row],[Факт. дата оплаты]]>Реестр_tb[[#This Row],[Плановая дата оплаты]]),"Просрочено",IF(AND(Реестр_tb[[#This Row],[Оплачен]]="Нет",Реестр_tb[[#This Row],[Факт. дата оплаты]]="",Реестр_tb[[#This Row],[Плановая дата оплаты]]<$AB$1),"Просрочено",IF(Реестр_tb[[#This Row],[Плановая дата оплаты]]=$AB$1,"Сегодня",IF(Реестр_tb[[#This Row],[Плановая дата оплаты]]<=$AB$1+7,"В течении недели","Через неделю и более"))))) -> Через неделю и более | T149: Контракт № 765000027209 о т ххх на сумму 80 000,00 руб. (БО на сумму 80 000,00 руб.)
A150: ПАО "Ростелеком" | B150: Муниципальное задание | C150: услуги связи | D150: =IFERROR(VLOOKUP(Реестр_tb[[#This Row],[Подкатегория]],IF({1,0},Данные_tb[ЕД],Данные_tb[доп. код.]),2,0)," ") -> 4 | E150: =IFERROR(VLOOKUP(Реестр_tb[[#This Row],[ДОПЫ]],IF({1,0},Данные_tb[доп. код.],Данные_tb[Источник]),2,0)," ") -> 20 | F150: Нет | G150: февраль | H150: услуги связи | I150: 4 | J150: 5000 | O150: =IF(Реестр_tb[[#This Row],[Срок оплаты (дней)]]="","",WORKDAY(Реестр_tb[[#This Row],[входящий (дата)]],Реестр_tb[[#This Row],[Срок оплаты (дней)]]+1,Выходные_tb[Выходные])) ->  | Q150: =IF(AND(Реестр_tb[[#This Row],[Оплачен]]="Да",Реестр_tb[[#This Row],[Факт. дата оплаты]]<=Реестр_tb[[#This Row],[Плановая дата оплаты]]),"Оплачено вовремя",IF(AND(Реестр_tb[[#This Row],[Оплачен]]="Да",Реестр_tb[[#This Row],[Факт. дата оплаты]]>Реестр_tb[[#This Row],[Плановая дата оплаты]]),"Просрочено",IF(AND(Реестр_tb[[#This Row],[Оплачен]]="Нет",Реестр_tb[[#This Row],[Факт. дата оплаты]]="",Реестр_tb[[#This Row],[Плановая дата оплаты]]<$AB$1),"Просрочено",IF(Реестр_tb[[#This Row],[Плановая дата оплаты]]=$AB$1,"Сегодня",IF(Реестр_tb[[#This Row],[Плановая дата оплаты]]<=$AB$1+7,"В течении недели","Через неделю и более"))))) -> Через неделю и более | T150: Контракт № 765000027209 о т ххх на сумму 80 000,00 руб. (БО на сумму 80 000,00 руб.)
A151: ПАО "Ростелеком" | B151: Муниципальное задание | C151: услуги связи | D151: =IFERROR(VLOOKUP(Реестр_tb[[#This Row],[Подкатегория]],IF({1,0},Данные_tb[ЕД],Данные_tb[доп. код.]),2,0)," ") -> 4 | E151: =IFERROR(VLOOKUP(Реестр_tb[[#This Row],[ДОПЫ]],IF({1,0},Данные_tb[доп. код.],Данные_tb[Источник]),2,0)," ") -> 20 | F151: Нет | G151: февраль | H151: услуги связи | I151: 4 | J151: 1000 | O151: =IF(Реестр_tb[[#This Row],[Срок оплаты (дней)]]="","",WORKDAY(Реестр_tb[[#This Row],[входящий (дата)]],Реестр_tb[[#This Row],[Срок оплаты (дней)]]+1,Выходные_tb[Выходные])) ->  | Q151: =IF(AND(Реестр_tb[[#This Row],[Оплачен]]="Да",Реестр_tb[[#This Row],[Факт. дата оплаты]]<=Реестр_tb[[#This Row],[Плановая дата оплаты]]),"Оплачено вовремя",IF(AND(Реестр_tb[[#This Row],[Оплачен]]="Да",Реестр_tb[[#This Row],[Факт. дата оплаты]]>Реестр_tb[[#This Row],[Плановая дата оплаты]]),"Просрочено",IF(AND(Реестр_tb[[#This Row],[Оплачен]]="Нет",Реестр_tb[[#This Row],[Факт. дата оплаты]]="",Реестр_tb[[#This Row],[Плановая дата оплаты]]<$AB$1),"Просрочено",IF(Реестр_tb[[#This Row],[Плановая дата оплаты]]=$AB$1,"Сегодня",IF(Реестр_tb[[#This Row],[Плановая дата оплаты]]<=$AB$1+7,"В течении недели","Через неделю и более"))))) -> Через неделю и более | T151: Контракт № 765000027209 о т ххх на сумму 80 000,00 руб. (БО на сумму 80 000,00 руб.)
A152: ПАО "Ростелеком" | B152: Муниципальное задание | C152: услуги связи | D152: =IFERROR(VLOOKUP(Реестр_tb[[#This Row],[Подкатегория]],IF({1,0},Данные_tb[ЕД],Данные_tb[доп. код.]),2,0)," ") -> 4 | E152: =IFERROR(VLOOKUP(Реестр_tb[[#This Row],[ДОПЫ]],IF({1,0},Данные_tb[доп. код.],Данные_tb[Источник]),2,0)," ") -> 20 | F152: Нет | G152: март | H152: услуги связи | I152: 4 | J152: 5000 | O152: =IF(Реестр_tb[[#This Row],[Срок оплаты (дней)]]="","",WORKDAY(Реестр_tb[[#This Row],[входящий (дата)]],Реестр_tb[[#This Row],[Срок оплаты (дней)]]+1,Выходные_tb[Выходные])) ->  | Q152: =IF(AND(Реестр_tb[[#This Row],[Оплачен]]="Да",Реестр_tb[[#This Row],[Факт. дата оплаты]]<=Реестр_tb[[#This Row],[Плановая дата оплаты]]),"Оплачено вовремя",IF(AND(Реестр_tb[[#This Row],[Оплачен]]="Да",Реестр_tb[[#This Row],[Факт. дата оплаты]]>Реестр_tb[[#This Row],[Плановая дата оплаты]]),"Просрочено",IF(AND(Реестр_tb[[#This Row],[Оплачен]]="Нет",Реестр_tb[[#This Row],[Факт. дата оплаты]]="",Реестр_tb[[#This Row],[Плановая дата оплаты]]<$AB$1),"Просрочено",IF(Реестр_tb[[#This Row],[Плановая дата оплаты]]=$AB$1,"Сегодня",IF(Реестр_tb[[#This Row],[Плановая дата оплаты]]<=$AB$1+7,"В течении недели","Через неделю и более"))))) -> Через неделю и более | T152: Контракт № 765000027209 о т ххх на сумму 80 000,00 руб. (БО на сумму 80 000,00 руб.)
A153: ПАО "Ростелеком" | B153: Муниципальное задание | C153: услуги связи | D153: =IFERROR(VLOOKUP(Реестр_tb[[#This Row],[Подкатегория]],IF({1,0},Данные_tb[ЕД],Данные_tb[доп. код.]),2,0)," ") -> 4 | E153: =IFERROR(VLOOKUP(Реестр_tb[[#This Row],[ДОПЫ]],IF({1,0},Данные_tb[доп. код.],Данные_tb[Источник]),2,0)," ") -> 20 | F153: Нет | G153: март | H153: услуги связи | I153: 4 | J153: 1000 | O153: =IF(Реестр_tb[[#This Row],[Срок оплаты (дней)]]="","",WORKDAY(Реестр_tb[[#This Row],[входящий (дата)]],Реестр_tb[[#This Row],[Срок оплаты (дней)]]+1,Выходные_tb[Выходные])) ->  | Q153: =IF(AND(Реестр_tb[[#This Row],[Оплачен]]="Да",Реестр_tb[[#This Row],[Факт. дата оплаты]]<=Реестр_tb[[#This Row],[Плановая дата оплаты]]),"Оплачено вовремя",IF(AND(Реестр_tb[[#This Row],[Оплачен]]="Да",Реестр_tb[[#This Row],[Факт. дата оплаты]]>Реестр_tb[[#This Row],[Плановая дата оплаты]]),"Просрочено",IF(AND(Реестр_tb[[#This Row],[Оплачен]]="Нет",Реестр_tb[[#This Row],[Факт. дата оплаты]]="",Реестр_tb[[#This Row],[Плановая дата оплаты]]<$AB$1),"Просрочено",IF(Реестр_tb[[#This Row],[Плановая дата оплаты]]=$AB$1,"Сегодня",IF(Реестр_tb[[#This Row],[Плановая дата оплаты]]<=$AB$1+7,"В течении недели","Через неделю и более"))))) -> Через неделю и более | T153: Контракт № 765000027209 о т ххх на сумму 80 000,00 руб. (БО на сумму 80 000,00 руб.)
A154: ПАО "Ростелеком" | B154: Муниципальное задание | C154: услуги связи | D154: =IFERROR(VLOOKUP(Реестр_tb[[#This Row],[Подкатегория]],IF({1,0},Данные_tb[ЕД],Данные_tb[доп. код.]),2,0)," ") -> 4 | E154: =IFERROR(VLOOKUP(Реестр_tb[[#This Row],[ДОПЫ]],IF({1,0},Данные_tb[доп. код.],Данные_tb[Источник]),2,0)," ") -> 20 | F154: Нет | G154: апрель | H154: услуги связи | I154: 4 | J154: 5000 | O154: =IF(Реестр_tb[[#This Row],[Срок оплаты (дней)]]="","",WORKDAY(Реестр_tb[[#This Row],[входящий (дата)]],Реестр_tb[[#This Row],[Срок оплаты (дней)]]+1,Выходные_tb[Выходные])) ->  | Q154: =IF(AND(Реестр_tb[[#This Row],[Оплачен]]="Да",Реестр_tb[[#This Row],[Факт. дата оплаты]]<=Реестр_tb[[#This Row],[Плановая дата оплаты]]),"Оплачено вовремя",IF(AND(Реестр_tb[[#This Row],[Оплачен]]="Да",Реестр_tb[[#This Row],[Факт. дата оплаты]]>Реестр_tb[[#This Row],[Плановая дата оплаты]]),"Просрочено",IF(AND(Реестр_tb[[#This Row],[Оплачен]]="Нет",Реестр_tb[[#This Row],[Факт. дата оплаты]]="",Реестр_tb[[#This Row],[Плановая дата оплаты]]<$AB$1),"Просрочено",IF(Реестр_tb[[#This Row],[Плановая дата оплаты]]=$AB$1,"Сегодня",IF(Реестр_tb[[#This Row],[Плановая дата оплаты]]<=$AB$1+7,"В течении недели","Через неделю и более"))))) -> Через неделю и более | T154: Контракт № 765000027209 о т ххх на сумму 80 000,00 руб. (БО на сумму 80 000,00 руб.)
A155: ПАО "Ростелеком" | B155: Муниципальное задание | C155: услуги связи | D155: =IFERROR(VLOOKUP(Реестр_tb[[#This Row],[Подкатегория]],IF({1,0},Данные_tb[ЕД],Данные_tb[доп. код.]),2,0)," ") -> 4 | E155: =IFERROR(VLOOKUP(Реестр_tb[[#This Row],[ДОПЫ]],IF({1,0},Данные_tb[доп. код.],Данные_tb[Источник]),2,0)," ") -> 20 | F155: Нет | G155: апрель | H155: услуги связи | I155: 4 | J155: 1000 | O155: =IF(Реестр_tb[[#This Row],[Срок оплаты (дней)]]="","",WORKDAY(Реестр_tb[[#This Row],[входящий (дата)]],Реестр_tb[[#This Row],[Срок оплаты (дней)]]+1,Выходные_tb[Выходные])) ->  | Q155: =IF(AND(Реестр_tb[[#This Row],[Оплачен]]="Да",Реестр_tb[[#This Row],[Факт. дата оплаты]]<=Реестр_tb[[#This Row],[Плановая дата оплаты]]),"Оплачено вовремя",IF(AND(Реестр_tb[[#This Row],[Оплачен]]="Да",Реестр_tb[[#This Row],[Факт. дата оплаты]]>Реестр_tb[[#This Row],[Плановая дата оплаты]]),"Просрочено",IF(AND(Реестр_tb[[#This Row],[Оплачен]]="Нет",Реестр_tb[[#This Row],[Факт. дата оплаты]]="",Реестр_tb[[#This Row],[Плановая дата оплаты]]<$AB$1),"Просрочено",IF(Реестр_tb[[#This Row],[Плановая дата оплаты]]=$AB$1,"Сегодня",IF(Реестр_tb[[#This Row],[Плановая дата оплаты]]<=$AB$1+7,"В течении недели","Через неделю и более"))))) -> Через неделю и более | T155: Контракт № 765000027209 о т ххх на сумму 80 000,00 руб. (БО на сумму 80 000,00 руб.)
A156: ПАО "Ростелеком" | B156: Муниципальное задание | C156: услуги связи | D156: =IFERROR(VLOOKUP(Реестр_tb[[#This Row],[Подкатегория]],IF({1,0},Данные_tb[ЕД],Данные_tb[доп. код.]),2,0)," ") -> 4 | E156: =IFERROR(VLOOKUP(Реестр_tb[[#This Row],[ДОПЫ]],IF({1,0},Данные_tb[доп. код.],Данные_tb[Источник]),2,0)," ") -> 20 | F156: Нет | G156: май | H156: услуги связи | I156: 4 | J156: 5000 | O156: =IF(Реестр_tb[[#This Row],[Срок оплаты (дней)]]="","",WORKDAY(Реестр_tb[[#This Row],[входящий (дата)]],Реестр_tb[[#This Row],[Срок оплаты (дней)]]+1,Выходные_tb[Выходные])) ->  | Q156: =IF(AND(Реестр_tb[[#This Row],[Оплачен]]="Да",Реестр_tb[[#This Row],[Факт. дата оплаты]]<=Реестр_tb[[#This Row],[Плановая дата оплаты]]),"Оплачено вовремя",IF(AND(Реестр_tb[[#This Row],[Оплачен]]="Да",Реестр_tb[[#This Row],[Факт. дата оплаты]]>Реестр_tb[[#This Row],[Плановая дата оплаты]]),"Просрочено",IF(AND(Реестр_tb[[#This Row],[Оплачен]]="Нет",Реестр_tb[[#This Row],[Факт. дата оплаты]]="",Реестр_tb[[#This Row],[Плановая дата оплаты]]<$AB$1),"Просрочено",IF(Реестр_tb[[#This Row],[Плановая дата оплаты]]=$AB$1,"Сегодня",IF(Реестр_tb[[#This Row],[Плановая дата оплаты]]<=$AB$1+7,"В течении недели","Через неделю и более"))))) -> Через неделю и более | T156: Контракт № 765000027209 о т ххх на сумму 80 000,00 руб. (БО на сумму 80 000,00 руб.)
A157: ПАО "Ростелеком" | B157: Муниципальное задание | C157: услуги связи | D157: =IFERROR(VLOOKUP(Реестр_tb[[#This Row],[Подкатегория]],IF({1,0},Данные_tb[ЕД],Данные_tb[доп. код.]),2,0)," ") -> 4 | E157: =IFERROR(VLOOKUP(Реестр_tb[[#This Row],[ДОПЫ]],IF({1,0},Данные_tb[доп. код.],Данные_tb[Источник]),2,0)," ") -> 20 | F157: Нет | G157: май | H157: услуги связи | I157: 4 | J157: 1000 | O157: =IF(Реестр_tb[[#This Row],[Срок оплаты (дней)]]="","",WORKDAY(Реестр_tb[[#This Row],[входящий (дата)]],Реестр_tb[[#This Row],[Срок оплаты (дней)]]+1,Выходные_tb[Выходные])) ->  | Q157: =IF(AND(Реестр_tb[[#This Row],[Оплачен]]="Да",Реестр_tb[[#This Row],[Факт. дата оплаты]]<=Реестр_tb[[#This Row],[Плановая дата оплаты]]),"Оплачено вовремя",IF(AND(Реестр_tb[[#This Row],[Оплачен]]="Да",Реестр_tb[[#This Row],[Факт. дата оплаты]]>Реестр_tb[[#This Row],[Плановая дата оплаты]]),"Просрочено",IF(AND(Реестр_tb[[#This Row],[Оплачен]]="Нет",Реестр_tb[[#This Row],[Факт. дата оплаты]]="",Реестр_tb[[#This Row],[Плановая дата оплаты]]<$AB$1),"Просрочено",IF(Реестр_tb[[#This Row],[Плановая дата оплаты]]=$AB$1,"Сегодня",IF(Реестр_tb[[#This Row],[Плановая дата оплаты]]<=$AB$1+7,"В течении недели","Через неделю и более"))))) -> Через неделю и более | T157: Контракт № 765000027209 о т ххх на сумму 80 000,00 руб. (БО на сумму 80 000,00 руб.)
A158: ПАО "Ростелеком" | B158: Муниципальное задание | C158: услуги связи | D158: =IFERROR(VLOOKUP(Реестр_tb[[#This Row],[Подкатегория]],IF({1,0},Данные_tb[ЕД],Данные_tb[доп. код.]),2,0)," ") -> 4 | E158: =IFERROR(VLOOKUP(Реестр_tb[[#This Row],[ДОПЫ]],IF({1,0},Данные_tb[доп. код.],Данные_tb[Источник]),2,0)," ") -> 20 | F158: Нет | G158: июнь | H158: услуги связи | I158: 4 | J158: 5000 | O158: =IF(Реестр_tb[[#This Row],[Срок оплаты (дней)]]="","",WORKDAY(Реестр_tb[[#This Row],[входящий (дата)]],Реестр_tb[[#This Row],[Срок оплаты (дней)]]+1,Выходные_tb[Выходные])) ->  | Q158: =IF(AND(Реестр_tb[[#This Row],[Оплачен]]="Да",Реестр_tb[[#This Row],[Факт. дата оплаты]]<=Реестр_tb[[#This Row],[Плановая дата оплаты]]),"Оплачено вовремя",IF(AND(Реестр_tb[[#This Row],[Оплачен]]="Да",Реестр_tb[[#This Row],[Факт. дата оплаты]]>Реестр_tb[[#This Row],[Плановая дата оплаты]]),"Просрочено",IF(AND(Реестр_tb[[#This Row],[Оплачен]]="Нет",Реестр_tb[[#This Row],[Факт. дата оплаты]]="",Реестр_tb[[#This Row],[Плановая дата оплаты]]<$AB$1),"Просрочено",IF(Реестр_tb[[#This Row],[Плановая дата оплаты]]=$AB$1,"Сегодня",IF(Реестр_tb[[#This Row],[Плановая дата оплаты]]<=$AB$1+7,"В течении недели","Через неделю и более"))))) -> Через неделю и более | T158: Контракт № 765000027209 о т ххх на сумму 80 000,00 руб. (БО на сумму 80 000,00 руб.)
A159: ПАО "Ростелеком" | B159: Муниципальное задание | C159: услуги связи | D159: =IFERROR(VLOOKUP(Реестр_tb[[#This Row],[Подкатегория]],IF({1,0},Данные_tb[ЕД],Данные_tb[доп. код.]),2,0)," ") -> 4 | E159: =IFERROR(VLOOKUP(Реестр_tb[[#This Row],[ДОПЫ]],IF({1,0},Данные_tb[доп. код.],Данные_tb[Источник]),2,0)," ") -> 20 | F159: Нет | G159: июнь | H159: услуги связи | I159: 4 | J159: 1000 | O159: =IF(Реестр_tb[[#This Row],[Срок оплаты (дней)]]="","",WORKDAY(Реестр_tb[[#This Row],[входящий (дата)]],Реестр_tb[[#This Row],[Срок оплаты (дней)]]+1,Выходные_tb[Выходные])) ->  | Q159: =IF(AND(Реестр_tb[[#This Row],[Оплачен]]="Да",Реестр_tb[[#This Row],[Факт. дата оплаты]]<=Реестр_tb[[#This Row],[Плановая дата оплаты]]),"Оплачено вовремя",IF(AND(Реестр_tb[[#This Row],[Оплачен]]="Да",Реестр_tb[[#This Row],[Факт. дата оплаты]]>Реестр_tb[[#This Row],[Плановая дата оплаты]]),"Просрочено",IF(AND(Реестр_tb[[#This Row],[Оплачен]]="Нет",Реестр_tb[[#This Row],[Факт. дата оплаты]]="",Реестр_tb[[#This Row],[Плановая дата оплаты]]<$AB$1),"Просрочено",IF(Реестр_tb[[#This Row],[Плановая дата оплаты]]=$AB$1,"Сегодня",IF(Реестр_tb[[#This Row],[Плановая дата оплаты]]<=$AB$1+7,"В течении недели","Через неделю и более"))))) -> Через неделю и более | T159: Контракт № 765000027209 о т ххх на сумму 80 000,00 руб. (БО на сумму 80 000,00 руб.)
A160: ПАО "Ростелеком" | B160: Муниципальное задание | C160: услуги связи | D160: =IFERROR(VLOOKUP(Реестр_tb[[#This Row],[Подкатегория]],IF({1,0},Данные_tb[ЕД],Данные_tb[доп. код.]),2,0)," ") -> 4 | E160: =IFERROR(VLOOKUP(Реестр_tb[[#This Row],[ДОПЫ]],IF({1,0},Данные_tb[доп. код.],Данные_tb[Источник]),2,0)," ") -> 20 | F160: Нет | G160: июль | H160: услуги связи | I160: 4 | J160: 5000 | O160: =IF(Реестр_tb[[#This Row],[Срок оплаты (дней)]]="","",WORKDAY(Реестр_tb[[#This Row],[входящий (дата)]],Реестр_tb[[#This Row],[Срок оплаты (дней)]]+1,Выходные_tb[Выходные])) ->  | Q160: =IF(AND(Реестр_tb[[#This Row],[Оплачен]]="Да",Реестр_tb[[#This Row],[Факт. дата оплаты]]<=Реестр_tb[[#This Row],[Плановая дата оплаты]]),"Оплачено вовремя",IF(AND(Реестр_tb[[#This Row],[Оплачен]]="Да",Реестр_tb[[#This Row],[Факт. дата оплаты]]>Реестр_tb[[#This Row],[Плановая дата оплаты]]),"Просрочено",IF(AND(Реестр_tb[[#This Row],[Оплачен]]="Нет",Реестр_tb[[#This Row],[Факт. дата оплаты]]="",Реестр_tb[[#This Row],[Плановая дата оплаты]]<$AB$1),"Просрочено",IF(Реестр_tb[[#This Row],[Плановая дата оплаты]]=$AB$1,"Сегодня",IF(Реестр_tb[[#This Row],[Плановая дата оплаты]]<=$AB$1+7,"В течении недели","Через неделю и более"))))) -> Через неделю и более | T160: Контракт № 765000027209 о т ххх на сумму 80 000,00 руб. (БО на сумму 80 000,00 руб.)
A161: ПАО "Ростелеком" | B161: Муниципальное задание | C161: услуги связи | D161: =IFERROR(VLOOKUP(Реестр_tb[[#This Row],[Подкатегория]],IF({1,0},Данные_tb[ЕД],Данные_tb[доп. код.]),2,0)," ") -> 4 | E161: =IFERROR(VLOOKUP(Реестр_tb[[#This Row],[ДОПЫ]],IF({1,0},Данные_tb[доп. код.],Данные_tb[Источник]),2,0)," ") -> 20 | F161: Нет | G161: июль | H161: услуги связи | I161: 4 | J161: 1000 | O161: =IF(Реестр_tb[[#This Row],[Срок оплаты (дней)]]="","",WORKDAY(Реестр_tb[[#This Row],[входящий (дата)]],Реестр_tb[[#This Row],[Срок оплаты (дней)]]+1,Выходные_tb[Выходные])) ->  | Q161: =IF(AND(Реестр_tb[[#This Row],[Оплачен]]="Да",Реестр_tb[[#This Row],[Факт. дата оплаты]]<=Реестр_tb[[#This Row],[Плановая дата оплаты]]),"Оплачено вовремя",IF(AND(Реестр_tb[[#This Row],[Оплачен]]="Да",Реестр_tb[[#This Row],[Факт. дата оплаты]]>Реестр_tb[[#This Row],[Плановая дата оплаты]]),"Просрочено",IF(AND(Реестр_tb[[#This Row],[Оплачен]]="Нет",Реестр_tb[[#This Row],[Факт. дата оплаты]]="",Реестр_tb[[#This Row],[Плановая дата оплаты]]<$AB$1),"Просрочено",IF(Реестр_tb[[#This Row],[Плановая дата оплаты]]=$AB$1,"Сегодня",IF(Реестр_tb[[#This Row],[Плановая дата оплаты]]<=$AB$1+7,"В течении недели","Через неделю и более"))))) -> Через неделю и более | T161: Контракт № 765000027209 о т ххх на сумму 80 000,00 руб. (БО на сумму 80 000,00 руб.)
A162: ПАО "Ростелеком" | B162: Муниципальное задание | C162: услуги связи | D162: =IFERROR(VLOOKUP(Реестр_tb[[#This Row],[Подкатегория]],IF({1,0},Данные_tb[ЕД],Данные_tb[доп. код.]),2,0)," ") -> 4 | E162: =IFERROR(VLOOKUP(Реестр_tb[[#This Row],[ДОПЫ]],IF({1,0},Данные_tb[доп. код.],Данные_tb[Источник]),2,0)," ") -> 20 | F162: Нет | G162: август | H162: услуги связи | I162: 4 | J162: 5000 | O162: =IF(Реестр_tb[[#This Row],[Срок оплаты (дней)]]="","",WORKDAY(Реестр_tb[[#This Row],[входящий (дата)]],Реестр_tb[[#This Row],[Срок оплаты (дней)]]+1,Выходные_tb[Выходные])) ->  | Q162: =IF(AND(Реестр_tb[[#This Row],[Оплачен]]="Да",Реестр_tb[[#This Row],[Факт. дата оплаты]]<=Реестр_tb[[#This Row],[Плановая дата оплаты]]),"Оплачено вовремя",IF(AND(Реестр_tb[[#This Row],[Оплачен]]="Да",Реестр_tb[[#This Row],[Факт. дата оплаты]]>Реестр_tb[[#This Row],[Плановая дата оплаты]]),"Просрочено",IF(AND(Реестр_tb[[#This Row],[Оплачен]]="Нет",Реестр_tb[[#This Row],[Факт. дата оплаты]]="",Реестр_tb[[#This Row],[Плановая дата оплаты]]<$AB$1),"Просрочено",IF(Реестр_tb[[#This Row],[Плановая дата оплаты]]=$AB$1,"Сегодня",IF(Реестр_tb[[#This Row],[Плановая дата оплаты]]<=$AB$1+7,"В течении недели","Через неделю и более"))))) -> Через неделю и более | T162: Контракт № 765000027209 о т ххх на сумму 80 000,00 руб. (БО на сумму 80 000,00 руб.)
A163: ПАО "Ростелеком" | B163: Муниципальное задание | C163: услуги связи | D163: =IFERROR(VLOOKUP(Реестр_tb[[#This Row],[Подкатегория]],IF({1,0},Данные_tb[ЕД],Данные_tb[доп. код.]),2,0)," ") -> 4 | E163: =IFERROR(VLOOKUP(Реестр_tb[[#This Row],[ДОПЫ]],IF({1,0},Данные_tb[доп. код.],Данные_tb[Источник]),2,0)," ") -> 20 | F163: Нет | G163: август | H163: услуги связи | I163: 4 | J163: 1000 | O163: =IF(Реестр_tb[[#This Row],[Срок оплаты (дней)]]="","",WORKDAY(Реестр_tb[[#This Row],[входящий (дата)]],Реестр_tb[[#This Row],[Срок оплаты (дней)]]+1,Выходные_tb[Выходные])) ->  | Q163: =IF(AND(Реестр_tb[[#This Row],[Оплачен]]="Да",Реестр_tb[[#This Row],[Факт. дата оплаты]]<=Реестр_tb[[#This Row],[Плановая дата оплаты]]),"Оплачено вовремя",IF(AND(Реестр_tb[[#This Row],[Оплачен]]="Да",Реестр_tb[[#This Row],[Факт. дата оплаты]]>Реестр_tb[[#This Row],[Плановая дата оплаты]]),"Просрочено",IF(AND(Реестр_tb[[#This Row],[Оплачен]]="Нет",Реестр_tb[[#This Row],[Факт. дата оплаты]]="",Реестр_tb[[#This Row],[Плановая дата оплаты]]<$AB$1),"Просрочено",IF(Реестр_tb[[#This Row],[Плановая дата оплаты]]=$AB$1,"Сегодня",IF(Реестр_tb[[#This Row],[Плановая дата оплаты]]<=$AB$1+7,"В течении недели","Через неделю и более"))))) -> Через неделю и более | T163: Контракт № 765000027209 о т ххх на сумму 80 000,00 руб. (БО на сумму 80 000,00 руб.)
A164: ПАО "Ростелеком" | B164: Муниципальное задание | C164: услуги связи | D164: =IFERROR(VLOOKUP(Реестр_tb[[#This Row],[Подкатегория]],IF({1,0},Данные_tb[ЕД],Данные_tb[доп. код.]),2,0)," ") -> 4 | E164: =IFERROR(VLOOKUP(Реестр_tb[[#This Row],[ДОПЫ]],IF({1,0},Данные_tb[доп. код.],Данные_tb[Источник]),2,0)," ") -> 20 | F164: Нет | G164: сентябрь | H164: услуги связи | I164: 4 | J164: 5000 | O164: =IF(Реестр_tb[[#This Row],[Срок оплаты (дней)]]="","",WORKDAY(Реестр_tb[[#This Row],[входящий (дата)]],Реестр_tb[[#This Row],[Срок оплаты (дней)]]+1,Выходные_tb[Выходные])) ->  | Q164: =IF(AND(Реестр_tb[[#This Row],[Оплачен]]="Да",Реестр_tb[[#This Row],[Факт. дата оплаты]]<=Реестр_tb[[#This Row],[Плановая дата оплаты]]),"Оплачено вовремя",IF(AND(Реестр_tb[[#This Row],[Оплачен]]="Да",Реестр_tb[[#This Row],[Факт. дата оплаты]]>Реестр_tb[[#This Row],[Плановая дата оплаты]]),"Просрочено",IF(AND(Реестр_tb[[#This Row],[Оплачен]]="Нет",Реестр_tb[[#This Row],[Факт. дата оплаты]]="",Реестр_tb[[#This Row],[Плановая дата оплаты]]<$AB$1),"Просрочено",IF(Реестр_tb[[#This Row],[Плановая дата оплаты]]=$AB$1,"Сегодня",IF(Реестр_tb[[#This Row],[Плановая дата оплаты]]<=$AB$1+7,"В течении недели","Через неделю и более"))))) -> Через неделю и более | T164: Контракт № 765000027209 о т ххх на сумму 80 000,00 руб. (БО на сумму 80 000,00 руб.)
A165: ПАО "Ростелеком" | B165: Муниципальное задание | C165: услуги связи | D165: =IFERROR(VLOOKUP(Реестр_tb[[#This Row],[Подкатегория]],IF({1,0},Данные_tb[ЕД],Данные_tb[доп. код.]),2,0)," ") -> 4 | E165: =IFERROR(VLOOKUP(Реестр_tb[[#This Row],[ДОПЫ]],IF({1,0},Данные_tb[доп. код.],Данные_tb[Источник]),2,0)," ") -> 20 | F165: Нет | G165: сентябрь | H165: услуги связи | I165: 4 | J165: 1000 | O165: =IF(Реестр_tb[[#This Row],[Срок оплаты (дней)]]="","",WORKDAY(Реестр_tb[[#This Row],[входящий (дата)]],Реестр_tb[[#This Row],[Срок оплаты (дней)]]+1,Выходные_tb[Выходные])) ->  | Q165: =IF(AND(Реестр_tb[[#This Row],[Оплачен]]="Да",Реестр_tb[[#This Row],[Факт. дата оплаты]]<=Реестр_tb[[#This Row],[Плановая дата оплаты]]),"Оплачено вовремя",IF(AND(Реестр_tb[[#This Row],[Оплачен]]="Да",Реестр_tb[[#This Row],[Факт. дата оплаты]]>Реестр_tb[[#This Row],[Плановая дата оплаты]]),"Просрочено",IF(AND(Реестр_tb[[#This Row],[Оплачен]]="Нет",Реестр_tb[[#This Row],[Факт. дата оплаты]]="",Реестр_tb[[#This Row],[Плановая дата оплаты]]<$AB$1),"Просрочено",IF(Реестр_tb[[#This Row],[Плановая дата оплаты]]=$AB$1,"Сегодня",IF(Реестр_tb[[#This Row],[Плановая дата оплаты]]<=$AB$1+7,"В течении недели","Через неделю и более"))))) -> Через неделю и более | T165: Контракт № 765000027209 о т ххх на сумму 80 000,00 руб. (БО на сумму 80 000,00 руб.)
A166: ПАО "Ростелеком" | B166: Муниципальное задание | C166: услуги связи | D166: =IFERROR(VLOOKUP(Реестр_tb[[#This Row],[Подкатегория]],IF({1,0},Данные_tb[ЕД],Данные_tb[доп. код.]),2,0)," ") -> 4 | E166: =IFERROR(VLOOKUP(Реестр_tb[[#This Row],[ДОПЫ]],IF({1,0},Данные_tb[доп. код.],Данные_tb[Источник]),2,0)," ") -> 20 | F166: Нет | G166: октябрь | H166: услуги связи | I166: 4 | J166: 5000 | O166: =IF(Реестр_tb[[#This Row],[Срок оплаты (дней)]]="","",WORKDAY(Реестр_tb[[#This Row],[входящий (дата)]],Реестр_tb[[#This Row],[Срок оплаты (дней)]]+1,Выходные_tb[Выходные])) ->  | Q166: =IF(AND(Реестр_tb[[#This Row],[Оплачен]]="Да",Реестр_tb[[#This Row],[Факт. дата оплаты]]<=Реестр_tb[[#This Row],[Плановая дата оплаты]]),"Оплачено вовремя",IF(AND(Реестр_tb[[#This Row],[Оплачен]]="Да",Реестр_tb[[#This Row],[Факт. дата оплаты]]>Реестр_tb[[#This Row],[Плановая дата оплаты]]),"Просрочено",IF(AND(Реестр_tb[[#This Row],[Оплачен]]="Нет",Реестр_tb[[#This Row],[Факт. дата оплаты]]="",Реестр_tb[[#This Row],[Плановая дата оплаты]]<$AB$1),"Просрочено",IF(Реестр_tb[[#This Row],[Плановая дата оплаты]]=$AB$1,"Сегодня",IF(Реестр_tb[[#This Row],[Плановая дата оплаты]]<=$AB$1+7,"В течении недели","Через неделю и более"))))) -> Через неделю и более | T166: Контракт № 765000027209 о т ххх на сумму 80 000,00 руб. (БО на сумму 80 000,00 руб.)
A167: ПАО "Ростелеком" | B167: Муниципальное задание | C167: услуги связи | D167: =IFERROR(VLOOKUP(Реестр_tb[[#This Row],[Подкатегория]],IF({1,0},Данные_tb[ЕД],Данные_tb[доп. код.]),2,0)," ") -> 4 | E167: =IFERROR(VLOOKUP(Реестр_tb[[#This Row],[ДОПЫ]],IF({1,0},Данные_tb[доп. код.],Данные_tb[Источник]),2,0)," ") -> 20 | F167: Нет | G167: октябрь | H167: услуги связи | I167: 4 | J167: 1000 | O167: =IF(Реестр_tb[[#This Row],[Срок оплаты (дней)]]="","",WORKDAY(Реестр_tb[[#This Row],[входящий (дата)]],Реестр_tb[[#This Row],[Срок оплаты (дней)]]+1,Выходные_tb[Выходные])) ->  | Q167: =IF(AND(Реестр_tb[[#This Row],[Оплачен]]="Да",Реестр_tb[[#This Row],[Факт. дата оплаты]]<=Реестр_tb[[#This Row],[Плановая дата оплаты]]),"Оплачено вовремя",IF(AND(Реестр_tb[[#This Row],[Оплачен]]="Да",Реестр_tb[[#This Row],[Факт. дата оплаты]]>Реестр_tb[[#This Row],[Плановая дата оплаты]]),"Просрочено",IF(AND(Реестр_tb[[#This Row],[Оплачен]]="Нет",Реестр_tb[[#This Row],[Факт. дата оплаты]]="",Реестр_tb[[#This Row],[Плановая дата оплаты]]<$AB$1),"Просрочено",IF(Реестр_tb[[#This Row],[Плановая дата оплаты]]=$AB$1,"Сегодня",IF(Реестр_tb[[#This Row],[Плановая дата оплаты]]<=$AB$1+7,"В течении недели","Через неделю и более"))))) -> Через неделю и более | T167: Контракт № 765000027209 о т ххх на сумму 80 000,00 руб. (БО на сумму 80 000,00 руб.)
A168: ПАО "Ростелеком" | B168: Муниципальное задание | C168: услуги связи | D168: =IFERROR(VLOOKUP(Реестр_tb[[#This Row],[Подкатегория]],IF({1,0},Данные_tb[ЕД],Данные_tb[доп. код.]),2,0)," ") -> 4 | E168: =IFERROR(VLOOKUP(Реестр_tb[[#This Row],[ДОПЫ]],IF({1,0},Данные_tb[доп. код.],Данные_tb[Источник]),2,0)," ") -> 20 | F168: Нет | G168: ноябрь | H168: услуги связи | I168: 4 | J168: 5000 | O168: =IF(Реестр_tb[[#This Row],[Срок оплаты (дней)]]="","",WORKDAY(Реестр_tb[[#This Row],[входящий (дата)]],Реестр_tb[[#This Row],[Срок оплаты (дней)]]+1,Выходные_tb[Выходные])) ->  | Q168: =IF(AND(Реестр_tb[[#This Row],[Оплачен]]="Да",Реестр_tb[[#This Row],[Факт. дата оплаты]]<=Реестр_tb[[#This Row],[Плановая дата оплаты]]),"Оплачено вовремя",IF(AND(Реестр_tb[[#This Row],[Оплачен]]="Да",Реестр_tb[[#This Row],[Факт. дата оплаты]]>Реестр_tb[[#This Row],[Плановая дата оплаты]]),"Просрочено",IF(AND(Реестр_tb[[#This Row],[Оплачен]]="Нет",Реестр_tb[[#This Row],[Факт. дата оплаты]]="",Реестр_tb[[#This Row],[Плановая дата оплаты]]<$AB$1),"Просрочено",IF(Реестр_tb[[#This Row],[Плановая дата оплаты]]=$AB$1,"Сегодня",IF(Реестр_tb[[#This Row],[Плановая дата оплаты]]<=$AB$1+7,"В течении недели","Через неделю и более"))))) -> Через неделю и более | T168: Контракт № 765000027209 о т ххх на сумму 80 000,00 руб. (БО на сумму 80 000,00 руб.)
A169: ПАО "Ростелеком" | B169: Муниципальное задание | C169: услуги связи | D169: =IFERROR(VLOOKUP(Реестр_tb[[#This Row],[Подкатегория]],IF({1,0},Данные_tb[ЕД],Данные_tb[доп. код.]),2,0)," ") -> 4 | E169: =IFERROR(VLOOKUP(Реестр_tb[[#This Row],[ДОПЫ]],IF({1,0},Данные_tb[доп. код.],Данные_tb[Источник]),2,0)," ") -> 20 | F169: Нет | G169: ноябрь | H169: услуги связи | I169: 4 | J169: 1000 | O169: =IF(Реестр_tb[[#This Row],[Срок оплаты (дней)]]="","",WORKDAY(Реестр_tb[[#This Row],[входящий (дата)]],Реестр_tb[[#This Row],[Срок оплаты (дней)]]+1,Выходные_tb[Выходные])) ->  | Q169: =IF(AND(Реестр_tb[[#This Row],[Оплачен]]="Да",Реестр_tb[[#This Row],[Факт. дата оплаты]]<=Реестр_tb[[#This Row],[Плановая дата оплаты]]),"Оплачено вовремя",IF(AND(Реестр_tb[[#This Row],[Оплачен]]="Да",Реестр_tb[[#This Row],[Факт. дата оплаты]]>Реестр_tb[[#This Row],[Плановая дата оплаты]]),"Просрочено",IF(AND(Реестр_tb[[#This Row],[Оплачен]]="Нет",Реестр_tb[[#This Row],[Факт. дата оплаты]]="",Реестр_tb[[#This Row],[Плановая дата оплаты]]<$AB$1),"Просрочено",IF(Реестр_tb[[#This Row],[Плановая дата оплаты]]=$AB$1,"Сегодня",IF(Реестр_tb[[#This Row],[Плановая дата оплаты]]<=$AB$1+7,"В течении недели","Через неделю и более"))))) -> Через неделю и более | T169: Контракт № 765000027209 о т ххх на сумму 80 000,00 руб. (БО на сумму 80 000,00 руб.)
A170: ПАО "Ростелеком" | B170: Муниципальное задание | C170: услуги связи | D170: =IFERROR(VLOOKUP(Реестр_tb[[#This Row],[Подкатегория]],IF({1,0},Данные_tb[ЕД],Данные_tb[доп. код.]),2,0)," ") -> 4 | E170: =IFERROR(VLOOKUP(Реестр_tb[[#This Row],[ДОПЫ]],IF({1,0},Данные_tb[доп. код.],Данные_tb[Источник]),2,0)," ") -> 20 | F170: Нет | G170: декабрь | H170: услуги связи | I170: 4 | J170: 5000 | O170: =IF(Реестр_tb[[#This Row],[Срок оплаты (дней)]]="","",WORKDAY(Реестр_tb[[#This Row],[входящий (дата)]],Реестр_tb[[#This Row],[Срок оплаты (дней)]]+1,Выходные_tb[Выходные])) ->  | Q170: =IF(AND(Реестр_tb[[#This Row],[Оплачен]]="Да",Реестр_tb[[#This Row],[Факт. дата оплаты]]<=Реестр_tb[[#This Row],[Плановая дата оплаты]]),"Оплачено вовремя",IF(AND(Реестр_tb[[#This Row],[Оплачен]]="Да",Реестр_tb[[#This Row],[Факт. дата оплаты]]>Реестр_tb[[#This Row],[Плановая дата оплаты]]),"Просрочено",IF(AND(Реестр_tb[[#This Row],[Оплачен]]="Нет",Реестр_tb[[#This Row],[Факт. дата оплаты]]="",Реестр_tb[[#This Row],[Плановая дата оплаты]]<$AB$1),"Просрочено",IF(Реестр_tb[[#This Row],[Плановая дата оплаты]]=$AB$1,"Сегодня",IF(Реестр_tb[[#This Row],[Плановая дата оплаты]]<=$AB$1+7,"В течении недели","Через неделю и более"))))) -> Через неделю и более | T170: Контракт № 765000027209 о т ххх на сумму 80 000,00 руб. (БО на сумму 80 000,00 руб.)
A171: ПАО "Ростелеком" | B171: Муниципальное задание | C171: услуги связи | D171: =IFERROR(VLOOKUP(Реестр_tb[[#This Row],[Подкатегория]],IF({1,0},Данные_tb[ЕД],Данные_tb[доп. код.]),2,0)," ") -> 4 | E171: =IFERROR(VLOOKUP(Реестр_tb[[#This Row],[ДОПЫ]],IF({1,0},Данные_tb[доп. код.],Данные_tb[Источник]),2,0)," ") -> 20 | F171: Нет | G171: декабрь | H171: услуги связи | I171: 4 | J171: 1000 | O171: =IF(Реестр_tb[[#This Row],[Срок оплаты (дней)]]="","",WORKDAY(Реестр_tb[[#This Row],[входящий (дата)]],Реестр_tb[[#This Row],[Срок оплаты (дней)]]+1,Выходные_tb[Выходные])) ->  | Q171: =IF(AND(Реестр_tb[[#This Row],[Оплачен]]="Да",Реестр_tb[[#This Row],[Факт. дата оплаты]]<=Реестр_tb[[#This Row],[Плановая дата оплаты]]),"Оплачено вовремя",IF(AND(Реестр_tb[[#This Row],[Оплачен]]="Да",Реестр_tb[[#This Row],[Факт. дата оплаты]]>Реестр_tb[[#This Row],[Плановая дата оплаты]]),"Просрочено",IF(AND(Реестр_tb[[#This Row],[Оплачен]]="Нет",Реестр_tb[[#This Row],[Факт. дата оплаты]]="",Реестр_tb[[#This Row],[Плановая дата оплаты]]<$AB$1),"Просрочено",IF(Реестр_tb[[#This Row],[Плановая дата оплаты]]=$AB$1,"Сегодня",IF(Реестр_tb[[#This Row],[Плановая дата оплаты]]<=$AB$1+7,"В течении недели","Через неделю и более"))))) -> Через неделю и более | T171: Контракт № 765000027209 о т ххх на сумму 80 000,00 руб. (БО на сумму 80 000,00 руб.)
A172: АО "Мобильные газотурбинные электрические станции" | B172: Муниципальное задание | C172: восстановление кабельной линии в 2021 году | D172: =IFERROR(VLOOKUP(Реестр_tb[[#This Row],[Подкатегория]],IF({1,0},Данные_tb[ЕД],Данные_tb[доп. код.]),2,0)," ") -> 4 | E172: =IFERROR(VLOOKUP(Реестр_tb[[#This Row],[ДОПЫ]],IF({1,0},Данные_tb[доп. код.],Данные_tb[Источник]),2,0)," ") -> 20 | F172: Нет | G172: 1-11-01-22 от 11.01.22 | H172: Восстановление кабельной линии 0,4 кВ ТП4 - здание школы | I172: 5 | J172: 367497.6 | L172: 02.02.2022 | M172: 30 | N172: Акта | O172: =IF(Реестр_tb[[#This Row],[Срок оплаты (дней)]]="","",WORKDAY(Реестр_tb[[#This Row],[входящий (дата)]],Реестр_tb[[#This Row],[Срок оплаты (дней)]]+1,Выходные_tb[Выходные])) -> 2022-03-17 | Q172: =IF(AND(Реестр_tb[[#This Row],[Оплачен]]="Да",Реестр_tb[[#This Row],[Факт. дата оплаты]]<=Реестр_tb[[#This Row],[Плановая дата оплаты]]),"Оплачено вовремя",IF(AND(Реестр_tb[[#This Row],[Оплачен]]="Да",Реестр_tb[[#This Row],[Факт. дата оплаты]]>Реестр_tb[[#This Row],[Плановая дата оплаты]]),"Просрочено",IF(AND(Реестр_tb[[#This Row],[Оплачен]]="Нет",Реестр_tb[[#This Row],[Факт. дата оплаты]]="",Реестр_tb[[#This Row],[Плановая дата оплаты]]<$AB$1),"Просрочено",IF(Реестр_tb[[#This Row],[Плановая дата оплаты]]=$AB$1,"Сегодня",IF(Реестр_tb[[#This Row],[Плановая дата оплаты]]<=$AB$1+7,"В течении недели","Через неделю и более"))))) -> Через неделю и более | R172: Полный расчет | S172: Копии | T172: Договор № 265/2021 от 15.12.2021 г.
A173: ООО "Коралл" | B173: питание (внебюджет) | C173: 5-11, сотрудники | D173: =IFERROR(VLOOKUP(Реестр_tb[[#This Row],[Подкатегория]],IF({1,0},Данные_tb[ЕД],Данные_tb[доп. код.]),2,0)," ") -> 2 | E173: =IFERROR(VLOOKUP(Реестр_tb[[#This Row],[ДОПЫ]],IF({1,0},Данные_tb[доп. код.],Данные_tb[Источник]),2,0)," ") -> 20 | F173: Нет | G173: 2 от 10.01.22 | I173: 5 | J173: 184482.4 | L173: 2022-01-10 | M173: 15 | N173: Акта | O173: =IF(Реестр_tb[[#This Row],[Срок оплаты (дней)]]="","",WORKDAY(Реестр_tb[[#This Row],[входящий (дата)]],Реестр_tb[[#This Row],[Срок оплаты (дней)]]+1,Выходные_tb[Выходные])) -> 2022-02-01 | Q173: =IF(AND(Реестр_tb[[#This Row],[Оплачен]]="Да",Реестр_tb[[#This Row],[Факт. дата оплаты]]<=Реестр_tb[[#This Row],[Плановая дата оплаты]]),"Оплачено вовремя",IF(AND(Реестр_tb[[#This Row],[Оплачен]]="Да",Реестр_tb[[#This Row],[Факт. дата оплаты]]>Реестр_tb[[#This Row],[Плановая дата оплаты]]),"Просрочено",IF(AND(Реестр_tb[[#This Row],[Оплачен]]="Нет",Реестр_tb[[#This Row],[Факт. дата оплаты]]="",Реестр_tb[[#This Row],[Плановая дата оплаты]]<$AB$1),"Просрочено",IF(Реестр_tb[[#This Row],[Плановая дата оплаты]]=$AB$1,"Сегодня",IF(Реестр_tb[[#This Row],[Плановая дата оплаты]]<=$AB$1+7,"В течении недели","Через неделю и более"))))) -> Просрочено | R173: Полный расчет | T173: Контракт б/н от 10.01.2022 г. на сумму 201852,40 руб.
A174: ООО "Коралл" | B174: питание (местный бюджет) | C174: питание 1-4 классы | D174: =IFERROR(VLOOKUP(Реестр_tb[[#This Row],[Подкатегория]],IF({1,0},Данные_tb[ЕД],Данные_tb[доп. код.]),2,0)," ") -> М0025 | E174: =IFERROR(VLOOKUP(Реестр_tb[[#This Row],[ДОПЫ]],IF({1,0},Данные_tb[доп. код.],Данные_tb[Источник]),2,0)," ") -> 20 | F174: Нет | G174: 2 от 10.01.22 | I174: 5 | J174: 17370 | L174: 2022-01-10 | M174: 15 | N174: Акта | O174: =IF(Реестр_tb[[#This Row],[Срок оплаты (дней)]]="","",WORKDAY(Реестр_tb[[#This Row],[входящий (дата)]],Реестр_tb[[#This Row],[Срок оплаты (дней)]]+1,Выходные_tb[Выходные])) -> 2022-02-01 | Q174: =IF(AND(Реестр_tb[[#This Row],[Оплачен]]="Да",Реестр_tb[[#This Row],[Факт. дата оплаты]]<=Реестр_tb[[#This Row],[Плановая дата оплаты]]),"Оплачено вовремя",IF(AND(Реестр_tb[[#This Row],[Оплачен]]="Да",Реестр_tb[[#This Row],[Факт. дата оплаты]]>Реестр_tb[[#This Row],[Плановая дата оплаты]]),"Просрочено",IF(AND(Реестр_tb[[#This Row],[Оплачен]]="Нет",Реестр_tb[[#This Row],[Факт. дата оплаты]]="",Реестр_tb[[#This Row],[Плановая дата оплаты]]<$AB$1),"Просрочено",IF(Реестр_tb[[#This Row],[Плановая дата оплаты]]=$AB$1,"Сегодня",IF(Реестр_tb[[#This Row],[Плановая дата оплаты]]<=$AB$1+7,"В течении недели","Через неделю и более"))))) -> Просрочено | R174: Полный расчет | T174: Контракт б/н от 10.01.2022 г. на сумму 201852,40 руб.
A175: АО "Молочный комбинат "Южно-Сахалинский" | B175: питание (местный бюджет) | C175: молоко опека | D175: =IFERROR(VLOOKUP(Реестр_tb[[#This Row],[Подкатегория]],IF({1,0},Данные_tb[ЕД],Данные_tb[доп. код.]),2,0)," ") -> М19017 | E175: =IFERROR(VLOOKUP(Реестр_tb[[#This Row],[ДОПЫ]],IF({1,0},Данные_tb[доп. код.],Данные_tb[Источник]),2,0)," ") -> 20 | F175: Нет | I175: 5 | J175: 36540 | K175: 3 | N175: Акта | O175: =IF(Реестр_tb[[#This Row],[Срок оплаты (дней)]]="","",WORKDAY(Реестр_tb[[#This Row],[входящий (дата)]],Реестр_tb[[#This Row],[Срок оплаты (дней)]]+1,Выходные_tb[Выходные])) ->  | Q175: =IF(AND(Реестр_tb[[#This Row],[Оплачен]]="Да",Реестр_tb[[#This Row],[Факт. дата оплаты]]<=Реестр_tb[[#This Row],[Плановая дата оплаты]]),"Оплачено вовремя",IF(AND(Реестр_tb[[#This Row],[Оплачен]]="Да",Реестр_tb[[#This Row],[Факт. дата оплаты]]>Реестр_tb[[#This Row],[Плановая дата оплаты]]),"Просрочено",IF(AND(Реестр_tb[[#This Row],[Оплачен]]="Нет",Реестр_tb[[#This Row],[Факт. дата оплаты]]="",Реестр_tb[[#This Row],[Плановая дата оплаты]]<$AB$1),"Просрочено",IF(Реестр_tb[[#This Row],[Плановая дата оплаты]]=$AB$1,"Сегодня",IF(Реестр_tb[[#This Row],[Плановая дата оплаты]]<=$AB$1+7,"В течении недели","Через неделю и более"))))) -> Через неделю и более | R175: Полный расчет | S175: Копии | T175: Контракт № 17/2022 от 19.01.2022 г.
A176: ПАО "САК "Энергогарант" | B176: Подвоз | C176: автострахование | D176: =IFERROR(VLOOKUP(Реестр_tb[[#This Row],[Подкатегория]],IF({1,0},Данные_tb[ЕД],Данные_tb[доп. код.]),2,0)," ") -> 18 | E176: =IFERROR(VLOOKUP(Реестр_tb[[#This Row],[ДОПЫ]],IF({1,0},Данные_tb[доп. код.],Данные_tb[Источник]),2,0)," ") -> 20 | F176: Нет | G176: 220061-891-003161/1 от 11.01.22 | H176: ОСАГО ПАЗ 3205 70-02 XIM3205XXM0002132 (164301032987850) | I176: 5 | J176: 9462.74 | K176: 4 | L176: 11.01.22 | M176: 15 | N176: Акта | O176: =IF(Реестр_tb[[#This Row],[Срок оплаты (дней)]]="","",WORKDAY(Реестр_tb[[#This Row],[входящий (дата)]],Реестр_tb[[#This Row],[Срок оплаты (дней)]]+1,Выходные_tb[Выходные])) -> 2022-02-02 | Q176: =IF(AND(Реестр_tb[[#This Row],[Оплачен]]="Да",Реестр_tb[[#This Row],[Факт. дата оплаты]]<=Реестр_tb[[#This Row],[Плановая дата оплаты]]),"Оплачено вовремя",IF(AND(Реестр_tb[[#This Row],[Оплачен]]="Да",Реестр_tb[[#This Row],[Факт. дата оплаты]]>Реестр_tb[[#This Row],[Плановая дата оплаты]]),"Просрочено",IF(AND(Реестр_tb[[#This Row],[Оплачен]]="Нет",Реестр_tb[[#This Row],[Факт. дата оплаты]]="",Реестр_tb[[#This Row],[Плановая дата оплаты]]<$AB$1),"Просрочено",IF(Реестр_tb[[#This Row],[Плановая дата оплаты]]=$AB$1,"Сегодня",IF(Реестр_tb[[#This Row],[Плановая дата оплаты]]<=$AB$1+7,"В течении недели","Через неделю и более"))))) -> Просрочено | R176: Полный расчет | S176: Копии | T176: Без договора
A177: ООО "Коралл" | B177: питание (федеральный бюджет) | C177: питание (федеральный бюджет) | D177: =IFERROR(VLOOKUP(Реестр_tb[[#This Row],[Подкатегория]],IF({1,0},Данные_tb[ЕД],Данные_tb[доп. код.]),2,0)," ") -> 22-53040-00000 | E177: =IFERROR(VLOOKUP(Реестр_tb[[#This Row],[ДОПЫ]],IF({1,0},Данные_tb[доп. код.],Данные_tb[Источник]),2,0)," ") -> 20 | F177: Нет | G177: 3 от 17.01.22 | I177: 5 | J177: 83420 | L177: 21.01.2022 | M177: 15 | N177: Акта | O177: =IF(Реестр_tb[[#This Row],[Срок оплаты (дней)]]="","",WORKDAY(Реестр_tb[[#This Row],[входящий (дата)]],Реестр_tb[[#This Row],[Срок оплаты (дней)]]+1,Выходные_tb[Выходные])) -> 2022-02-14 | Q177: =IF(AND(Реестр_tb[[#This Row],[Оплачен]]="Да",Реестр_tb[[#This Row],[Факт. дата оплаты]]<=Реестр_tb[[#This Row],[Плановая дата оплаты]]),"Оплачено вовремя",IF(AND(Реестр_tb[[#This Row],[Оплачен]]="Да",Реестр_tb[[#This Row],[Факт. дата оплаты]]>Реестр_tb[[#This Row],[Плановая дата оплаты]]),"Просрочено",IF(AND(Реестр_tb[[#This Row],[Оплачен]]="Нет",Реестр_tb[[#This Row],[Факт. дата оплаты]]="",Реестр_tb[[#This Row],[Плановая дата оплаты]]<$AB$1),"Просрочено",IF(Реестр_tb[[#This Row],[Плановая дата оплаты]]=$AB$1,"Сегодня",IF(Реестр_tb[[#This Row],[Плановая дата оплаты]]<=$AB$1+7,"В течении недели","Через неделю и более"))))) -> Через неделю и более | R177: Полный расчет | S177: Оригиналы | T177: Контракт б/н от 17.01.2022 г. на сумму 83420,00 руб.
A178: ООО "Коралл" | B178: питание (федеральный бюджет) | C178: питание (федеральный бюджет) | D178: =IFERROR(VLOOKUP(Реестр_tb[[#This Row],[Подкатегория]],IF({1,0},Данные_tb[ЕД],Данные_tb[доп. код.]),2,0)," ") -> 22-53040-00000 | E178: =IFERROR(VLOOKUP(Реестр_tb[[#This Row],[ДОПЫ]],IF({1,0},Данные_tb[доп. код.],Данные_tb[Источник]),2,0)," ") -> 20 | F178: Нет | G178: 1 от 10.01.22 | I178: 5 | J178: 135805 | L178: 13.01.2022 | M178: 15 | N178: Акта | O178: =IF(Реестр_tb[[#This Row],[Срок оплаты (дней)]]="","",WORKDAY(Реестр_tb[[#This Row],[входящий (дата)]],Реестр_tb[[#This Row],[Срок оплаты (дней)]]+1,Выходные_tb[Выходные])) -> 2022-02-04 | Q178: =IF(AND(Реестр_tb[[#This Row],[Оплачен]]="Да",Реестр_tb[[#This Row],[Факт. дата оплаты]]<=Реестр_tb[[#This Row],[Плановая дата оплаты]]),"Оплачено вовремя",IF(AND(Реестр_tb[[#This Row],[Оплачен]]="Да",Реестр_tb[[#This Row],[Факт. дата оплаты]]>Реестр_tb[[#This Row],[Плановая дата оплаты]]),"Просрочено",IF(AND(Реестр_tb[[#This Row],[Оплачен]]="Нет",Реестр_tb[[#This Row],[Факт. дата оплаты]]="",Реестр_tb[[#This Row],[Плановая дата оплаты]]<$AB$1),"Просрочено",IF(Реестр_tb[[#This Row],[Плановая дата оплаты]]=$AB$1,"Сегодня",IF(Реестр_tb[[#This Row],[Плановая дата оплаты]]<=$AB$1+7,"В течении недели","Через неделю и более"))))) -> В течении недели | R178: Полный расчет | S178: Оригиналы | T178: Контракт б/н от 10.01.2022 г. на сумму 135805,00 руб.
A179: ООО "Коралл" | B179: питание (местный бюджет) | C179: питание 1-4 классы | D179: =IFERROR(VLOOKUP(Реестр_tb[[#This Row],[Подкатегория]],IF({1,0},Данные_tb[ЕД],Данные_tb[доп. код.]),2,0)," ") -> М0025 | E179: =IFERROR(VLOOKUP(Реестр_tb[[#This Row],[ДОПЫ]],IF({1,0},Данные_tb[доп. код.],Данные_tb[Источник]),2,0)," ") -> 20 | F179: Нет | G179: 6 от 20.01.22 | I179: 5 | J179: 14710.8 | L179: 25.01.2022 | M179: 15 | N179: Акта | O179: =IF(Реестр_tb[[#This Row],[Срок оплаты (дней)]]="","",WORKDAY(Реестр_tb[[#This Row],[входящий (дата)]],Реестр_tb[[#This Row],[Срок оплаты (дней)]]+1,Выходные_tb[Выходные])) -> 2022-02-16 | Q179: =IF(AND(Реестр_tb[[#This Row],[Оплачен]]="Да",Реестр_tb[[#This Row],[Факт. дата оплаты]]<=Реестр_tb[[#This Row],[Плановая дата оплаты]]),"Оплачено вовремя",IF(AND(Реестр_tb[[#This Row],[Оплачен]]="Да",Реестр_tb[[#This Row],[Факт. дата оплаты]]>Реестр_tb[[#This Row],[Плановая дата оплаты]]),"Просрочено",IF(AND(Реестр_tb[[#This Row],[Оплачен]]="Нет",Реестр_tb[[#This Row],[Факт. дата оплаты]]="",Реестр_tb[[#This Row],[Плановая дата оплаты]]<$AB$1),"Просрочено",IF(Реестр_tb[[#This Row],[Плановая дата оплаты]]=$AB$1,"Сегодня",IF(Реестр_tb[[#This Row],[Плановая дата оплаты]]<=$AB$1+7,"В течении недели","Через неделю и более"))))) -> Через неделю и более | R179: Полный расчет | S179: Оригиналы | T179: Контракт б/н от 20.01.2022 г. на сумму 14710,80 руб.
A180: ООО "Коралл" | B180: питание (федеральный бюджет) | C180: питание (федеральный бюджет) | D180: =IFERROR(VLOOKUP(Реестр_tb[[#This Row],[Подкатегория]],IF({1,0},Данные_tb[ЕД],Данные_tb[доп. код.]),2,0)," ") -> 22-53040-00000 | E180: =IFERROR(VLOOKUP(Реестр_tb[[#This Row],[ДОПЫ]],IF({1,0},Данные_tb[доп. код.],Данные_tb[Источник]),2,0)," ") -> 20 | F180: Нет | G180: 5 от 20.01.22 | I180: 5 | J180: 121395.77 | L180: 25.01.2022 | M180: 15 | N180: Акта | O180: =IF(Реестр_tb[[#This Row],[Срок оплаты (дней)]]="","",WORKDAY(Реестр_tb[[#This Row],[входящий (дата)]],Реестр_tb[[#This Row],[Срок оплаты (дней)]]+1,Выходные_tb[Выходные])) -> 2022-02-16 | Q180: =IF(AND(Реестр_tb[[#This Row],[Оплачен]]="Да",Реестр_tb[[#This Row],[Факт. дата оплаты]]<=Реестр_tb[[#This Row],[Плановая дата оплаты]]),"Оплачено вовремя",IF(AND(Реестр_tb[[#This Row],[Оплачен]]="Да",Реестр_tb[[#This Row],[Факт. дата оплаты]]>Реестр_tb[[#This Row],[Плановая дата оплаты]]),"Просрочено",IF(AND(Реестр_tb[[#This Row],[Оплачен]]="Нет",Реестр_tb[[#This Row],[Факт. дата оплаты]]="",Реестр_tb[[#This Row],[Плановая дата оплаты]]<$AB$1),"Просрочено",IF(Реестр_tb[[#This Row],[Плановая дата оплаты]]=$AB$1,"Сегодня",IF(Реестр_tb[[#This Row],[Плановая дата оплаты]]<=$AB$1+7,"В течении недели","Через неделю и более"))))) -> Через неделю и более | R180: Полный расчет | S180: Оригиналы | T180: Контракт б/н от 20.01.2022 г. на сумму 121395,77 руб.
A181: ООО "Коралл" | B181: питание (внебюджет) | C181: 5-11, сотрудники | D181: =IFERROR(VLOOKUP(Реестр_tb[[#This Row],[Подкатегория]],IF({1,0},Данные_tb[ЕД],Данные_tb[доп. код.]),2,0)," ") -> 2 | E181: =IFERROR(VLOOKUP(Реестр_tb[[#This Row],[ДОПЫ]],IF({1,0},Данные_tb[доп. код.],Данные_tb[Источник]),2,0)," ") -> 20 | F181: Нет | G181: 175 от 10.01.22 | I181: 5 | J181: 565.3 | L181: 10.01.2022 | M181: 15 | N181: Акта | O181: =IF(Реестр_tb[[#This Row],[Срок оплаты (дней)]]="","",WORKDAY(Реестр_tb[[#This Row],[входящий (дата)]],Реестр_tb[[#This Row],[Срок оплаты (дней)]]+1,Выходные_tb[Выходные])) -> 2022-02-01 | Q181: =IF(AND(Реестр_tb[[#This Row],[Оплачен]]="Да",Реестр_tb[[#This Row],[Факт. дата оплаты]]<=Реестр_tb[[#This Row],[Плановая дата оплаты]]),"Оплачено вовремя",IF(AND(Реестр_tb[[#This Row],[Оплачен]]="Да",Реестр_tb[[#This Row],[Факт. дата оплаты]]>Реестр_tb[[#This Row],[Плановая дата оплаты]]),"Просрочено",IF(AND(Реестр_tb[[#This Row],[Оплачен]]="Нет",Реестр_tb[[#This Row],[Факт. дата оплаты]]="",Реестр_tb[[#This Row],[Плановая дата оплаты]]<$AB$1),"Просрочено",IF(Реестр_tb[[#This Row],[Плановая дата оплаты]]=$AB$1,"Сегодня",IF(Реестр_tb[[#This Row],[Плановая дата оплаты]]<=$AB$1+7,"В течении недели","Через неделю и более"))))) -> Просрочено | R181: Полный расчет | S181: Оригиналы | T181: Контракт б/н от 16.12.2021 г. на сумму 170437,45 руб.
A182: ООО "Коралл" | B182: питание (областной бюджет) (молоко, 5-11,многодетные, ОВЗ) | C182: питание 1-4 кл, 5-11 кл.малоимущ | D182: =IFERROR(VLOOKUP(Реестр_tb[[#This Row],[Подкатегория]],IF({1,0},Данные_tb[ЕД],Данные_tb[доп. код.]),2,0)," ") -> Д62190 | E182: =IFERROR(VLOOKUP(Реестр_tb[[#This Row],[ДОПЫ]],IF({1,0},Данные_tb[доп. код.],Данные_tb[Источник]),2,0)," ") -> 20 | F182: Нет | G182: 175 от 10.01.22 | I182: 5 | J182: 89237.77 | L182: 10.01.2022 | M182: 15 | N182: Акта | O182: =IF(Реестр_tb[[#This Row],[Срок оплаты (дней)]]="","",WORKDAY(Реестр_tb[[#This Row],[входящий (дата)]],Реестр_tb[[#This Row],[Срок оплаты (дней)]]+1,Выходные_tb[Выходные])) -> 2022-02-01 | Q182: =IF(AND(Реестр_tb[[#This Row],[Оплачен]]="Да",Реестр_tb[[#This Row],[Факт. дата оплаты]]<=Реестр_tb[[#This Row],[Плановая дата оплаты]]),"Оплачено вовремя",IF(AND(Реестр_tb[[#This Row],[Оплачен]]="Да",Реестр_tb[[#This Row],[Факт. дата оплаты]]>Реестр_tb[[#This Row],[Плановая дата оплаты]]),"Просрочено",IF(AND(Реестр_tb[[#This Row],[Оплачен]]="Нет",Реестр_tb[[#This Row],[Факт. дата оплаты]]="",Реестр_tb[[#This Row],[Плановая дата оплаты]]<$AB$1),"Просрочено",IF(Реестр_tb[[#This Row],[Плановая дата оплаты]]=$AB$1,"Сегодня",IF(Реестр_tb[[#This Row],[Плановая дата оплаты]]<=$AB$1+7,"В течении недели","Через неделю и более"))))) -> Просрочено | R182: Полный расчет | S182: Оригиналы | T182: Контракт б/н от 16.12.2021 г. на сумму 170437,45 руб.
A183: ООО "Коралл" | B183: питание (областной бюджет) (молоко, 5-11,многодетные, ОВЗ) | C183: питание 1-4 кл, 5-11 кл.малоимущ | D183: =IFERROR(VLOOKUP(Реестр_tb[[#This Row],[Подкатегория]],IF({1,0},Данные_tb[ЕД],Данные_tb[доп. код.]),2,0)," ") -> Д62190 | E183: =IFERROR(VLOOKUP(Реестр_tb[[#This Row],[ДОПЫ]],IF({1,0},Данные_tb[доп. код.],Данные_tb[Источник]),2,0)," ") -> 20 | F183: Нет | G183: 175 от 10.01.22 | I183: 5 | J183: 27335.12 | L183: 10.01.2022 | M183: 15 | N183: Акта | O183: =IF(Реестр_tb[[#This Row],[Срок оплаты (дней)]]="","",WORKDAY(Реестр_tb[[#This Row],[входящий (дата)]],Реестр_tb[[#This Row],[Срок оплаты (дней)]]+1,Выходные_tb[Выходные])) -> 2022-02-01 | Q183: =IF(AND(Реестр_tb[[#This Row],[Оплачен]]="Да",Реестр_tb[[#This Row],[Факт. дата оплаты]]<=Реестр_tb[[#This Row],[Плановая дата оплаты]]),"Оплачено вовремя",IF(AND(Реестр_tb[[#This Row],[Оплачен]]="Да",Реестр_tb[[#This Row],[Факт. дата оплаты]]>Реестр_tb[[#This Row],[Плановая дата оплаты]]),"Просрочено",IF(AND(Реестр_tb[[#This Row],[Оплачен]]="Нет",Реестр_tb[[#This Row],[Факт. дата оплаты]]="",Реестр_tb[[#This Row],[Плановая дата оплаты]]<$AB$1),"Просрочено",IF(Реестр_tb[[#This Row],[Плановая дата оплаты]]=$AB$1,"Сегодня",IF(Реестр_tb[[#This Row],[Плановая дата оплаты]]<=$AB$1+7,"В течении недели","Через неделю и более"))))) -> Просрочено | R183: Полный расчет | S183: Оригиналы | T183: Контракт б/н от 16.12.2021 г. на сумму 170437,45 руб.
A184: ООО "Коралл" | B184: питание (местный бюджет) | C184: молоко опека | D184: =IFERROR(VLOOKUP(Реестр_tb[[#This Row],[Подкатегория]],IF({1,0},Данные_tb[ЕД],Данные_tb[доп. код.]),2,0)," ") -> М19017 | E184: =IFERROR(VLOOKUP(Реестр_tb[[#This Row],[ДОПЫ]],IF({1,0},Данные_tb[доп. код.],Данные_tb[Источник]),2,0)," ") -> 20 | F184: Нет | G184: 175 от 10.01.22 | I184: 5 | J184: 19109.53 | L184: 10.01.2022 | M184: 15 | N184: Акта | O184: =IF(Реестр_tb[[#This Row],[Срок оплаты (дней)]]="","",WORKDAY(Реестр_tb[[#This Row],[входящий (дата)]],Реестр_tb[[#This Row],[Срок оплаты (дней)]]+1,Выходные_tb[Выходные])) -> 2022-02-01 | Q184: =IF(AND(Реестр_tb[[#This Row],[Оплачен]]="Да",Реестр_tb[[#This Row],[Факт. дата оплаты]]<=Реестр_tb[[#This Row],[Плановая дата оплаты]]),"Оплачено вовремя",IF(AND(Реестр_tb[[#This Row],[Оплачен]]="Да",Реестр_tb[[#This Row],[Факт. дата оплаты]]>Реестр_tb[[#This Row],[Плановая дата оплаты]]),"Просрочено",IF(AND(Реестр_tb[[#This Row],[Оплачен]]="Нет",Реестр_tb[[#This Row],[Факт. дата оплаты]]="",Реестр_tb[[#This Row],[Плановая дата оплаты]]<$AB$1),"Просрочено",IF(Реестр_tb[[#This Row],[Плановая дата оплаты]]=$AB$1,"Сегодня",IF(Реестр_tb[[#This Row],[Плановая дата оплаты]]<=$AB$1+7,"В течении недели","Через неделю и более"))))) -> Просрочено | R184: Полный расчет | S184: Оригиналы | T184: Контракт б/н от 16.12.2021 г. на сумму 170437,45 руб.
A185: ООО "Коралл" | B185: питание (областной бюджет) (молоко, 5-11,многодетные, ОВЗ) | C185: питание 1-4 кл, 5-11 кл.малоимущ | D185: =IFERROR(VLOOKUP(Реестр_tb[[#This Row],[Подкатегория]],IF({1,0},Данные_tb[ЕД],Данные_tb[доп. код.]),2,0)," ") -> Д62190 | E185: =IFERROR(VLOOKUP(Реестр_tb[[#This Row],[ДОПЫ]],IF({1,0},Данные_tb[доп. код.],Данные_tb[Источник]),2,0)," ") -> 20 | F185: Нет | G185: 175 от 10.01.22 | I185: 5 | J185: 23502.92 | L185: 10.01.2022 | M185: 15 | N185: Акта | O185: =IF(Реестр_tb[[#This Row],[Срок оплаты (дней)]]="","",WORKDAY(Реестр_tb[[#This Row],[входящий (дата)]],Реестр_tb[[#This Row],[Срок оплаты (дней)]]+1,Выходные_tb[Выходные])) -> 2022-02-01 | Q185: =IF(AND(Реестр_tb[[#This Row],[Оплачен]]="Да",Реестр_tb[[#This Row],[Факт. дата оплаты]]<=Реестр_tb[[#This Row],[Плановая дата оплаты]]),"Оплачено вовремя",IF(AND(Реестр_tb[[#This Row],[Оплачен]]="Да",Реестр_tb[[#This Row],[Факт. дата оплаты]]>Реестр_tb[[#This Row],[Плановая дата оплаты]]),"Просрочено",IF(AND(Реестр_tb[[#This Row],[Оплачен]]="Нет",Реестр_tb[[#This Row],[Факт. дата оплаты]]="",Реестр_tb[[#This Row],[Плановая дата оплаты]]<$AB$1),"Просрочено",IF(Реестр_tb[[#This Row],[Плановая дата оплаты]]=$AB$1,"Сегодня",IF(Реестр_tb[[#This Row],[Плановая дата оплаты]]<=$AB$1+7,"В течении недели","Через неделю и более"))))) -> Просрочено | R185: Полный расчет | S185: Оригиналы | T185: Контракт б/н от 16.12.2021 г. на сумму 170437,45 руб.
A186: ООО "Коралл" | B186: питание (внебюджет) | C186: 5-11, сотрудники | D186: =IFERROR(VLOOKUP(Реестр_tb[[#This Row],[Подкатегория]],IF({1,0},Данные_tb[ЕД],Данные_tb[доп. код.]),2,0)," ") -> 2 | E186: =IFERROR(VLOOKUP(Реестр_tb[[#This Row],[ДОПЫ]],IF({1,0},Данные_tb[доп. код.],Данные_tb[Источник]),2,0)," ") -> 20 | F186: Нет | G186: 175 от 10.01.22 | I186: 5 | J186: 10686.81 | L186: 10.01.2022 | M186: 15 | N186: Акта | O186: =IF(Реестр_tb[[#This Row],[Срок оплаты (дней)]]="","",WORKDAY(Реестр_tb[[#This Row],[входящий (дата)]],Реестр_tb[[#This Row],[Срок оплаты (дней)]]+1,Выходные_tb[Выходные])) -> 2022-02-01 | Q186: =IF(AND(Реестр_tb[[#This Row],[Оплачен]]="Да",Реестр_tb[[#This Row],[Факт. дата оплаты]]<=Реестр_tb[[#This Row],[Плановая дата оплаты]]),"Оплачено вовремя",IF(AND(Реестр_tb[[#This Row],[Оплачен]]="Да",Реестр_tb[[#This Row],[Факт. дата оплаты]]>Реестр_tb[[#This Row],[Плановая дата оплаты]]),"Просрочено",IF(AND(Реестр_tb[[#This Row],[Оплачен]]="Нет",Реестр_tb[[#This Row],[Факт. дата оплаты]]="",Реестр_tb[[#This Row],[Плановая дата оплаты]]<$AB$1),"Просрочено",IF(Реестр_tb[[#This Row],[Плановая дата оплаты]]=$AB$1,"Сегодня",IF(Реестр_tb[[#This Row],[Плановая дата оплаты]]<=$AB$1+7,"В течении недели","Через неделю и более"))))) -> Просрочено | R186: Полный расчет | S186: Оригиналы | T186: Контракт б/н от 16.12.2021 г. на сумму 170437,45 руб.
A187: ООО "Коралл" | B187: питание (внебюджет) | C187: 5-11, сотрудники | D187: =IFERROR(VLOOKUP(Реестр_tb[[#This Row],[Подкатегория]],IF({1,0},Данные_tb[ЕД],Данные_tb[доп. код.]),2,0)," ") -> 2 | E187: =IFERROR(VLOOKUP(Реестр_tb[[#This Row],[ДОПЫ]],IF({1,0},Данные_tb[доп. код.],Данные_tb[Источник]),2,0)," ") -> 20 | F187: Нет | G187: 4 от 17.01.22 | I187: 5 | J187: 21060 | L187: 21.01.2022 | M187: 15 | N187: Акта | O187: =IF(Реестр_tb[[#This Row],[Срок оплаты (дней)]]="","",WORKDAY(Реестр_tb[[#This Row],[входящий (дата)]],Реестр_tb[[#This Row],[Срок оплаты (дней)]]+1,Выходные_tb[Выходные])) -> 2022-02-14 | Q187: =IF(AND(Реестр_tb[[#This Row],[Оплачен]]="Да",Реестр_tb[[#This Row],[Факт. дата оплаты]]<=Реестр_tb[[#This Row],[Плановая дата оплаты]]),"Оплачено вовремя",IF(AND(Реестр_tb[[#This Row],[Оплачен]]="Да",Реестр_tb[[#This Row],[Факт. дата оплаты]]>Реестр_tb[[#This Row],[Плановая дата оплаты]]),"Просрочено",IF(AND(Реестр_tb[[#This Row],[Оплачен]]="Нет",Реестр_tb[[#This Row],[Факт. дата оплаты]]="",Реестр_tb[[#This Row],[Плановая дата оплаты]]<$AB$1),"Просрочено",IF(Реестр_tb[[#This Row],[Плановая дата оплаты]]=$AB$1,"Сегодня",IF(Реестр_tb[[#This Row],[Плановая дата оплаты]]<=$AB$1+7,"В течении недели","Через неделю и более"))))) -> Через неделю и более | R187: Полный расчет | S187: Оригиналы | T187: Контракт б/н от 17.01.2022 г. на сумму 77550,00 руб.
A188: ООО "Коралл" | B188: питание (областной бюджет) (молоко, 5-11,многодетные, ОВЗ) | C188: питание 1-4 кл, 5-11 кл.малоимущ | D188: =IFERROR(VLOOKUP(Реестр_tb[[#This Row],[Подкатегория]],IF({1,0},Данные_tb[ЕД],Данные_tb[доп. код.]),2,0)," ") -> Д62190 | E188: =IFERROR(VLOOKUP(Реестр_tb[[#This Row],[ДОПЫ]],IF({1,0},Данные_tb[доп. код.],Данные_tb[Источник]),2,0)," ") -> 20 | F188: Нет | G188: 4 от 17.01.22 | I188: 5 | J188: 56490 | L188: 21.01.2022 | M188: 15 | N188: Акта | O188: =IF(Реестр_tb[[#This Row],[Срок оплаты (дней)]]="","",WORKDAY(Реестр_tb[[#This Row],[входящий (дата)]],Реестр_tb[[#This Row],[Срок оплаты (дней)]]+1,Выходные_tb[Выходные])) -> 2022-02-14 | Q188: =IF(AND(Реестр_tb[[#This Row],[Оплачен]]="Да",Реестр_tb[[#This Row],[Факт. дата оплаты]]<=Реестр_tb[[#This Row],[Плановая дата оплаты]]),"Оплачено вовремя",IF(AND(Реестр_tb[[#This Row],[Оплачен]]="Да",Реестр_tb[[#This Row],[Факт. дата оплаты]]>Реестр_tb[[#This Row],[Плановая дата оплаты]]),"Просрочено",IF(AND(Реестр_tb[[#This Row],[Оплачен]]="Нет",Реестр_tb[[#This Row],[Факт. дата оплаты]]="",Реестр_tb[[#This Row],[Плановая дата оплаты]]<$AB$1),"Просрочено",IF(Реестр_tb[[#This Row],[Плановая дата оплаты]]=$AB$1,"Сегодня",IF(Реестр_tb[[#This Row],[Плановая дата оплаты]]<=$AB$1+7,"В течении недели","Через неделю и более"))))) -> Через неделю и более | R188: Полный расчет | S188: Оригиналы | T188: Контракт б/н от 17.01.2022 г. на сумму 77550,00 руб.
A189: МУП" Южно-Курильский Докер" | B189: питание (внебюджет) | C189: 5-11, сотрудники | D189: =IFERROR(VLOOKUP(Реестр_tb[[#This Row],[Подкатегория]],IF({1,0},Данные_tb[ЕД],Данные_tb[доп. код.]),2,0)," ") -> 2 | E189: =IFERROR(VLOOKUP(Реестр_tb[[#This Row],[ДОПЫ]],IF({1,0},Данные_tb[доп. код.],Данные_tb[Источник]),2,0)," ") -> 20 | F189: Нет | G189: 40 от 19.01.22 | I189: 5 | J189: 6521.35 | L189: 21.01.2022 | M189: 15 | N189: Акта | O189: =IF(Реестр_tb[[#This Row],[Срок оплаты (дней)]]="","",WORKDAY(Реестр_tb[[#This Row],[входящий (дата)]],Реестр_tb[[#This Row],[Срок оплаты (дней)]]+1,Выходные_tb[Выходные])) -> 2022-02-14 | Q189: =IF(AND(Реестр_tb[[#This Row],[Оплачен]]="Да",Реестр_tb[[#This Row],[Факт. дата оплаты]]<=Реестр_tb[[#This Row],[Плановая дата оплаты]]),"Оплачено вовремя",IF(AND(Реестр_tb[[#This Row],[Оплачен]]="Да",Реестр_tb[[#This Row],[Факт. дата оплаты]]>Реестр_tb[[#This Row],[Плановая дата оплаты]]),"Просрочено",IF(AND(Реестр_tb[[#This Row],[Оплачен]]="Нет",Реестр_tb[[#This Row],[Факт. дата оплаты]]="",Реестр_tb[[#This Row],[Плановая дата оплаты]]<$AB$1),"Просрочено",IF(Реестр_tb[[#This Row],[Плановая дата оплаты]]=$AB$1,"Сегодня",IF(Реестр_tb[[#This Row],[Плановая дата оплаты]]<=$AB$1+7,"В течении недели","Через неделю и более"))))) -> Через неделю и более | R189: Полный расчет | S189: Оригиналы | T189: Контракт б/н от 19.01.2022 г. на сумму 16177,03руб.
A190: МУП" Южно-Курильский Докер" | B190: питание (областной бюджет) (молоко, 5-11,многодетные, ОВЗ) | C190: питание 1-4 кл, 5-11 кл.малоимущ | D190: =IFERROR(VLOOKUP(Реестр_tb[[#This Row],[Подкатегория]],IF({1,0},Данные_tb[ЕД],Данные_tb[доп. код.]),2,0)," ") -> Д62190 | E190: =IFERROR(VLOOKUP(Реестр_tb[[#This Row],[ДОПЫ]],IF({1,0},Данные_tb[доп. код.],Данные_tb[Источник]),2,0)," ") -> 20 | F190: Нет | G190: 40 от 19.01.22 | I190: 5 | J190: 7698.64 | L190: 21.01.2022 | M190: 15 | N190: Акта | O190: =IF(Реестр_tb[[#This Row],[Срок оплаты (дней)]]="","",WORKDAY(Реестр_tb[[#This Row],[входящий (дата)]],Реестр_tb[[#This Row],[Срок оплаты (дней)]]+1,Выходные_tb[Выходные])) -> 2022-02-14 | Q190: =IF(AND(Реестр_tb[[#This Row],[Оплачен]]="Да",Реестр_tb[[#This Row],[Факт. дата оплаты]]<=Реестр_tb[[#This Row],[Плановая дата оплаты]]),"Оплачено вовремя",IF(AND(Реестр_tb[[#This Row],[Оплачен]]="Да",Реестр_tb[[#This Row],[Факт. дата оплаты]]>Реестр_tb[[#This Row],[Плановая дата оплаты]]),"Просрочено",IF(AND(Реестр_tb[[#This Row],[Оплачен]]="Нет",Реестр_tb[[#This Row],[Факт. дата оплаты]]="",Реестр_tb[[#This Row],[Плановая дата оплаты]]<$AB$1),"Просрочено",IF(Реестр_tb[[#This Row],[Плановая дата оплаты]]=$AB$1,"Сегодня",IF(Реестр_tb[[#This Row],[Плановая дата оплаты]]<=$AB$1+7,"В течении недели","Через неделю и более"))))) -> Через неделю и более | R190: Полный расчет | S190: Оригиналы | T190: Контракт б/н от 19.01.2022 г. на сумму 16177,03руб.
A191: МУП" Южно-Курильский Докер" | B191: питание (областной бюджет) (молоко, 5-11,многодетные, ОВЗ) | C191: питание 1-4 кл, 5-11 кл.малоимущ | D191: =IFERROR(VLOOKUP(Реестр_tb[[#This Row],[Подкатегория]],IF({1,0},Данные_tb[ЕД],Данные_tb[доп. код.]),2,0)," ") -> Д62190 | E191: =IFERROR(VLOOKUP(Реестр_tb[[#This Row],[ДОПЫ]],IF({1,0},Данные_tb[доп. код.],Данные_tb[Источник]),2,0)," ") -> 20 | F191: Нет | G191: 40 от 19.01.22 | I191: 5 | J191: 1957.04 | L191: 21.01.2022 | M191: 15 | N191: Акта | O191: =IF(Реестр_tb[[#This Row],[Срок оплаты (дней)]]="","",WORKDAY(Реестр_tb[[#This Row],[входящий (дата)]],Реестр_tb[[#This Row],[Срок оплаты (дней)]]+1,Выходные_tb[Выходные])) -> 2022-02-14 | Q191: =IF(AND(Реестр_tb[[#This Row],[Оплачен]]="Да",Реестр_tb[[#This Row],[Факт. дата оплаты]]<=Реестр_tb[[#This Row],[Плановая дата оплаты]]),"Оплачено вовремя",IF(AND(Реестр_tb[[#This Row],[Оплачен]]="Да",Реестр_tb[[#This Row],[Факт. дата оплаты]]>Реестр_tb[[#This Row],[Плановая дата оплаты]]),"Просрочено",IF(AND(Реестр_tb[[#This Row],[Оплачен]]="Нет",Реестр_tb[[#This Row],[Факт. дата оплаты]]="",Реестр_tb[[#This Row],[Плановая дата оплаты]]<$AB$1),"Просрочено",IF(Реестр_tb[[#This Row],[Плановая дата оплаты]]=$AB$1,"Сегодня",IF(Реестр_tb[[#This Row],[Плановая дата оплаты]]<=$AB$1+7,"В течении недели","Через неделю и более"))))) -> Через неделю и более | R191: Полный расчет | S191: Оригиналы | T191: Контракт б/н от 19.01.2022 г. на сумму 16177,03руб.
A192: МУП" Южно-Курильский Докер" | B192: питание (федеральный бюджет) | C192: питание (федеральный бюджет) | D192: =IFERROR(VLOOKUP(Реестр_tb[[#This Row],[Подкатегория]],IF({1,0},Данные_tb[ЕД],Данные_tb[доп. код.]),2,0)," ") -> 22-53040-00000 | E192: =IFERROR(VLOOKUP(Реестр_tb[[#This Row],[ДОПЫ]],IF({1,0},Данные_tb[доп. код.],Данные_tb[Источник]),2,0)," ") -> 20 | F192: Нет | G192: 41 от 19.01.22 | I192: 5 | J192: 14004.1 | L192: 21.01.2022 | M192: 15 | N192: Акта | O192: =IF(Реестр_tb[[#This Row],[Срок оплаты (дней)]]="","",WORKDAY(Реестр_tb[[#This Row],[входящий (дата)]],Реестр_tb[[#This Row],[Срок оплаты (дней)]]+1,Выходные_tb[Выходные])) -> 2022-02-14 | Q192: =IF(AND(Реестр_tb[[#This Row],[Оплачен]]="Да",Реестр_tb[[#This Row],[Факт. дата оплаты]]<=Реестр_tb[[#This Row],[Плановая дата оплаты]]),"Оплачено вовремя",IF(AND(Реестр_tb[[#This Row],[Оплачен]]="Да",Реестр_tb[[#This Row],[Факт. дата оплаты]]>Реестр_tb[[#This Row],[Плановая дата оплаты]]),"Просрочено",IF(AND(Реестр_tb[[#This Row],[Оплачен]]="Нет",Реестр_tb[[#This Row],[Факт. дата оплаты]]="",Реестр_tb[[#This Row],[Плановая дата оплаты]]<$AB$1),"Просрочено",IF(Реестр_tb[[#This Row],[Плановая дата оплаты]]=$AB$1,"Сегодня",IF(Реестр_tb[[#This Row],[Плановая дата оплаты]]<=$AB$1+7,"В течении недели","Через неделю и более"))))) -> Через неделю и более | R192: Полный расчет | S192: Оригиналы | T192: Контракт б/н от 19.01.2022 г. на сумму 14004,10 руб.
A193: ООО"Эскада" | B193: питание (федеральный бюджет) | C193: питание (федеральный бюджет) | D193: =IFERROR(VLOOKUP(Реестр_tb[[#This Row],[Подкатегория]],IF({1,0},Данные_tb[ЕД],Данные_tb[доп. код.]),2,0)," ") -> 22-53040-00000 | E193: =IFERROR(VLOOKUP(Реестр_tb[[#This Row],[ДОПЫ]],IF({1,0},Данные_tb[доп. код.],Данные_tb[Источник]),2,0)," ") -> 20 | F193: Нет | G193: 1 от 17.01.22 | I193: 5 | J193: 37410 | L193: 25.01.2022 | M193: 15 | N193: Акта | O193: =IF(Реестр_tb[[#This Row],[Срок оплаты (дней)]]="","",WORKDAY(Реестр_tb[[#This Row],[входящий (дата)]],Реестр_tb[[#This Row],[Срок оплаты (дней)]]+1,Выходные_tb[Выходные])) -> 2022-02-16 | Q193: =IF(AND(Реестр_tb[[#This Row],[Оплачен]]="Да",Реестр_tb[[#This Row],[Факт. дата оплаты]]<=Реестр_tb[[#This Row],[Плановая дата оплаты]]),"Оплачено вовремя",IF(AND(Реестр_tb[[#This Row],[Оплачен]]="Да",Реестр_tb[[#This Row],[Факт. дата оплаты]]>Реестр_tb[[#This Row],[Плановая дата оплаты]]),"Просрочено",IF(AND(Реестр_tb[[#This Row],[Оплачен]]="Нет",Реестр_tb[[#This Row],[Факт. дата оплаты]]="",Реестр_tb[[#This Row],[Плановая дата оплаты]]<$AB$1),"Просрочено",IF(Реестр_tb[[#This Row],[Плановая дата оплаты]]=$AB$1,"Сегодня",IF(Реестр_tb[[#This Row],[Плановая дата оплаты]]<=$AB$1+7,"В течении недели","Через неделю и более"))))) -> Через неделю и более | R193: Полный расчет | S193: Оригиналы | T193: Контракт от 17.01.2022 г.на сумму 37410,00 руб.
A194: ООО"Эскада" | B194: питание (местный бюджет) | C194: питание 1-4 классы | D194: =IFERROR(VLOOKUP(Реестр_tb[[#This Row],[Подкатегория]],IF({1,0},Данные_tb[ЕД],Данные_tb[доп. код.]),2,0)," ") -> М0025 | E194: =IFERROR(VLOOKUP(Реестр_tb[[#This Row],[ДОПЫ]],IF({1,0},Данные_tb[доп. код.],Данные_tb[Источник]),2,0)," ") -> 20 | F194: Нет | G194: 2 от 17.01.22 | I194: 5 | J194: 31250 | L194: 25.01.2022 | M194: 15 | N194: Акта | O194: =IF(Реестр_tb[[#This Row],[Срок оплаты (дней)]]="","",WORKDAY(Реестр_tb[[#This Row],[входящий (дата)]],Реестр_tb[[#This Row],[Срок оплаты (дней)]]+1,Выходные_tb[Выходные])) -> 2022-02-16 | Q194: =IF(AND(Реестр_tb[[#This Row],[Оплачен]]="Да",Реестр_tb[[#This Row],[Факт. дата оплаты]]<=Реестр_tb[[#This Row],[Плановая дата оплаты]]),"Оплачено вовремя",IF(AND(Реестр_tb[[#This Row],[Оплачен]]="Да",Реестр_tb[[#This Row],[Факт. дата оплаты]]>Реестр_tb[[#This Row],[Плановая дата оплаты]]),"Просрочено",IF(AND(Реестр_tb[[#This Row],[Оплачен]]="Нет",Реестр_tb[[#This Row],[Факт. дата оплаты]]="",Реестр_tb[[#This Row],[Плановая дата оплаты]]<$AB$1),"Просрочено",IF(Реестр_tb[[#This Row],[Плановая дата оплаты]]=$AB$1,"Сегодня",IF(Реестр_tb[[#This Row],[Плановая дата оплаты]]<=$AB$1+7,"В течении недели","Через неделю и более"))))) -> Через неделю и более | R194: Полный расчет | S194: Оригиналы | T194: Контракт от 17.01.2022 г.на сумму 75025,00 руб.
A195: ООО"Эскада" | B195: питание (внебюджет) | C195: 5-11, сотрудники | D195: =IFERROR(VLOOKUP(Реестр_tb[[#This Row],[Подкатегория]],IF({1,0},Данные_tb[ЕД],Данные_tb[доп. код.]),2,0)," ") -> 2 | E195: =IFERROR(VLOOKUP(Реестр_tb[[#This Row],[ДОПЫ]],IF({1,0},Данные_tb[доп. код.],Данные_tb[Источник]),2,0)," ") -> 20 | F195: Нет | G195: 2 от 17.01.22 | I195: 5 | J195: 31300 | L195: 25.01.2022 | M195: 15 | N195: Акта | O195: =IF(Реестр_tb[[#This Row],[Срок оплаты (дней)]]="","",WORKDAY(Реестр_tb[[#This Row],[входящий (дата)]],Реестр_tb[[#This Row],[Срок оплаты (дней)]]+1,Выходные_tb[Выходные])) -> 2022-02-16 | Q195: =IF(AND(Реестр_tb[[#This Row],[Оплачен]]="Да",Реестр_tb[[#This Row],[Факт. дата оплаты]]<=Реестр_tb[[#This Row],[Плановая дата оплаты]]),"Оплачено вовремя",IF(AND(Реестр_tb[[#This Row],[Оплачен]]="Да",Реестр_tb[[#This Row],[Факт. дата оплаты]]>Реестр_tb[[#This Row],[Плановая дата оплаты]]),"Просрочено",IF(AND(Реестр_tb[[#This Row],[Оплачен]]="Нет",Реестр_tb[[#This Row],[Факт. дата оплаты]]="",Реестр_tb[[#This Row],[Плановая дата оплаты]]<$AB$1),"Просрочено",IF(Реестр_tb[[#This Row],[Плановая дата оплаты]]=$AB$1,"Сегодня",IF(Реестр_tb[[#This Row],[Плановая дата оплаты]]<=$AB$1+7,"В течении недели","Через неделю и более"))))) -> Через неделю и более | R195: Полный расчет | S195: Оригиналы | T195: Контракт от 17.01.2022 г.на сумму 75025,00 руб.
A196: ООО"Эскада" | B196: питание (областной бюджет) (молоко, 5-11,многодетные, ОВЗ) | C196: питание 1-4 кл, 5-11 кл.малоимущ | D196: =IFERROR(VLOOKUP(Реестр_tb[[#This Row],[Подкатегория]],IF({1,0},Данные_tb[ЕД],Данные_tb[доп. код.]),2,0)," ") -> Д62190 | E196: =IFERROR(VLOOKUP(Реестр_tb[[#This Row],[ДОПЫ]],IF({1,0},Данные_tb[доп. код.],Данные_tb[Источник]),2,0)," ") -> 20 | F196: Нет | G196: 2 от 17.01.22 | I196: 5 | J196: 12475 | L196: 25.01.2022 | M196: 15 | N196: Акта | O196: =IF(Реестр_tb[[#This Row],[Срок оплаты (дней)]]="","",WORKDAY(Реестр_tb[[#This Row],[входящий (дата)]],Реестр_tb[[#This Row],[Срок оплаты (дней)]]+1,Выходные_tb[Выходные])) -> 2022-02-16 | Q196: =IF(AND(Реестр_tb[[#This Row],[Оплачен]]="Да",Реестр_tb[[#This Row],[Факт. дата оплаты]]<=Реестр_tb[[#This Row],[Плановая дата оплаты]]),"Оплачено вовремя",IF(AND(Реестр_tb[[#This Row],[Оплачен]]="Да",Реестр_tb[[#This Row],[Факт. дата оплаты]]>Реестр_tb[[#This Row],[Плановая дата оплаты]]),"Просрочено",IF(AND(Реестр_tb[[#This Row],[Оплачен]]="Нет",Реестр_tb[[#This Row],[Факт. дата оплаты]]="",Реестр_tb[[#This Row],[Плановая дата оплаты]]<$AB$1),"Просрочено",IF(Реестр_tb[[#This Row],[Плановая дата оплаты]]=$AB$1,"Сегодня",IF(Реестр_tb[[#This Row],[Плановая дата оплаты]]<=$AB$1+7,"В течении недели","Через неделю и более"))))) -> Через неделю и более | R196: Полный расчет | S196: Оригиналы | T196: Контракт от 17.01.2022 г.на сумму 75025,00 руб.
A197: ИП Ткачев | B197: Муниципальное задание | C197: Олимпиады | D197: =IFERROR(VLOOKUP(Реестр_tb[[#This Row],[Подкатегория]],IF({1,0},Данные_tb[ЕД],Данные_tb[доп. код.]),2,0)," ") -> 4 | E197: =IFERROR(VLOOKUP(Реестр_tb[[#This Row],[ДОПЫ]],IF({1,0},Данные_tb[доп. код.],Данные_tb[Источник]),2,0)," ") -> 20 | F197: Нет | G197: 60199 то 24.01.22 | I197: 4 | J197: 6050 | L197: 26.01.2022 | M197: 15 | N197: Акта | O197: =IF(Реестр_tb[[#This Row],[Срок оплаты (дней)]]="","",WORKDAY(Реестр_tb[[#This Row],[входящий (дата)]],Реестр_tb[[#This Row],[Срок оплаты (дней)]]+1,Выходные_tb[Выходные])) -> 2022-02-17 | Q197: =IF(AND(Реестр_tb[[#This Row],[Оплачен]]="Да",Реестр_tb[[#This Row],[Факт. дата оплаты]]<=Реестр_tb[[#This Row],[Плановая дата оплаты]]),"Оплачено вовремя",IF(AND(Реестр_tb[[#This Row],[Оплачен]]="Да",Реестр_tb[[#This Row],[Факт. дата оплаты]]>Реестр_tb[[#This Row],[Плановая дата оплаты]]),"Просрочено",IF(AND(Реестр_tb[[#This Row],[Оплачен]]="Нет",Реестр_tb[[#This Row],[Факт. дата оплаты]]="",Реестр_tb[[#This Row],[Плановая дата оплаты]]<$AB$1),"Просрочено",IF(Реестр_tb[[#This Row],[Плановая дата оплаты]]=$AB$1,"Сегодня",IF(Реестр_tb[[#This Row],[Плановая дата оплаты]]<=$AB$1+7,"В течении недели","Через неделю и более"))))) -> Через неделю и более | R197: Полный расчет | S197: Оригиналы | T197: Договор № 60199 от 24.01.2022 г. на сумму 6050,00 руб.
A198: ООО"Рубеж -Комплект" | B198: Муниципальное задание | C198: хоз.материалы, инвентарь, канц.элект. товары | D198: =IFERROR(VLOOKUP(Реестр_tb[[#This Row],[Подкатегория]],IF({1,0},Данные_tb[ЕД],Данные_tb[доп. код.]),2,0)," ") -> 4 | E198: =IFERROR(VLOOKUP(Реестр_tb[[#This Row],[ДОПЫ]],IF({1,0},Данные_tb[доп. код.],Данные_tb[Источник]),2,0)," ") -> 20 | F198: Нет | G198: 7 от 20.01.22 | I198: 5 | J198: 58800 | L198: 27.01.2022 | M198: 15 | N198: Акта | O198: =IF(Реестр_tb[[#This Row],[Срок оплаты (дней)]]="","",WORKDAY(Реестр_tb[[#This Row],[входящий (дата)]],Реестр_tb[[#This Row],[Срок оплаты (дней)]]+1,Выходные_tb[Выходные])) -> 2022-02-18 | Q198: =IF(AND(Реестр_tb[[#This Row],[Оплачен]]="Да",Реестр_tb[[#This Row],[Факт. дата оплаты]]<=Реестр_tb[[#This Row],[Плановая дата оплаты]]),"Оплачено вовремя",IF(AND(Реестр_tb[[#This Row],[Оплачен]]="Да",Реестр_tb[[#This Row],[Факт. дата оплаты]]>Реестр_tb[[#This Row],[Плановая дата оплаты]]),"Просрочено",IF(AND(Реестр_tb[[#This Row],[Оплачен]]="Нет",Реестр_tb[[#This Row],[Факт. дата оплаты]]="",Реестр_tb[[#This Row],[Плановая дата оплаты]]<$AB$1),"Просрочено",IF(Реестр_tb[[#This Row],[Плановая дата оплаты]]=$AB$1,"Сегодня",IF(Реестр_tb[[#This Row],[Плановая дата оплаты]]<=$AB$1+7,"В течении недели","Через неделю и более"))))) -> Через неделю и более | R198: Полный расчет | S198: Оригиналы | T198: Без договора
A199: ООО"Рубеж -Комплект" | B199: Муниципальное задание | C199: снегоуборщик | D199: =IFERROR(VLOOKUP(Реестр_tb[[#This Row],[Подкатегория]],IF({1,0},Данные_tb[ЕД],Данные_tb[доп. код.]),2,0)," ") -> 4 | E199: =IFERROR(VLOOKUP(Реестр_tb[[#This Row],[ДОПЫ]],IF({1,0},Данные_tb[доп. код.],Данные_tb[Источник]),2,0)," ") -> 20 | F199: Нет | G199: 8 от 20.01.22 | H199: снегоуборщик | I199: 5 | J199: 151020 | L199: 27.01.2022 | M199: 15 | N199: Акта | O199: =IF(Реестр_tb[[#This Row],[Срок оплаты (дней)]]="","",WORKDAY(Реестр_tb[[#This Row],[входящий (дата)]],Реестр_tb[[#This Row],[Срок оплаты (дней)]]+1,Выходные_tb[Выходные])) -> 2022-02-18 | Q199: =IF(AND(Реестр_tb[[#This Row],[Оплачен]]="Да",Реестр_tb[[#This Row],[Факт. дата оплаты]]<=Реестр_tb[[#This Row],[Плановая дата оплаты]]),"Оплачено вовремя",IF(AND(Реестр_tb[[#This Row],[Оплачен]]="Да",Реестр_tb[[#This Row],[Факт. дата оплаты]]>Реестр_tb[[#This Row],[Плановая дата оплаты]]),"Просрочено",IF(AND(Реестр_tb[[#This Row],[Оплачен]]="Нет",Реестр_tb[[#This Row],[Факт. дата оплаты]]="",Реестр_tb[[#This Row],[Плановая дата оплаты]]<$AB$1),"Просрочено",IF(Реестр_tb[[#This Row],[Плановая дата оплаты]]=$AB$1,"Сегодня",IF(Реестр_tb[[#This Row],[Плановая дата оплаты]]<=$AB$1+7,"В течении недели","Через неделю и более"))))) -> Через неделю и более | R199: Полный расчет | S199: Оригиналы | T199: Без договора
A200: ООО "Сахалин-Логистика" | B200: Подвоз | C200: услуги автотранспорта (морская перевозка автобуса на техомотр) | D200: =IFERROR(VLOOKUP(Реестр_tb[[#This Row],[Подкатегория]],IF({1,0},Данные_tb[ЕД],Данные_tb[доп. код.]),2,0)," ") -> 18 | E200: =IFERROR(VLOOKUP(Реестр_tb[[#This Row],[ДОПЫ]],IF({1,0},Данные_tb[доп. код.],Данные_tb[Источник]),2,0)," ") -> 20 | F200: Нет | G200: 266 от 28.01.22 | I200: 5 | J200: 34700 | L200: 31.01.22 | M200: 15 | N200: Акта | O200: =IF(Реестр_tb[[#This Row],[Срок оплаты (дней)]]="","",WORKDAY(Реестр_tb[[#This Row],[входящий (дата)]],Реестр_tb[[#This Row],[Срок оплаты (дней)]]+1,Выходные_tb[Выходные])) -> 2022-02-22 | Q200: =IF(AND(Реестр_tb[[#This Row],[Оплачен]]="Да",Реестр_tb[[#This Row],[Факт. дата оплаты]]<=Реестр_tb[[#This Row],[Плановая дата оплаты]]),"Оплачено вовремя",IF(AND(Реестр_tb[[#This Row],[Оплачен]]="Да",Реестр_tb[[#This Row],[Факт. дата оплаты]]>Реестр_tb[[#This Row],[Плановая дата оплаты]]),"Просрочено",IF(AND(Реестр_tb[[#This Row],[Оплачен]]="Нет",Реестр_tb[[#This Row],[Факт. дата оплаты]]="",Реестр_tb[[#This Row],[Плановая дата оплаты]]<$AB$1),"Просрочено",IF(Реестр_tb[[#This Row],[Плановая дата оплаты]]=$AB$1,"Сегодня",IF(Реестр_tb[[#This Row],[Плановая дата оплаты]]<=$AB$1+7,"В течении недели","Через неделю и более"))))) -> Через неделю и более | R200: Полный расчет | S200: Копии | T200: Договор № 31/2022 от 19.01.2022 г.
... 32 more rows

Sheet Данные
A1: Категория | B1: ЕД | C1: доп. код. | D1: Источник | E1: в том числе аукцион, командировки, штрафы, стипендии уч-ся и т.п. | F1: Выделено | G1: Израсходовано | H1: Остаток | K1: Сурудо от 10.01 | L1: 4 | M1: 5 | N1: аукцион и т.п.
A2: учебные расходы | B2: учебные расходы (основные) | C2: 0202 | D2: 20 | F2: 1809903.25 | G2: =SUMIF(Реестр!$C:$C,Данные_tb[[#This Row],[ЕД]],Реестр!$J:$J) -> 0 | H2: =Данные_tb[[#This Row],[Выделено]]-Данные_tb[[#This Row],[Израсходовано]] -> 1809903.25 | K2: Выделено | L2: 5000000 | M2: 25000000
A3: учебные расходы | B3: учебные расходы (расходные) | C3: 0202 | D3: 20 | F3: 1809903.25 | G3: =SUMIF(Реестр!$C:$C,Данные_tb[[#This Row],[ЕД]],Реестр!$J:$J) -> 2000 | H3: =Данные_tb[[#This Row],[Выделено]]-Данные_tb[[#This Row],[Израсходовано]] -> 1807903.25 | K3: Израсходовано | L3: =SUMIF(Реестр!$I:$I,Остатки_tb[[#Headers],[4]],Реестр!$J:$J) -> 210478.72 | M3: =SUMIF(Реестр!$I:$I,Остатки_tb[[#Headers],[5]],Реестр!$J:$J) -> 3144225.84 | N3: =SUMIF(Реестр!$I:$I,Остатки_tb[[#Headers],[аукцион и т.п.]],Реестр!$J:$J) -> 8982850.83
A4: учебные расходы (допобразование) | B4: учебные расходы (допобразование) | C4: 0202 | D4: 20 | F4: 316700 | G4: =SUMIF(Реестр!$C:$C,Данные_tb[[#This Row],[ЕД]],Реестр!$J:$J) -> 0 | H4: =Данные_tb[[#This Row],[Выделено]]-Данные_tb[[#This Row],[Израсходовано]] -> 316700 | K4: Остаток | L4: =L2-L3 -> 4789521.28 | M4: =M2-M3 -> 21855774.16
A5: приобретение оборудования (лицензии, ПО) | B5: 6 рециркуляторов | C5: М0036 | D5: 21 | F5: 150756 | G5: =SUMIF(Реестр!$C:$C,Данные_tb[[#This Row],[ЕД]],Реестр!$J:$J) -> 0 | H5: =Данные_tb[[#This Row],[Выделено]]-Данные_tb[[#This Row],[Израсходовано]] -> 150756
A6: приобретение оборудования (лицензии, ПО) | B6: 4 дозатора | C6: М0036 | D6: 21 | F6: 29508 | G6: =SUMIF(Реестр!$C:$C,Данные_tb[[#This Row],[ЕД]],Реестр!$J:$J) -> 0 | H6: =Данные_tb[[#This Row],[Выделено]]-Данные_tb[[#This Row],[Израсходовано]] -> 29508
A7: приобретение оборудования (лицензии, ПО) | B7: ПК (сист.блок, монитор, мышь, клавиатура, колонки, ПО офисное, операц.система)*10 шт | C7: М0036 | D7: 21 | G7: =SUMIF(Реестр!$C:$C,Данные_tb[[#This Row],[ЕД]],Реестр!$J:$J) -> 0 | H7: =Данные_tb[[#This Row],[Выделено]]-Данные_tb[[#This Row],[Израсходовано]] -> 0
A8: приобретение оборудования (лицензии, ПО) | B8: ИБП-3шт. По 10тыс., ИБП для сервера - 50 тыс-1 шт. | C8: М0036 | D8: 21 | G8: =SUMIF(Реестр!$C:$C,Данные_tb[[#This Row],[ЕД]],Реестр!$J:$J) -> 0 | H8: =Данные_tb[[#This Row],[Выделено]]-Данные_tb[[#This Row],[Израсходовано]] -> 0
A9: приобретение оборудования (лицензии, ПО) | B9: аппарат котлетный, тестоделитель, хлеборезка, 2 холодильника, стол для тестоделителя, стол к п/м машине, конвектомат | C9: М0036 | D9: 21 | F9: 1168716 | G9: =SUMIF(Реестр!$C:$C,Данные_tb[[#This Row],[ЕД]],Реестр!$J:$J) -> 0 | H9: =Данные_tb[[#This Row],[Выделено]]-Данные_tb[[#This Row],[Израсходовано]] -> 1168716
A10: приобретение оборудования (лицензии, ПО) | B10: строительный пылесос | C10: М0036 | D10: 21 | G10: =SUMIF(Реестр!$C:$C,Данные_tb[[#This Row],[ЕД]],Реестр!$J:$J) -> 0 | H10: =Данные_tb[[#This Row],[Выделено]]-Данные_tb[[#This Row],[Израсходовано]] -> 0
A11: приобретение оборудования (лицензии, ПО) | B11: тележка платформенная для бережной транспортировки грузов- 2 шт., тележка для перевозки грузов-1 шт по 15 тыс. | C11: М0036 | D11: 21 | G11: =SUMIF(Реестр!$C:$C,Данные_tb[[#This Row],[ЕД]],Реестр!$J:$J) -> 0 | H11: =Данные_tb[[#This Row],[Выделено]]-Данные_tb[[#This Row],[Израсходовано]] -> 0
A12: приобретение оборудования (лицензии, ПО) | B12: приобретение программного обеспечения, эл.сис-ма образования | C12: М0036 | D12: 21 | G12: =SUMIF(Реестр!$C:$C,Данные_tb[[#This Row],[ЕД]],Реестр!$J:$J) -> 0 | H12: =Данные_tb[[#This Row],[Выделено]]-Данные_tb[[#This Row],[Израсходовано]] -> 0
A13: приобретение оборудования (лицензии, ПО) | B13: Продление домена ukshkola.ru на 1 год по тарифу Базовый | C13: Без допа | D13: 20 | G13: =SUMIF(Реестр!$C:$C,Данные_tb[[#This Row],[ЕД]],Реестр!$J:$J) -> 0 | H13: =Данные_tb[[#This Row],[Выделено]]-Данные_tb[[#This Row],[Израсходовано]] -> 0
A14: охрана аукцион, ППБ, предписания | B14: физическая охрана | C14: М0026 | D14: 21 | E14: 1747334.91 | F14: 1747334.91 | G14: =SUMIF(Реестр!$C:$C,Данные_tb[[#This Row],[ЕД]],Реестр!$J:$J) -> 1747334.91 | H14: =Данные_tb[[#This Row],[Выделено]]-Данные_tb[[#This Row],[Израсходовано]] -> 0
A15: Доступная среда | B15: доступная среда (областной бюджет) | C15: Д63020 | D15: 21 | F15: 147900 | G15: =SUMIF(Реестр!$C:$C,Данные_tb[[#This Row],[ЕД]],Реестр!$J:$J) -> 0 | H15: =Данные_tb[[#This Row],[Выделено]]-Данные_tb[[#This Row],[Израсходовано]] -> 147900
A16: Доступная среда | B16: доступная среда (местный бюджет) - софинансирование | C16: М63020 | D16: 21 | F16: 1493.94 | G16: =SUMIF(Реестр!$C:$C,Данные_tb[[#This Row],[ЕД]],Реестр!$J:$J) -> 0 | H16: =Данные_tb[[#This Row],[Выделено]]-Данные_tb[[#This Row],[Израсходовано]] -> 1493.94
A17: Доступная среда | B17: доступная среда (местный бюджет) | C17: М0034 | D17: 20 | G17: =SUMIF(Реестр!$C:$C,Данные_tb[[#This Row],[ЕД]],Реестр!$J:$J) -> 0 | H17: =Данные_tb[[#This Row],[Выделено]]-Данные_tb[[#This Row],[Израсходовано]] -> 0
A18: Молодежный бюджет | B18: молодежный бюджет (областной бюджет) | C18: Д63330 | D18: 21 | E18: 600000 | F18: 2500000 | G18: =SUMIF(Реестр!$C:$C,Данные_tb[[#This Row],[ЕД]],Реестр!$J:$J) -> 0 | H18: =Данные_tb[[#This Row],[Выделено]]-Данные_tb[[#This Row],[Израсходовано]] -> 2500000
A19: Молодежный бюджет | B19: Молодежный бюджет (местный бюджет) - софинансирование | C19: М63330 | D19: 21 | E19: 6000 | F19: 25252.52 | G19: =SUMIF(Реестр!$C:$C,Данные_tb[[#This Row],[ЕД]],Реестр!$J:$J) -> 0 | H19: =Данные_tb[[#This Row],[Выделено]]-Данные_tb[[#This Row],[Израсходовано]] -> 25252.52
A20: Текущий ремонт | B20: текущий ремонт: 1418000 - школа, 100000 - баскетбольная площадка и футбольное поле, 100000 - установка кранов на батареи, 100000 - ликвидация последствий циклонов | C20: М0035 | D20: 21 | F20: 959000 | G20: =SUMIF(Реестр!$C:$C,Данные_tb[[#This Row],[ЕД]],Реестр!$J:$J) -> 0 | H20: =Данные_tb[[#This Row],[Выделено]]-Данные_tb[[#This Row],[Израсходовано]] -> 959000
A21: Текущий ремонт | B21: материалы на текущий ремонт | C21: М0035 | D21: 21 | F21: 759000 | G21: =SUMIF(Реестр!$C:$C,Данные_tb[[#This Row],[ЕД]],Реестр!$J:$J) -> 0 | H21: =Данные_tb[[#This Row],[Выделено]]-Данные_tb[[#This Row],[Израсходовано]] -> 759000
A22: Капитальный ремонт | B22: капитальный ремонт (местный бюджет) | C22: М0027 | D22: 20 | F22: 0 | G22: =SUMIF(Реестр!$C:$C,Данные_tb[[#This Row],[ЕД]],Реестр!$J:$J) -> 0 | H22: =Данные_tb[[#This Row],[Выделено]]-Данные_tb[[#This Row],[Израсходовано]] -> 0
A23: Капитальный ремонт | B23: капитальный ремонт (областной бюджет) | C23: Д0027 | D23: 21 | F23: 0 | G23: =SUMIF(Реестр!$C:$C,Данные_tb[[#This Row],[ЕД]],Реестр!$J:$J) -> 0 | H23: =Данные_tb[[#This Row],[Выделено]]-Данные_tb[[#This Row],[Израсходовано]] -> 0
A24: Коммунальные услуги | B24: электроэнергия | C24: 23 | D24: 20 | E24: 2151240 | F24: 2151240 | G24: =SUMIF(Реестр!$C:$C,Данные_tb[[#This Row],[ЕД]],Реестр!$J:$J) -> 1970202 | H24: =Данные_tb[[#This Row],[Выделено]]-Данные_tb[[#This Row],[Израсходовано]] -> 181038
A25: Коммунальные услуги | B25: вода | C25: 23 | D25: 20 | E25: 756652.46 | F25: 756652.46 | G25: =SUMIF(Реестр!$C:$C,Данные_tb[[#This Row],[ЕД]],Реестр!$J:$J) -> 1681914 | H25: =Данные_tb[[#This Row],[Выделено]]-Данные_tb[[#This Row],[Израсходовано]] -> -925261.54
A26: Коммунальные услуги | B26: теплоснабжение | C26: 23 | D26: 20 | E26: 6971982.97 | F26: 6971982.97 | G26: =SUMIF(Реестр!$C:$C,Данные_tb[[#This Row],[ЕД]],Реестр!$J:$J) -> 1826058 | H26: =Данные_tb[[#This Row],[Выделено]]-Данные_tb[[#This Row],[Израсходовано]] -> 5145924.97
A27: питание (местный бюджет) | B27: питание 1-4 классы | C27: М0025 | D27: 20 | F27: 1620000 | G27: =SUMIF(Реестр!$C:$C,Данные_tb[[#This Row],[ЕД]],Реестр!$J:$J) -> 63330.8 | H27: =Данные_tb[[#This Row],[Выделено]]-Данные_tb[[#This Row],[Израсходовано]] -> 1556669.2
A28: питание (местный бюджет) | B28: питание 5-11 кл.малоимущ. | C28: М0025 | D28: 20 | G28: =SUMIF(Реестр!$C:$C,Данные_tb[[#This Row],[ЕД]],Реестр!$J:$J) -> 0 | H28: =Данные_tb[[#This Row],[Выделено]]-Данные_tb[[#This Row],[Израсходовано]] -> 0
A29: питание (местный бюджет) | B29: питание 5-11 кл.опекаемые | C29: М19014 | D29: 20 | F29: 288000 | G29: =SUMIF(Реестр!$C:$C,Данные_tb[[#This Row],[ЕД]],Реестр!$J:$J) -> 0 | H29: =Данные_tb[[#This Row],[Выделено]]-Данные_tb[[#This Row],[Израсходовано]] -> 288000
A30: питание (местный бюджет) | B30: молоко опека | C30: М19017 | D30: 20 | F30: 79200 | G30: =SUMIF(Реестр!$C:$C,Данные_tb[[#This Row],[ЕД]],Реестр!$J:$J) -> 55649.53 | H30: =Данные_tb[[#This Row],[Выделено]]-Данные_tb[[#This Row],[Израсходовано]] -> 23550.47
A31: питание (внебюджет) | B31: 5-11, сотрудники | C31: 2 | D31: 20 | G31: =SUMIF(Реестр!$C:$C,Данные_tb[[#This Row],[ЕД]],Реестр!$J:$J) -> 254615.86 | H31: =Данные_tb[[#This Row],[Выделено]]-Данные_tb[[#This Row],[Израсходовано]] -> -254615.86
A32: питание (федеральный бюджет) | B32: питание (федеральный бюджет) | C32: 22-53040-00000 | D32: 20 | F32: 5642760 | G32: =SUMIF(Реестр!$C:$C,Данные_tb[[#This Row],[ЕД]],Реестр!$J:$J) -> 392034.87 | H32: =Данные_tb[[#This Row],[Выделено]]-Данные_tb[[#This Row],[Израсходовано]] -> 5250725.13
A33: питание (областной бюджет) (молоко, 5-11,многодетные, ОВЗ) | B33: питание 1-4 кл, 5-11 кл.малоимущ | C33: Д62190 | D33: 20 | E33: 90990 | F33: 1539658.08 | G33: =SUMIF(Реестр!$C:$C,Данные_tb[[#This Row],[ЕД]],Реестр!$J:$J) -> 218696.49 | H33: =Данные_tb[[#This Row],[Выделено]]-Данные_tb[[#This Row],[Израсходовано]] -> 1320961.59
A34: питание (областной бюджет) (молоко, 5-11,многодетные, ОВЗ) | B34: молоко | C34: Д62190 | D34: 20 | E34: 1757341.92 | F34: 1757341.92 | G34: =SUMIF(Реестр!$C:$C,Данные_tb[[#This Row],[ЕД]],Реестр!$J:$J) -> 1757341.92 | H34: =Данные_tb[[#This Row],[Выделено]]-Данные_tb[[#This Row],[Израсходовано]] -> 0
A35: Лагерь | B35: питание детей в лагере (2 смены) | C35: 0707 | D35: 21 | F35: 952978.95 | G35: =SUMIF(Реестр!$C:$C,Данные_tb[[#This Row],[ЕД]],Реестр!$J:$J) -> 0 | H35: =Данные_tb[[#This Row],[Выделено]]-Данные_tb[[#This Row],[Израсходовано]] -> 952978.95
A36: Лагерь | B36: хоз.материалы лагерь (2 смены) | C36: 0707 | D36: 21 | G36: =SUMIF(Реестр!$C:$C,Данные_tb[[#This Row],[ЕД]],Реестр!$J:$J) -> 0 | H36: =Данные_tb[[#This Row],[Выделено]]-Данные_tb[[#This Row],[Израсходовано]] -> 0
A37: Лагерь | B37: медосмотр работников в лагере | C37: 0707 | D37: 21 | G37: =SUMIF(Реестр!$C:$C,Данные_tb[[#This Row],[ЕД]],Реестр!$J:$J) -> 0 | H37: =Данные_tb[[#This Row],[Выделено]]-Данные_tb[[#This Row],[Израсходовано]] -> 0
A38: Лагерь | B38: голограммы (лагерь) | C38: 0707 | D38: 21 | G38: =SUMIF(Реестр!$C:$C,Данные_tb[[#This Row],[ЕД]],Реестр!$J:$J) -> 0 | H38: =Данные_tb[[#This Row],[Выделено]]-Данные_tb[[#This Row],[Израсходовано]] -> 0
A39: Лагерь | B39: медосмотр водителей (лагерь) | C39: 0707 | D39: 21 | G39: =SUMIF(Реестр!$C:$C,Данные_tb[[#This Row],[ЕД]],Реестр!$J:$J) -> 0 | H39: =Данные_tb[[#This Row],[Выделено]]-Данные_tb[[#This Row],[Израсходовано]] -> 0
A40: Лагерь | B40: топливо (лагерь) | C40: 0707 | D40: 21 | G40: =SUMIF(Реестр!$C:$C,Данные_tb[[#This Row],[ЕД]],Реестр!$J:$J) -> 0 | H40: =Данные_tb[[#This Row],[Выделено]]-Данные_tb[[#This Row],[Израсходовано]] -> 0
A41: Лагерь | B41: рото- норо- (лагерь) | C41: 0707 | D41: 21 | G41: =SUMIF(Реестр!$C:$C,Данные_tb[[#This Row],[ЕД]],Реестр!$J:$J) -> 0 | H41: =Данные_tb[[#This Row],[Выделено]]-Данные_tb[[#This Row],[Израсходовано]] -> 0
A42: Подвоз | B42: топливо | C42: 18 | D42: 20 | F42: 5500000 | G42: =SUMIF(Реестр!$C:$C,Данные_tb[[#This Row],[ЕД]],Реестр!$J:$J) -> 0 | H42: =Данные_tb[[#This Row],[Выделено]]-Данные_tb[[#This Row],[Израсходовано]] -> 5500000
A43: Подвоз | B43: автомасла | C43: 18 | D43: 20 | F43: -2773720 | G43: =SUMIF(Реестр!$C:$C,Данные_tb[[#This Row],[ЕД]],Реестр!$J:$J) -> 0 | H43: =Данные_tb[[#This Row],[Выделено]]-Данные_tb[[#This Row],[Израсходовано]] -> -2773720
A44: Подвоз | B44: запчасти | C44: 18 | D44: 20 | F44: 1763720 | G44: =SUMIF(Реестр!$C:$C,Данные_tb[[#This Row],[ЕД]],Реестр!$J:$J) -> 12490 | H44: =Данные_tb[[#This Row],[Выделено]]-Данные_tb[[#This Row],[Израсходовано]] -> 1751230
A45: Подвоз | B45: спецодежда (гараж) | C45: 18 | D45: 20 | F45: 100000 | G45: =SUMIF(Реестр!$C:$C,Данные_tb[[#This Row],[ЕД]],Реестр!$J:$J) -> 0 | H45: =Данные_tb[[#This Row],[Выделено]]-Данные_tb[[#This Row],[Израсходовано]] -> 100000
A46: Подвоз | B46: мед.осмотр водителей | C46: 18 | D46: 20 | F46: 1200000 | G46: =SUMIF(Реестр!$C:$C,Данные_tb[[#This Row],[ЕД]],Реестр!$J:$J) -> 0 | H46: =Данные_tb[[#This Row],[Выделено]]-Данные_tb[[#This Row],[Израсходовано]] -> 1200000
A47: Подвоз | B47: техосмотр | C47: 18 | D47: 20 | F47: 40000 | G47: =SUMIF(Реестр!$C:$C,Данные_tb[[#This Row],[ЕД]],Реестр!$J:$J) -> 0 | H47: =Данные_tb[[#This Row],[Выделено]]-Данные_tb[[#This Row],[Израсходовано]] -> 40000
A48: Подвоз | B48: автострахование | C48: 18 | D48: 20 | F48: 150000 | G48: =SUMIF(Реестр!$C:$C,Данные_tb[[#This Row],[ЕД]],Реестр!$J:$J) -> 9462.74 | H48: =Данные_tb[[#This Row],[Выделено]]-Данные_tb[[#This Row],[Израсходовано]] -> 140537.26
A49: Подвоз | B49: обслуживание тахографов, мониторинг "Посейдон" | C49: 18 | D49: 20 | F49: 220000 | G49: =SUMIF(Реестр!$C:$C,Данные_tb[[#This Row],[ЕД]],Реестр!$J:$J) -> 67200 | H49: =Данные_tb[[#This Row],[Выделено]]-Данные_tb[[#This Row],[Израсходовано]] -> 152800
A50: Подвоз | B50: услуги автотранспорта (морская перевозка автобуса на техомотр) | C50: 18 | D50: 20 | G50: =SUMIF(Реестр!$C:$C,Данные_tb[[#This Row],[ЕД]],Реестр!$J:$J) -> 34700 | H50: =Данные_tb[[#This Row],[Выделено]]-Данные_tb[[#This Row],[Израсходовано]] -> -34700
A51: Подвоз | B51: оснащение видеонаблюдением автобусов | C51: 18 | D51: 20 | E51: 1300000 | F51: 1300000 | G51: =SUMIF(Реестр!$C:$C,Данные_tb[[#This Row],[ЕД]],Реестр!$J:$J) -> 0 | H51: =Данные_tb[[#This Row],[Выделено]]-Данные_tb[[#This Row],[Израсходовано]] -> 1300000
A52: Муниципальное задание | B52: командировочные (проезд, проживание, суточные) | C52: 4 | D52: 20 | E52: 150000 | F52: 150000 | G52: =SUMIF(Реестр!$C:$C,Данные_tb[[#This Row],[ЕД]],Реестр!$J:$J) -> 0 | H52: =Данные_tb[[#This Row],[Выделено]]-Данные_tb[[#This Row],[Израсходовано]] -> 150000
A53: Муниципальное задание | B53: почтовые | C53: 4 | D53: 20 | G53: =SUMIF(Реестр!$C:$C,Данные_tb[[#This Row],[ЕД]],Реестр!$J:$J) -> 0 | H53: =Данные_tb[[#This Row],[Выделено]]-Данные_tb[[#This Row],[Израсходовано]] -> 0
A54: Муниципальное задание | B54: услуги связи | C54: 4 | D54: 20 | F54: 250000 | G54: =SUMIF(Реестр!$C:$C,Данные_tb[[#This Row],[ЕД]],Реестр!$J:$J) -> 70798.57 | H54: =Данные_tb[[#This Row],[Выделено]]-Данные_tb[[#This Row],[Израсходовано]] -> 179201.43
A55: Муниципальное задание | B55: почтовые | C55: 4 | D55: 20 | G55: =SUMIF(Реестр!$C:$C,Данные_tb[[#This Row],[ЕД]],Реестр!$J:$J) -> 0 | H55: =Данные_tb[[#This Row],[Выделено]]-Данные_tb[[#This Row],[Израсходовано]] -> 0
A56: Муниципальное задание | B56: уборка и вывоз снега | C56: 4 | D56: 20 | F56: 120000 | G56: =SUMIF(Реестр!$C:$C,Данные_tb[[#This Row],[ЕД]],Реестр!$J:$J) -> 0 | H56: =Данные_tb[[#This Row],[Выделено]]-Данные_tb[[#This Row],[Израсходовано]] -> 120000
A57: Муниципальное задание | B57: услуги автотранспорта (доставка товаров до школы (автобусы на техосмотр провести по допу 18 - выделены по этой статье)) | C57: 4 | D57: 20 | F57: 1810000 | G57: =SUMIF(Реестр!$C:$C,Данные_tb[[#This Row],[ЕД]],Реестр!$J:$J) -> 0 | H57: =Данные_tb[[#This Row],[Выделено]]-Данные_tb[[#This Row],[Израсходовано]] -> 1810000
A58: Муниципальное задание | B58: промывка и опресовка системы | C58: 4 | D58: 20 | F58: 450000 | G58: =SUMIF(Реестр!$C:$C,Данные_tb[[#This Row],[ЕД]],Реестр!$J:$J) -> 0 | H58: =Данные_tb[[#This Row],[Выделено]]-Данные_tb[[#This Row],[Израсходовано]] -> 450000
A59: Муниципальное задание | B59: поверка приборов | C59: 4 | D59: 20 | F59: 50000 | G59: =SUMIF(Реестр!$C:$C,Данные_tb[[#This Row],[ЕД]],Реестр!$J:$J) -> 0 | H59: =Данные_tb[[#This Row],[Выделено]]-Данные_tb[[#This Row],[Израсходовано]] -> 50000
A60: Муниципальное задание | B60: замер сопротивления изоляции | C60: 4 | D60: 20 | F60: 400000 | G60: =SUMIF(Реестр!$C:$C,Данные_tb[[#This Row],[ЕД]],Реестр!$J:$J) -> 0 | H60: =Данные_tb[[#This Row],[Выделено]]-Данные_tb[[#This Row],[Израсходовано]] -> 400000
A61: Муниципальное задание | B61: вывоз, утилизация ТБО | C61: 4 | D61: 20 | F61: 415534.95 | G61: =SUMIF(Реестр!$C:$C,Данные_tb[[#This Row],[ЕД]],Реестр!$J:$J) -> 466748.58 | H61: =Данные_tb[[#This Row],[Выделено]]-Данные_tb[[#This Row],[Израсходовано]] -> -51213.63
A62: Муниципальное задание | B62: дератизация, рото-норо диагностика, пробы воды и т.п. | C62: 4 | D62: 20 | F62: 90000 | G62: =SUMIF(Реестр!$C:$C,Данные_tb[[#This Row],[ЕД]],Реестр!$J:$J) -> 0 | H62: =Данные_tb[[#This Row],[Выделено]]-Данные_tb[[#This Row],[Израсходовано]] -> 90000
A63: Муниципальное задание | B63: обслуживание тревожной кнопки | C63: 4 | D63: 20 | F63: 401541.84 | G63: =SUMIF(Реестр!$C:$C,Данные_tb[[#This Row],[ЕД]],Реестр!$J:$J) -> 42000 | H63: =Данные_tb[[#This Row],[Выделено]]-Данные_tb[[#This Row],[Израсходовано]] -> 359541.84
A64: Муниципальное задание | B64: обслуживание пожарной сигнализации | C64: 4 | D64: 20 | F64: 300000 | G64: =SUMIF(Реестр!$C:$C,Данные_tb[[#This Row],[ЕД]],Реестр!$J:$J) -> 300000 | H64: =Данные_tb[[#This Row],[Выделено]]-Данные_tb[[#This Row],[Израсходовано]] -> 0
A65: Муниципальное задание | B65: мониторинг системы пожарной безопасности (Координата) | C65: 4 | D65: 20 | F65: 36000 | G65: =SUMIF(Реестр!$C:$C,Данные_tb[[#This Row],[ЕД]],Реестр!$J:$J) -> 30000 | H65: =Данные_tb[[#This Row],[Выделено]]-Данные_tb[[#This Row],[Израсходовано]] -> 6000
A66: Муниципальное задание | B66: обслуживание системы видеонаблюдения | C66: 4 | D66: 20 | F66: 240000 | G66: =SUMIF(Реестр!$C:$C,Данные_tb[[#This Row],[ЕД]],Реестр!$J:$J) -> 216000 | H66: =Данные_tb[[#This Row],[Выделено]]-Данные_tb[[#This Row],[Израсходовано]] -> 24000
A67: Муниципальное задание | B67: услуги по подписке | C67: 4 | D67: 20 | F67: 370000 | G67: =SUMIF(Реестр!$C:$C,Данные_tb[[#This Row],[ЕД]],Реестр!$J:$J) -> 0 | H67: =Данные_tb[[#This Row],[Выделено]]-Данные_tb[[#This Row],[Израсходовано]] -> 370000
A68: Муниципальное задание | B68: обновление справочно-информационных баз (Консультант) | C68: 4 | D68: 20 | F68: 146740 | G68: =SUMIF(Реестр!$C:$C,Данные_tb[[#This Row],[ЕД]],Реестр!$J:$J) -> 97533.72 | H68: =Данные_tb[[#This Row],[Выделено]]-Данные_tb[[#This Row],[Израсходовано]] -> 49206.28
A69: Муниципальное задание | B69: обслуживание сайта (МЦФР, ГрамотаДел, продление доменного имени) | C69: 4 | D69: 20 | F69: 101000 | G69: =SUMIF(Реестр!$C:$C,Данные_tb[[#This Row],[ЕД]],Реестр!$J:$J) -> 0 | H69: =Данные_tb[[#This Row],[Выделено]]-Данные_tb[[#This Row],[Израсходовано]] -> 101000
A70: Муниципальное задание | B70: СОУТ | C70: 4 | D70: 20 | F70: 230000 | G70: =SUMIF(Реестр!$C:$C,Данные_tb[[#This Row],[ЕД]],Реестр!$J:$J) -> 0 | H70: =Данные_tb[[#This Row],[Выделено]]-Данные_tb[[#This Row],[Израсходовано]] -> 230000
A71: Муниципальное задание | B71: экология ЦЛАТИ (ИП Николаева) | C71: 4 | D71: 20 | F71: 23000 | G71: =SUMIF(Реестр!$C:$C,Данные_tb[[#This Row],[ЕД]],Реестр!$J:$J) -> 23000 | H71: =Данные_tb[[#This Row],[Выделено]]-Данные_tb[[#This Row],[Израсходовано]] -> 0
A72: Муниципальное задание | B72: объявления | C72: 4 | D72: 20 | F72: 10000 | G72: =SUMIF(Реестр!$C:$C,Данные_tb[[#This Row],[ЕД]],Реестр!$J:$J) -> 0 | H72: =Данные_tb[[#This Row],[Выделено]]-Данные_tb[[#This Row],[Израсходовано]] -> 10000
A73: Муниципальное задание | B73: восстановление кабельной линии в 2021 году | C73: 4 | D73: 20 | F73: 367497.6 | G73: =SUMIF(Реестр!$C:$C,Данные_tb[[#This Row],[ЕД]],Реестр!$J:$J) -> 367497.6 | H73: =Данные_tb[[#This Row],[Выделено]]-Данные_tb[[#This Row],[Израсходовано]] -> 0
A74: Муниципальное задание | B74: снегоуборщик | C74: 4 | D74: 20 | F74: 151020 | G74: =SUMIF(Реестр!$C:$C,Данные_tb[[#This Row],[ЕД]],Реестр!$J:$J) -> 151020 | H74: =Данные_tb[[#This Row],[Выделено]]-Данные_tb[[#This Row],[Израсходовано]] -> 0
A75: Муниципальное задание | B75: повышение квалификации | C75: 4 | D75: 20 | F75: 1372502.4 | G75: =SUMIF(Реестр!$C:$C,Данные_tb[[#This Row],[ЕД]],Реестр!$J:$J) -> 0 | H75: =Данные_tb[[#This Row],[Выделено]]-Данные_tb[[#This Row],[Израсходовано]] -> 1372502.4
A76: Муниципальное задание | B76: утилизация ООО "ЭкоСтарТехнолоджи" | C76: 4 | D76: 20 | F76: 250000 | G76: =SUMIF(Реестр!$C:$C,Данные_tb[[#This Row],[ЕД]],Реестр!$J:$J) -> 0 | H76: =Данные_tb[[#This Row],[Выделено]]-Данные_tb[[#This Row],[Израсходовано]] -> 250000
A77: Муниципальное задание | B77: мед.осмотр работников | C77: 4 | D77: 20 | F77: 885000 | G77: =SUMIF(Реестр!$C:$C,Данные_tb[[#This Row],[ЕД]],Реестр!$J:$J) -> 0 | H77: =Данные_tb[[#This Row],[Выделено]]-Данные_tb[[#This Row],[Израсходовано]] -> 885000
A78: Муниципальное задание | B78: Учетно-бланочная и бланочная продукция (аттестаты, меню) | C78: 4 | D78: 20 | F78: 70000 | G78: =SUMIF(Реестр!$C:$C,Данные_tb[[#This Row],[ЕД]],Реестр!$J:$J) -> 2110 | H78: =Данные_tb[[#This Row],[Выделено]]-Данные_tb[[#This Row],[Израсходовано]] -> 67890
A79: Муниципальное задание | B79: батареи для ИБП | C79: 4 | D79: 20 | F79: 100000 | G79: =SUMIF(Реестр!$C:$C,Данные_tb[[#This Row],[ЕД]],Реестр!$J:$J) -> 0 | H79: =Данные_tb[[#This Row],[Выделено]]-Данные_tb[[#This Row],[Израсходовано]] -> 100000
A80: Муниципальное задание | B80: картриджи для принтеров и ксерокса | C80: 4 | D80: 20 | F80: 400000 | G80: =SUMIF(Реестр!$C:$C,Данные_tb[[#This Row],[ЕД]],Реестр!$J:$J) -> 0 | H80: =Данные_tb[[#This Row],[Выделено]]-Данные_tb[[#This Row],[Израсходовано]] -> 400000
A81: Муниципальное задание | B81: медикаменты | C81: 4 | D81: 20 | F81: 70000 | G81: =SUMIF(Реестр!$C:$C,Данные_tb[[#This Row],[ЕД]],Реестр!$J:$J) -> 0 | H81: =Данные_tb[[#This Row],[Выделено]]-Данные_tb[[#This Row],[Израсходовано]] -> 70000
A82: Муниципальное задание | B82: хоз.материалы, инвентарь, канц.элект. товары | C82: 4 | D82: 20 | F82: 1056000 | G82: =SUMIF(Реестр!$C:$C,Данные_tb[[#This Row],[ЕД]],Реестр!$J:$J) -> 103347 | H82: =Данные_tb[[#This Row],[Выделено]]-Данные_tb[[#This Row],[Израсходовано]] -> 952653
A83: Муниципальное задание | B83: Гигиеническое обучение сотрудников (голограммы) | C83: 4 | D83: 20 | G83: =SUMIF(Реестр!$C:$C,Данные_tb[[#This Row],[ЕД]],Реестр!$J:$J) -> 0 | H83: =Данные_tb[[#This Row],[Выделено]]-Данные_tb[[#This Row],[Израсходовано]] -> 0
A84: Муниципальное задание | B84: Дез.средства, маски и т.п. | C84: 4 | D84: 20 | G84: =SUMIF(Реестр!$C:$C,Данные_tb[[#This Row],[ЕД]],Реестр!$J:$J) -> 0 | H84: =Данные_tb[[#This Row],[Выделено]]-Данные_tb[[#This Row],[Израсходовано]] -> 0
A85: Муниципальное задание | B85: мониторинг тенических средств охраны (Росгвардия) | C85: 4 | D85: 20 | F85: 62020.8 | G85: =SUMIF(Реестр!$C:$C,Данные_tb[[#This Row],[ЕД]],Реестр!$J:$J) -> 62020.8 | H85: =Данные_tb[[#This Row],[Выделено]]-Данные_tb[[#This Row],[Израсходовано]] -> 0
A86: Муниципальное задание | B86: покос (топливо, расходный материал) | C86: 4 | D86: 20 | G86: =SUMIF(Реестр!$C:$C,Данные_tb[[#This Row],[ЕД]],Реестр!$J:$J) -> 0 | H86: =Данные_tb[[#This Row],[Выделено]]-Данные_tb[[#This Row],[Израсходовано]] -> 0
A87: Муниципальное задание | B87: уборка снега (топливо, расходный материал) | C87: 4 | D87: 20 | G87: =SUMIF(Реестр!$C:$C,Данные_tb[[#This Row],[ЕД]],Реестр!$J:$J) -> 0 | H87: =Данные_tb[[#This Row],[Выделено]]-Данные_tb[[#This Row],[Израсходовано]] -> 0
A88: Муниципальное задание | B88: Предоставление права использования программы для ЭВМ "Школьная БИБЛИОТЕКА (учебники)" | C88: 4 | D88: 20 | G88: =SUMIF(Реестр!$C:$C,Данные_tb[[#This Row],[ЕД]],Реестр!$J:$J) -> 0 | H88: =Данные_tb[[#This Row],[Выделено]]-Данные_tb[[#This Row],[Израсходовано]] -> 0
A89: Муниципальное задание | B89: противопожарные мероприятия (уст.против. дверей, пандусов, замена огнетуш, приобр. табличек, изгот.планов эвакуации) | C89: 4 | D89: 20 | G89: =SUMIF(Реестр!$C:$C,Данные_tb[[#This Row],[ЕД]],Реестр!$J:$J) -> 0 | H89: =Данные_tb[[#This Row],[Выделено]]-Данные_tb[[#This Row],[Израсходовано]] -> 0
A90: Муниципальное задание | B90: Олимпиады | C90: 4 | D90: 20 | G90: =SUMIF(Реестр!$C:$C,Данные_tb[[#This Row],[ЕД]],Реестр!$J:$J) -> 6050 | H90: =Данные_tb[[#This Row],[Выделено]]-Данные_tb[[#This Row],[Израсходовано]] -> -6050
A91: Муниципальное задание | B91: спецодежда (школа) | C91: 4 | D91: 20 | G91: =SUMIF(Реестр!$C:$C,Данные_tb[[#This Row],[ЕД]],Реестр!$J:$J) -> 0 | H91: =Данные_tb[[#This Row],[Выделено]]-Данные_tb[[#This Row],[Израсходовано]] -> 0
A92: Муниципальное задание | B92: ТО охранная сигнализация и реагирование (мастерские) | C92: 4 | D92: 20 | F92: 320160 | G92: =SUMIF(Реестр!$C:$C,Данные_tb[[#This Row],[ЕД]],Реестр!$J:$J) -> 320160 | H92: =Данные_tb[[#This Row],[Выделено]]-Данные_tb[[#This Row],[Израсходовано]] -> 0
A93: Спонсорские | B93: Спонсорские | C93: 2 | D93: 20 | G93: =SUMIF(Реестр!$C:$C,Данные_tb[[#This Row],[ЕД]],Реестр!$J:$J) -> 3855 | H93: =Данные_tb[[#This Row],[Выделено]]-Данные_tb[[#This Row],[Израсходовано]] -> -3855

Sheet Сводная
A1: Названия строк | B1: Сумма по полю Сумма | H1: Сурудо от 10.01 | I1: 4 | J1: 5 | K1: аукцион и т.п.
A2: Питание (областной бюджет) (молоко, 5-11,многодетные, ОВЗ) | B2: 1757341.92 | H2: Выделено | I2: 5000000 | J2: 25000000
A3: молоко | B3: 1757341.92 | H3: Израсходовано | I3: =SUMIF(Реестр!$I:$I,Остатки_tb6[[#Headers],[4]],Реестр!$J:$J) -> 210478.72 | J3: =SUMIF(Реестр!$I:$I,Остатки_tb6[[#Headers],[5]],Реестр!$J:$J) -> 3144225.84 | K3: =SUMIF(Реестр!$I:$I,Остатки_tb6[[#Headers],[аукцион и т.п.]],Реестр!$J:$J) -> 8982850.83
A4: охрана аукцион, ППБ, предписания | B4: 1747334.91 | H4: Остаток | I4: =I2-I3 -> 4789521.28 | J4: =J2-J3 -> 21855774.16
A5: физическая охрана | B5: 1747334.91
A6: Коммунальные услуги | B6: 5478174
A7: вода | B7: 1681914
A8: теплоснабжение | B8: 1826058
A9: электроэнергия | B9: 1970202
A10: Общий итог | B10: 8982850.83

Sheet Технический
B1: Выходные | D1: Пункт 44 ФЗ | F1: Способ оплаты | H1: С даты подписания (акта/договора) и предоставления документов на оплату | J1: Документы переданые в бухгалтерию | L1: Оплачен | N1: Контрагент | P1: Категории | R1: Основание
D2: 4 | F2: Полный расчет | H2: Акта | J2: Оригиналы | L2: Да | N2: АО " СахалинСельхозИнвест" | P2: Доступная среда | R2: Без договора | T2: Категория | U2: ЕД
D3: 5 | F3: Аванс | H3: Договора | J3: Копии | L3: Нет | N3: АО "Мобильные газотурбинные электрические станции" | P3: Капитальный ремонт | R3: Договор № 001-МН-2022 от 10.01.2022 г. на сумму 67 200,00 руб. | T3: Доступная среда | U3: доступная среда (местный бюджет)
D4: аукцион и т.п. | F4: Остаток | N4: ИП Ибрагимов Рустам Ибрагимович | P4: Коммунальные услуги | R4: Договор № 1 от 26.11.2021 г. на сумму 672 303,52 руб. | U4: доступная среда (местный бюджет) - софинансирование
